Workbook

Sheet ModelBezAKU
A1: Parametr | B1: Hodnota | C1: Jednotka | D1: Specifikace | E1: Popis | F1: Datum | G1: Pořadí hodiny | H1: Dodávky tepla [GJ] | I1: Dodávky páry [GJ] | J1: Dodávky HV [GJ] | K1: Dodávky páry včetně energie VK [GJ] | L1: Dodávky HV včetně vratné energie [GJ] | M1: Průtok páry do CZT [t] | N1: Průtok vody do HV [t] | O1: Výroba v páře K1 [GJ] | P1: Parní výkon K1 [t] | Q1: Parní výkon K1 pomocny [t] | R1: Výroba/Tepelný výkon K1 [GJ] | S1: Výroba/Tepelný výkon K1 [MWt] | T1: Tepelný příkon K1 [MWt] | U1: Spotřeba uhlí K1 [t] | V1: Výroba v páře OK [GJ] | W1: Výroba v páře OK pomocný sloupec [GJ] | X1: Parní výkon OK [t] | Y1: Parní výkon OK požadavek [t] | Z1: Výroba/Tepelný výkon OK [MWt] | AA1: Tepelný příkon OK [MWt] | AB1: Spotřeba paliva pro OK [t] | AC1: Energie na výrobu EE TG1 [GJ] | AD1: Výroba EE TG1 [MWh] | AE1: Energie v páře na výstupu z TG1 [GJ] | AF1: Energie na vstupu do TG2 [GJ] | AG1: Průtok páry do TG2 minimalni pro zajisteni pozadavku HVS a min kondenzace [t] | AH1: Průtok páry do TG2 [t] - doplněk do zbývajícícho průtoku páry po odečtení všech ostatních ostatních požadavků | AI1: Odběr páry z RO [t] | AJ1: Průtok páry z RO přes NTO 2 [t] | AK1: Předaná energie NTO 2 [GJ] | AL1: Průtok páry na ZO z RO [t] | AM1: Odběr páry z NRO [t] | AN1: Předaná energie NTO 1 [GJ] | AO1: Průtok páry do kondenzace pomocný [t] | AP1: Průtok páry do kondenzace [t] doplněk | AQ1: Mařená energie v kondenzaci [GJ] | AR1: Výroba EE TG2 [MWh] | AS1: Předaná energie ZO [GJ] | AT1: Předaná energie ŠO [GJ] | AU1: Průtok páry přes ŠO [t] | AV1: Předaná energie VTO 1 [GJ] | AW1: Průtok páry přes VTO 1 [t] | AX1: Předaná energie VTO 2 [GJ] | AY1: Průtok páry přes VTO 2 [t] | AZ1: Výroba EE [MWh] | BA1: Prodej EE [MWh] | BB1: Vlastní spotřeba EE [MWh] | BC1: Tarif | BK1: Průtok páry do TG2 [t] | BL1: Průtok páry do kondenzace [t] | BM1: Kogenerační EE [MWh] | BN1: Kondenzační EE [MWh] | BQ1: MIN | BR1: MAX | BS1: MAX/MIN | BT1: Počet maxů
A2: h_CZT | B2: 2.954 | C2: GJ/t | D2: 250°C; 0,7 Mpa | E2: Entalpie dodávkové páry | F2: 2018-01-01 | G2: 1 | H2: =+I2+J2 -> 68.40301599 | I2: 58.40848419 | J2: 9.9945318 | K2: =M2*h_CZT -> 61.46728261 | L2: =N2*h_HV -> 21.8062512 | M2: =I2/(h_CZT-h_VK) -> 20.80815254 | N2: =J2/(h_HV-h_VHV) -> 43.26637143 | O2: =P2*h_výstupK1 -> 147.2843179 | P2: 43.69158052 | Q2: =P2 -> 43.69158052 | R2: =P2*(h_výstupK1-h_nvK1) -> 116.65652 | S2: =R2/3.6 -> 32.40458888 | T2: =S2/Účinnost_K1 -> 35.22237922 | U2: =T2*3.6/Výhřevnost_HU -> 7.372125884 | V2: =IF(W2=0,0,MAX(W2,PminOK*3.6)) -> 0 | W2: =AG2*h_eTG1-AH2*h_eTG1 -> 0 | X2: =V2/h_CZT -> 0 | Y2: =W2/h_CZT -> 0 | Z2: =(V2-X2*h_VK)/3.6 -> 0 | AA2: =Z2/Účinnost_OK -> 0 | AB2: =AA2*3.6/Výhřevnost_LTO -> 0 | AC2: =P2*(h_výstupK1-h_eTG1) -> 18.21938908 | AD2: =AC2*ÚčinnostPT*ÚčinnostG/3.6 -> 4.910125356 | AE2: =O2-AC2 -> 129.0649289 | AF2: =AG2*h_eTG1 -> 52.29769575 | AG2: =IF(AP2<MminTG2,MminTG2+AM2+AI2,AH2) -> 17.704027 | AH2: =P2/S3_-M2-AU2 -> 17.704027 | AI2: =AJ2+AL2 -> 6.285846129 | AJ2: =(M2+AH2)*(h_vNTO2-h_vNTO1)/(h_RO-h_vNTO2+h_vNTO2-h_vNTO1) -> 2.250912015 | AK2: =AJ2*(h_RO-h_vNTO2) -> 5.294145059 | AL2: =AS2/(h_RO-h_VHV) -> 4.034934114 | AM2: =(M2+AH2-AI2)*(h_vNTO1-h_VK)/(h_NRO-h_VK) -> 1.418174773 | AN2: =AM2*(h_NRO-h_vNTO1) -> 3.234856657 | AO2: =IF(AP2<MminTG2,MminTG2,AP2) -> 10.0000061 | AP2: =AH2-AI2-AM2 -> 10.0000061 | AQ2: =BL2*(h_kondTG2-h_VK) -> 22.34003586 | AR2: =(BL2*(h_eTG1-h_kondTG2)+AM2*(h_eTG1-h_NRO)+AI2*(h_eTG1-h_RO))*ÚčinnostPT*ÚčinnostG/3.6 -> 2.050726128 | AS2: =IF(J2>(3.6*Pn_ZO),(3.6*Pn_ZO),J2) -> 9.9945318 | AT2: =J2-AS2 -> 0 | AU2: =AT2/(h_CZT-h_vNTO2) -> 0 | AV2: =AW2*(h_CZT-h_vVTO1) -> 5.776826931 | AW2: =(P2-AY2)*(h_vVTO1-h_vNTO2)/(h_CZT-h_vNTO2) -> 2.4010087 | AX2: =AY2*(h_eTG1-h_nvK1) -> 6.259717801 | AY2: =P2*(h_nvK1-h_vVTO1)/(h_eTG1-h_vVTO1) -> 2.778392277 | AZ2: =AR2+AD2 -> 6.960851484 | BA2: =MAX(AZ2-BB2,0) -> 5.196248825 | BB2: =1+1.4*P2/80 -> 1.764602659 | BC2: NT | BK2: 17.70403695 | BL2: =AO2+(BK2-AG2) -> 10.00001605 | BM2: =AZ2*cskut -> 3.132383168 | BN2: =AZ2-BM2 -> 3.828468316 | BP2: =IF(BC2="NT",BA2*Ekonomika!$B$22,BA2*Ekonomika!$B$23)-U2*Ekonomika!$B$14-U2*(Výhřevnost_HU/3.6)*Emisní_faktor_CO2_HU*Ekonomika!$B$24 -> -8609.434434 | BQ2: -8609.434434 | BR2: -12720.28168 | BS2: =IF(BQ2>=BR2,"MIN","MAX") -> MIN | BT2: =COUNTIFS(BS2:BS8761,"MAX") -> 0
A3: h_HV | B3: 0.504 | C3: GJ/t | D3: 120°C; 0,8 Mpa | E3: Entalpie HV | F3: 2018-01-01T01:00:00 | G3: 2 | H3: =+I3+J3 -> 70.36300815 | I3: 60.36847745 | J3: 9.9945307 | K3: =M3*h_CZT -> 63.52991891 | L3: 21.8062488 | M3: 21.50640451 | N3: 43.26636667 | O3: =P3*h_výstupK1 -> 150.2509965 | P3: 44.57163942 | Q3: =P3 -> 44.57163942 | R3: 119.0062772 | S3: =R3/3.6 -> 33.05729923 | T3: 35.93184699 | U3: 7.520619138 | V3: 0 | W3: 0 | X3: 0 | Y3: 0 | Z3: 0 | AA3: =Z3/Účinnost_OK -> 0 | AB3: =AA3*3.6/Výhřevnost_LTO+IF(AA3>0,IF(AA2=0,Spotřeba_LTO_na_zátop_OK,0),0) -> 0 | AC3: 18.58637364 | AD3: 5.009027695 | AE3: 131.6646228 | AF3: 52.52657375 | AG3: 17.7815077 | AH3: 17.7815077 | AI3: =AJ3+AL3 -> 6.331184744 | AJ3: 2.296251074 | AK3: 5.400782526 | AL3: 4.03493367 | AM3: 1.450317009 | AN3: 3.308173098 | AO3: 10.00000595 | AP3: =AH3-AI3-AM3 -> 10.00000595 | AQ3: 22.34003499 | AR3: 2.056865536 | AS3: 9.9945307 | AT3: 0 | AU3: 0 | AV3: 5.893186831 | AW3: 2.449371085 | AX3: 6.385804344 | AY3: 2.834356122 | AZ3: =AR3+AD3 -> 7.065893231 | BA3: =MAX(AZ3-BB3,0) -> 5.285889541 | BB3: =1+1.4*P3/80 -> 1.78000369 | BC3: NT | BK3: 17.78151742 | BL3: =AO3+(BK3-AG3) -> 10.00001566 | BM3: 3.179651954 | BN3: =AZ3-BM3 -> 3.886241277 | BP3: =IF(BC3="NT",BA3*Ekonomika!$B$22,BA3*Ekonomika!$B$23)-U3*Ekonomika!$B$14-U3*(Výhřevnost_HU/3.6)*Emisní_faktor_CO2_HU*Ekonomika!$B$24 -> -8794.794668 | BQ3: -8794.794668 | BR3: -12806.00146 | BS3: =IF(BQ3>=BR3,"MIN","MAX") -> MIN
A4: h_VK | B4: 0.147 | C4: GJ/t | D4: 35°C; 0,7 Mpa | E4: Entalpie vratného kondenzátu | F4: 2018-01-01T02:00:00 | G4: 3 | H4: 72.6184696 | I4: 57.2356571 | J4: 15.3828125 | K4: 60.23303565 | L4: 33.5625 | M4: 20.39033028 | N4: 66.5922619 | O4: 154.3447386 | P4: 45.78603934 | Q4: 45.78603934 | R4: 122.248725 | S4: 33.95797917 | T4: 36.91084693 | U4: 7.725526101 | V4: 0 | W4: 0 | X4: 0 | Y4: 0 | Z4: 0 | AA4: 0 | AB4: 0 | AC4: 19.0927784 | AD4: 5.14550378 | AE4: 135.2519602 | AF4: 58.9855349 | AG4: 19.96802129 | AH4: 19.96802129 | AI4: 8.56907417 | AJ4: 2.358814784 | AK4: 5.547932371 | AL4: 6.210259386 | AM4: 1.398941378 | AN4: 3.190985283 | AO4: 10.00000575 | AP4: 10.00000575 | AQ4: 22.34003379 | AR4: 2.174071085 | AS4: 15.3828125 | AT4: 0 | AU4: 0 | AV4: 6.053752736 | AW4: 2.516106707 | AX4: 6.559792117 | AY4: 2.911581055 | AZ4: 7.319574864 | BA4: 5.518319176 | BB4: 1.801255688 | BC4: NT | BK4: 19.96803067 | BL4: =AO4+(BK4-AG4) -> 10.00001513 | BM4: 3.293808689 | BN4: 4.025766175 | BP4: =IF(BC4="NT",BA4*Ekonomika!$B$22,BA4*Ekonomika!$B$23)-U4*Ekonomika!$B$14-U4*(Výhřevnost_HU/3.6)*Emisní_faktor_CO2_HU*Ekonomika!$B$24 -> -8964.133627 | BQ4: -8964.133627 | BR4: -12837.84579 | BS4: MIN
A5: h_VHV | B5: 0.273 | C5: GJ/t | D5: 65°C; 0,8 Mpa | E5: Entalpie vratné vody | F5: 2018-01-01T03:00:00 | G5: 4 | H5: 73.84832801 | I5: 60.90614051 | J5: 12.9421875 | K5: 64.09573889 | L5: 28.2375 | M5: 21.69794817 | N5: 56.02678571 | O5: 155.8983419 | P5: 46.24691247 | Q5: 46.24691247 | R5: 123.4792563 | S5: 34.29979342 | T5: 37.28238415 | U5: 7.803289705 | V5: 0 | W5: 0 | X5: 0 | Y5: 0 | Z5: 0 | AA5: 0 | AB5: 0 | AC5: 19.2849625 | AD5: 5.197297394 | AE5: 136.6133794 | AF5: 56.322862 | AG5: 19.06664252 | AH5: 19.06664252 | AI5: 7.607502632 | AJ5: 2.382558143 | AK5: 5.603776751 | AL5: 5.224944489 | AM5: 1.459134219 | AN5: 3.328285153 | AO5: 10.00000567 | AP5: 10.00000567 | AQ5: 22.34003334 | AR5: 2.128035223 | AS5: 12.9421875 | AT5: 0 | AU5: 0 | AV5: 6.114688603 | AW5: 2.541433335 | AX5: 6.625821675 | AY5: 2.940888449 | AZ5: 7.325332617 | BA5: 5.516011648 | BB5: 1.809320968 | BC5: NT | BK5: 19.06665177 | BL5: 10.00001492 | BM5: 3.296399677 | BN5: 4.028932939 | BP5: =IF(BC5="NT",BA5*Ekonomika!$B$22,BA5*Ekonomika!$B$23)-U5*Ekonomika!$B$14-U5*(Výhřevnost_HU/3.6)*Emisní_faktor_CO2_HU*Ekonomika!$B$24 -> -9100.357382 | BQ5: -9100.357382 | BR5: -12921.88938 | BS5: MIN
A6: h_kondŠO | B6: 0.504 | C6: GJ/t | D6: 120°C; 0,7 Mpa | E6: Entalpie kondenzátu ŠO | F6: 2018-01-01T04:00:00 | G6: 5 | H6: 88.16512003 | I6: 71.76824503 | J6: 16.396875 | K6: 75.5266818 | L6: 35.775 | M6: 25.56759709 | N6: 70.98214286 | O6: 178.0043663 | P6: 52.80461771 | Q6: 52.80461771 | R6: 140.9883293 | S6: 39.1634248 | T6: 42.56894 | U6: 8.90977814 | V6: 0 | W6: 0 | X6: 0 | Y6: 0 | Z6: 0 | AA6: 0 | AB6: 0 | AC6: 22.01952559 | AD6: 5.934262145 | AE6: 155.9848407 | AF6: 61.96699823 | AG6: 20.97731829 | AH6: 20.97731829 | AI6: 9.340050165 | AJ6: 2.720399378 | AK6: 6.398379336 | AL6: 6.619650787 | AM6: 1.637263557 | AN6: 3.734598174 | AO6: 10.00000457 | AP6: 10.00000457 | AQ6: 22.34002686 | AR6: 2.243497239 | AS6: 16.396875 | AT6: 0 | AU6: 0 | AV6: 6.981737307 | AW6: 2.901802704 | AX6: 7.565347866 | AY6: 3.35789963 | AZ6: 8.177759384 | BA6: 6.253678574 | BB6: 1.92408081 | BC6: NT | BK6: 20.97732574 | BL6: 10.00001202 | BM6: 3.679991723 | BN6: 4.497767661 | BP6: =IF(BC6="NT",BA6*Ekonomika!$B$22,BA6*Ekonomika!$B$23)-U6*Ekonomika!$B$14-U6*(Výhřevnost_HU/3.6)*Emisní_faktor_CO2_HU*Ekonomika!$B$24 -> -10426.13624 | BQ6: -10426.13624 | BR6: -13505.20341 | BS6: MIN
A7: h_výstupK1 | B7: 3.371 | C7: GJ/t | D7: 480°C; 6,3 Mpa | E7: Entalpie výstupní páry K1 | F7: 2018-01-01T05:00:00 | G7: 6 | H7: 119.0094894 | I7: 95.04152011 | J7: 23.9679693 | K7: 100.0187568 | L7: 52.2937512 | M7: 33.85875316 | N7: 103.7574429 | O7: 225.6461874 | P7: 66.93746289 | Q7: 66.93746289 | R7: 178.7230259 | S7: 49.64528497 | T7: 53.96226628 | U7: 11.29442783 | V7: 0 | W7: 0 | X7: 0 | Y7: 0 | Z7: 0 | AA7: 0 | AB7: 0 | AC7: 27.91292202 | AD7: 7.522532485 | AE7: 197.7332654 | AF7: 74.27429751 | AG7: 25.1436349 | AH7: 25.1436349 | AI7: 13.1247071 | AJ7: 3.448498261 | AK7: 8.110867911 | AL7: 9.676208841 | AM7: 2.018925608 | AN7: 4.605169312 | AO7: 10.00000219 | AP7: 10.00000219 | AQ7: 22.3400129 | AR7: 2.494872329 | AS7: 23.9679693 | AT7: 0 | AU7: 0 | AV7: 8.850358209 | AW7: 3.678453121 | AX7: 9.590168701 | AY7: 4.256621705 | AZ7: 10.01740481 | BA7: 7.845999214 | BB7: 2.171405601 | BC7: NT | BK7: 25.14363849 | BL7: 10.00000577 | BM7: 4.507832166 | BN7: 5.509572648 | BP7: =IF(BC7="NT",BA7*Ekonomika!$B$22,BA7*Ekonomika!$B$23)-U7*Ekonomika!$B$14-U7*(Výhřevnost_HU/3.6)*Emisní_faktor_CO2_HU*Ekonomika!$B$24 -> -13281.37303 | BQ7: -13281.37303 | BR7: -14760.31636 | BS7: MIN
A8: h_nvK1 | B8: 0.701 | C8: GJ/t | D8: 165°C; 6,5 Mpa | E8: Entalpie napájecí vody K1 | F8: 2018-01-01T06:00:00 | G8: 7 | H8: 143.7197451 | I8: 115.8306826 | J8: 27.8890625 | K8: 121.8966285 | L8: 60.84886364 | M8: 41.26493857 | N8: 120.7318723 | O8: 263.5427876 | P8: 78.17940896 | Q8: 78.17940896 | R8: 208.7390219 | S8: 57.98306165 | T8: 63.02506701 | U8: 13.1912931 | V8: 0 | W8: 0 | X8: 0 | Y8: 0 | Z8: 0 | AA8: 0 | AB8: 0 | AC8: 32.60081354 | AD8: 8.785919249 | AE8: 230.9419741 | AF8: 81.66842138 | AG8: 27.64672356 | AH8: 27.64672356 | AI8: 15.28687293 | AJ8: 4.027663199 | AK8: 9.473063844 | AL8: 11.25920973 | AM8: 2.359850321 | AN8: 5.382818582 | AO8: 10.00000031 | AP8: 10.00000031 | AQ8: 22.3400018 | AR8: 2.652424262 | AS8: 27.8890625 | AT8: 0 | AU8: 0 | AV8: 10.33674932 | AW8: 4.296238287 | AX8: 11.20080876 | AY8: 4.97150855 | AZ8: 11.43834351 | BA8: 9.070203853 | BB8: 2.368139657 | BC8: NT | BK8: 27.64672405 | BL8: 10.0000008 | BM8: 5.14725458 | BN8: 6.291088931 | BP8: =IF(BC8="NT",BA8*Ekonomika!$B$22,BA8*Ekonomika!$B$23)-U8*Ekonomika!$B$14-U8*(Výhřevnost_HU/3.6)*Emisní_faktor_CO2_HU*Ekonomika!$B$24 -> -15586.2762 | BQ8: -15586.2762 | BR8: -15792.40391 | BS8: MIN
A9: h_eTG1 | B9: 2.954 | C9: GJ/t | D9: 250°C; 0,7 Mpa | E9: Entalpie emisní páry TG1 | F9: 2018-01-01T07:00:00 | G9: 8 | H9: 144.5980458 | I9: 112.9042958 | J9: 31.69375 | K9: 118.8169895 | L9: 69.15 | M9: 40.22240675 | N9: 137.202381 | O9: 265.3522339 | P9: 78.71617737 | Q9: 78.71617737 | R9: 210.1721936 | S9: 58.38116488 | T9: 63.45778791 | U9: 13.28186259 | V9: 0 | W9: 0 | X9: 0 | Y9: 0 | Z9: 0 | AA9: 0 | AB9: 0 | AC9: 32.82464596 | AD9: 8.846242087 | AE9: 232.5275879 | AF9: 86.14570827 | AG9: 29.16239278 | AH9: 29.16239278 | AI9: 16.85053253 | AJ9: 4.055316546 | AK9: 9.538104516 | AL9: 12.79521599 | AM9: 2.311860031 | AN9: 5.273352732 | AO9: 10.00000022 | AP9: 10.00000022 | AQ9: 22.34000127 | AR9: 2.732946148 | AS9: 31.69375 | AT9: 0 | AU9: 0 | AV9: 10.40771993 | AW9: 4.325735632 | AX9: 11.27771188 | AY9: 5.005642202 | AZ9: 11.57918824 | BA9: 9.201655131 | BB9: 2.377533104 | BC9: NT | BK9: 29.16239313 | BL9: 10.00000057 | BM9: 5.210634706 | BN9: 6.368553529 | BP9: =IF(BC9="NT",BA9*Ekonomika!$B$22,BA9*Ekonomika!$B$23)-U9*Ekonomika!$B$14-U9*(Výhřevnost_HU/3.6)*Emisní_faktor_CO2_HU*Ekonomika!$B$24 -> -15638.29537 | BQ9: -15638.29537 | BR9: -15783.65005 | BS9: MIN
A10: h_vNTO2 | B10: 0.398 | C10: GJ/t | D10: 95°C; 0,7 Mpa | E10: Entalpie výstupní vody NTO2 | F10: 2018-01-01T08:00:00 | G10: 9 | H10: 129.9631036 | I10: 105.5654479 | J10: 24.3976557 | K10: 111.093813 | L10: 53.2312488 | M10: 37.60792588 | N10: 105.6175571 | O10: 242.2799842 | P10: 71.87184343 | Q10: 71.87184343 | R10: 191.897822 | S10: 53.30495055 | T10: 57.94016364 | U10: 12.12701099 | V10: 0 | W10: 0 | X10: 0 | Y10: 0 | Z10: 0 | AA10: 0 | AB10: 0 | AC10: 29.97055871 | AD10: 8.077065573 | AE10: 212.3094255 | AF10: 76.04747633 | AG10: 25.74389855 | AH10: 25.74389855 | AI10: 13.55238804 | AJ10: 3.702708714 | AK10: 8.708770895 | AL10: 9.84967933 | AM10: 2.191509145 | AN10: 4.998832361 | AO10: 10.00000136 | AP10: 10.00000136 | AQ10: 22.34000803 | AR10: 2.537966277 | AS10: 24.3976557 | AT10: 0 | AU10: 0 | AV10: 9.502773665 | AW10: 3.94961499 | AX10: 10.29712023 | AY10: 4.570404009 | AZ10: 10.61503185 | BA10: 8.357274589 | BB10: 2.25775726 | BC10: VT | BK10: 25.74390078 | BL10: 10.00000359 | BM10: 4.776764332 | BN10: 5.838267517 | BP10: =IF(BC10="NT",BA10*Ekonomika!$B$22,BA10*Ekonomika!$B$23)-U10*Ekonomika!$B$14-U10*(Výhřevnost_HU/3.6)*Emisní_faktor_CO2_HU*Ekonomika!$B$24 -> -11966.41494 | BQ10: -11966.41494 | BR10: -12374.42756 | BS10: MIN
A11: h_vVTO1 | B11: 0.548 | C11: GJ/t | D11: 130°C; 3 Mpa | E11: Entalpie výstupní vody VTO1 | F11: 2018-01-01T09:00:00 | G11: 10 | H11: 139.6672176 | I11: 109.7781551 | J11: 29.8890625 | K11: 115.5271358 | L11: 65.2125 | M11: 39.10871218 | N11: 129.389881 | O11: 257.6611493 | P11: 76.43463342 | Q11: 76.43463342 | R11: 204.0804712 | S11: 56.68901979 | T11: 61.61849977 | U11: 12.8968953 | V11: 0 | W11: 0 | X11: 0 | Y11: 0 | Z11: 0 | AA11: 0 | AB11: 0 | AC11: 31.87324214 | AD11: 8.589838756 | AE11: 225.7879071 | AF11: 83.494834 | AG11: 28.26500812 | AH11: 28.26500812 | AI11: 16.00441356 | AJ11: 3.937775486 | AK11: 9.261647944 | AL11: 12.06663807 | AM11: 2.260593969 | AN11: 5.156414842 | AO11: 10.0000006 | AP11: 10.0000006 | AQ11: 22.34000352 | AR11: 2.680611753 | AS11: 29.8890625 | AT11: 0 | AU11: 0 | AV11: 10.10605805 | AW11: 4.200356628 | AX11: 10.95083377 | AY11: 4.86055649 | AZ11: 11.27045051 | BA11: 8.932844425 | BB11: 2.337606085 | BC11: VT | BK11: 28.2650091 | BL11: 10.00000158 | BM11: 5.071702729 | BN11: 6.19874778 | BP11: =IF(BC11="NT",BA11*Ekonomika!$B$22,BA11*Ekonomika!$B$23)-U11*Ekonomika!$B$14-U11*(Výhřevnost_HU/3.6)*Emisní_faktor_CO2_HU*Ekonomika!$B$24 -> -12677.6822 | BQ11: -12677.6822 | BR11: -12856.65446 | BS11: MIN
A12: h_vNTO1 | B12: 0.252 | C12: GJ/t | D12: 60°C; 0,7 Mpa | E12: Entalpie výstupní vody NTO1 | F12: 2018-01-01T10:00:00 | G12: 11 | H12: 137.9180961 | I12: 109.6016893 | J12: 28.3164068 | K12: 115.3414286 | L12: 61.7812512 | M12: 39.04584584 | N12: 122.5818476 | O12: 254.8152272 | P12: 75.59039667 | Q12: 75.59039667 | R12: 201.8263591 | S12: 56.06287753 | T12: 60.93791036 | U12: 12.75444635 | V12: 0 | W12: 0 | X12: 0 | Y12: 0 | Z12: 0 | AA12: 0 | AB12: 0 | AC12: 31.52119541 | AD12: 8.494962164 | AE12: 223.2940318 | AF12: 81.48230127 | AG12: 27.58371742 | AH12: 27.58371742 | AI12: 15.3260166 | AJ12: 3.89428192 | AK12: 9.159351076 | AL12: 11.43173468 | AM12: 2.257700084 | AN12: 5.149813891 | AO12: 10.00000074 | AP12: 10.00000074 | AQ12: 22.34000436 | AR12: 2.642986564 | AS12: 28.3164068 | AT12: 0 | AU12: 0 | AV12: 9.99443449 | AW12: 4.153962797 | AX12: 10.82987949 | AY12: 4.806870611 | AZ12: 11.13794873 | BA12: 8.815116786 | BB12: 2.322831942 | BC12: VT | BK12: 27.58371863 | BL12: 10.00000195 | BM12: 5.012076928 | BN12: 6.1258718 | BP12: =IF(BC12="NT",BA12*Ekonomika!$B$22,BA12*Ekonomika!$B$23)-U12*Ekonomika!$B$14-U12*(Výhřevnost_HU/3.6)*Emisní_faktor_CO2_HU*Ekonomika!$B$24 -> -12558.16296 | BQ12: -12558.16296 | BR12: -12779.51374 | BS12: MIN
A13: h_RO | B13: 2.75 | C13: GJ/t | D13: 140°C; 0,18 Mpa | E13: Entalpie regulovaného odběru | F13: 2018-01-01T11:00:00 | G13: 12 | H13: 134.4149847 | I13: 106.9321722 | J13: 27.4828125 | K13: 112.5321114 | L13: 59.9625 | M13: 38.09482444 | N13: 118.9732143 | O13: 249.407682 | P13: 73.98625987 | Q13: 73.98625987 | R13: 197.5433139 | S13: 54.87314274 | T13: 59.64472037 | U13: 12.48377868 | V13: 0 | W13: 0 | X13: 0 | Y13: 0 | Z13: 0 | AA13: 0 | AB13: 0 | AC13: 30.85227037 | AD13: 8.314686864 | AE13: 218.5554117 | AF13: 80.11473621 | AG13: 27.12076378 | AH13: 27.12076378 | AI13: 14.90684051 | AJ13: 3.811639664 | AK13: 8.964976489 | AL13: 11.09520085 | AM13: 2.213922259 | AN13: 5.049956672 | AO13: 10.00000101 | AP13: 10.00000101 | AQ13: 22.34000594 | AR13: 2.614974201 | AS13: 27.4828125 | AT13: 0 | AU13: 0 | AV13: 9.782338233 | AW13: 4.06580974 | AX13: 10.60005389 | AY13: 4.704861912 | AZ13: 10.92966106 | BA13: 8.634901517 | BB13: 2.294759548 | BC13: VT | BK13: 27.12076543 | BL13: 10.00000266 | BM13: 4.918347479 | BN13: 6.011313586 | BP13: =IF(BC13="NT",BA13*Ekonomika!$B$22,BA13*Ekonomika!$B$23)-U13*Ekonomika!$B$14-U13*(Výhřevnost_HU/3.6)*Emisní_faktor_CO2_HU*Ekonomika!$B$24 -> -12284.28661 | BQ13: -12284.28661 | BR13: -12586.16095 | BS13: MIN
A14: h_NRO | B14: 2.533 | C14: GJ/t | D14: 70°C; 0,03 Mpa; 0,96 suchost | E14: Entalpie neregulovaného odběru | F14: 2018-01-01T12:00:00 | G14: 13 | H14: 134.9546172 | I14: 107.239774 | J14: 27.7148432 | K14: 112.8558221 | L14: 60.4687488 | M14: 38.20440828 | N14: 119.9776762 | O14: 250.2537545 | P14: 74.23724548 | Q14: 74.23724548 | R14: 198.2134454 | S14: 55.05929039 | T14: 59.84705478 | U14: 12.52612774 | V14: 0 | W14: 0 | X14: 0 | Y14: 0 | Z14: 0 | AA14: 0 | AB14: 0 | AC14: 30.95693136 | AD14: 8.342893002 | AE14: 219.2968231 | AF14: 80.4445467 | AG14: 27.23241256 | AH14: 27.23241256 | AI14: 15.01344492 | AJ14: 3.824569993 | AK14: 8.995388623 | AL14: 11.18887493 | AM14: 2.218966668 | AN14: 5.061462971 | AO14: 10.00000097 | AP14: 10.00000097 | AQ14: 22.34000569 | AR14: 2.621407417 | AS14: 27.7148432 | AT14: 0 | AU14: 0 | AV14: 9.815523125 | AW14: 4.079602296 | AX14: 10.63601274 | AY14: 4.720822343 | AZ14: 10.96430042 | BA14: 8.665148624 | BB14: 2.299151796 | BC14: VT | BK14: 27.23241414 | BL14: 10.00000255 | BM14: 4.933935189 | BN14: 6.030365231 | BP14: =IF(BC14="NT",BA14*Ekonomika!$B$22,BA14*Ekonomika!$B$23)-U14*Ekonomika!$B$14-U14*(Výhřevnost_HU/3.6)*Emisní_faktor_CO2_HU*Ekonomika!$B$24 -> -12324.93182 | BQ14: -12324.93182 | BR14: -12614.20732 | BS14: MIN
A15: h_kondTG2 | B15: 2.381 | C15: GJ/t | D15: 40°C; 0,008 Mpa; 0,92 suchost | E15: Entalpie emisní páry TG2 | F15: 2018-01-01T13:00:00 | G15: 14 | H15: 121.4343217 | I15: 98.96166494 | J15: 22.4726568 | K15: 104.144196 | L15: 49.0312512 | M15: 35.25531348 | N15: 97.28422857 | O15: 229.1277938 | P15: 67.97027403 | Q15: 67.97027403 | R15: 181.4806317 | S15: 50.41128657 | T15: 54.79487671 | U15: 11.46869513 | V15: 0 | W15: 0 | X15: 0 | Y15: 0 | Z15: 0 | AA15: 0 | AB15: 0 | AC15: 28.34360427 | AD15: 7.638601351 | AE15: 200.7841895 | AF15: 72.83811185 | AG15: 24.65745154 | AH15: 24.65745154 | AI15: 12.57423684 | AJ15: 3.501706843 | AK15: 8.236014494 | AL15: 9.072529996 | AM15: 2.083212682 | AN15: 4.751808128 | AO15: 10.00000202 | AP15: 10.00000202 | AQ15: 22.34001188 | AR15: 2.471902483 | AS15: 22.4726568 | AT15: 0 | AU15: 0 | AV15: 8.986914753 | AW15: 3.735209789 | AX15: 9.738140146 | AY15: 4.322299222 | AZ15: 10.11050383 | BA15: 7.921024039 | BB15: 2.189479796 | BC15: VT | BK15: 24.65745484 | BL15: 10.00000532 | BM15: 4.549726726 | BN15: 5.560777109 | BP15: =IF(BC15="NT",BA15*Ekonomika!$B$22,BA15*Ekonomika!$B$23)-U15*Ekonomika!$B$14-U15*(Výhřevnost_HU/3.6)*Emisní_faktor_CO2_HU*Ekonomika!$B$24 -> -11298.07044 | BQ15: -11298.07044 | BR15: -11901.93185 | BS15: MIN
A16: S1 | B16: =(h_vVTO1-h_vNTO2)/(h_CZT-h_vVTO1) -> 0.06234413965 | C16: - | D16: - | E16: Substituce 1 | F16: 2018-01-01T14:00:00 | G16: 15 | H16: 121.3046977 | I16: 97.21641698 | J16: 24.0882807 | K16: 102.307551 | L16: 52.5562488 | M16: 34.63356501 | N16: 104.2782714 | O16: 229.1354347 | P16: 67.9725407 | Q16: 67.9725407 | R16: 181.4866837 | S16: 50.41296768 | T16: 54.796704 | U16: 11.46907758 | V16: 0 | W16: 0 | X16: 0 | Y16: 0 | Z16: 0 | AA16: 0 | AB16: 0 | AC16: 28.34454947 | AD16: 7.638856082 | AE16: 200.7908852 | AF16: 74.68065882 | AG16: 25.28119798 | AH16: 25.28119798 | AI16: 13.22660388 | AJ16: 3.501823617 | AK16: 8.236289148 | AL16: 9.724780258 | AM16: 2.054592082 | AN16: 4.686524538 | AO16: 10.00000202 | AP16: 10.00000202 | AQ16: 22.34001188 | AR16: 2.504521039 | AS16: 24.0882807 | AT16: 0 | AU16: 0 | AV16: 8.987214448 | AW16: 3.735334351 | AX16: 9.738464892 | AY16: 4.322443361 | AZ16: 10.14337712 | BA16: 7.953857659 | BB16: 2.189519462 | BC16: VT | BK16: 25.28120127 | BL16: 10.00000532 | BM16: 4.564519705 | BN16: 5.578857417 | BP16: =IF(BC16="NT",BA16*Ekonomika!$B$22,BA16*Ekonomika!$B$23)-U16*Ekonomika!$B$14-U16*(Výhřevnost_HU/3.6)*Emisní_faktor_CO2_HU*Ekonomika!$B$24 -> -11263.40719 | BQ16: -11263.40719 | BR16: -11867.15481 | BS16: MIN
A17: S2 | B17: =(h_nvK1-h_vVTO1)/(h_eTG1-h_nvK1) -> 0.06790945406 | C17: - | D17: - | E17: Substituce 2 | F17: 2018-01-01T15:00:00 | G17: 16 | H17: 121.9129824 | I17: 98.71845063 | J17: 23.1945318 | K17: 103.8882448 | L17: 50.6062512 | M17: 35.16866784 | N17: 100.4092286 | O17: 229.9433815 | P17: 68.21221641 | Q17: 68.21221641 | R17: 182.1266178 | S17: 50.59072717 | T17: 54.98992084 | U17: 11.50951831 | V17: 0 | W17: 0 | X17: 0 | Y17: 0 | Z17: 0 | AA17: 0 | AB17: 0 | AC17: 28.44449424 | AD17: 7.665791198 | AE17: 201.4988873 | AF17: 73.72403728 | AG17: 24.95735859 | AH17: 24.95735859 | AI17: 12.87813244 | AJ17: 3.514171281 | AK17: 8.265330853 | AL17: 9.363961163 | AM17: 2.07922417 | AN17: 4.742710331 | AO17: 10.00000198 | AP17: 10.00000198 | AQ17: 22.34001164 | AR17: 2.488157505 | AS17: 23.1945318 | AT17: 0 | AU17: 0 | AV17: 9.018903965 | AW17: 3.748505389 | AX17: 9.772803369 | AY17: 4.337684585 | AZ17: 10.1539487 | BA17: 7.960234916 | BB17: 2.193713787 | BC17: VT | BK17: 24.95736182 | BL17: 10.00000521 | BM17: 4.569276916 | BN17: 5.584671787 | BP17: =IF(BC17="NT",BA17*Ekonomika!$B$22,BA17*Ekonomika!$B$23)-U17*Ekonomika!$B$14-U17*(Výhřevnost_HU/3.6)*Emisní_faktor_CO2_HU*Ekonomika!$B$24 -> -11326.43495 | BQ17: -11326.43495 | BR17: -11918.15147 | BS17: MIN
A18: Pn_ZO | B18: 9 | C18: MWt | D18: 2x4,5 MWt | E18: Jmenovitý tepelný výkon základního ohříváku | F18: 2018-01-01T16:00:00 | G18: 17 | H18: 129.7106698 | I18: 103.7661391 | J18: 25.9445307 | K18: 109.200276 | L18: 56.6062488 | M18: 36.96691809 | N18: 112.3139857 | O18: 242.0930641 | P18: 71.81639396 | Q18: 71.81639396 | R18: 191.7497719 | S18: 53.26382552 | T18: 57.89546253 | U18: 12.11765495 | V18: 0 | W18: 0 | X18: 0 | Y18: 0 | Z18: 0 | AA18: 0 | AB18: 0 | AC18: 29.94743628 | AD18: 8.070834078 | AE18: 212.1456278 | AF18: 77.79663295 | AG18: 26.33603011 | AH18: 26.33603011 | AI18: 14.17402674 | AJ18: 3.699852057 | AK18: 8.702052037 | AL18: 10.47417469 | AM18: 2.162001992 | AN18: 4.931526544 | AO18: 10.00000137 | AP18: 10.00000137 | AQ18: 22.34000808 | AR18: 2.568794866 | AS18: 25.9445307 | AT18: 0 | AU18: 0 | AV18: 9.49544223 | AW18: 3.946567843 | AX18: 10.28917595 | AY18: 4.56687792 | AZ18: 10.63962894 | BA18: 8.38284205 | BB18: 2.256786894 | BC18: VT | BK18: 26.33603235 | BL18: 10.00000362 | BM18: 4.787833025 | BN18: 5.851795919 | BP18: =IF(BC18="NT",BA18*Ekonomika!$B$22,BA18*Ekonomika!$B$23)-U18*Ekonomika!$B$14-U18*(Výhřevnost_HU/3.6)*Emisní_faktor_CO2_HU*Ekonomika!$B$24 -> -11922.73915 | BQ18: -11922.73915 | BR18: -12333.5352 | BS18: MIN
A19: Pn_ŠO | B19: 6 | C19: MWt | D19: 4x1,5 MWt | E19: Jmenovitý tepelný výkon špičkového ohříváku | F19: 2018-01-01T17:00:00 | G19: 18 | H19: 131.3237012 | I19: 105.6369819 | J19: 25.6867193 | K19: 111.1690932 | L19: 56.0437512 | M19: 37.63341003 | N19: 111.197919 | O19: 244.502049 | P19: 72.53101424 | Q19: 72.53101424 | R19: 193.657808 | S19: 53.79383556 | T19: 58.4715604 | U19: 12.23823357 | V19: 0 | W19: 0 | X19: 0 | Y19: 0 | Z19: 0 | AA19: 0 | AB19: 0 | AC19: 30.24543294 | AD19: 8.151144177 | AE19: 214.2566161 | AF19: 77.68855781 | AG19: 26.29944408 | AH19: 26.29944408 | AI19: 14.10676059 | AJ19: 3.736668014 | AK19: 8.788643169 | AL19: 10.37009257 | AM19: 2.192682238 | AN19: 5.001508184 | AO19: 10.00000125 | AP19: 10.00000125 | AQ19: 22.34000738 | AR19: 2.568577624 | AS19: 25.6867193 | AT19: 0 | AU19: 0 | AV19: 9.589928116 | AW19: 3.985838785 | AX19: 10.39156001 | AY19: 4.612321355 | AZ19: 10.7197218 | BA19: 8.450429052 | BB19: 2.269292749 | BC19: VT | BK19: 26.29944613 | BL19: 10.0000033 | BM19: 4.82387481 | BN19: 5.895846991 | BP19: =IF(BC19="NT",BA19*Ekonomika!$B$22,BA19*Ekonomika!$B$23)-U19*Ekonomika!$B$14-U19*(Výhřevnost_HU/3.6)*Emisní_faktor_CO2_HU*Ekonomika!$B$24 -> -12058.40663 | BQ19: -12058.40663 | BR19: -12433.33057 | BS19: MIN
A20: MminTG2 | B20: 10 | C20: t/h | D20: - | E20: Minimální průtok páry do kondenzace TG2 | F20: 2018-01-01T18:00:00 | G20: 19 | H20: 142.7828767 | I20: 113.0656892 | J20: 29.7171875 | K20: 118.9868351 | L20: 64.8375 | M20: 40.27990354 | N20: 128.6458333 | O20: 262.3553805 | P20: 77.82716717 | Q20: 77.82716717 | R20: 207.7985363 | S20: 57.72181565 | T20: 62.74110397 | U20: 13.13185897 | V20: 0 | W20: 0 | X20: 0 | Y20: 0 | Z20: 0 | AA20: 0 | AB20: 0 | AC20: 32.45392871 | AD20: 8.746333787 | AE20: 229.9014518 | AF20: 83.66104089 | AG20: 28.32127315 | AH20: 28.32127315 | AI20: 16.00676603 | AJ20: 4.009516332 | AK20: 9.430382413 | AL20: 11.9972497 | AM20: 2.314506756 | AN20: 5.27938991 | AO20: 10.00000036 | AP20: 10.00000036 | AQ20: 22.34000215 | AR20: 2.68685791 | AS20: 29.7171875 | AT20: 0 | AU20: 0 | AV20: 10.2901765 | AW20: 4.27688134 | AX20: 11.15034288 | AY20: 4.949109134 | AZ20: 11.4331917 | BA20: 9.071216272 | BB20: 2.361975425 | BC20: VT | BK20: 28.32127375 | BL20: 10.00000096 | BM20: 5.144936264 | BN20: 6.288255434 | BP20: =IF(BC20="NT",BA20*Ekonomika!$B$22,BA20*Ekonomika!$B$23)-U20*Ekonomika!$B$14-U20*(Výhřevnost_HU/3.6)*Emisní_faktor_CO2_HU*Ekonomika!$B$24 -> -12934.87313 | BQ20: -12934.87313 | BR20: -13043.94377 | BS20: MIN
A21: PminK1 | B21: 40 | C21: t/h | D21: - | E21: Minimální parní výkon K1 | F21: 2018-01-01T19:00:00 | G21: 20 | H21: 141.6517285 | I21: 114.375166 | J21: 27.2765625 | K21: 120.3648879 | L21: 59.5125 | M21: 40.74640756 | N21: 118.0803571 | O21: 260.3353226 | P21: 77.22792126 | Q21: 77.22792126 | R21: 206.1985498 | S21: 57.27737494 | T21: 62.25801624 | U21: 13.03074758 | V21: 0 | W21: 0 | X21: 0 | Y21: 0 | Z21: 0 | AA21: 0 | AB21: 0 | AC21: 32.20404317 | AD21: 8.678989634 | AE21: 228.1312794 | AF21: 80.72266002 | AG21: 27.3265606 | AH21: 27.3265606 | AI21: 14.99057906 | AJ21: 3.978644256 | AK21: 9.35777129 | AL21: 11.0119348 | AM21: 2.335981079 | AN21: 5.328372842 | AO21: 10.00000047 | AP21: 10.00000047 | AQ21: 22.34000274 | AR21: 2.63342649 | AS21: 27.2765625 | AT21: 0 | AU21: 0 | AV21: 10.21094522 | AW21: 4.243950633 | AX21: 11.06448857 | AY21: 4.911002474 | AZ21: 11.31241612 | BA21: 8.960927501 | BB21: 2.351488622 | BC21: VT | BK21: 27.32656136 | BL21: 10.00000123 | BM21: 5.090587256 | BN21: 6.221828868 | BP21: =IF(BC21="NT",BA21*Ekonomika!$B$22,BA21*Ekonomika!$B$23)-U21*Ekonomika!$B$14-U21*(Výhřevnost_HU/3.6)*Emisní_faktor_CO2_HU*Ekonomika!$B$24 -> -12878.7894 | BQ21: -12878.7894 | BR21: -13017.94065 | BS21: MIN
A22: Účinnost K1 | B22: 0.92 | C22: - | D22: - | E22: Tepelná účinnost kotle K1 | F22: 2018-01-01T20:00:00 | G22: 21 | H22: 143.9895196 | I22: 115.6301446 | J22: 28.359375 | K22: 121.6855886 | L22: 61.875 | M22: 41.19349649 | N22: 122.7678571 | O22: 264.0104622 | P22: 78.31814363 | Q22: 78.31814363 | R22: 209.1094435 | S22: 58.08595652 | T22: 63.13690927 | U22: 13.21470194 | V22: 0 | W22: 0 | X22: 0 | Y22: 0 | Z22: 0 | AA22: 0 | AB22: 0 | AC22: 32.65866589 | AD22: 8.801510458 | AE22: 231.3517963 | AF22: 82.24070129 | AG22: 27.84045406 | AH22: 27.84045406 | AI22: 15.48389211 | AJ22: 4.03481056 | AK22: 9.489874438 | AL22: 11.44908155 | AM22: 2.356561666 | AN22: 5.375317161 | AO22: 10.00000028 | AP22: 10.00000028 | AQ22: 22.34000166 | AR22: 2.662882844 | AS22: 28.359375 | AT22: 0 | AU22: 0 | AV22: 10.35509258 | AW22: 4.303862253 | AX22: 11.22068536 | AY22: 4.980330829 | AZ22: 11.4643933 | BA22: 9.093825788 | BB22: 2.370567513 | BC22: NT | BK22: 27.84045452 | BL22: 10.00000074 | BM22: 5.158976986 | BN22: 6.305416316 | BP22: =IF(BC22="NT",BA22*Ekonomika!$B$22,BA22*Ekonomika!$B$23)-U22*Ekonomika!$B$14-U22*(Výhřevnost_HU/3.6)*Emisní_faktor_CO2_HU*Ekonomika!$B$24 -> -15607.9519 | BQ22: -15607.9519 | BR22: -15798.37205 | BS22: MIN
A23: Výhřevnost HU | B23: 17.2 | C23: GJ/t | D23: - | E23: Výhřevnost hnědého uhlí | F23: 2018-01-01T21:00:00 | G23: 22 | H23: 144.4830527 | I23: 115.4619595 | J23: 29.0210932 | K23: 121.5085958 | L23: 63.3187488 | M23: 41.13358016 | N23: 125.6324381 | O23: 264.8409711 | P23: 78.56451234 | Q23: 78.56451234 | R23: 209.7672479 | S23: 58.26867998 | T23: 63.33552172 | U23: 13.25627199 | V23: 0 | W23: 0 | X23: 0 | Y23: 0 | Z23: 0 | AA23: 0 | AB23: 0 | AC23: 32.76140164 | AD23: 8.829197743 | AE23: 232.0795694 | AF23: 83.05919369 | AG23: 28.11753341 | AH23: 28.11753341 | AI23: 15.7637296 | AJ23: 4.047503035 | AK23: 9.519727139 | AL23: 11.71622656 | AM23: 2.35380357 | AN23: 5.369025943 | AO23: 10.00000024 | AP23: 10.00000024 | AQ23: 22.34000142 | AR23: 2.6779548 | AS23: 29.0210932 | AT23: 0 | AU23: 0 | AV23: 10.38766704 | AW23: 4.317401096 | AX23: 11.25598274 | AY23: 4.995997667 | AZ23: 11.50715254 | BA23: 9.132273577 | BB23: 2.374878966 | BC23: NT | BK23: 28.1175338 | BL23: 10.00000063 | BM23: 5.178218644 | BN23: 6.328933899 | BP23: =IF(BC23="NT",BA23*Ekonomika!$B$22,BA23*Ekonomika!$B$23)-U23*Ekonomika!$B$14-U23*(Výhřevnost_HU/3.6)*Emisní_faktor_CO2_HU*Ekonomika!$B$24 -> -15649.22714 | BQ23: -15649.22714 | BR23: -15811.75337 | BS23: MIN
A24: S3 | B24: =1+S1_+S2_+S1_*S2_ -> 1.13448735 | C24: - | D24: - | E24: Substituce 3 | F24: 2018-01-01T22:00:00 | G24: 23 | H24: 127.9288602 | I24: 107.5272977 | J24: 20.4015625 | K24: 113.1584031 | L24: 44.5125 | M24: 38.30683922 | N24: 88.31845238 | O24: 238.6967331 | P24: 70.80887958 | Q24: 70.80887958 | R24: 189.0597085 | S24: 52.51658569 | T24: 57.08324531 | U24: 11.947656 | V24: 0 | W24: 0 | X24: 0 | Y24: 0 | Z24: 0 | AA24: 0 | AB24: 0 | AC24: 29.52730278 | AD24: 7.9576081 | AE24: 209.1694303 | AF24: 71.21512057 | AG24: 24.10802998 | AH24: 24.10802998 | AI24: 11.8843466 | AJ24: 3.647946719 | AK24: 8.579970683 | AL24: 8.236399879 | AM24: 2.223681841 | AN24: 5.07221828 | AO24: 10.00000154 | AP24: 10.00000154 | AQ24: 22.34000908 | AR24: 2.449911065 | AS24: 20.4015625 | AT24: 0 | AU24: 0 | AV24: 9.362230381 | AW24: 3.891201322 | AX24: 10.14482879 | AY24: 4.50280905 | AZ24: 10.40751916 | BA24: 8.168363772 | BB24: 2.239155393 | BC24: NT | BK24: 24.1080325 | BL24: 10.00000406 | BM24: 4.683383624 | BN24: 5.724135541 | BP24: =IF(BC24="NT",BA24*Ekonomika!$B$22,BA24*Ekonomika!$B$23)-U24*Ekonomika!$B$14-U24*(Výhřevnost_HU/3.6)*Emisní_faktor_CO2_HU*Ekonomika!$B$24 -> -14153.99429 | BQ24: -14153.99429 | BR24: -15194.61497 | BS24: MIN
A25: PminOK | B25: 5 | C25: MWt | D25: - | E25: Minimální tepelný výkon OK | F25: 2018-01-01T23:00:00 | G25: 24 | H25: 102.7466047 | I25: 89.23722968 | J25: 13.509375 | K25: 93.91050106 | L25: 29.475 | M25: 31.79096177 | N25: 58.48214286 | O25: 199.7108445 | P25: 59.24379844 | Q25: 59.24379844 | R25: 158.1809418 | S25: 43.93915051 | T25: 47.7599462 | U25: 9.99626781 | V25: 0 | W25: 0 | X25: 0 | Y25: 0 | Z25: 0 | AA25: 0 | AB25: 0 | AC25: 24.70466395 | AD25: 6.657906934 | AE25: 175.0061806 | AF25: 60.34964169 | AG25: 20.42980423 | AH25: 20.42980423 | AI25: 8.506060562 | AJ25: 3.052134442 | AK25: 7.178620207 | AL25: 5.45392612 | AM25: 1.92374018 | AN25: 4.388051351 | AO25: 10.00000349 | AP25: 10.00000349 | AQ25: 22.3400205 | AR25: 2.230149214 | AS25: 13.509375 | AT25: 0 | AU25: 0 | AV25: 7.833114899 | AW25: 3.255658728 | AX25: 8.487892982 | AY25: 3.767373716 | AZ25: 8.888056148 | BA25: 6.851289675 | BB25: 2.036766473 | BC25: NT | BK25: 20.42980992 | BL25: 10.00000918 | BM25: 3.999625266 | BN25: 4.888430881 | BP25: =IF(BC25="NT",BA25*Ekonomika!$B$22,BA25*Ekonomika!$B$23)-U25*Ekonomika!$B$14-U25*(Výhřevnost_HU/3.6)*Emisní_faktor_CO2_HU*Ekonomika!$B$24 -> -11828.69511 | BQ25: -11828.69511 | BR25: -14178.71682 | BS25: MIN
A26: Účinnost OK | B26: 0.85 | C26: - | D26: - | E26: Účinnost OK | F26: 2018-01-02 | G26: 25 | H26: 77.64868306 | I26: 66.94946376 | J26: 10.6992193 | K26: 70.4555454 | L26: 23.3437512 | M26: 23.85089553 | N26: 46.31696667 | O26: 161.3676325 | P26: 47.86936592 | Q26: 47.86936592 | R26: 127.811207 | S26: 35.50311306 | T26: 38.59034028 | U26: 8.077047966 | V26: 0 | W26: 0 | X26: 0 | Y26: 0 | Z26: 0 | AA26: 0 | AB26: 0 | AC26: 19.96152559 | AD26: 5.379631146 | AE26: 141.4061069 | AF26: 54.18763102 | AG26: 18.34381551 | AH26: 18.34381551 | AI26: 6.785570483 | AJ26: 2.46614404 | AK26: 5.800370782 | AL26: 4.319426443 | AM26: 1.558239631 | AN26: 3.554344597 | AO26: 10.0000054 | AP26: 10.0000054 | AQ26: 22.34003173 | AR26: 2.094091377 | AS26: 10.6992193 | AT26: 0 | AU26: 0 | AV26: 6.329206656 | AW26: 2.630592958 | AX26: 6.858271512 | AY26: 3.044061923 | AZ26: 7.473722523 | BA26: 5.63600862 | BB26: 1.837713904 | BC26: NT | BK26: 18.34382432 | BL26: 10.0000142 | BM26: 3.363175135 | BN26: 4.110547388 | BP26: =IF(BC26="NT",BA26*Ekonomika!$B$22,BA26*Ekonomika!$B$23)-U26*Ekonomika!$B$14-U26*(Výhřevnost_HU/3.6)*Emisní_faktor_CO2_HU*Ekonomika!$B$24 -> -9478.06521 | BQ26: -9478.06521 | BR26: -13115.90268 | BS26: MIN
A27: Výhřevnost LTO | B27: 42 | C27: GJ/t | D27: - | E27: Výhřevnost lehkého topného oleje | F27: 2018-01-02T01:00:00 | G27: 26 | H27: 80.61077722 | I27: 68.33890222 | J27: 12.271875 | K27: 71.91774747 | L27: 26.775 | M27: 24.34588608 | N27: 53.125 | O27: 166.0495314 | P27: 49.25824129 | Q27: 49.25824129 | R27: 131.5195042 | S27: 36.53319562 | T27: 39.70999524 | U27: 8.311394352 | V27: 0 | W27: 0 | X27: 0 | Y27: 0 | Z27: 0 | AA27: 0 | AB27: 0 | AC27: 20.54068662 | AD27: 5.535715043 | AE27: 145.5088448 | AF27: 56.34180935 | AG27: 19.07305665 | AH27: 19.07305665 | AI27: 7.492026247 | AJ27: 2.537696413 | AK27: 5.968661962 | AL27: 4.954329834 | AM27: 1.581025243 | AN27: 3.60631858 | AO27: 10.00000516 | AP27: 10.00000516 | AQ27: 22.34003036 | AR27: 2.135516051 | AS27: 12.271875 | AT27: 0 | AU27: 0 | AV27: 6.512841409 | AW27: 2.706916629 | AX27: 7.057256482 | AY27: 3.132381927 | AZ27: 7.671231094 | BA27: 5.809211872 | BB27: 1.862019223 | BC27: NT | BK27: 19.07306508 | BL27: 10.00001359 | BM27: 3.452053992 | BN27: 4.219177102 | BP27: =IF(BC27="NT",BA27*Ekonomika!$B$22,BA27*Ekonomika!$B$23)-U27*Ekonomika!$B$14-U27*(Výhřevnost_HU/3.6)*Emisní_faktor_CO2_HU*Ekonomika!$B$24 -> -9745.364449 | BQ27: -9745.364449 | BR27: -13225.95314 | BS27: MIN
A28: Spotřeba LTO na zátop OK | B28: 2 | C28: t | D28: - | E28: Spotřeba LTO na zátop olejového kotle | F28: 2018-01-02T02:00:00 | G28: 27 | H28: 84.44059391 | I28: 68.83434391 | J28: 15.60625 | K28: 72.43913499 | L28: 34.05 | M28: 24.52238828 | N28: 67.55952381 | O28: 172.2671053 | P28: 51.1026714 | Q28: 51.1026714 | R28: 136.4441326 | S28: 37.90114796 | T28: 41.19689995 | U28: 8.622606967 | V28: 0 | W28: 0 | X28: 0 | Y28: 0 | Z28: 0 | AA28: 0 | AB28: 0 | AC28: 21.30981397 | AD28: 5.742994866 | AE28: 150.9572913 | AF28: 60.62298448 | AG28: 20.52233733 | AH28: 20.52233733 | AI28: 8.933182422 | AJ28: 2.63271815 | AK28: 6.19215309 | AL28: 6.300464271 | AM28: 1.589150057 | AN28: 3.624851279 | AO28: 10.00000485 | AP28: 10.00000485 | AQ28: 22.34002854 | AR28: 2.215669647 | AS28: 15.60625 | AT28: 0 | AU28: 0 | AV28: 6.756708842 | AW28: 2.808274664 | AX28: 7.321509043 | AY28: 3.249671124 | AZ28: 7.958664513 | BA28: 6.064367763 | BB28: 1.89429675 | BC28: NT | BK28: 20.52234525 | BL28: 10.00001278 | BM28: 3.581399031 | BN28: 4.377265482 | BP28: =IF(BC28="NT",BA28*Ekonomika!$B$22,BA28*Ekonomika!$B$23)-U28*Ekonomika!$B$14-U28*(Výhřevnost_HU/3.6)*Emisní_faktor_CO2_HU*Ekonomika!$B$24 -> -10080.35156 | BQ28: -10080.35156 | BR28: -13352.11347 | BS28: MIN
A29: Emisní faktor CO2 HU | B29: 0.36 | C29: t/MWh | D29: - | E29: Emise CO2 na výhřevnost paliva (HU) | F29: 2018-01-02T03:00:00 | G29: 28 | H29: 83.62754197 | I29: 71.15801127 | J29: 12.4695307 | K29: 74.88449066 | L29: 27.2062488 | M29: 25.35019995 | N29: 53.98065238 | O29: 170.6406978 | P29: 50.62020106 | Q29: 50.62020106 | R29: 135.1559368 | S29: 37.54331578 | T29: 40.80795194 | U29: 8.541199243 | V29: 0 | W29: 0 | X29: 0 | Y29: 0 | Z29: 0 | AA29: 0 | AB29: 0 | AC29: 21.10862384 | AD29: 5.688774125 | AE29: 149.5320739 | AF29: 56.92136323 | AG29: 19.26924957 | AH29: 19.26924957 | AI29: 7.641988383 | AJ29: 2.607862142 | AK29: 6.133691758 | AL29: 5.034126241 | AM29: 1.627256253 | AN29: 3.711771513 | AO29: 10.00000493 | AP29: 10.00000493 | AQ29: 22.34002902 | AR29: 2.149005924 | AS29: 12.4695307 | AT29: 0 | AU29: 0 | AV29: 6.692917429 | AW29: 2.781761192 | AX29: 7.25238524 | AY29: 3.218990342 | AZ29: 7.837780049 | BA29: 5.951926531 | BB29: 1.885853519 | BC29: NT | BK29: 19.26925762 | BL29: 10.00001299 | BM29: 3.527001022 | BN29: 4.310779027 | BP29: =IF(BC29="NT",BA29*Ekonomika!$B$22,BA29*Ekonomika!$B$23)-U29*Ekonomika!$B$14-U29*(Výhřevnost_HU/3.6)*Emisní_faktor_CO2_HU*Ekonomika!$B$24 -> -10029.05296 | BQ29: -10029.05296 | BR29: -13355.44027 | BS29: MIN
A30: Emisní faktor CO2 LTO | B30: 0.26 | C30: t/MWh | D30: - | E30: Emise CO2 na výhřevnost paliva (LTO) | F30: 2018-01-02T04:00:00 | G30: 29 | H30: 102.6522099 | I30: 85.53345988 | J30: 17.11875 | K30: 90.01276825 | L30: 37.35 | M30: 30.47148553 | N30: 74.10714286 | O30: 200.0233593 | P30: 59.33650529 | Q30: 59.33650529 | R30: 158.4284691 | S30: 44.00790809 | T30: 47.83468271 | U30: 10.01191033 | V30: 0 | W30: 0 | X30: 0 | Y30: 0 | Z30: 0 | AA30: 0 | AB30: 0 | AC30: 24.74332271 | AD30: 6.668325469 | AE30: 175.2800366 | AF30: 64.48876639 | AG30: 21.83099742 | AH30: 21.83099742 | AI30: 9.967992487 | AJ30: 3.056910533 | AK30: 7.189853573 | AL30: 6.911081954 | AM30: 1.863001466 | AN30: 4.249506345 | AO30: 10.00000347 | AP30: 10.00000347 | AQ30: 22.34002041 | AR30: 2.303631916 | AS30: 17.11875 | AT30: 0 | AU30: 0 | AV30: 7.845372443 | AW30: 3.260753301 | AX30: 8.501175147 | AY30: 3.77326904 | AZ30: 8.971957386 | BA30: 6.933568543 | BB30: 2.038388843 | BC30: NT | BK30: 21.83100309 | BL30: 10.00000914 | BM30: 4.037380824 | BN30: 4.934576562 | BP30: =IF(BC30="NT",BA30*Ekonomika!$B$22,BA30*Ekonomika!$B$23)-U30*Ekonomika!$B$14-U30*(Výhřevnost_HU/3.6)*Emisní_faktor_CO2_HU*Ekonomika!$B$24 -> -11790.3182 | BQ30: -11790.3182 | BR30: -14129.84362 | BS30: MIN
A31: ÚčinnostPT | B31: 0.99 | C31: - | D31: - | E31: Mechanická účinnost parní turbíny | F31: 2018-01-02T05:00:00 | G31: 30 | H31: 133.8652347 | I31: 108.0925779 | J31: 25.7726568 | K31: 113.7532865 | L31: 56.2312512 | M31: 38.50822155 | N31: 111.5699429 | O31: 248.3598015 | P31: 73.67540834 | Q31: 73.67540834 | R31: 196.7133403 | S31: 54.64259452 | T31: 59.39412448 | U31: 12.43132838 | V31: 0 | W31: 0 | X31: 0 | Y31: 0 | Z31: 0 | AA31: 0 | AB31: 0 | AC31: 30.72264528 | AD31: 8.279752902 | AE31: 217.6371562 | AF31: 78.08415994 | AG31: 26.43336491 | AH31: 26.43336491 | AI31: 14.20041191 | AJ31: 3.795625149 | AK31: 8.927310351 | AL31: 10.40478676 | AM31: 2.23295194 | AN31: 5.093363374 | AO31: 10.00000106 | AP31: 10.00000106 | AQ31: 22.34000625 | AR31: 2.578295288 | AS31: 25.7726568 | AT31: 0 | AU31: 0 | AV31: 9.741237969 | AW31: 4.048727335 | AX31: 10.55551801 | AY31: 4.685094545 | AZ31: 10.85804819 | BA31: 8.568728545 | BB31: 2.289319646 | BC31: NT | BK31: 26.43336664 | BL31: 10.0000028 | BM31: 4.886121686 | BN31: 5.971926505 | BP31: =IF(BC31="NT",BA31*Ekonomika!$B$22,BA31*Ekonomika!$B$23)-U31*Ekonomika!$B$14-U31*(Výhřevnost_HU/3.6)*Emisní_faktor_CO2_HU*Ekonomika!$B$24 -> -14671.58451 | BQ31: -14671.58451 | BR31: -15387.65617 | BS31: MIN
A32: ÚčinnostG | B32: 0.98 | C32: - | D32: - | E32: Účinnost generátoru | F32: 2018-01-02T06:00:00 | G32: 31 | H32: 178.8629148 | I32: 139.2121341 | J32: 39.6507807 | K32: 146.5025451 | L32: 86.51079425 | M32: 49.59463274 | N32: 171.6484013 | O32: 256.7590036 | P32: 76.16701382 | Q32: =P32 -> 76.16701382 | R32: =P32*(h_výstupK1-h_vNTO2) -> 226.4445321 | S32: 62.90125892 | T32: 68.3709336 | U32: 14.31019541 | V32: 18 | W32: 18 | X32: 6.093432634 | Y32: 6.093432634 | Z32: 4.751184834 | AA32: 5.589629217 | AB32: 2.479111076 | AC32: 31.76164476 | AD32: 8.559763264 | AE32: 224.9973588 | AF32: 88.11499909 | AG32: 29.82904506 | AH32: =P32-M32-AU32 -> 23.73561242 | AI32: 17.36625417 | AJ32: =(M32+AH32)*(h_vNTO2-h_vNTO1)/(h_RO-h_vNTO2+h_vNTO2-h_vNTO1) -> 4.285915049 | AK32: 10.0804722 | AL32: 13.08033912 | AM32: 2.462790886 | AN32: 5.617626011 | AO32: 10 | AP32: 3.906567366 | AQ32: 22.34 | AR32: 2.778423944 | AS32: 32.4 | AT32: 7.2507807 | AU32: 2.836768662 | AV32: 0 | AW32: 0 | AX32: 0 | AY32: 0 | AZ32: 11.33818721 | BA32: 9.005264466 | BB32: 2.332922742 | BC32: NT | BK32: 29.82904506 | BL32: 10 | BM32: 5.102184244 | BN32: 6.236002965 | BP32: =IF(BC32="NT",BA32*Ekonomika!$B$22,BA32*Ekonomika!$B$23)-U32*Ekonomika!$B$14-U32*(Výhřevnost_HU/3.6)*Emisní_faktor_CO2_HU*Ekonomika!$B$24 -> -17571.56355 | BQ32: -17571.56355 | BR32: -18079.30513 | BS32: MIN
A33: Spotřeba vápence | B33: =3400/60000 -> 0.05666666667 | C33: - | D33: t vápence/t uhlí | E33: Dávkování vápence | F33: 2018-01-02T07:00:00 | G33: 32 | H33: 162.2247864 | I33: 127.4888489 | J33: 34.7359375 | K33: 134.1653223 | L33: 75.7875 | M33: 45.41818628 | N33: 150.3720238 | O33: 257.4562577 | P33: 76.37385276 | Q33: 76.37385276 | R33: =P33*(h_výstupK1-h_vNTO2) -> 227.0594643 | S33: 63.07207341 | T33: 68.55660153 | U33: 14.34905613 | V33: 0 | W33: 0 | X33: 0 | Y33: 0 | Z33: 0 | AA33: 0 | AB33: 0 | AC33: 31.8478966 | AD33: 8.583008134 | AE33: 225.6083611 | AF33: 88.74336767 | AG33: 30.04176292 | AH33: =P33-M33-AU33 -> 30.04176292 | AI33: 17.49072846 | AJ33: 4.410389345 | AK33: 10.37323574 | AL33: 13.08033912 | AM33: 2.551034442 | AN33: 5.818909561 | AO33: 10.00000002 | AP33: 10.00000002 | AQ33: 22.34000012 | AR33: 2.79527937 | AS33: 32.4 | AT33: 2.3359375 | AU33: 0.9139035603 | AV33: 0 | AW33: 0 | AX33: 0 | AY33: 0 | AZ33: 11.3782875 | BA33: 9.041745081 | BB33: 2.336542423 | BC33: NT | BK33: 30.04176296 | BL33: 10.00000005 | BM33: 5.120229377 | BN33: 6.258058127 | BP33: =IF(BC33="NT",BA33*Ekonomika!$B$22,BA33*Ekonomika!$B$23)-U33*Ekonomika!$B$14-U33*(Výhřevnost_HU/3.6)*Emisní_faktor_CO2_HU*Ekonomika!$B$24 -> -17609.72047 | BQ33: -17609.72047 | BR33: -18090.06286 | BS33: MIN
A34: cskut | B34: 0.45 | C34: - | D34: - | E34: Poměr výroby kogenerační elektřiny | F34: 2018-01-02T08:00:00 | G34: 33 | H34: 155.8939314 | I34: 128.3165871 | J34: 27.5773443 | K34: 135.0364084 | L34: 60.1687512 | M34: 45.71306987 | N34: 119.3824429 | O34: 264.0022739 | P34: 78.3157146 | Q34: 78.3157146 | R34: =P34*(h_výstupK1-h_vVTO1) -> 221.0852623 | S34: 61.41257287 | T34: 66.75279659 | U34: 13.97151557 | V34: 0 | W34: 0 | X34: 0 | Y34: 0 | Z34: 0 | AA34: 0 | AB34: 0 | AC34: 32.65765299 | AD34: 8.80123748 | AE34: 231.3446209 | AF34: 82.73165026 | AG34: 28.00665209 | AH34: =P34/(1+S1_)-M34-AU34 -> 28.00665209 | AI34: 15.44204338 | AJ34: 4.308678705 | AK34: 10.13401232 | AL34: 11.13336468 | AM34: 2.564608655 | AN34: 5.849872342 | AO34: 10.00000005 | AP34: 10.00000005 | AQ34: 22.34000033 | AR34: 2.6841869 | AS34: 27.5773443 | AT34: 0 | AU34: 0 | AV34: 11.05795829 | AW34: =(P34-AY34)*(h_vVTO1-h_vNTO2)/(h_CZT-h_vNTO2) -> 4.595992641 | AX34: 0 | AY34: 0 | AZ34: 11.48542438 | BA34: 9.114899374 | BB34: 2.370525005 | BC34: VT | BK34: 28.00665218 | BL34: 10.00000015 | BM34: 5.168440971 | BN34: 6.316983409 | BP34: =IF(BC34="NT",BA34*Ekonomika!$B$22,BA34*Ekonomika!$B$23)-U34*Ekonomika!$B$14-U34*(Výhřevnost_HU/3.6)*Emisní_faktor_CO2_HU*Ekonomika!$B$24 -> -14338.95218 | BQ34: -14338.95218 | BR34: -14435.7071 | BS34: MIN
A35: Přepočet hodnot trvá cca 0-2 minuty (je nutné mít zakázaný automatický přepočet buněk) | F35: 2018-01-02T09:00:00 | G35: 34 | H35: 155.9647595 | I35: 126.2733538 | J35: 29.6914057 | K35: 132.8861728 | L35: 64.7812488 | M35: 44.98516343 | N35: 128.5342238 | O35: 264.3524313 | P35: 78.41958803 | Q35: 78.41958803 | R35: =P35*(h_výstupK1-h_vVTO1) -> 221.378497 | S35: 61.49402695 | T35: 66.84133364 | U35: 13.99004658 | V35: 0 | W35: 0 | X35: 0 | Y35: 0 | Z35: 0 | AA35: 0 | AB35: 0 | AC35: 32.70096821 | AD35: 8.812910932 | AE35: 231.651463 | AF35: 85.17072083 | AG35: 28.8323361 | AH35: =P35/(1+S1_)-M35-AU35 -> 28.8323361 | AI35: 16.30123471 | AJ35: 4.314393487 | AK35: 10.14745348 | AL35: 11.98684122 | AM35: 2.531101344 | AN35: 5.773442166 | AO35: 10.00000005 | AP35: 10.00000005 | AQ35: 22.34000031 | AR35: 2.727621796 | AS35: 29.6914057 | AT35: 0 | AU35: 0 | AV35: 11.07262493 | AW35: 4.6020885 | AX35: 0 | AY35: 0 | AZ35: 11.54053273 | BA35: 9.168189938 | BB35: 2.372342791 | BC35: VT | BK35: 28.83233619 | BL35: 10.00000014 | BM35: 5.193239728 | BN35: 6.347293001 | BP35: =IF(BC35="NT",BA35*Ekonomika!$B$22,BA35*Ekonomika!$B$23)-U35*Ekonomika!$B$14-U35*(Výhřevnost_HU/3.6)*Emisní_faktor_CO2_HU*Ekonomika!$B$24 -> -14313.64415 | BQ35: -14313.64415 | BR35: -14404.43199 | BS35: MIN
F36: 2018-01-02T10:00:00 | G36: 35 | H36: 152.5373253 | I36: 126.5240435 | J36: 26.0132818 | K36: 133.1499909 | L36: 56.7562512 | M36: 45.07447221 | N36: 112.6116095 | O36: 259.0599487 | P36: 76.8495843 | Q36: 76.8495843 | R36: =P36*(h_výstupK1-h_vVTO1) -> 216.9463765 | S36: 60.26288235 | T36: 65.50313299 | U36: 13.70995807 | V36: 0 | W36: 0 | X36: 0 | Y36: 0 | Z36: 0 | AA36: 0 | AB36: 0 | AC36: 32.04627665 | AD36: 8.636471558 | AE36: 227.013672 | AF36: 80.54128251 | AG36: 27.26515995 | AH36: =P36/(1+S1_)-M36-AU36 -> 27.26515995 | AI36: 14.72994741 | AJ36: 4.228016932 | AK36: 9.944295824 | AL36: 10.50193048 | AM36: 2.535212447 | AN36: 5.782819592 | AO36: 10.00000009 | AP36: 10.00000009 | AQ36: 22.34000062 | AR36: 2.641702028 | AS36: 26.0132818 | AT36: 0 | AU36: 0 | AV36: 10.85094483 | AW36: 4.50995213 | AX36: 0 | AY36: 0 | AZ36: 11.27817359 | BA36: 8.933305861 | BB36: 2.344867725 | BC36: VT | BK36: 27.26516014 | BL36: 10.00000028 | BM36: 5.075178114 | BN36: 6.202995472 | BP36: =IF(BC36="NT",BA36*Ekonomika!$B$22,BA36*Ekonomika!$B$23)-U36*Ekonomika!$B$14-U36*(Výhřevnost_HU/3.6)*Emisní_faktor_CO2_HU*Ekonomika!$B$24 -> -14082.30262 | BQ36: -14082.30262 | BR36: -14263.2804 | BS36: MIN
F37: 2018-01-02T11:00:00 | G37: 36 | H37: 149.9747643 | I37: 121.1599211 | J37: 28.8148432 | K37: 127.5049544 | L37: 62.8687488 | M37: 43.16349166 | N37: 124.739581 | O37: 255.758857 | P37: 75.87032245 | Q37: 75.87032245 | R37: =P37*(h_výstupK1-h_vVTO1) -> 214.1819203 | S37: 59.49497786 | T37: 64.66845419 | U37: 13.53525785 | V37: 0 | W37: 0 | X37: 0 | Y37: 0 | Z37: 0 | AA37: 0 | AB37: 0 | AC37: 31.63792446 | AD37: 8.526420643 | AE37: 224.1209325 | AF37: 83.46334128 | AG37: 28.25434708 | AH37: =P37/(1+S1_)-M37-AU37 -> 28.25434708 | AI37: 15.80710161 | AJ37: 4.174141095 | AK37: 9.817579856 | AL37: 11.63296052 | AM37: 2.447245347 | AN37: 5.582166637 | AO37: 10.00000012 | AP37: 10.00000012 | AQ37: 22.34000081 | AR37: 2.690941122 | AS37: 28.8148432 | AT37: 0 | AU37: 0 | AV37: 10.71267581 | AW37: 4.452483712 | AX37: 0 | AY37: 0 | AZ37: 11.21736176 | BA37: 8.889631122 | BB37: 2.327730643 | BC37: VT | BK37: 28.25434732 | BL37: 10.00000036 | BM37: 5.047812794 | BN37: 6.169548971 | BP37: =IF(BC37="NT",BA37*Ekonomika!$B$22,BA37*Ekonomika!$B$23)-U37*Ekonomika!$B$14-U37*(Výhřevnost_HU/3.6)*Emisní_faktor_CO2_HU*Ekonomika!$B$24 -> -13827.3773 | BQ37: -13827.3773 | BR37: -14064.60945 | BS37: MIN
F38: 2018-01-02T12:00:00 | G38: 37 | H38: 143.2649344 | I38: 116.1000901 | J38: 27.1648443 | K38: 122.1801447 | L38: 59.2687512 | M38: 41.36091561 | N38: 117.5967286 | O38: 262.7630041 | P38: 77.94808783 | Q38: 77.94808783 | R38: =P38*(h_výstupK1-h_nvK1) -> 208.1213945 | S38: 57.81149847 | T38: 62.8385853 | U38: 13.15226204 | V38: 0 | W38: 0 | X38: 0 | Y38: 0 | Z38: 0 | AA38: 0 | AB38: 0 | AC38: 32.50435263 | AD38: 8.759923033 | AE38: 230.2586515 | AF38: 80.78258678 | AG38: 27.34684725 | AH38: =P38/S3_-M38-AU38 -> 27.34684725 | AI38: 14.98257853 | AJ38: 4.015745948 | AK38: 9.44503447 | AL38: 10.96683258 | AM38: 2.36426838 | AN38: 5.392896175 | AO38: 10.00000034 | AP38: 10.00000034 | AQ38: 22.34000203 | AR38: 2.636196051 | AS38: 27.1648443 | AT38: 0 | AU38: 0 | AV38: 10.30616443 | AW38: 4.283526363 | AX38: 11.16766725 | AY38: =P38*(h_nvK1-h_vVTO1)/(h_eTG1-h_vVTO1) -> 4.956798603 | AZ38: 11.39611908 | BA38: 9.032027546 | BB38: 2.364091537 | BC38: VT | BK38: 27.34684782 | BL38: 10.00000091 | BM38: 5.128253587 | BN38: 6.267865496 | BP38: =IF(BC38="NT",BA38*Ekonomika!$B$22,BA38*Ekonomika!$B$23)-U38*Ekonomika!$B$14-U38*(Výhřevnost_HU/3.6)*Emisní_faktor_CO2_HU*Ekonomika!$B$24 -> -13012.29464 | BQ38: -13012.29464 | BR38: -13115.29537 | BS38: MIN
F39: 2018-01-02T13:00:00 | G39: 38 | H39: 136.8104998 | I39: 109.9034691 | J39: 26.9070307 | K39: 115.6590124 | L39: 58.7062488 | M39: 39.15335558 | N39: 116.4806524 | O39: 252.9609299 | P39: 75.04032333 | Q39: 75.04032333 | R39: 200.3576633 | S39: 55.65490647 | T39: 60.49446355 | U39: 12.66163191 | V39: 0 | W39: 0 | X39: 0 | Y39: 0 | Z39: 0 | AA39: 0 | AB39: 0 | AC39: 31.29181483 | AD39: 8.433144096 | AE39: 221.6691151 | AF39: 79.73242592 | AG39: 26.99134256 | AH39: 26.99134256 | AI39: 14.7286927 | AJ39: 3.865943126 | AK39: 9.092698233 | AL39: 10.86274958 | AM39: 2.262649024 | AN39: 5.161102424 | AO39: 10.00000083 | AP39: 10.00000083 | AQ39: 22.3400049 | AR39: 2.610708433 | AS39: 26.9070307 | AT39: 0 | AU39: 0 | AV39: 9.921704721 | AW39: 4.123734298 | AX39: 10.75107016 | AY39: 4.771890885 | AZ39: 11.04385253 | BA39: 8.730646871 | BB39: 2.313205658 | BC39: VT | BK39: 26.99134392 | BL39: 10.00000219 | BM39: 4.969733638 | BN39: 6.074118891 | BP39: =IF(BC39="NT",BA39*Ekonomika!$B$22,BA39*Ekonomika!$B$23)-U39*Ekonomika!$B$14-U39*(Výhřevnost_HU/3.6)*Emisní_faktor_CO2_HU*Ekonomika!$B$24 -> -12488.64047 | BQ39: -12488.64047 | BR39: -12737.60353 | BS39: MIN
F40: 2018-01-02T14:00:00 | G40: 39 | H40: 138.5588468 | I40: 111.170565 | J40: 27.3882818 | K40: 116.9924649 | L40: 59.7562512 | M40: 39.60476131 | N40: 118.5639905 | O40: 255.6679778 | P40: 75.84336335 | Q40: 75.84336335 | R40: 202.5017801 | S40: 56.25049448 | T40: 61.14184183 | U40: 12.79712968 | V40: 0 | W40: 0 | X40: 0 | Y40: 0 | Z40: 0 | AA40: 0 | AB40: 0 | AC40: 31.62668252 | AD40: 8.523390938 | AE40: 224.0412953 | AF40: 80.48994448 | AG40: 27.2477808 | AH40: 27.2477808 | AI40: 14.96435178 | AJ40: 3.90731431 | AK40: 9.190003258 | AL40: 11.05703746 | AM40: 2.283428325 | AN40: 5.20850001 | AO40: 10.0000007 | AP40: 10.0000007 | AQ40: 22.34000411 | AR40: 2.626022052 | AS40: 27.3882818 | AT40: 0 | AU40: 0 | AV40: 10.02788132 | AW40: 4.167864221 | AX40: 10.86612217 | AY40: 4.822957021 | AZ40: 11.14941299 | BA40: 8.822154131 | BB40: 2.327258859 | BC40: VT | BK40: 27.24778194 | BL40: 10.00000184 | BM40: 5.017235845 | BN40: 6.132177144 | BP40: =IF(BC40="NT",BA40*Ekonomika!$B$22,BA40*Ekonomika!$B$23)-U40*Ekonomika!$B$14-U40*(Výhřevnost_HU/3.6)*Emisní_faktor_CO2_HU*Ekonomika!$B$24 -> -12624.35617 | BQ40: -12624.35617 | BR40: -12833.00868 | BS40: MIN
A41: Spotřeba uhlí | B41: =SUM(U2:U8761) -> 70762.26933 | C41: t | F41: 2018-01-02T15:00:00 | G41: 40 | H41: 133.8104948 | I41: 107.7800266 | J41: 26.0304682 | K41: 113.4243672 | L41: 56.7937488 | M41: 38.39687447 | N41: 112.6860095 | O41: 248.3094742 | P41: 73.66047885 | Q41: 73.66047885 | R41: 196.6734785 | S41: 54.63152181 | T41: 59.38208892 | U41: 12.42880931 | V41: 0 | W41: 0 | X41: 0 | Y41: 0 | Z41: 0 | AA41: 0 | AB41: 0 | AC41: 30.71641968 | AD41: 8.278075103 | AE41: 217.5930545 | AF41: 78.37420552 | AG41: 26.53155231 | AH41: 26.53155231 | AI41: 14.30372488 | AJ41: 3.794856009 | AK41: 8.925501332 | AL41: 10.50886887 | AM41: 2.227826362 | AN41: 5.081671931 | AO41: 10.00000106 | AP41: 10.00000106 | AQ41: 22.34000626 | AR41: 2.583393684 | AS41: 26.0304682 | AT41: 0 | AU41: 0 | AV41: 9.739264016 | AW41: 4.047906906 | AX41: 10.55337905 | AY41: 4.684145164 | AZ41: 10.86146879 | BA41: 8.572410408 | BB41: 2.28905838 | BC41: VT | BK41: 26.53155405 | BL41: 10.0000028 | BM41: 4.887660955 | BN41: 5.973807833 | BP41: =IF(BC41="NT",BA41*Ekonomika!$B$22,BA41*Ekonomika!$B$23)-U41*Ekonomika!$B$14-U41*(Výhřevnost_HU/3.6)*Emisní_faktor_CO2_HU*Ekonomika!$B$24 -> -12256.52113 | BQ41: -12256.52113 | BR41: -12574.74884 | BS41: MIN
A42: Spotřeba LTO | B42: =SUM(AB2:AB8761) -> 805.4126932 | C42: t | F42: 2018-01-02T16:00:00 | G42: 41 | H42: 134.5810727 | I42: 109.9084159 | J42: 24.6726568 | K42: 115.6642182 | L42: 53.8312512 | M42: 39.15511789 | N42: 106.8080381 | O42: 249.3045203 | P42: 73.95565717 | Q42: 73.95565717 | R42: 197.4616046 | S42: 54.85044573 | T42: 59.62004971 | U42: 12.47861506 | V42: 0 | W42: 0 | X42: 0 | Y42: 0 | Z42: 0 | AA42: 0 | AB42: 0 | AC42: 30.83950904 | AD42: 8.311247686 | AE42: 218.4650113 | AF42: 76.90294544 | AG42: 26.03349541 | AH42: 26.03349541 | AI42: 13.77076424 | AJ42: 3.810063067 | AK42: 8.961268334 | AL42: 9.960701171 | AM42: 2.262730156 | AN42: 5.161287485 | AO42: 10.00000102 | AP42: 10.00000102 | AQ42: 22.34000597 | AR42: 2.558052721 | AS42: 24.6726568 | AT42: 0 | AU42: 0 | AV42: 9.778291995 | AW42: 4.064128011 | AX42: 10.59566942 | AY42: 4.702915855 | AZ42: 10.86930041 | BA42: 8.575076406 | BB42: 2.294224 | BC42: VT | BK42: 26.03349707 | BL42: 10.00000267 | BM42: 4.891185183 | BN42: 5.978115224 | BP42: =IF(BC42="NT",BA42*Ekonomika!$B$22,BA42*Ekonomika!$B$23)-U42*Ekonomika!$B$14-U42*(Výhřevnost_HU/3.6)*Emisní_faktor_CO2_HU*Ekonomika!$B$24 -> -12339.72608 | BQ42: -12339.72608 | BR42: -12643.13659 | BS42: MIN
A43: Výroba tepla na K1 | B43: =SUM(R2:R8761)/1000 -> 1119.74215 | C43: TJ | F43: 2018-01-02T17:00:00 | G43: 42 | H43: 134.6607108 | I43: 107.6591483 | J43: 27.0015625 | K43: 113.2971586 | L43: 58.9125 | M43: 38.3538113 | N43: 116.889881 | O43: 249.7188984 | P43: 74.07858155 | Q43: 74.07858155 | R43: 197.7898127 | S43: 54.94161465 | T43: 59.71914636 | U43: 12.49935622 | V43: 0 | W43: 0 | X43: 0 | Y43: 0 | Z43: 0 | AA43: 0 | AB43: 0 | AC43: 30.89076851 | AD43: 8.325062113 | AE43: 218.8281299 | AF43: 79.59007799 | AG43: 26.94315436 | AH43: 26.94315436 | AI43: 14.71730931 | AJ43: 3.816395912 | AK43: 8.976163184 | AL43: 10.9009134 | AM43: 2.225844056 | AN43: 5.077150291 | AO43: 10.00000099 | AP43: 10.00000099 | AQ43: 22.34000585 | AR43: 2.605906789 | AS43: 27.0015625 | AT43: 0 | AU43: 0 | AV43: 9.79454485 | AW43: 4.070883146 | AX43: 10.61328087 | AY43: 4.710732742 | AZ43: 10.9309689 | BA43: 8.634593725 | BB43: 2.296375177 | BC43: VT | BK43: 26.94315599 | BL43: 10.00000262 | BM43: 4.918936006 | BN43: 6.012032896 | BP43: =IF(BC43="NT",BA43*Ekonomika!$B$22,BA43*Ekonomika!$B$23)-U43*Ekonomika!$B$14-U43*(Výhřevnost_HU/3.6)*Emisní_faktor_CO2_HU*Ekonomika!$B$24 -> -12311.53849 | BQ43: -12311.53849 | BR43: -12608.77852 | BS43: MIN
A44: Výroba tepla na OK | B44: =SUM(V2:V8761)/1000 -> 22.74509822 | C44: TJ | F44: 2018-01-02T18:00:00 | G44: 43 | H44: 133.5673794 | I44: 105.9728487 | J44: 27.5945307 | K44: 111.522549 | L44: 60.2062488 | M44: 37.7530633 | N44: 119.4568429 | O44: 248.1388271 | P44: 73.60985675 | Q44: 73.60985675 | R44: 196.5383175 | S44: 54.59397709 | T44: 59.34127945 | U44: 12.42026779 | V44: 0 | W44: 0 | X44: 0 | Y44: 0 | Z44: 0 | AA44: 0 | AB44: 0 | AC44: 30.69531026 | AD44: 8.272386116 | AE44: 217.4435168 | AF44: 80.14421291 | AG44: 27.13074235 | AH44: 27.13074235 | AI44: 14.93255112 | AJ44: 3.792248049 | AK44: 8.919367411 | AL44: 11.14030307 | AM44: 2.198190162 | AN44: 5.01407176 | AO44: 10.00000107 | AP44: 10.00000107 | AQ44: 22.34000631 | AR44: 2.614602788 | AS44: 27.5945307 | AT44: 0 | AU44: 0 | AV44: 9.732570849 | AW44: 4.045125041 | AX44: 10.5461264 | AY44: 4.680926053 | AZ44: 10.8869889 | BA44: 8.598816412 | BB44: 2.288172493 | BC44: VT | BK44: 27.1307441 | BL44: 10.00000282 | BM44: 4.899145007 | BN44: 5.987843898 | BP44: =IF(BC44="NT",BA44*Ekonomika!$B$22,BA44*Ekonomika!$B$23)-U44*Ekonomika!$B$14-U44*(Výhřevnost_HU/3.6)*Emisní_faktor_CO2_HU*Ekonomika!$B$24 -> -12213.35084 | BQ44: -12213.35084 | BR44: -12534.11965 | BS44: MIN
A45: Dodávky páry do CZT | B45: =SUM(I2:I8761)/1000 -> 520.0174216 | C45: TJ | F45: 2018-01-02T19:00:00 | G45: 44 | H45: 132.6112613 | I45: 105.9534488 | J45: 26.6578125 | K45: 111.5021331 | L45: 58.1625 | M45: 37.74615203 | N45: 115.4017857 | O45: 246.5734447 | P45: 73.14548939 | Q45: 73.14548939 | R45: 195.2984567 | S45: 54.2495713 | T45: 58.96692532 | U45: 12.3419146 | V45: 0 | W45: 0 | X45: 0 | Y45: 0 | Z45: 0 | AA45: 0 | AB45: 0 | AC45: 30.50166907 | AD45: 8.220199816 | AE45: 216.0717757 | AF45: 78.95550013 | AG45: 26.7283345 | AH45: 26.7283345 | AI45: 14.53046133 | AJ45: 3.768324674 | AK45: 8.863099632 | AL45: 10.76213666 | AM45: 2.197872023 | AN45: 5.013346084 | AO45: 10.00000115 | AP45: 10.00000115 | AQ45: 22.34000677 | AR45: 2.592460632 | AS45: 26.6578125 | AT45: 0 | AU45: 0 | AV45: 9.671172981 | AW45: 4.019606393 | AX45: 10.47959622 | AY45: 4.651396457 | AZ45: 10.81266045 | BA45: 8.532614383 | BB45: 2.280046064 | BC45: VT | BK45: 26.72833638 | BL45: 10.00000303 | BM45: 4.865697201 | BN45: 5.946963246 | BP45: =IF(BC45="NT",BA45*Ekonomika!$B$22,BA45*Ekonomika!$B$23)-U45*Ekonomika!$B$14-U45*(Výhřevnost_HU/3.6)*Emisní_faktor_CO2_HU*Ekonomika!$B$24 -> -12149.16639 | BQ45: -12149.16639 | BR45: -12493.24525 | BS45: MIN
A46: Dodávky HV | B46: =SUM(J2:J8761)/1000 -> 110.2811718 | C46: TJ | F46: 2018-01-02T20:00:00 | G46: 45 | H46: 131.0027815 | I46: 104.929344 | J46: 26.0734375 | K46: 110.4243969 | L46: 56.8875 | M46: 37.38131244 | N46: 112.8720238 | O46: 244.0650912 | P46: 72.40139165 | Q46: 72.40139165 | R46: 193.3117157 | S46: 53.6976988 | T46: 58.36706392 | U46: 12.21636222 | V46: 0 | W46: 0 | X46: 0 | Y46: 0 | Z46: 0 | AA46: 0 | AB46: 0 | AC46: 30.19138032 | AD46: 8.136576995 | AE46: 213.8737109 | AF46: 78.09574026 | AG46: 26.43728513 | AH46: 26.43728513 | AI46: 14.25620628 | AJ46: 3.72999009 | AK46: 8.772936692 | AL46: 10.52621619 | AM46: 2.181077571 | AN46: 4.97503794 | AO46: 10.00000128 | AP46: 10.00000128 | AQ46: 22.3400075 | AR46: 2.575477198 | AS46: 26.0734375 | AT46: 0 | AU46: 0 | AV46: 9.572789635 | AW46: 3.978715559 | AX46: 10.37298891 | AY46: 4.604078521 | AZ46: 10.71205419 | BA46: 8.44502984 | BB46: 2.267024354 | BC46: NT | BK46: 26.43728721 | BL46: 10.00000336 | BM46: 4.820424387 | BN46: 5.891629806 | BP46: =IF(BC46="NT",BA46*Ekonomika!$B$22,BA46*Ekonomika!$B$23)-U46*Ekonomika!$B$14-U46*(Výhřevnost_HU/3.6)*Emisní_faktor_CO2_HU*Ekonomika!$B$24 -> -14398.42266 | BQ46: -14398.42266 | BR46: -15258.73877 | BS46: MIN
A47: Výroba EE TG1 | B47: =SUM(AD2:AD8761)/1000 -> 46.53120318 | C47: GWh | F47: 2018-01-02T21:00:00 | G47: 46 | H47: 127.1979362 | I47: 102.1041862 | J47: 25.09375 | K47: 107.4512882 | L47: 54.75 | M47: 36.37484368 | N47: 108.6309524 | O47: 238.1824038 | P47: 70.65630489 | Q47: 70.65630489 | R47: 188.6523341 | S47: 52.40342613 | T47: 56.96024579 | U47: 11.92191191 | V47: 0 | W47: 0 | X47: 0 | Y47: 0 | Z47: 0 | AA47: 0 | AB47: 0 | AC47: 29.46367914 | AD47: 7.940461529 | AE47: 208.7187247 | AF47: 76.5249585 | AG47: 25.90553775 | AH47: 25.90553775 | AI47: 13.77078881 | AJ47: 3.640086344 | AK47: 8.561483082 | AL47: 10.13070246 | AM47: 2.13474737 | AN47: 4.869358751 | AO47: 10.00000157 | AP47: 10.00000157 | AQ47: 22.34000923 | AR47: 2.543533434 | AS47: 25.09375 | AT47: 0 | AU47: 0 | AV47: 9.342057214 | AW47: 3.882816797 | AX47: 10.12296933 | AY47: 4.49310667 | AZ47: 10.48399496 | BA47: 8.247509627 | BB47: 2.236485336 | BC47: NT | BK47: 25.90554031 | BL47: 10.00000413 | BM47: 4.717797733 | BN47: 5.766197229 | BP47: =IF(BC47="NT",BA47*Ekonomika!$B$22,BA47*Ekonomika!$B$23)-U47*Ekonomika!$B$14-U47*(Výhřevnost_HU/3.6)*Emisní_faktor_CO2_HU*Ekonomika!$B$24 -> -14046.58465 | BQ47: -14046.58465 | BR47: -15104.47987 | BS47: MIN
A48: Výroba EE TG2 | B48: =SUM(AR2:AR8761)/1000 -> 22.63199239 | C48: GWh | F48: 2018-01-02T22:00:00 | G48: 47 | H48: 115.1671804 | I48: 96.92264863 | J48: 18.2445318 | K48: 101.9983983 | L48: 39.8062512 | M48: 34.52890938 | N48: 78.98065714 | O48: 219.1082785 | P48: 64.99800608 | Q48: 64.99800608 | R48: 173.5446762 | S48: 48.20685451 | T48: 52.3987549 | U48: 10.96718126 | V48: 0 | W48: 0 | X48: 0 | Y48: 0 | Z48: 0 | AA48: 0 | AB48: 0 | AC48: 27.10416854 | AD48: 7.30457342 | AE48: 192.00411 | AF48: 67.24466106 | AG48: 22.76393401 | AH48: 22.76393401 | AI48: 10.71415694 | AJ48: 3.348580919 | AK48: 7.87586232 | AL48: 7.365576019 | AM48: 2.04977455 | AN48: 4.675535749 | AO48: 10.00000252 | AP48: 10.00000252 | AQ48: 22.34001482 | AR48: 2.36584534 | AS48: 18.2445318 | AT48: 0 | AU48: 0 | AV48: 8.593926508 | AW48: 3.571873029 | AX48: 9.312301612 | AY48: 4.133289663 | AZ48: 9.67041876 | BA48: 7.532953654 | BB48: 2.137465106 | BC48: NT | BK48: 22.76393812 | BL48: 10.00000663 | BM48: 4.351688442 | BN48: 5.318730318 | BP48: =IF(BC48="NT",BA48*Ekonomika!$B$22,BA48*Ekonomika!$B$23)-U48*Ekonomika!$B$14-U48*(Výhřevnost_HU/3.6)*Emisní_faktor_CO2_HU*Ekonomika!$B$24 -> -12964.69748 | BQ48: -12964.69748 | BR48: -14663.22653 | BS48: MIN
A49: Výroba EE celkem | B49: =B47+B48 -> 69.16319557 | C49: GWh | F49: 2018-01-02T23:00:00 | G49: 48 | H49: 93.02463706 | I49: 80.17698136 | J49: 12.8476557 | K49: 84.37577589 | L49: 28.0312488 | M49: 28.56322813 | N49: 55.61755714 | O49: 184.9120143 | P49: 54.85375684 | Q49: 54.85375684 | R49: 146.4595308 | S49: 40.68320299 | T49: 44.22087281 | U49: 9.255531519 | V49: 0 | W49: 0 | X49: 0 | Y49: 0 | Z49: 0 | AA49: 0 | AB49: 0 | AC49: 22.8740166 | AD49: 6.164547474 | AE49: 162.0379977 | AF49: 58.45349203 | AG49: 19.787912 | AH49: 19.787912 | AI49: 8.012748019 | AJ49: 2.825967357 | AK49: 6.646675224 | AL49: 5.186780662 | AM49: 1.775159753 | AN49: 4.049139397 | AO49: 10.00000422 | AP49: 10.00000422 | AQ49: 22.34002483 | AR49: 2.186170315 | AS49: 12.8476557 | AT49: 0 | AU49: 0 | AV49: 7.252671019 | AW49: 3.014410232 | AX49: 7.858929204 | AY49: 3.488206482 | AZ49: 8.350717789 | BA49: 6.390777045 | BB49: 1.959940745 | BC49: NT | BK49: 19.78791889 | BL49: 10.00001112 | BM49: 3.757823005 | BN49: 4.592894784 | BP49: =IF(BC49="NT",BA49*Ekonomika!$B$22,BA49*Ekonomika!$B$23)-U49*Ekonomika!$B$14-U49*(Výhřevnost_HU/3.6)*Emisní_faktor_CO2_HU*Ekonomika!$B$24 -> -10914.66909 | BQ49: -10914.66909 | BR49: -13761.73228 | BS49: MIN
A50: Prodej EE | B50: =SUM(BA2:BA8761)/1000 -> 53.82937614 | C50: GWh | F50: 2018-01-03 | G50: 49 | H50: 70.19556505 | I50: 60.72525255 | J50: 9.4703125 | K50: 63.90537799 | L50: 20.6625 | M50: 21.63350643 | N50: 40.99702381 | O50: 149.9314114 | P50: 44.47683518 | Q50: 44.47683518 | R50: 118.7531499 | S50: 32.98698609 | T50: 35.85541966 | U50: 7.50462272 | V50: 0 | W50: 0 | X50: 0 | Y50: 0 | Z50: 0 | AA50: 0 | AB50: 0 | AC50: 18.54684027 | AD50: 4.998373452 | AE50: 131.3845711 | AF50: 51.90426157 | AG50: 17.57084007 | AH50: 17.57084007 | AI50: 6.114666283 | AJ50: 2.291366929 | AK50: 5.389295017 | AL50: 3.823299354 | AM50: 1.456167822 | AN50: 3.321518801 | AO50: 10.00000597 | AP50: 10.00000597 | AQ50: 22.34003508 | AR50: 2.045625621 | AS50: 9.4703125 | AT50: 0 | AU50: 0 | AV50: 5.880651975 | AW50: 2.444161253 | AX50: 6.372221686 | AY50: 2.828327424 | AZ50: 7.043999073 | BA50: 5.265654458 | BB50: 1.778344616 | BC50: NT | BK50: 17.57084981 | BL50: 10.0000157 | BM50: 3.169799583 | BN50: 3.87419949 | BP50: =IF(BC50="NT",BA50*Ekonomika!$B$22,BA50*Ekonomika!$B$23)-U50*Ekonomika!$B$14-U50*(Výhřevnost_HU/3.6)*Emisní_faktor_CO2_HU*Ekonomika!$B$24 -> -8783.236482 | BQ50: -8783.236482 | BR50: -12805.17703 | BS50: MIN
A51: Vlastní spotřeba EE | B51: =B49-B50 -> 15.33381942 | C51: GWh | F51: 2018-01-03T01:00:00 | G51: 50 | H51: 75.85114954 | I51: 64.23239954 | J51: 11.61875 | K51: 67.59619104 | L51: 25.35 | M51: 22.88293535 | N51: 50.29761905 | O51: 158.7628707 | P51: 47.09666885 | Q51: 47.09666885 | R51: 125.7481058 | S51: 34.9300294 | T51: 37.96742326 | U51: 7.946669984 | V51: 0 | W51: 0 | X51: 0 | Y51: 0 | Z51: 0 | AA51: 0 | AB51: 0 | AC51: 19.63931091 | AD51: 5.29279429 | AE51: 139.1235598 | AF51: 55.03502186 | AG51: 18.63067768 | AH51: 18.63067768 | AI51: 7.116990087 | AJ51: 2.42633607 | AK51: 5.706742437 | AL51: 4.690654017 | AM51: 1.513682066 | AN51: 3.452708792 | AO51: 10.00000553 | AP51: 10.00000553 | AQ51: 22.3400325 | AR51: 2.107256738 | AS51: 11.61875 | AT51: 0 | AU51: 0 | AV51: 6.227041955 | AW51: 2.588130488 | AX51: 6.747566759 | AY51: 2.994925326 | AZ51: 7.400051028 | BA51: 5.575859323 | BB51: 1.824191705 | BC51: NT | BK51: 18.6306867 | BL51: 10.00001455 | BM51: 3.330022962 | BN51: 4.070028065 | BP51: =IF(BC51="NT",BA51*Ekonomika!$B$22,BA51*Ekonomika!$B$23)-U51*Ekonomika!$B$14-U51*(Výhřevnost_HU/3.6)*Emisní_faktor_CO2_HU*Ekonomika!$B$24 -> -9300.566326 | BQ51: -9300.566326 | BR51: -13025.88873 | BS51: MIN
A52: Emise CO2 | B52: =Emisní_faktor_CO2_HU*B41*Výhřevnost_HU/3.6+Emisní_faktor_CO2_LTO*B42*Výhřevnost_LTO/3.6 -> 124154.1884 | C52: t | F52: 2018-01-03T02:00:00 | G52: 51 | H52: 76.97640159 | I52: 63.07171409 | J52: 13.9046875 | K52: 66.37472156 | L52: 30.3375 | M52: 22.46943858 | N52: 60.19345238 | O52: 160.7544872 | P52: 47.68747767 | Q52: 47.68747767 | R52: 127.3255654 | S52: 35.36821261 | T52: 38.44370935 | U52: 8.046357772 | V52: 0 | W52: 0 | X52: 0 | Y52: 0 | Z52: 0 | AA52: 0 | AB52: 0 | AC52: 19.88567819 | AD52: 5.359190272 | AE52: 140.868809 | AF52: 57.79485073 | AG52: 19.56494608 | AH52: 19.56494608 | AI52: 8.070292861 | AJ52: 2.456773483 | AK52: 5.778331232 | AL52: 5.613519378 | AM52: 1.494647795 | AN52: 3.409291621 | AO52: 10.00000543 | AP52: 10.00000543 | AQ52: 22.34003191 | AR52: 2.157507758 | AS52: 13.9046875 | AT52: 0 | AU52: 0 | AV52: 6.305157699 | AW52: 2.620597547 | AX52: 6.832212278 | AY52: 3.032495463 | AZ52: 7.51669803 | BA52: 5.682167171 | BB52: 1.834530859 | BC52: NT | BK52: 19.56495494 | BL52: 10.00001428 | BM52: 3.382514114 | BN52: 4.134183917 | BP52: =IF(BC52="NT",BA52*Ekonomika!$B$22,BA52*Ekonomika!$B$23)-U52*Ekonomika!$B$14-U52*(Výhřevnost_HU/3.6)*Emisní_faktor_CO2_HU*Ekonomika!$B$24 -> -9388.332029 | BQ52: -9388.332029 | BR52: -13046.76292 | BS52: MIN
A53: Spotřeba vápence | B53: =B41*Spotřeba_vápence -> 4009.861929 | C53: t | F53: 2018-01-03T03:00:00 | G53: 52 | H53: 76.15337652 | I53: 61.76743902 | J53: 14.3859375 | K53: 65.00214281 | L53: 31.3875 | M53: 22.00478768 | N53: 62.27678571 | O53: 159.569461 | P53: 47.33594214 | Q53: 47.33594214 | R53: 126.3869655 | S53: 35.10749042 | T53: 38.16031568 | U53: 7.987042816 | V53: 0 | W53: 0 | X53: 0 | Y53: 0 | Z53: 0 | AA53: 0 | AB53: 0 | AC53: 19.73908787 | AD53: 5.319684182 | AE53: 139.8303731 | AF53: 58.25209451 | AG53: 19.71973409 | AH53: 19.71973409 | AI53: 8.246469825 | AJ53: 2.438663002 | AK53: 5.73573538 | AL53: 5.807806823 | AM53: 1.473258782 | AN53: 3.360503282 | AO53: 10.00000549 | AP53: 10.00000549 | AQ53: 22.34003226 | AR53: 2.164766853 | AS53: 14.3859375 | AT53: 0 | AU53: 0 | AV53: 6.258678266 | AW53: 2.601279412 | AX53: 6.781847581 | AY53: 3.010140959 | AZ53: 7.484451035 | BA53: 5.656072047 | BB53: 1.828378988 | BC53: NT | BK53: 19.71974305 | BL53: 10.00001444 | BM53: 3.368002966 | BN53: 4.116448069 | BP53: =IF(BC53="NT",BA53*Ekonomika!$B$22,BA53*Ekonomika!$B$23)-U53*Ekonomika!$B$14-U53*(Výhřevnost_HU/3.6)*Emisní_faktor_CO2_HU*Ekonomika!$B$24 -> -9306.570324 | BQ53: -9306.570324 | BR53: -13004.80215 | BS53: MIN
F54: 2018-01-03T04:00:00 | G54: 53 | H54: 93.84320887 | I54: 77.66977137 | J54: 16.1734375 | K54: 81.73726564 | L54: 35.2875 | M54: 27.67002899 | N54: 70.01488095 | O54: 186.5706307 | P54: 55.34578188 | Q54: 55.34578188 | R54: 147.7732376 | S54: 41.04812156 | T54: 44.61752343 | U54: 9.338551416 | V54: 0 | W54: 0 | X54: 0 | Y54: 0 | Z54: 0 | AA54: 0 | AB54: 0 | AC54: 23.07919104 | AD54: 6.219841986 | AE54: 163.4914397 | AF54: 62.37314656 | AG54: 21.11480926 | AH54: 21.11480926 | AI54: 9.380761509 | AJ54: 2.851315606 | AK54: 6.706294306 | AL54: 6.529445902 | AM54: 1.734043612 | AN54: 3.955353479 | AO54: 10.00000414 | AP54: 10.00000414 | AQ54: 22.34002435 | AR54: 2.256715911 | AS54: 16.1734375 | AT54: 0 | AU54: 0 | AV54: 7.317725738 | AW54: 3.041448769 | AX54: 7.929421914 | AY54: 3.519494857 | AZ54: 8.476557896 | BA54: 6.508006714 | BB54: 1.968551183 | BC54: NT | BK54: 21.11481602 | BL54: 10.0000109 | BM54: 3.814451053 | BN54: 4.662106843 | BP54: =IF(BC54="NT",BA54*Ekonomika!$B$22,BA54*Ekonomika!$B$23)-U54*Ekonomika!$B$14-U54*(Výhřevnost_HU/3.6)*Emisní_faktor_CO2_HU*Ekonomika!$B$24 -> -10964.9471 | BQ54: -10964.9471 | BR54: -13756.3031 | BS54: MIN
A55: Prodej elektřiny [GWh] | B55: NT | C55: VT | D55: Celkem | E55: Počet dní | F55: 2018-01-03T05:00:00 | G55: 54 | H55: 134.5758287 | I55: 108.6227037 | J55: 25.953125 | K55: 114.3111745 | L55: 56.625 | M55: 38.69708005 | N55: 112.3511905 | O55: 249.4581387 | P55: 74.00122774 | Q55: 74.00122774 | R55: 197.5832781 | S55: 54.88424391 | T55: 59.65678685 | U55: 12.48630423 | V55: 0 | W55: 0 | X55: 0 | Y55: 0 | Z55: 0 | AA55: 0 | AB55: 0 | AC55: 30.85851197 | AD55: 8.316368975 | AE55: 218.5996267 | AF55: 78.37464674 | AG55: 26.53170167 | AH55: 26.53170167 | AI55: 14.29005511 | AJ55: 3.812410781 | AK55: 8.966790158 | AL55: 10.47764433 | AM55: 2.241645555 | AN55: 5.113193511 | AO55: 10.00000101 | AP55: 10.00000101 | AQ55: 22.34000592 | AR55: 2.584210043 | AS55: 25.953125 | AT55: 0 | AU55: 0 | AV55: 9.784317259 | AW55: 4.066632277 | AX55: 10.60219834 | AY55: 4.705813734 | AZ55: 10.90057902 | BA55: 8.605557533 | BB55: 2.295021485 | BC55: NT | BK55: 26.53170332 | BL55: 10.00000265 | BM55: 4.905260558 | BN55: 5.99531846 | BP55: =IF(BC55="NT",BA55*Ekonomika!$B$22,BA55*Ekonomika!$B$23)-U55*Ekonomika!$B$14-U55*(Výhřevnost_HU/3.6)*Emisní_faktor_CO2_HU*Ekonomika!$B$24 -> -14737.31426 | BQ55: -14737.31426 | BR55: -15416.49658 | BS55: MIN
A56: Leden | B56: =SUMIFS($BA2:$BA745,$BC2:$BC745,"NT")/1000 -> 2.769068629 | C56: =SUMIFS($BA2:$BA745,$BC2:$BC745,"VT")/1000 -> 3.223344249 | D56: =B56+C56 -> 5.992412877 | E56: 31 | F56: 2018-01-03T06:00:00 | G56: 55 | H56: 186.0549705 | I56: 150.2276262 | J56: 35.8273443 | K56: 158.0949084 | L56: 78.1687512 | M56: 53.51892633 | N56: 155.0967286 | O56: 266.4131587 | P56: 79.03089845 | Q56: 79.03089845 | R56: =P56*(h_výstupK1-h_vNTO2) -> 234.9588611 | S56: 65.2663503 | T56: 70.94168511 | U56: 14.84825967 | V56: 18 | W56: 18 | X56: 6.093432634 | Y56: 6.093432634 | Z56: 4.751184834 | AA56: 5.589629217 | AB56: 2.479111076 | AC56: 32.95588465 | AD56: 8.881610914 | AE56: 233.457274 | AF56: 89.40134253 | AG56: 30.26450323 | AH56: =P56-M56-AU56 -> 24.17107059 | AI56: 17.62106752 | AJ56: 4.540728403 | AK56: 10.6797932 | AL56: 13.08033912 | AM56: 2.643435703 | AN56: 6.029676838 | AO56: 10 | AP56: 3.906567366 | AQ56: 22.34 | AR56: 2.812928943 | AS56: 32.4 | AT56: 3.4273443 | AU56: 1.340901526 | AV56: 0 | AW56: 0 | AX56: 0 | AY56: 0 | AZ56: 11.69453986 | BA56: 9.311499135 | BB56: 2.383040723 | BC56: NT | BK56: 30.26450323 | BL56: 10 | BM56: 5.262542936 | BN56: 6.431996922 | BP56: =IF(BC56="NT",BA56*Ekonomika!$B$22,BA56*Ekonomika!$B$23)-U56*Ekonomika!$B$14-U56*(Výhřevnost_HU/3.6)*Emisní_faktor_CO2_HU*Ekonomika!$B$24 -> -18257.98406 | BQ56: -18257.98406 | BR56: -18386.35737 | BS56: MIN
A57: Únor | B57: =SUMIFS(OFFSET($BA$2,$E56*24,,,):OFFSET($BA$745,$E57*24,,,),OFFSET($BC$2,$E56*24,,,):OFFSET($BC$745,$E57*24,,,),"NT")/1000 -> 2.487588373 | C57: =SUMIFS(OFFSET($BA$2,$E56*24,,,):OFFSET($BA$745,$E57*24,,,),OFFSET($BC$2,$E56*24,,,):OFFSET($BC$745,$E57*24,,,),"VT")/1000 -> 2.766438866 | D57: =B57+C57 -> 5.254027239 | E57: 28 | F57: 2018-01-03T07:00:00 | G57: 56 | H57: 188.7571754 | I57: 150.2142072 | J57: 38.5429682 | K57: 158.0807866 | L57: 84.0937488 | M57: 53.51414578 | N57: 166.8526762 | O57: 269.68 | P57: 80 | Q57: 80 | R57: =P57*(h_výstupK1-h_vNTO2) -> 237.84 | S57: 66.06666667 | T57: 71.8115942 | U57: 15.03033367 | V57: 18.23408891 | W57: 18.23408891 | X57: 6.172677356 | Y57: 6.172677356 | Z57: 4.812973705 | AA57: 5.662322006 | AB57: 0.4853418862 | AC57: 33.36 | AD57: 8.99052 | AE57: 236.32 | AF57: 89.3737999 | AG57: 30.25517938 | AH57: =P57-M57-AU57 -> 24.08250203 | AI57: 17.61561157 | AJ57: 4.53527245 | AK57: 10.6669608 | AL57: 13.08033912 | AM57: 2.639567814 | AN57: 6.020854185 | AO57: 10 | AP57: 3.827322644 | AQ57: 22.34 | AR57: 2.812190137 | AS57: 32.4 | AT57: 6.1429682 | AU57: 2.403352191 | AV57: 0 | AW57: 0 | AX57: 0 | AY57: 0 | AZ57: 11.80271014 | BA57: 9.402710137 | BB57: 2.4 | BC57: NT | BK57: 30.25517938 | BL57: 10 | BM57: 5.311219562 | BN57: 6.491490576 | BP57: =IF(BC57="NT",BA57*Ekonomika!$B$22,BA57*Ekonomika!$B$23)-U57*Ekonomika!$B$14-U57*(Výhřevnost_HU/3.6)*Emisní_faktor_CO2_HU*Ekonomika!$B$24 -> -18500.12943 | BQ57: -18500.12943 | BR57: -18500.12943 | BS57: MIN
A58: Březen | B58: =SUMIFS(OFFSET(OFFSET($BA$2,SUM($E$56:$E56)*24,,,),$E57*24,,,):OFFSET(OFFSET($BA$745,SUM($E$57:$E57)*24,,,),$E58*24,,,),OFFSET(OFFSET($BC$2,SUM($E$56:$E56)*24,,,),$E57*24,,,):OFFSET(OFFSET($BC$745,SUM($E$57:$E57)*24,,,),$E58*24,,,),"NT")/1000 -> 2.409535306 | C58: =SUMIFS(OFFSET(OFFSET($BA$2,SUM($E$56:$E56)*24,,,),$E57*24,,,):OFFSET(OFFSET($BA$745,SUM($E$57:$E57)*24,,,),$E58*24,,,),OFFSET(OFFSET($BC$2,SUM($E$56:$E56)*24,,,),$E57*24,,,):OFFSET(OFFSET($BC$745,SUM($E$57:$E57)*24,,,),$E58*24,,,),"VT")/1000 -> 2.451451769 | D58: 4.860987075 | E58: 31 | F58: 2018-01-03T08:00:00 | G58: 57 | H58: 176.6394946 | I58: 143.0980878 | J58: 33.5414068 | K58: 150.5920026 | L58: 73.1812512 | M58: 50.97901239 | N58: 145.2008952 | O58: 253.8861972 | P58: 75.31480191 | Q58: 75.31480191 | R58: =P58*(h_výstupK1-h_vNTO2) -> 223.9109061 | S58: 62.19747391 | T58: 67.6059499 | U58: 14.15008254 | V58: 18 | W58: 18 | X58: 6.093432634 | Y58: 6.093432634 | Z58: 4.751184834 | AA58: 5.589629217 | AB58: 0.4791110757 | AC58: 31.4062724 | AD58: 8.463990411 | AE58: 222.4799248 | AF58: 88.56878463 | AG58: 29.98266237 | AH58: =P58-M58-AU58 -> 23.88922973 | AI58: 17.4561451 | AJ58: 4.375805985 | AK58: 10.29189568 | AL58: 13.08033912 | AM58: 2.526517262 | AN58: 5.762985875 | AO58: 10 | AP58: 3.906567366 | AQ58: 22.34 | AR58: 2.790596331 | AS58: 32.4 | AT58: 1.1414068 | AU58: 0.4465597809 | AV58: 0 | AW58: 0 | AX58: 0 | AY58: 0 | AZ58: 11.25458674 | BA58: 8.936577708 | BB58: 2.318009033 | BC58: VT | BK58: 29.98266237 | BL58: 10 | BM58: 5.064564034 | BN58: 6.190022708 | BP58: =IF(BC58="NT",BA58*Ekonomika!$B$22,BA58*Ekonomika!$B$23)-U58*Ekonomika!$B$14-U58*(Výhřevnost_HU/3.6)*Emisní_faktor_CO2_HU*Ekonomika!$B$24 -> -14839.39584 | BQ58: -14839.39584 | BR58: -15141.83396 | BS58: MIN
A59: Duben | B59: =SUMIFS(OFFSET(OFFSET($BA$2,SUM($E$56:$E57)*24,,,),$E58*24,,,):OFFSET(OFFSET($BA$745,SUM($E$57:$E58)*24,,,),$E59*24,,,),OFFSET(OFFSET($BC$2,SUM($E$56:$E57)*24,,,),$E58*24,,,):OFFSET(OFFSET($BC$745,SUM($E$57:$E58)*24,,,),$E59*24,,,),"NT")/1000 -> 2.062027066 | C59: =SUMIFS(OFFSET(OFFSET($BA$2,SUM($E$56:$E57)*24,,,),$E58*24,,,):OFFSET(OFFSET($BA$745,SUM($E$57:$E58)*24,,,),$E59*24,,,),OFFSET(OFFSET($BC$2,SUM($E$56:$E57)*24,,,),$E58*24,,,):OFFSET(OFFSET($BC$745,SUM($E$57:$E58)*24,,,),$E59*24,,,),"VT")/1000 -> 2.090486204 | D59: 4.15251327 | E59: 30 | F59: 2018-01-03T09:00:00 | G59: 58 | H59: 173.4970628 | I59: 140.6087821 | J59: 32.8882807 | K59: 147.9723343 | L59: 71.7562488 | M59: 50.09219169 | N59: 142.3735095 | O59: 249.7036183 | P59: 74.07404875 | Q59: 74.07404875 | R59: =P59*(h_výstupK1-h_vNTO2) -> 220.2221469 | S59: 61.17281859 | T59: 66.49219412 | U59: 13.91697086 | V59: 18 | W59: 18 | X59: 6.093432634 | Y59: 6.093432634 | Z59: 4.751184834 | AA59: 5.589629217 | AB59: 0.4791110757 | AC59: 30.88887833 | AD59: 8.324552709 | AE59: 218.81474 | AF59: 88.27809385 | AG59: 29.88425655 | AH59: =P59-M59-AU59 -> 23.79082392 | AI59: 17.39856181 | AJ59: 4.31822269 | AK59: 10.15645977 | AL59: 13.08033912 | AM59: 2.48569474 | AN59: 5.669869701 | AO59: 10 | AP59: 3.906567366 | AQ59: 22.34 | AR59: 2.782798813 | AS59: 32.4 | AT59: 0.4882807 | AU59: 0.1910331377 | AV59: 0 | AW59: 0 | AX59: 0 | AY59: 0 | AZ59: 11.10735152 | BA59: 8.811055669 | BB59: 2.296295853 | BC59: VT | BK59: 29.88425655 | BL59: 10 | BM59: 4.998308185 | BN59: 6.109043337 | BP59: =IF(BC59="NT",BA59*Ekonomika!$B$22,BA59*Ekonomika!$B$23)-U59*Ekonomika!$B$14-U59*(Výhřevnost_HU/3.6)*Emisní_faktor_CO2_HU*Ekonomika!$B$24 -> -14571.58094 | BQ59: -14571.58094 | BR59: -14954.11196 | BS59: MIN
A60: Květen | B60: =SUMIFS(OFFSET(OFFSET($BA$2,SUM($E$56:$E58)*24,,,),$E59*24,,,):OFFSET(OFFSET($BA$745,SUM($E$57:$E59)*24,,,),$E60*24,,,),OFFSET(OFFSET($BC$2,SUM($E$56:$E58)*24,,,),$E59*24,,,):OFFSET(OFFSET($BC$745,SUM($E$57:$E59)*24,,,),$E60*24,,,),"NT")/1000 -> 2.19540832 | C60: =SUMIFS(OFFSET(OFFSET($BA$2,SUM($E$56:$E58)*24,,,),$E59*24,,,):OFFSET(OFFSET($BA$745,SUM($E$57:$E59)*24,,,),$E60*24,,,),OFFSET(OFFSET($BC$2,SUM($E$56:$E58)*24,,,),$E59*24,,,):OFFSET(OFFSET($BC$745,SUM($E$57:$E59)*24,,,),$E60*24,,,),"VT")/1000 -> 2.14811942 | D60: 4.343527739 | E60: 31 | F60: 2018-01-03T10:00:00 | G60: 59 | H60: 164.9586161 | I60: 135.7226786 | J60: 29.2359375 | K60: 142.8303501 | L60: 63.7875 | M60: 48.35150645 | N60: 126.5625 | O60: 260.787621 | P60: 77.36209463 | Q60: 77.36209463 | R60: =P60*(h_výstupK1-h_vNTO2) -> 229.9975073 | S60: 63.88819648 | T60: 69.44369183 | U60: 14.5347262 | V60: 0 | W60: 0 | X60: 0 | Y60: 0 | Z60: 0 | AA60: 0 | AB60: 0 | AC60: 32.25999346 | AD60: 8.694068237 | AE60: 228.5276275 | AF60: 85.69727746 | AG60: 29.01058817 | AH60: =P60-M60-AU60 -> 29.01058817 | AI60: 16.32452583 | AJ60: 4.521563577 | AK60: 10.63471753 | AL60: 11.80296225 | AM60: 2.686062332 | AN60: 6.126908179 | AO60: 10.00000001 | AP60: 10.00000001 | AQ60: 22.34000009 | AR60: 2.746484076 | AS60: 29.2359375 | AT60: 0 | AU60: 0 | AV60: 0 | AW60: 0 | AX60: 0 | AY60: 0 | AZ60: 11.44055231 | BA60: 9.086715658 | BB60: 2.353836656 | BC60: VT | BK60: 29.0105882 | BL60: 10.00000004 | BM60: 5.148248541 | BN60: 6.292303772 | BP60: =IF(BC60="NT",BA60*Ekonomika!$B$22,BA60*Ekonomika!$B$23)-U60*Ekonomika!$B$14-U60*(Výhřevnost_HU/3.6)*Emisní_faktor_CO2_HU*Ekonomika!$B$24 -> -15342.60176 | BQ60: -15342.60176 | BR60: -15512.88339 | BS60: MIN
A61: Červen | B61: =SUMIFS(OFFSET(OFFSET($BA$2,SUM($E$56:$E59)*24,,,),$E60*24,,,):OFFSET(OFFSET($BA$745,SUM($E$57:$E60)*24,,,),$E61*24,,,),OFFSET(OFFSET($BC$2,SUM($E$56:$E59)*24,,,),$E60*24,,,):OFFSET(OFFSET($BC$745,SUM($E$57:$E60)*24,,,),$E61*24,,,),"NT")/1000 -> 2.363042552 | C61: =SUMIFS(OFFSET(OFFSET($BA$2,SUM($E$56:$E59)*24,,,),$E60*24,,,):OFFSET(OFFSET($BA$745,SUM($E$57:$E60)*24,,,),$E61*24,,,),OFFSET(OFFSET($BC$2,SUM($E$56:$E59)*24,,,),$E60*24,,,):OFFSET(OFFSET($BC$745,SUM($E$57:$E60)*24,,,),$E61*24,,,),"VT")/1000 -> 2.345859049 | D61: 4.708901601 | E61: 30 | F61: 2018-01-03T11:00:00 | G61: 60 | H61: 140.569235 | I61: 116.094235 | J61: 24.475 | K61: 122.1739829 | L61: 53.4 | M61: 41.35882969 | N61: 105.952381 | O61: 258.34337 | P61: 76.63701275 | Q61: 76.63701275 | R61: =P61*(h_výstupK1-h_nvK1) -> 204.620824 | S61: 56.83911779 | T61: 61.78164977 | U61: 12.93104298 | V61: 0 | W61: 0 | X61: 0 | Y61: 0 | Z61: 0 | AA61: 0 | AB61: 0 | AC61: 31.95763432 | AD61: 8.612582448 | AE61: 226.3857357 | AF61: 77.37494605 | AG61: 26.19327896 | AH61: =P61/S3_-M61-AU61 -> 26.19327896 | AI61: 13.82910603 | AJ61: 3.948201707 | AK61: 9.286170415 | AL61: 9.88090432 | AM61: 2.364172371 | AN61: 5.392677177 | AO61: 10.00000056 | AP61: 10.00000056 | AQ61: 22.34000332 | AR61: 2.572769636 | AS61: 24.475 | AT61: 0 | AU61: 0 | AV61: 10.1328163 | AW61: =(P61-AY61)*(h_vVTO1-h_vNTO2)/(h_CZT-h_vNTO2) -> 4.211478096 | AX61: 10.97982877 | AY61: =P61*(h_nvK1-h_vVTO1)/(h_eTG1-h_vVTO1) -> 4.873425998 | AZ61: 11.18535208 | BA61: 8.844204361 | BB61: 2.341147723 | BC61: VT | BK61: 26.19327988 | BL61: 10.00000149 | BM61: 5.033408438 | BN61: 6.151943646 | BP61: =IF(BC61="NT",BA61*Ekonomika!$B$22,BA61*Ekonomika!$B$23)-U61*Ekonomika!$B$14-U61*(Výhřevnost_HU/3.6)*Emisní_faktor_CO2_HU*Ekonomika!$B$24 -> -12832.05928 | BQ61: -12832.05928 | BR61: -13000.87262 | BS61: MIN
A62: Červenec | B62: =SUMIFS(OFFSET(OFFSET($BA$2,SUM($E$56:$E60)*24,,,),$E61*24,,,):OFFSET(OFFSET($BA$745,SUM($E$57:$E61)*24,,,),$E62*24,,,),OFFSET(OFFSET($BC$2,SUM($E$56:$E60)*24,,,),$E61*24,,,):OFFSET(OFFSET($BC$745,SUM($E$57:$E61)*24,,,),$E62*24,,,),"NT")/1000 -> 0.2395396767 | C62: =SUMIFS(OFFSET(OFFSET($BA$2,SUM($E$56:$E60)*24,,,),$E61*24,,,):OFFSET(OFFSET($BA$745,SUM($E$57:$E61)*24,,,),$E62*24,,,),OFFSET(OFFSET($BC$2,SUM($E$56:$E60)*24,,,),$E61*24,,,):OFFSET(OFFSET($BC$745,SUM($E$57:$E61)*24,,,),$E62*24,,,),"VT")/1000 -> 0.238677746 | D62: 0.4782174227 | E62: 31 | F62: 2018-01-03T12:00:00 | G62: 61 | H62: 128.7993658 | I62: 105.6134283 | J62: 23.1859375 | K62: 111.1443061 | L62: 50.5875 | M62: 37.62501899 | N62: 100.3720238 | O62: 240.3656484 | P62: 71.30395978 | Q62: 71.30395978 | R62: 190.3815726 | S62: 52.88377017 | T62: 57.48235888 | U62: 12.03119139 | V62: 0 | W62: 0 | X62: 0 | Y62: 0 | Z62: 0 | AA62: 0 | AB62: 0 | AC62: 29.73375123 | AD62: 8.013245956 | AE62: 210.6318972 | AF62: 74.5183169 | AG62: 25.22624133 | AH62: 25.22624133 | AI62: 13.03394389 | AJ62: 3.673452365 | AK62: 8.639959961 | AL62: 9.360491522 | AM62: 2.192295987 | AN62: 5.000627147 | AO62: 10.00000146 | AP62: 10.00000146 | AQ62: 22.34000859 | AR62: 2.509552567 | AS62: 23.1859375 | AT62: 0 | AU62: 0 | AV62: 9.427689048 | AW62: 3.918407751 | AX62: 10.21575921 | AY62: 4.534291707 | AZ62: 10.52279852 | BA62: 8.274979227 | BB62: 2.247819296 | BC62: VT | BK62: 25.22624372 | BL62: 10.00000384 | BM62: 4.735259335 | BN62: 5.787539188 | BP62: =IF(BC62="NT",BA62*Ekonomika!$B$22,BA62*Ekonomika!$B$23)-U62*Ekonomika!$B$14-U62*(Výhřevnost_HU/3.6)*Emisní_faktor_CO2_HU*Ekonomika!$B$24 -> -11889.35951 | BQ62: -11889.35951 | BR62: -12325.87844 | BS62: MIN
A63: Srpen | B63: =SUMIFS(OFFSET(OFFSET($BA$2,SUM($E$56:$E61)*24,,,),$E62*24,,,):OFFSET(OFFSET($BA$745,SUM($E$57:$E62)*24,,,),$E63*24,,,),OFFSET(OFFSET($BC$2,SUM($E$56:$E61)*24,,,),$E62*24,,,):OFFSET(OFFSET($BC$745,SUM($E$57:$E62)*24,,,),$E63*24,,,),"NT")/1000 -> 2.426675354 | C63: =SUMIFS(OFFSET(OFFSET($BA$2,SUM($E$56:$E61)*24,,,),$E62*24,,,):OFFSET(OFFSET($BA$745,SUM($E$57:$E62)*24,,,),$E63*24,,,),OFFSET(OFFSET($BC$2,SUM($E$56:$E61)*24,,,),$E62*24,,,):OFFSET(OFFSET($BC$745,SUM($E$57:$E62)*24,,,),$E63*24,,,),"VT")/1000 -> 2.354044055 | D63: 4.780719409 | E63: 31 | F63: 2018-01-03T13:00:00 | G63: 62 | H63: 117.235578 | I63: 97.30667115 | J63: 19.9289068 | K63: 102.4025317 | L63: 43.4812512 | M63: 34.66571826 | N63: 86.27232381 | O63: 222.4515579 | P63: 65.98978283 | Q63: 65.98978283 | R63: 176.1927202 | S63: 48.94242226 | T63: 53.19828507 | U63: 11.13452478 | V63: 0 | W63: 0 | X63: 0 | Y63: 0 | Z63: 0 | AA63: 0 | AB63: 0 | AC63: 27.51773944 | AD63: 7.416030779 | AE63: 194.9338185 | AF63: 69.42293502 | AG63: 23.5013321 | AH63: 23.5013321 | AI63: 11.44525756 | AJ63: 3.399675481 | AK63: 7.996036732 | AL63: 8.045582075 | AM63: 2.056072189 | AN63: 4.689900664 | AO63: 10.00000235 | AP63: 10.00000235 | AQ63: 22.34001384 | AR63: 2.406754249 | AS63: 19.9289068 | AT63: 0 | AU63: 0 | AV63: 8.725057554 | AW63: 3.626374711 | AX63: 9.454394035 | AY63: 4.196357761 | AZ63: 9.822785028 | BA63: 7.667963828 | BB63: 2.154821199 | BC63: VT | BK63: 23.50133594 | BL63: 10.00000619 | BM63: 4.420253263 | BN63: 5.402531765 | BP63: =IF(BC63="NT",BA63*Ekonomika!$B$22,BA63*Ekonomika!$B$23)-U63*Ekonomika!$B$14-U63*(Výhřevnost_HU/3.6)*Emisní_faktor_CO2_HU*Ekonomika!$B$24 -> -10992.82078 | BQ63: -10992.82078 | BR63: -11696.09776 | BS63: MIN
A64: Září | B64: =SUMIFS(OFFSET(OFFSET($BA$2,SUM($E$56:$E62)*24,,,),$E63*24,,,):OFFSET(OFFSET($BA$745,SUM($E$57:$E63)*24,,,),$E64*24,,,),OFFSET(OFFSET($BC$2,SUM($E$56:$E62)*24,,,),$E63*24,,,):OFFSET(OFFSET($BC$745,SUM($E$57:$E63)*24,,,),$E64*24,,,),"NT")/1000 -> 2.215822555 | C64: =SUMIFS(OFFSET(OFFSET($BA$2,SUM($E$56:$E62)*24,,,),$E63*24,,,):OFFSET(OFFSET($BA$745,SUM($E$57:$E63)*24,,,),$E64*24,,,),OFFSET(OFFSET($BC$2,SUM($E$56:$E62)*24,,,),$E63*24,,,):OFFSET(OFFSET($BC$745,SUM($E$57:$E63)*24,,,),$E64*24,,,),"VT")/1000 -> 2.166777788 | D64: 4.382600342 | E64: 30 | F64: 2018-01-03T14:00:00 | G64: 63 | H64: 110.6387147 | I64: 91.58637145 | J64: 19.0523432 | K64: 96.38266522 | L64: 41.5687488 | M64: 32.62784875 | N64: 82.47767619 | O64: 212.3558339 | P64: 62.99490771 | Q64: 62.99490771 | R64: 168.1964036 | S64: 46.72122322 | T64: 50.78393828 | U64: 10.62919638 | V64: 0 | W64: 0 | X64: 0 | Y64: 0 | Z64: 0 | AA64: 0 | AB64: 0 | AC64: 26.26887652 | AD64: 7.079462221 | AE64: 186.0869574 | AF64: 67.64468806 | AG64: 22.89935276 | AH64: 22.89935276 | AI64: 10.93708581 | AJ64: 3.245384877 | AK64: 7.63314523 | AL64: 7.691700929 | AM64: 1.962264103 | AN64: 4.475924419 | AO64: 10.00000286 | AP64: 10.00000286 | AQ64: 22.34001679 | AR64: 2.368172768 | AS64: 19.0523432 | AT64: 0 | AU64: 0 | AV64: 8.329080228 | AW64: 3.461795606 | AX64: 9.02531656 | AY64: 4.00591059 | AZ64: 9.44763499 | BA64: 7.345224105 | BB64: 2.102410885 | BC64: VT | BK64: 22.89935743 | BL64: 10.00000752 | BM64: 4.251435745 | BN64: 5.196199244 | BP64: =IF(BC64="NT",BA64*Ekonomika!$B$22,BA64*Ekonomika!$B$23)-U64*Ekonomika!$B$14-U64*(Výhřevnost_HU/3.6)*Emisní_faktor_CO2_HU*Ekonomika!$B$24 -> -10466.74464 | BQ64: -10466.74464 | BR64: -11320.35668 | BS64: MIN
A65: Říjen | B65: =SUMIFS(OFFSET(OFFSET($BA$2,SUM($E$56:$E63)*24,,,),$E64*24,,,):OFFSET(OFFSET($BA$745,SUM($E$57:$E64)*24,,,),$E65*24,,,),OFFSET(OFFSET($BC$2,SUM($E$56:$E63)*24,,,),$E64*24,,,):OFFSET(OFFSET($BC$745,SUM($E$57:$E64)*24,,,),$E65*24,,,),"NT")/1000 -> 2.145880211 | C65: =SUMIFS(OFFSET(OFFSET($BA$2,SUM($E$56:$E63)*24,,,),$E64*24,,,):OFFSET(OFFSET($BA$745,SUM($E$57:$E64)*24,,,),$E65*24,,,),OFFSET(OFFSET($BC$2,SUM($E$56:$E63)*24,,,),$E64*24,,,):OFFSET(OFFSET($BC$745,SUM($E$57:$E64)*24,,,),$E65*24,,,),"VT")/1000 -> 2.149740529 | D65: 4.29562074 | E65: 31 | F65: 2018-01-03T15:00:00 | G65: 64 | H65: 115.8900517 | I65: 95.22208235 | J65: 20.6679693 | K65: 100.2087749 | L65: 45.0937512 | M65: 33.92307886 | N65: 89.47172857 | O65: 220.5081926 | P65: 65.41328763 | Q65: 65.41328763 | R65: 174.653478 | S65: 48.514855 | T65: 52.73353804 | U65: 11.03725215 | V65: 0 | W65: 0 | X65: 0 | Y65: 0 | Z65: 0 | AA65: 0 | AB65: 0 | AC65: 27.27734094 | AD65: 7.351243384 | AE65: 193.2308517 | AF65: 70.11560253 | AG65: 23.7358167 | AH65: 23.7358167 | AI65: 11.71392756 | AJ65: 3.369975481 | AK65: 7.926182331 | AL65: 8.343952079 | AM65: 2.021886689 | AN65: 4.611923537 | AO65: 10.00000245 | AP65: 10.00000245 | AQ65: 22.34001441 | AR65: 2.417646558 | AS65: 20.6679693 | AT65: 0 | AU65: 0 | AV65: 8.648834333 | AW65: 3.594694237 | AX65: 9.371799238 | AY65: 4.159697842 | AZ65: 9.768889942 | BA65: 7.624157409 | BB65: 2.144732534 | BC65: VT | BK65: 23.7358207 | BL65: 10.00000645 | BM65: 4.396000474 | BN65: 5.372889468 | BP65: =IF(BC65="NT",BA65*Ekonomika!$B$22,BA65*Ekonomika!$B$23)-U65*Ekonomika!$B$14-U65*(Výhřevnost_HU/3.6)*Emisní_faktor_CO2_HU*Ekonomika!$B$24 -> -10871.84574 | BQ65: -10871.84574 | BR65: -11604.0613 | BS65: MIN
A66: Listopad | B66: =SUMIFS(OFFSET(OFFSET($BA$2,SUM($E$56:$E64)*24,,,),$E65*24,,,):OFFSET(OFFSET($BA$745,SUM($E$57:$E65)*24,,,),$E66*24,,,),OFFSET(OFFSET($BC$2,SUM($E$56:$E64)*24,,,),$E65*24,,,):OFFSET(OFFSET($BC$745,SUM($E$57:$E65)*24,,,),$E66*24,,,),"NT")/1000 -> 2.259568853 | C66: =SUMIFS(OFFSET(OFFSET($BA$2,SUM($E$56:$E64)*24,,,),$E65*24,,,):OFFSET(OFFSET($BA$745,SUM($E$57:$E65)*24,,,),$E66*24,,,),OFFSET(OFFSET($BC$2,SUM($E$56:$E64)*24,,,),$E65*24,,,):OFFSET(OFFSET($BC$745,SUM($E$57:$E65)*24,,,),$E66*24,,,),"VT")/1000 -> 2.565401528 | D66: 4.824970381 | E66: 30 | F66: 2018-01-03T16:00:00 | G66: 65 | H66: 120.8342507 | I66: 98.92018815 | J66: 21.9140625 | K66: =M66*h_CZT -> 104.1005471 | L66: =N66*h_HV -> 47.8125 | M66: =I66/(h_CZT-h_VK) -> 35.24053728 | N66: =J66/(h_HV-h_VHV) -> 94.86607143 | O66: =P66*h_výstupK1 -> 228.1490381 | P66: 67.67992825 | Q66: 67.67992825 | R66: 180.7054084 | S66: 50.19594678 | T66: =S66/Účinnost_K1 -> 54.56081172 | U66: =T66*3.6/Výhřevnost_HU -> 11.41970478 | V66: =IF(W66=0,0,MAX(W66,PminOK*3.6)) -> 0 | W66: =AG66*h_eTG1-AH66*h_eTG1 -> 0 | X66: =V66/h_CZT -> 0 | Y66: =W66/h_CZT -> 0 | Z66: =(V66-X66*h_VK)/3.6 -> 0 | AA66: =Z66/Účinnost_OK -> 0 | AB66: 0 | AC66: =P66*(h_výstupK1-h_eTG1) -> 28.22253008 | AD66: =AC66*ÚčinnostPT*ÚčinnostG/3.6 -> 7.605971856 | AE66: =O66-AC66 -> 199.926508 | AF66: =AG66*h_eTG1 -> 72.12575279 | AG66: =IF(AP66<MminTG2,MminTG2+AM66+AI66,AH66) -> 24.41630088 | AH66: 24.41630088 | AI66: 12.33376631 | AJ66: =(M66+AH66)*(h_vNTO2-h_vNTO1)/(h_RO-h_vNTO2+h_vNTO2-h_vNTO1) -> 3.486748748 | AK66: =AJ66*(h_RO-h_vNTO2) -> 8.200833054 | AL66: =AS66/(h_RO-h_VHV) -> 8.847017562 | AM66: =(M66+AH66-AI66)*(h_vNTO1-h_VK)/(h_NRO-h_VK) -> 2.0825325 | AN66: =AM66*(h_NRO-h_vNTO1) -> 4.750256632 | AO66: =IF(AP66<MminTG2,MminTG2,AP66) -> 10.00000207 | AP66: 10.00000207 | AQ66: =BL66*(h_kondTG2-h_VK) -> 22.34001217 | AR66: =(BL66*(h_eTG1-h_kondTG2)+AM66*(h_eTG1-h_NRO)+AI66*(h_eTG1-h_RO))*ÚčinnostPT*ÚčinnostG/3.6 -> 2.458604741 | AS66: =IF(J66>(3.6*Pn_ZO),(3.6*Pn_ZO),J66) -> 21.9140625 | AT66: =J66-AS66 -> 0 | AU66: =AT66/(h_CZT-h_vNTO2) -> 0 | AV66: =AW66*(h_CZT-h_vVTO1) -> 8.948525724 | AW66: 3.719254249 | AX66: =AY66*(h_eTG1-h_nvK1) -> 9.696542139 | AY66: 4.303835836 | AZ66: 10.0645766 | BA66: 7.880177853 | BB66: 2.184398744 | BC66: VT | BK66: 24.41630426 | BL66: 10.00000545 | BM66: =AZ66*cskut -> 4.529059469 | BN66: 5.535517129 | BP66: =IF(BC66="NT",BA66*Ekonomika!$B$22,BA66*Ekonomika!$B$23)-U66*Ekonomika!$B$14-U66*(Výhřevnost_HU/3.6)*Emisní_faktor_CO2_HU*Ekonomika!$B$24 -> -11257.35099 | BQ66: -11257.35099 | BR66: -11875.78701 | BS66: MIN
A67: Prosinec | B67: =SUMIFS(OFFSET(OFFSET($BA$2,SUM($E$56:$E65)*24,,,),$E66*24,,,):OFFSET(OFFSET($BA$745,SUM($E$57:$E66)*24,,,),$E67*24,,,),OFFSET(OFFSET($BC$2,SUM($E$56:$E65)*24,,,),$E66*24,,,):OFFSET(OFFSET($BC$745,SUM($E$57:$E66)*24,,,),$E67*24,,,),"NT")/1000 -> 2.620921608 | C67: =SUMIFS(OFFSET(OFFSET($BA$2,SUM($E$56:$E65)*24,,,),$E66*24,,,):OFFSET(OFFSET($BA$745,SUM($E$57:$E66)*24,,,),$E67*24,,,),OFFSET(OFFSET($BC$2,SUM($E$56:$E65)*24,,,),$E66*24,,,):OFFSET(OFFSET($BC$745,SUM($E$57:$E66)*24,,,),$E67*24,,,),"VT")/1000 -> 3.133956438 | D67: 5.754878046 | E67: 31 | F67: 2018-01-03T17:00:00 | G67: 66 | H67: =+I67+J67 -> 127.4806153 | I67: 102.2321778 | J67: 25.2484375 | K67: 107.5859826 | L67: 55.0875 | M67: 36.42044096 | N67: 109.3005952 | O67: 238.6297886 | P67: 70.78902065 | Q67: =P67 -> 70.78902065 | R67: 189.0066851 | S67: =R67/3.6 -> 52.50185699 | T67: 57.06723585 | U67: 11.94430518 | V67: 0 | W67: 0 | X67: 0 | Y67: 0 | Z67: 0 | AA67: 0 | AB67: =AA67*3.6/Výhřevnost_LTO+IF(AA67>0,IF(AA66=0,Spotřeba_LTO_na_zátop_OK,0),0) -> 0 | AC67: 29.51902161 | AD67: 7.955376325 | AE67: 209.110767 | AF67: 76.73583199 | AG67: 25.97692349 | AH67: 25.97692349 | AI67: =AJ67+AL67 -> 13.84007562 | AJ67: 3.646923623 | AK67: 8.577564361 | AL67: 10.193152 | AM67: 2.136846323 | AN67: 4.874146463 | AO67: 10.00000155 | AP67: =AH67-AI67-AM67 -> 10.00000155 | AQ67: 22.3400091 | AR67: 2.547580822 | AS67: 25.2484375 | AT67: 0 | AU67: 0 | AV67: 9.359604668 | AW67: 3.890110003 | AX67: 10.14198359 | AY67: 4.501546201 | AZ67: =AR67+AD67 -> 10.50295715 | BA67: =MAX(AZ67-BB67,0) -> 8.264149285 | BB67: =1+1.4*P67/80 -> 2.238807861 | BC67: VT | BK67: 25.97692602 | BL67: =AO67+(BK67-AG67) -> 10.00000407 | BM67: 4.726330716 | BN67: =AZ67-BM67 -> 5.776626431 | BP67: =IF(BC67="NT",BA67*Ekonomika!$B$22,BA67*Ekonomika!$B$23)-U67*Ekonomika!$B$14-U67*(Výhřevnost_HU/3.6)*Emisní_faktor_CO2_HU*Ekonomika!$B$24 -> -11750.85615 | BQ67: -11750.85615 | BR67: -12213.2237 | BS67: =IF(BQ67>=BR67,"MIN","MAX") -> MIN
A68: Suma | B68: =SUM(B56:B67) -> 26.1950785 | C68: =SUM(C56:C67) -> 27.63429764 | D68: =SUM(D56:D67) -> 53.82937614 | F68: 2018-01-03T18:00:00 | G68: 67 | H68: 132.8900289 | I68: 105.3986232 | J68: 27.4914057 | K68: 110.9182518 | L68: 59.9812488 | M68: 37.54849419 | N68: 119.0104143 | O68: 247.1005662 | P68: 73.30185886 | Q68: 73.30185886 | R68: 195.7159632 | S68: 54.36554532 | T68: 59.09298404 | U68: 12.36829899 | V68: 0 | W68: 0 | X68: 0 | Y68: 0 | Z68: 0 | AA68: 0 | AB68: 0 | AC68: 30.56687514 | AD68: 8.237772851 | AE68: 216.5336911 | AF68: 79.94653925 | AG68: 27.06382507 | AH68: 27.06382507 | AI68: 14.87505059 | AJ68: 3.776380549 | AK68: 8.882047051 | AL68: 11.09867004 | AM68: 2.188773348 | AN68: 4.992592008 | AO68: 10.00000112 | AP68: 10.00000112 | AQ68: 22.34000662 | AR68: 2.610373118 | AS68: 27.4914057 | AT68: 0 | AU68: 0 | AV68: 9.691847888 | AW68: 4.028199455 | AX68: 10.50199936 | AY68: 4.661340152 | AZ68: 10.84814597 | BA68: 8.56536344 | BB68: 2.28278253 | BC68: VT | BK68: 27.0638269 | BL68: 10.00000296 | BM68: 4.881665686 | BN68: 5.966480283 | BP68: =IF(BC68="NT",BA68*Ekonomika!$B$22,BA68*Ekonomika!$B$23)-U68*Ekonomika!$B$14-U68*(Výhřevnost_HU/3.6)*Emisní_faktor_CO2_HU*Ekonomika!$B$24 -> -12159.53006 | BQ68: -12159.53006 | BR68: -12495.75957 | BS68: MIN
F69: 2018-01-03T19:00:00 | G69: 68 | H69: 129.5625236 | I69: 104.4601793 | J69: 25.1023443 | K69: 109.9306626 | L69: 54.7687512 | M69: 37.21417148 | N69: 108.6681571 | O69: 241.7625694 | P69: 71.71835341 | Q69: 71.71835341 | R69: 191.4880036 | S69: 53.19111211 | T69: 57.81642621 | U69: 12.10111246 | V69: 0 | W69: 0 | X69: 0 | Y69: 0 | Z69: 0 | AA69: 0 | AB69: 0 | AC69: 29.90655337 | AD69: 8.059816134 | AE69: 211.856016 | AF69: 76.81096656 | AG69: 26.00235835 | AH69: 26.00235835 | AI69: 13.82897329 | AJ69: 3.694801183 | AK69: 8.690172382 | AL69: 10.1341721 | AM69: 2.17338367 | AN69: 4.957488151 | AO69: 10.00000139 | AP69: 10.00000139 | AQ69: 22.34000818 | AR69: 2.551115883 | AS69: 25.1023443 | AT69: 0 | AU69: 0 | AV69: 9.482479474 | AW69: 3.941180164 | AX69: 10.27512963 | AY69: 4.560643421 | AZ69: 10.61093202 | BA69: 8.355860833 | BB69: 2.255071185 | BC69: VT | BK69: 26.00236062 | BL69: 10.00000366 | BM69: 4.774919408 | BN69: 5.836012609 | BP69: =IF(BC69="NT",BA69*Ekonomika!$B$22,BA69*Ekonomika!$B$23)-U69*Ekonomika!$B$14-U69*(Výhřevnost_HU/3.6)*Emisní_faktor_CO2_HU*Ekonomika!$B$24 -> -11923.17868 | BQ69: -11923.17868 | BR69: -12338.8961 | BS69: MIN
A70: Výroba elektřiny [GWh] | B70: Kogen | C70: Konden | D70: Celkem | E70: Počet dní | F70: 2018-01-03T20:00:00 | G70: 69 | H70: 121.9065132 | I70: 97.92995066 | J70: 23.9765625 | K70: 103.0584518 | L70: 52.3125 | M70: 34.88776297 | N70: 103.7946429 | O70: 230.0322578 | P70: 68.23858137 | Q70: 68.23858137 | R70: 182.1970123 | S70: 50.61028118 | T70: 55.0111752 | U70: 11.5139669 | V70: 0 | W70: 0 | X70: 0 | Y70: 0 | Z70: 0 | AA70: 0 | AB70: 0 | AC70: 28.45548843 | AD70: 7.668754132 | AE70: 201.5767694 | AF70: 74.62247987 | AG70: 25.261503 | AH70: 25.261503 | AI70: 13.19520759 | AJ70: 3.515529556 | AK70: 8.268525517 | AL70: 9.679678038 | AM70: 2.066293432 | AN70: 4.713215319 | AO70: 10.00000198 | AP70: 10.00000198 | AQ70: 22.34001162 | AR70: 2.504122546 | AS70: 23.9765625 | AT70: 0 | AU70: 0 | AV70: 9.022389896 | AW70: 3.749954238 | AX70: 9.776580692 | AY70: 4.339361159 | AZ70: 10.17287668 | BA70: 7.978701504 | BB70: 2.194175174 | BC70: NT | BK70: 25.26150623 | BL70: 10.0000052 | BM70: 4.577794505 | BN70: 5.595082173 | BP70: =IF(BC70="NT",BA70*Ekonomika!$B$22,BA70*Ekonomika!$B$23)-U70*Ekonomika!$B$14-U70*(Výhřevnost_HU/3.6)*Emisní_faktor_CO2_HU*Ekonomika!$B$24 -> -13555.28002 | BQ70: -13555.28002 | BR70: -14886.91043 | BS70: MIN
A71: Leden | B71: =SUM(BM$2:BM$745)/1000 -> 3.434255331 | C71: =SUM(BN$2:BN$745)/1000 -> 4.197423182 | D71: =B71+C71 -> 7.631678513 | E71: 31 | F71: 2018-01-03T21:00:00 | G71: 70 | H71: 120.9581405 | I71: 97.11048479 | J71: 23.8476557 | K71: 102.1960713 | L71: 52.0312488 | M71: 34.59582643 | N71: 103.2366048 | O71: 228.5805201 | P71: 67.80792647 | Q71: 67.80792647 | R71: 181.0471637 | S71: 50.2908788 | T71: 54.66399869 | U71: 11.44130205 | V71: 0 | W71: 0 | X71: 0 | Y71: 0 | Z71: 0 | AA71: 0 | AB71: 0 | AC71: 28.27590534 | AD71: 7.620356488 | AE71: 200.3046148 | AF71: 74.36351289 | AG71: 25.17383645 | AH71: 25.17383645 | AI71: 13.12097952 | AJ71: 3.493342987 | AK71: 8.216342705 | AL71: 9.627636536 | AM71: 2.052854884 | AN71: 4.68256199 | AO71: 10.00000205 | AP71: 10.00000205 | AQ71: 22.34001204 | AR71: 2.498516933 | AS71: 23.8476557 | AT71: 0 | AU71: 0 | AV71: 8.965449433 | AW71: 3.72628821 | AX71: 9.714880517 | AY71: 4.311975374 | AZ71: 10.11887342 | BA71: 7.932234708 | BB71: 2.186638713 | BC71: NT | BK71: 25.1738398 | BL71: 10.00000539 | BM71: 4.55349304 | BN71: 5.565380382 | BP71: =IF(BC71="NT",BA71*Ekonomika!$B$22,BA71*Ekonomika!$B$23)-U71*Ekonomika!$B$14-U71*(Výhřevnost_HU/3.6)*Emisní_faktor_CO2_HU*Ekonomika!$B$24 -> -13466.64238 | BQ71: -13466.64238 | BR71: -14847.03163 | BS71: MIN
A72: Únor | B72: =SUM(OFFSET(BM$2,$E86*24,,,):OFFSET(BM$745,$E87*24,,,))/1000 -> 3.020296615 | C72: =SUM(OFFSET(BN$2,$E86*24,,,):OFFSET(BN$745,$E87*24,,,))/1000 -> 3.691473641 | D72: =B72+C72 -> 6.711770256 | E72: 28 | F72: 2018-01-03T22:00:00 | G72: 71 | H72: 112.5039478 | I72: 94.03597853 | J72: 18.4679693 | K72: 98.96055596 | L72: 40.2937512 | M72: 33.50052673 | N72: 79.94791905 | O72: 215.1053537 | P72: 63.81054692 | Q72: 63.81054692 | R72: 170.3741603 | S72: 47.32615563 | T72: 51.44147351 | U72: 10.76682004 | V72: 0 | W72: 0 | X72: 0 | Y72: 0 | Z72: 0 | AA72: 0 | AB72: 0 | AC72: 26.60899806 | AD72: 7.171124978 | AE72: 188.4963556 | AF72: 67.19057438 | AG72: 22.74562437 | AH72: 22.74562437 | AI72: 10.74318605 | AJ72: 3.287405148 | AK72: 7.731976909 | AL72: 7.455780904 | AM72: 2.002435595 | AN72: 4.567555592 | AO72: 10.00000272 | AP72: 10.00000272 | AQ72: 22.34001599 | AR72: 2.362070329 | AS72: 18.4679693 | AT72: 0 | AU72: 0 | AV72: 8.436922665 | AW72: 3.506617899 | AX72: 9.142173656 | AY72: 4.057777921 | AZ72: 9.533195308 | BA72: 7.416510737 | BB72: 2.116684571 | BC72: NT | BK72: 22.7456288 | BL72: 10.00000716 | BM72: 4.289937889 | BN72: 5.243257419 | BP72: =IF(BC72="NT",BA72*Ekonomika!$B$22,BA72*Ekonomika!$B$23)-U72*Ekonomika!$B$14-U72*(Výhřevnost_HU/3.6)*Emisní_faktor_CO2_HU*Ekonomika!$B$24 -> -12711.00737 | BQ72: -12711.00737 | BR72: -14543.98081 | BS72: MIN
A73: Březen | B73: =SUM(OFFSET(OFFSET(BM$2,SUM($E$86:$E86)*24,,,),$E87*24,,,):OFFSET(OFFSET(BM$745,SUM($E$87:$E87)*24,,,),$E88*24,,,))/1000 -> 2.84494081 | C73: =SUM(OFFSET(OFFSET(BN$2,SUM($E$86:$E86)*24,,,),$E87*24,,,):OFFSET(OFFSET(BN$745,SUM($E$87:$E87)*24,,,),$E88*24,,,))/1000 -> 3.477149879 | D73: 6.32209069 | E73: 31 | F73: 2018-01-03T23:00:00 | G73: 72 | H73: 90.66453653 | I73: 78.61609903 | J73: 12.0484375 | K73: 82.7331516 | L73: 26.2875 | M73: 28.00716032 | N73: 52.1577381 | O73: 181.2388877 | P73: 53.76413163 | Q73: 53.76413163 | R73: 143.5502314 | S73: 39.87506429 | T73: 43.34246118 | U73: 9.071677922 | V73: 0 | W73: 0 | X73: 0 | Y73: 0 | Z73: 0 | AA73: 0 | AB73: 0 | AC73: 22.41964289 | AD73: 6.042093758 | AE73: 158.8192448 | AF73: 57.25892923 | AG73: 19.38352377 | AH73: 19.38352377 | AI73: 7.633956766 | AJ73: 2.769831817 | AK73: 6.514644433 | AL73: 4.86412495 | AM73: 1.749562603 | AN73: 3.990752297 | AO73: 10.00000441 | AP73: 10.00000441 | AQ73: 22.34002591 | AR73: 2.162440964 | AS73: 12.0484375 | AT73: 0 | AU73: 0 | AV73: 7.108602615 | AW73: 2.954531428 | AX73: 7.702817975 | AY73: 3.418916101 | AZ73: 8.204534723 | BA73: 6.263662419 | BB73: 1.940872303 | BC73: NT | BK73: 19.38353097 | BL73: 10.0000116 | BM73: 3.692040625 | BN73: 4.512494097 | BP73: =IF(BC73="NT",BA73*Ekonomika!$B$22,BA73*Ekonomika!$B$23)-U73*Ekonomika!$B$14-U73*(Výhřevnost_HU/3.6)*Emisní_faktor_CO2_HU*Ekonomika!$B$24 -> -10697.99087 | BQ73: -10697.99087 | BR73: -13668.42166 | BS73: MIN
A74: Duben | B74: =SUM(OFFSET(OFFSET(BM$2,SUM($E$86:$E87)*24,,,),$E88*24,,,):OFFSET(OFFSET(BM$745,SUM($E$87:$E88)*24,,,),$E89*24,,,))/1000 -> 2.446575538 | C74: =SUM(OFFSET(OFFSET(BN$2,SUM($E$86:$E87)*24,,,),$E88*24,,,):OFFSET(OFFSET(BN$745,SUM($E$87:$E88)*24,,,),$E89*24,,,))/1000 -> 2.990258991 | D74: 5.436834528 | E74: 30 | F74: 2018-01-04 | G74: 73 | H74: 66.72398946 | I74: 57.64039626 | J74: 9.0835932 | K74: 60.65897063 | L74: 19.8187488 | M74: 20.53451951 | N74: 39.32291429 | O74: 144.6279813 | P74: 42.90358388 | Q74: 42.90358388 | R74: 114.552569 | S74: 31.82015805 | T74: 34.58712831 | U74: 7.239166391 | V74: 0 | W74: 0 | X74: 0 | Y74: 0 | Z74: 0 | AA74: 0 | AB74: 0 | AC74: 17.89079448 | AD74: 4.821569112 | AE74: 126.7371868 | AF74: 51.05420693 | AG74: 17.28307614 | AH74: 17.28307614 | AI74: 5.877491131 | AJ74: 2.210315839 | AK74: 5.198662853 | AL74: 3.667175293 | AM74: 1.405578782 | AN74: 3.206125202 | AO74: 10.00000623 | AP74: 10.00000623 | AQ74: 22.34003664 | AR74: 2.026846506 | AS74: 9.0835932 | AT74: 0 | AU74: 0 | AV74: 5.672639348 | AW74: 2.357705465 | AX74: 6.146821071 | AY74: 2.728282766 | AZ74: 6.848415618 | BA74: 5.0976029 | BB74: 1.750812718 | BC74: NT | BK74: 17.28308631 | BL74: 10.0000164 | BM74: 3.081787028 | BN74: 3.76662859 | BP74: =IF(BC74="NT",BA74*Ekonomika!$B$22,BA74*Ekonomika!$B$23)-U74*Ekonomika!$B$14-U74*(Výhřevnost_HU/3.6)*Emisní_faktor_CO2_HU*Ekonomika!$B$24 -> -8458.078249 | BQ74: -8458.078249 | BR74: -12658.14265 | BS74: MIN
A75: Květen | B75: =SUM(OFFSET(OFFSET(BM$2,SUM($E$86:$E88)*24,,,),$E89*24,,,):OFFSET(OFFSET(BM$745,SUM($E$87:$E89)*24,,,),$E90*24,,,))/1000 -> 2.533388701 | C75: =SUM(OFFSET(OFFSET(BN$2,SUM($E$86:$E88)*24,,,),$E89*24,,,):OFFSET(OFFSET(BN$745,SUM($E$87:$E89)*24,,,),$E90*24,,,))/1000 -> 3.096363968 | D75: 5.629752669 | E75: 31 | F75: 2018-01-04T01:00:00 | G75: 74 | H75: 68.21947982 | I75: 58.86947982 | J75: 9.35 | K75: 61.95242016 | L75: 20.4 | M75: 20.97238326 | N75: 40.47619048 | O75: 146.9251942 | P75: 43.58504723 | Q75: 43.58504723 | R75: 116.3720761 | S75: 32.32557669 | T75: 35.1364964 | U75: 7.35415041 | V75: 0 | W75: 0 | X75: 0 | Y75: 0 | Z75: 0 | AA75: 0 | AB75: 0 | AC75: 18.17496469 | AD75: 4.898152985 | AE75: 128.7502295 | AF75: 51.53516477 | AG75: 17.44589193 | AH75: 17.44589193 | AI75: 6.020151103 | AJ75: 2.24542361 | AK75: 5.281236331 | AL75: 3.774727493 | AM75: 1.425734715 | AN75: 3.252100885 | AO75: 10.00000612 | AP75: 10.00000612 | AQ75: 22.34003596 | AR75: 2.036976501 | AS75: 9.35 | AT75: 0 | AU75: 0 | AV75: 5.762741279 | AW75: 2.395154314 | AX75: 6.244454715 | AY75: 2.771617716 | AZ75: 6.935129486 | BA75: 5.17239116 | BB75: 1.762738326 | BC75: NT | BK75: 17.44590192 | BL75: 10.0000161 | BM75: 3.120808269 | BN75: 3.814321217 | BP75: =IF(BC75="NT",BA75*Ekonomika!$B$22,BA75*Ekonomika!$B$23)-U75*Ekonomika!$B$14-U75*(Výhřevnost_HU/3.6)*Emisní_faktor_CO2_HU*Ekonomika!$B$24 -> -8597.335965 | BQ75: -8597.335965 | BR75: -12720.24494 | BS75: MIN
A76: Červen | B76: =SUM(OFFSET(OFFSET(BM$2,SUM($E$86:$E89)*24,,,),$E90*24,,,):OFFSET(OFFSET(BM$745,SUM($E$87:$E90)*24,,,),$E91*24,,,))/1000 -> 2.669805721 | C76: =SUM(OFFSET(OFFSET(BN$2,SUM($E$86:$E89)*24,,,),$E90*24,,,):OFFSET(OFFSET(BN$745,SUM($E$87:$E90)*24,,,),$E91*24,,,))/1000 -> 3.263095881 | D76: 5.932901601 | E76: 30 | F76: 2018-01-04T02:00:00 | G76: 75 | H76: 77.51549212 | I76: 60.43971032 | J76: 17.0757818 | K76: 63.60488218 | L76: 37.2562512 | M76: 21.53178137 | N76: 73.92113333 | O76: 161.970559 | P76: 48.04822279 | Q76: 48.04822279 | R76: 128.2887548 | S76: 35.63576523 | T76: 38.73452743 | U76: 8.107226671 | V76: 0 | W76: 0 | X76: 0 | Y76: 0 | Z76: 0 | AA76: 0 | AB76: 0 | AC76: 20.0361089 | AD76: 5.399731349 | AE76: 141.9344501 | AF76: 61.50400518 | AG76: 20.82058402 | AH76: 20.82058402 | AI76: 9.369093508 | AJ76: 2.475358426 | AK76: 5.822043017 | AL76: 6.893735083 | AM76: 1.451485141 | AN76: 3.310837608 | AO76: 10.00000537 | AP76: 10.00000537 | AQ76: 22.34003156 | AR76: 2.224015983 | AS76: 17.0757818 | AT76: 0 | AU76: 0 | AV76: 6.352854809 | AW76: 2.640421782 | AX76: 6.883896437 | AY76: 3.055435614 | AZ76: 7.623747332 | BA76: 5.782903433 | BB76: 1.840843899 | BC76: NT | BK76: 20.82059278 | BL76: 10.00001413 | BM76: 3.430686299 | BN76: 4.193061032 | BP76: =IF(BC76="NT",BA76*Ekonomika!$B$22,BA76*Ekonomika!$B$23)-U76*Ekonomika!$B$14-U76*(Výhřevnost_HU/3.6)*Emisní_faktor_CO2_HU*Ekonomika!$B$24 -> -9413.441089 | BQ76: -9413.441089 | BR76: -13031.02834 | BS76: MIN
A77: Červenec | B77: =SUM(OFFSET(OFFSET(BM$2,SUM($E$86:$E90)*24,,,),$E91*24,,,):OFFSET(OFFSET(BM$745,SUM($E$87:$E91)*24,,,),$E92*24,,,))/1000 -> 0.2702778402 | C77: =SUM(OFFSET(OFFSET(BN$2,SUM($E$86:$E90)*24,,,),$E91*24,,,):OFFSET(OFFSET(BN$745,SUM($E$87:$E91)*24,,,),$E92*24,,,))/1000 -> 0.3303395825 | D77: 0.6006174227 | E77: 31 | F77: 2018-01-04T03:00:00 | G77: 76 | H77: 74.77824554 | I77: 62.07668304 | J77: 12.7015625 | K77: 65.32758166 | L77: 27.7125 | M77: 22.11495655 | N77: 54.98511905 | O77: 157.275522 | P77: 46.65545002 | Q77: 46.65545002 | R77: 124.5700516 | S77: 34.6027921 | T77: 37.61173054 | U77: 7.872222671 | V77: 0 | W77: 0 | X77: 0 | Y77: 0 | Z77: 0 | AA77: 0 | AB77: 0 | AC77: 19.45532266 | AD77: 5.243209456 | AE77: 137.8201994 | AF77: 56.15477717 | AG77: 19.00974176 | AH77: 19.00974176 | AI77: 7.531406033 | AJ77: 2.403605266 | AK77: 5.653279585 | AL77: 5.127800767 | AM77: 1.47833013 | AN77: 3.372071026 | AO77: 10.0000056 | AP77: 10.0000056 | AQ77: 22.34003293 | AR77: 2.126029515 | AS77: 12.7015625 | AT77: 0 | AU77: 0 | AV77: 6.168704747 | AW77: 2.563883935 | AX77: 6.684353084 | AY77: 2.966867769 | AZ77: 7.369238971 | BA77: 5.552768596 | BB77: 1.816470375 | BC77: NT | BK77: 19.0097509 | BL77: 10.00001474 | BM77: 3.316157537 | BN77: 4.053081434 | BP77: =IF(BC77="NT",BA77*Ekonomika!$B$22,BA77*Ekonomika!$B$23)-U77*Ekonomika!$B$14-U77*(Výhřevnost_HU/3.6)*Emisní_faktor_CO2_HU*Ekonomika!$B$24 -> -9190.264791 | BQ77: -9190.264791 | BR77: -12965.54208 | BS77: MIN
A78: Srpen | B78: =SUM(OFFSET(OFFSET(BM$2,SUM($E$86:$E91)*24,,,),$E92*24,,,):OFFSET(OFFSET(BM$745,SUM($E$87:$E92)*24,,,),$E93*24,,,))/1000 -> 2.720483734 | C78: =SUM(OFFSET(OFFSET(BN$2,SUM($E$86:$E91)*24,,,),$E92*24,,,):OFFSET(OFFSET(BN$745,SUM($E$87:$E92)*24,,,),$E93*24,,,))/1000 -> 3.325035675 | D78: 6.045519409 | E78: 31 | F78: 2018-01-04T04:00:00 | G78: 77 | H78: 87.30913978 | I78: 72.82867158 | J78: 14.4804682 | K78: 76.64264191 | L78: 31.5937488 | M78: 25.94537641 | N78: 62.68600952 | O78: 176.4669477 | P78: 52.34854575 | Q78: 52.34854575 | R78: 139.7706172 | S78: 38.82517143 | T78: 42.2012733 | U78: 8.832824644 | V78: 0 | W78: 0 | X78: 0 | Y78: 0 | Z78: 0 | AA78: 0 | AB78: 0 | AC78: 21.82934358 | AD78: 5.883008095 | AE78: 154.6376042 | AF78: 59.66350918 | AG78: 20.19753188 | AH78: 20.19753188 | AI78: 8.542873573 | AJ78: 2.696903367 | AK78: 6.343116719 | AL78: 5.845970206 | AM78: 1.654653665 | AN78: 3.77426501 | AO78: 10.00000464 | AP78: 10.00000464 | AQ78: 22.34002731 | AR78: 2.201643169 | AS78: 14.4804682 | AT78: 0 | AU78: 0 | AV78: 6.921436243 | AW78: 2.876739918 | AX78: 7.500006176 | AY78: 3.328897548 | AZ78: 8.084651263 | BA78: 6.168551713 | BB78: 1.916099551 | BC78: NT | BK78: 20.19753946 | BL78: 10.00001222 | BM78: 3.638093068 | BN78: 4.446558195 | BP78: =IF(BC78="NT",BA78*Ekonomika!$B$22,BA78*Ekonomika!$B$23)-U78*Ekonomika!$B$14-U78*(Výhřevnost_HU/3.6)*Emisní_faktor_CO2_HU*Ekonomika!$B$24 -> -10360.82099 | BQ78: -10360.82099 | BR78: -13491.52473 | BS78: MIN
A79: Září | B79: =SUM(OFFSET(OFFSET(BM$2,SUM($E$86:$E92)*24,,,),$E93*24,,,):OFFSET(OFFSET(BM$745,SUM($E$87:$E93)*24,,,),$E94*24,,,))/1000 -> 2.524464096 | C79: =SUM(OFFSET(OFFSET(BN$2,SUM($E$86:$E92)*24,,,),$E93*24,,,):OFFSET(OFFSET(BN$745,SUM($E$87:$E93)*24,,,),$E94*24,,,))/1000 -> 3.085456117 | D79: 5.609920212 | E79: 30 | F79: 2018-01-04T05:00:00 | G79: 78 | H79: 117.8196193 | I79: 97.98524433 | J79: 19.834375 | K79: 103.1166412 | L79: 43.275 | M79: 34.90746146 | N79: 85.86309524 | O79: 223.3236462 | P79: 66.24848597 | Q79: 66.24848597 | R79: 176.8834576 | S79: 49.13429376 | T79: 53.40684105 | U79: 11.17817603 | V79: 0 | W79: 0 | X79: 0 | Y79: 0 | Z79: 0 | AA79: 0 | AB79: 0 | AC79: 27.62561865 | AD79: 7.445104227 | AE79: 195.6980276 | AF79: 69.38244182 | AG79: 23.48762418 | AH79: 23.48762418 | AI79: 11.42042165 | AJ79: 3.413003404 | AK79: 8.027384007 | AL79: 8.007418248 | AM79: 2.067200217 | AN79: 4.715283696 | AO79: 10.00000231 | AP79: 10.00000231 | AQ79: 22.34001358 | AR79: 2.406651383 | AS79: 19.834375 | AT79: 0 | AU79: 0 | AV79: 8.759262846 | AW79: 3.640591374 | AX79: 9.491458583 | AY79: 4.212808958 | AZ79: 9.85175561 | BA79: 7.692407105 | BB79: 2.159348505 | BC79: NT | BK79: 23.48762795 | BL79: 10.00000608 | BM79: 4.433290024 | BN79: 5.418465585 | BP79: =IF(BC79="NT",BA79*Ekonomika!$B$22,BA79*Ekonomika!$B$23)-U79*Ekonomika!$B$14-U79*(Výhřevnost_HU/3.6)*Emisní_faktor_CO2_HU*Ekonomika!$B$24 -> -13202.57178 | BQ79: -13202.57178 | BR79: -14759.52123 | BS79: MIN
A80: Říjen | B80: =SUM(OFFSET(OFFSET(BM$2,SUM($E$86:$E93)*24,,,),$E94*24,,,):OFFSET(OFFSET(BM$745,SUM($E$87:$E94)*24,,,),$E95*24,,,))/1000 -> 2.531910624 | C80: =SUM(OFFSET(OFFSET(BN$2,SUM($E$86:$E93)*24,,,),$E94*24,,,):OFFSET(OFFSET(BN$745,SUM($E$87:$E94)*24,,,),$E95*24,,,))/1000 -> 3.094557429 | D80: 5.626468053 | E80: 31 | F80: 2018-01-04T06:00:00 | G80: 79 | H80: 155.7078365 | I80: 124.787524 | J80: 30.9203125 | K80: 131.3225315 | L80: 67.4625 | M80: 44.45583327 | N80: 133.8541667 | O80: 264.1334681 | P80: 78.35463307 | Q80: 78.35463307 | R80: =P80*(h_výstupK1-h_vVTO1) -> 221.1951292 | S80: 61.44309143 | T80: 66.78596895 | U80: 13.97845862 | V80: 0 | W80: 0 | X80: 0 | Y80: 0 | Z80: 0 | AA80: 0 | AB80: 0 | AC80: 32.67388199 | AD80: 8.805611197 | AE80: 231.4595861 | AF80: 86.55374558 | AG80: 29.30052322 | AH80: =P80/(1+S1_)-M80-AU80 -> 29.30052322 | AI80: 16.79378818 | AJ80: 4.310819874 | AK80: 10.13904834 | AL80: 12.48296831 | AM80: 2.506734984 | AN80: 5.717862498 | AO80: 10.00000005 | AP80: 10.00000005 | AQ80: 22.34000032 | AR80: 2.751936807 | AS80: 30.9203125 | AT80: 0 | AU80: 0 | AV80: 11.06345347 | AW80: 4.598276589 | AX80: 0 | AY80: 0 | AZ80: 11.557548 | BA80: 9.186341925 | BB80: 2.371206079 | BC80: NT | BK80: 29.30052331 | BL80: 10.00000015 | BM80: 5.200896602 | BN80: 6.356651402 | BP80: =IF(BC80="NT",BA80*Ekonomika!$B$22,BA80*Ekonomika!$B$23)-U80*Ekonomika!$B$14-U80*(Výhřevnost_HU/3.6)*Emisní_faktor_CO2_HU*Ekonomika!$B$24 -> -16854.3107 | BQ80: -16854.3107 | BR80: -17056.58971 | BS80: MIN
A81: Listopad | B81: =SUM(OFFSET(OFFSET(BM$2,SUM($E$86:$E94)*24,,,),$E95*24,,,):OFFSET(OFFSET(BM$745,SUM($E$87:$E95)*24,,,),$E96*24,,,))/1000 -> 2.816147313 | C81: =SUM(OFFSET(OFFSET(BN$2,SUM($E$86:$E94)*24,,,),$E95*24,,,):OFFSET(OFFSET(BN$745,SUM($E$87:$E95)*24,,,),$E96*24,,,))/1000 -> 3.441957826 | D81: 6.258105139 | E81: 30 | F81: 2018-01-04T07:00:00 | G81: 80 | H81: 138.4520082 | I81: 109.0699764 | J81: 29.3820318 | K81: 114.7818704 | L81: 64.1062512 | M81: 38.85642195 | N81: 127.1949429 | O81: 255.7578152 | P81: 75.8700134 | Q81: 75.8700134 | R81: =P81*(h_výstupK1-h_nvK1) -> 202.5729358 | S81: 56.27025994 | T81: 61.16332602 | U81: 12.80162638 | V81: 0 | W81: 0 | X81: 0 | Y81: 0 | Z81: 0 | AA81: 0 | AB81: 0 | AC81: 31.63779559 | AD81: 8.526385911 | AE81: 224.1200196 | AF81: 82.76993088 | AG81: 28.019611 | AH81: =P81/S3_-M81-AU81 -> 28.019611 | AI81: 15.77062987 | AJ81: 3.908687274 | AK81: 9.193232468 | AL81: 11.86194259 | AM81: 2.248980437 | AN81: 5.129924377 | AO81: 10.00000069 | AP81: 10.00000069 | AQ81: 22.34000408 | AR81: 2.666441167 | AS81: 29.3820318 | AT81: 0 | AU81: 0 | AV81: 10.03140494 | AW81: 4.169328737 | AX81: 10.86994034 | AY81: =P81*(h_nvK1-h_vVTO1)/(h_eTG1-h_vVTO1) -> 4.824651725 | AZ81: 11.19282708 | BA81: 8.865101843 | BB81: 2.327725235 | BC81: NT | BK81: 28.01961213 | BL81: 10.00000183 | BM81: 5.036772185 | BN81: 6.156054893 | BP81: =IF(BC81="NT",BA81*Ekonomika!$B$22,BA81*Ekonomika!$B$23)-U81*Ekonomika!$B$14-U81*(Výhřevnost_HU/3.6)*Emisní_faktor_CO2_HU*Ekonomika!$B$24 -> -15075.91468 | BQ81: -15075.91468 | BR81: -15543.51267 | BS81: MIN
A82: Prosinec | B82: =SUM(OFFSET(OFFSET(BM$2,SUM($E$86:$E95)*24,,,),$E96*24,,,):OFFSET(OFFSET(BM$745,SUM($E$87:$E96)*24,,,),$E97*24,,,))/1000 -> 3.310891683 | C82: =SUM(OFFSET(OFFSET(BN$2,SUM($E$86:$E95)*24,,,),$E96*24,,,):OFFSET(OFFSET(BN$745,SUM($E$87:$E96)*24,,,),$E97*24,,,))/1000 -> 4.04664539 | D82: 7.357537074 | E82: 31 | F82: 2018-01-04T08:00:00 | G82: 81 | H82: 141.0250005 | I82: 113.4304698 | J82: 27.5945307 | K82: 119.3707188 | L82: 60.2062488 | M82: 40.40985742 | N82: 119.4568429 | O82: 259.4268138 | P82: 76.95841407 | Q82: 76.95841407 | R82: 205.4789656 | S82: 57.07749043 | T82: 62.04075047 | U82: 12.98527335 | V82: 0 | W82: 0 | X82: 0 | Y82: 0 | Z82: 0 | AA82: 0 | AB82: 0 | AC82: 32.09165867 | AD82: 8.648702011 | AE82: 227.3351552 | AF82: 81.01508109 | AG82: 27.42555216 | AH82: 27.42555216 | AI82: 15.1050628 | AJ82: 3.964759727 | AK82: 9.325114879 | AL82: 11.14030307 | AM82: 2.320488857 | AN82: 5.293035083 | AO82: 10.00000051 | AP82: 10.00000051 | AQ82: 22.340003 | AR82: 2.637962855 | AS82: 27.5945307 | AT82: 0 | AU82: 0 | AV82: 10.17531144 | AW82: 4.229140248 | AX82: 11.02587612 | AY82: 4.893864236 | AZ82: 11.28666487 | BA82: 8.93989262 | BB82: 2.346772246 | BC82: VT | BK82: 27.425553 | BL82: 10.00000134 | BM82: 5.07899919 | BN82: 6.207665676 | BP82: =IF(BC82="NT",BA82*Ekonomika!$B$22,BA82*Ekonomika!$B$23)-U82*Ekonomika!$B$14-U82*(Výhřevnost_HU/3.6)*Emisní_faktor_CO2_HU*Ekonomika!$B$24 -> -12822.83233 | BQ82: -12822.83233 | BR82: -12975.51215 | BS82: MIN
A83: Suma | B83: =SUM(B71:B82) -> 31.12343801 | C83: =SUM(C71:C82) -> 38.03975756 | D83: =SUM(D71:D82) -> 69.16319557 | F83: 2018-01-04T09:00:00 | G83: 82 | H83: 137.0268987 | I83: 111.3573669 | J83: 25.6695318 | K83: 117.1890495 | L83: 56.0062512 | M83: 39.67130992 | N83: 111.1235143 | O83: 253.1323407 | P83: 75.09117198 | Q83: 75.09117198 | R83: 200.4934292 | S83: 55.69261922 | T83: 60.53545567 | U83: 12.67021165 | V83: 0 | W83: 0 | X83: 0 | Y83: 0 | Z83: 0 | AA83: 0 | AB83: 0 | AC83: 31.31301871 | AD83: 8.438858544 | AE83: 221.819322 | AF83: 78.33478951 | AG83: 26.51820904 | AH83: 26.51820904 | AI83: 14.23171649 | AJ83: 3.868562758 | AK83: 9.098859606 | AL83: 10.36315373 | AM83: 2.286491726 | AN83: 5.215487628 | AO83: 10.00000082 | AP83: 10.00000082 | AQ83: 22.34000485 | AR83: 2.586090852 | AS83: 25.6695318 | AT83: 0 | AU83: 0 | AV83: 9.928427844 | AW83: 4.126528614 | AX83: 10.75835528 | AY83: 4.775124403 | AZ83: 11.0249494 | BA83: 8.710853886 | BB83: 2.31409551 | BC83: VT | BK83: 26.51821039 | BL83: 10.00000217 | BM83: 4.961227228 | BN83: 6.063722168 | BP83: =IF(BC83="NT",BA83*Ekonomika!$B$22,BA83*Ekonomika!$B$23)-U83*Ekonomika!$B$14-U83*(Výhřevnost_HU/3.6)*Emisní_faktor_CO2_HU*Ekonomika!$B$24 -> -12524.76217 | BQ83: -12524.76217 | BR83: -12771.17276 | BS83: MIN
F84: 2018-01-04T10:00:00 | G84: 83 | H84: 139.6550881 | I84: 110.7886824 | J84: 28.8664057 | K84: 116.5905835 | L84: 62.9812488 | M84: 39.4687148 | N84: 124.9627952 | O84: 257.513762 | P84: 76.39091129 | Q84: 76.39091129 | R84: 203.9637332 | S84: 56.65659254 | T84: 61.58325276 | U84: 12.88951802 | V84: 0 | W84: 0 | X84: 0 | Y84: 0 | Z84: 0 | AA84: 0 | AB84: 0 | AC84: 31.85501001 | AD84: 8.584925198 | AE84: 225.658752 | AF84: 82.31754176 | AG84: 27.8664664 | AH84: 27.8664664 | AI84: 15.58930003 | AJ84: 3.935523 | AK84: 9.256350097 | AL84: 11.65377703 | AM84: 2.277165768 | AN84: 5.194215117 | AO84: 10.00000061 | AP84: 10.00000061 | AQ84: 22.34000356 | AR84: 2.659669873 | AS84: 28.8664057 | AT84: 0 | AU84: 0 | AV84: 10.10027718 | AW84: 4.19795394 | AX84: 10.94456968 | AY84: 4.857776155 | AZ84: 11.24459507 | BA84: 8.907754123 | BB84: 2.336840948 | BC84: VT | BK84: 27.86646739 | BL84: 10.0000016 | BM84: 5.060067782 | BN84: 6.184527289 | BP84: =IF(BC84="NT",BA84*Ekonomika!$B$22,BA84*Ekonomika!$B$23)-U84*Ekonomika!$B$14-U84*(Výhřevnost_HU/3.6)*Emisní_faktor_CO2_HU*Ekonomika!$B$24 -> -12691.92647 | BQ84: -12691.92647 | BR84: -12873.09347 | BS84: MIN
A85: Dodávky tepla [TJ] | B85: Dodávky páry | C85: Dodávky HV | D85: Dodávky celkem | E85: Počet dní | F85: 2018-01-04T11:00:00 | G85: 84 | H85: 127.0305967 | I85: 104.1712217 | J85: 22.859375 | K85: 109.6265724 | L85: 49.875 | M85: 37.11122967 | N85: 98.95833333 | O85: 237.6472061 | P85: 70.49753964 | Q85: 70.49753964 | R85: 188.2284308 | S85: 52.28567523 | T85: 56.83225569 | U85: 11.89512328 | V85: 0 | W85: 0 | X85: 0 | Y85: 0 | Z85: 0 | AA85: 0 | AB85: 0 | AC85: 29.39747403 | AD85: 7.922619251 | AE85: 208.2497321 | AF85: 73.93627827 | AG85: 25.02920727 | AH85: 25.02920727 | AI85: 12.86056066 | AJ85: 3.631907043 | AK85: 8.542245364 | AL85: 9.228653613 | AM85: 2.168645017 | AN85: 4.946679283 | AO85: 10.0000016 | AP85: 10.0000016 | AQ85: 22.34000938 | AR85: 2.497336932 | AS85: 22.859375 | AT85: 0 | AU85: 0 | AV85: 9.32106554 | AW85: 3.874092078 | AX85: 10.10022294 | AY85: 4.483010625 | AZ85: 10.41995618 | BA85: 8.186249239 | BB85: 2.233706944 | BC85: VT | BK85: 25.02920987 | BL85: 10.0000042 | BM85: 4.688980282 | BN85: 5.7309759 | BP85: =IF(BC85="NT",BA85*Ekonomika!$B$22,BA85*Ekonomika!$B$23)-U85*Ekonomika!$B$14-U85*(Výhřevnost_HU/3.6)*Emisní_faktor_CO2_HU*Ekonomika!$B$24 -> -11749.67023 | BQ85: -11749.67023 | BR85: -12226.66938 | BS85: MIN
A86: Leden | B86: =SUM(I$2:I$745)/1000 -> 81.27775346 | C86: =SUM(J$2:J$745)/1000 -> 18.51485547 | D86: =B86+C86 -> 99.79260893 | E86: 31 | F86: 2018-01-04T12:00:00 | G86: 85 | H86: 120.6422991 | I86: 99.63917409 | J86: 21.003125 | K86: 104.8571857 | L86: 45.825 | M86: 35.49667762 | N86: 90.92261905 | O86: 227.7435645 | P86: 67.55964535 | Q86: 67.55964535 | R86: 180.3842531 | S86: 50.10673697 | T86: 54.46384453 | U86: 11.39940932 | V86: 0 | W86: 0 | X86: 0 | Y86: 0 | Z86: 0 | AA86: 0 | AB86: 0 | AC86: 28.17237211 | AD86: 7.592454284 | AE86: 199.5711924 | AF86: 71.0559193 | AG86: 24.05413653 | AH86: 24.05413653 | AI86: 11.95981117 | AJ86: 3.480551988 | AK86: 8.186258276 | AL86: 8.479259184 | AM86: 2.094323266 | AN86: 4.77715137 | AO86: 10.00000209 | AP86: 10.00000209 | AQ86: 22.34001229 | AR86: 2.439383219 | AS86: 21.003125 | AT86: 0 | AU86: 0 | AV86: 8.932622123 | AW86: 3.712644274 | AX86: 9.679309139 | AY86: 4.296186924 | AZ86: 10.0318375 | BA86: 7.849543709 | BB86: 2.182293794 | BC86: VT | BK86: 24.05413994 | BL86: 10.0000055 | BM86: 4.514326876 | BN86: 5.517510626 | BP86: =IF(BC86="NT",BA86*Ekonomika!$B$22,BA86*Ekonomika!$B$23)-U86*Ekonomika!$B$14-U86*(Výhřevnost_HU/3.6)*Emisní_faktor_CO2_HU*Ekonomika!$B$24 -> -11255.23472 | BQ86: -11255.23472 | BR86: -11879.70863 | BS86: MIN
A87: Únor | B87: =SUM(OFFSET(I$2,$E86*24,,,):OFFSET(I$745,$E87*24,,,))/1000 -> 69.40292657 | C87: =SUM(OFFSET(J$2,$E86*24,,,):OFFSET(J$745,$E87*24,,,))/1000 -> 15.58998359 | D87: 84.99291016 | E87: 28 | F87: 2018-01-04T13:00:00 | G87: 86 | H87: 119.4037603 | I87: 96.61313529 | J87: 22.790625 | K87: 101.672676 | L87: 49.725 | M87: 34.41864456 | N87: 98.66071429 | O87: 226.094418 | P87: 67.07042955 | Q87: 67.07042955 | R87: 179.0780469 | S87: 49.74390191 | T87: 54.0694586 | U87: 11.31686343 | V87: 0 | W87: 0 | X87: 0 | Y87: 0 | Z87: 0 | AA87: 0 | AB87: 0 | AC87: 27.96836912 | AD87: 7.537475478 | AE87: 198.1260489 | AF87: 72.96659944 | AG87: 24.70094768 | AH87: 24.70094768 | AI87: 12.65624673 | AJ87: 3.455348466 | AK87: 8.126979591 | AL87: 9.200898264 | AM87: 2.044698776 | AN87: 4.663957907 | AO87: 10.00000217 | AP87: 10.00000217 | AQ87: 22.34001277 | AR87: 2.472041516 | AS87: 22.790625 | AT87: 0 | AU87: 0 | AV87: 8.867938836 | AW87: 3.685760115 | AX87: 9.60921891 | AY87: 4.265077191 | AZ87: 10.00951699 | BA87: 7.835784477 | BB87: 2.173732517 | BC87: VT | BK87: 24.70095122 | BL87: 10.00000572 | BM87: 4.504282647 | BN87: 5.505234347 | BP87: =IF(BC87="NT",BA87*Ekonomika!$B$22,BA87*Ekonomika!$B$23)-U87*Ekonomika!$B$14-U87*(Výhřevnost_HU/3.6)*Emisní_faktor_CO2_HU*Ekonomika!$B$24 -> -11127.38369 | BQ87: -11127.38369 | BR87: -11776.41499 | BS87: MIN
A88: Březen | B88: =SUM(OFFSET(OFFSET(I$2,SUM($E$86:$E86)*24,,,),$E87*24,,,):OFFSET(OFFSET(I$745,SUM($E$87:$E87)*24,,,),$E88*24,,,))/1000 -> 57.69638574 | C88: =SUM(OFFSET(OFFSET(J$2,SUM($E$86:$E86)*24,,,),$E87*24,,,):OFFSET(OFFSET(J$745,SUM($E$87:$E87)*24,,,),$E88*24,,,))/1000 -> 12.31810234 | D88: 70.01448809 | E88: 31 | F88: 2018-01-04T14:00:00 | G88: 87 | H88: 110.4229301 | I88: 89.7893358 | J88: 20.6335943 | K88: 94.49152047 | L88: 45.0187512 | M88: 31.9876508 | N88: 89.32291905 | O88: 212.228724 | P88: 62.95720083 | Q88: 62.95720083 | R88: 168.0957262 | S88: 46.69325728 | T88: 50.75354052 | U88: 10.62283406 | V88: 0 | W88: 0 | X88: 0 | Y88: 0 | Z88: 0 | AA88: 0 | AB88: 0 | AC88: 26.25315275 | AD88: 7.075224665 | AE88: 185.9755713 | AF88: 69.43765091 | AG88: 23.50631378 | AH88: 23.50631378 | AI88: 11.57351669 | AJ88: 3.243442285 | AK88: 7.628576255 | AL88: 8.330074405 | AM88: 1.932794228 | AN88: 4.408703635 | AO88: 10.00000286 | AP88: 10.00000286 | AQ88: 22.34001683 | AR88: 2.399818831 | AS88: 20.6335943 | AT88: 0 | AU88: 0 | AV88: 8.324094687 | AW88: 3.459723478 | AX88: 9.019914273 | AY88: 4.003512771 | AZ88: 9.475043496 | BA88: 7.373292481 | BB88: 2.101751015 | BC88: VT | BK88: 23.50631845 | BL88: 10.00000753 | BM88: 4.263769573 | BN88: 5.211273923 | BP88: =IF(BC88="NT",BA88*Ekonomika!$B$22,BA88*Ekonomika!$B$23)-U88*Ekonomika!$B$14-U88*(Výhřevnost_HU/3.6)*Emisní_faktor_CO2_HU*Ekonomika!$B$24 -> -10425.55192 | BQ88: -10425.55192 | BR88: -11281.05675 | BS88: MIN
A89: Duben | B89: =SUM(OFFSET(OFFSET(I$2,SUM($E$86:$E87)*24,,,),$E88*24,,,):OFFSET(OFFSET(I$745,SUM($E$87:$E88)*24,,,),$E89*24,,,))/1000 -> 37.45957738 | C89: =SUM(OFFSET(OFFSET(J$2,SUM($E$86:$E87)*24,,,),$E88*24,,,):OFFSET(OFFSET(J$745,SUM($E$87:$E88)*24,,,),$E89*24,,,))/1000 -> 7.684328125 | D89: 45.14390551 | E89: 30 | F89: 2018-01-04T15:00:00 | G89: 88 | H89: 107.835747 | I89: 87.85527883 | J89: 19.9804682 | K89: 92.45617872 | L89: 43.5937488 | M89: 31.2986387 | N89: 86.49553333 | O89: 208.2303136 | P89: 61.77108087 | Q89: 61.77108087 | R89: 164.9287859 | S89: 45.81355165 | T89: 49.79733875 | U89: 10.42269881 | V89: 0 | W89: 0 | X89: 0 | Y89: 0 | Z89: 0 | AA89: 0 | AB89: 0 | AC89: 25.75854072 | AD89: 6.941926725 | AE89: 182.4717729 | AF89: 68.38455067 | AG89: 23.14981404 | AH89: 23.14981404 | AI89: 11.24873365 | AJ89: 3.182335508 | AK89: 7.484853116 | AL89: 8.066398143 | AM89: 1.901077328 | AN89: 4.336357385 | AO89: 10.00000306 | AP89: 10.00000306 | AQ89: 22.340018 | AR89: 2.378364406 | AS89: 19.9804682 | AT89: 0 | AU89: 0 | AV89: 8.167267911 | AW89: 3.394541941 | AX89: 8.849978186 | AY89: 3.92808619 | AZ89: 9.320291131 | BA89: 7.239297216 | BB89: 2.080993915 | BC89: VT | BK89: 23.14981904 | BL89: 10.00000806 | BM89: 4.194131009 | BN89: 5.126160122 | BP89: =IF(BC89="NT",BA89*Ekonomika!$B$22,BA89*Ekonomika!$B$23)-U89*Ekonomika!$B$14-U89*(Výhřevnost_HU/3.6)*Emisní_faktor_CO2_HU*Ekonomika!$B$24 -> -10223.8421 | BQ89: -10223.8421 | BR89: -11138.88711 | BS89: MIN
A90: Květen | B90: =SUM(OFFSET(OFFSET(I$2,SUM($E$86:$E88)*24,,,),$E89*24,,,):OFFSET(OFFSET(I$745,SUM($E$87:$E89)*24,,,),$E90*24,,,))/1000 -> 29.61622172 | C90: =SUM(OFFSET(OFFSET(J$2,SUM($E$86:$E88)*24,,,),$E89*24,,,):OFFSET(OFFSET(J$745,SUM($E$87:$E89)*24,,,),$E90*24,,,))/1000 -> 5.971960937 | D90: 35.58818266 | E90: 31 | F90: 2018-01-04T16:00:00 | G90: 89 | H90: 118.3481018 | I90: 94.8957575 | J90: 23.4523443 | K90: 99.86536076 | L90: 51.1687512 | M90: 33.8068249 | N90: 101.5253 | O90: 224.5800434 | P90: 66.62119353 | Q90: 66.62119353 | R90: 177.8785867 | S90: 49.41071853 | T90: 53.70730275 | U90: 11.24106337 | V90: 0 | W90: 0 | X90: 0 | Y90: 0 | Z90: 0 | AA90: 0 | AB90: 0 | AC90: 27.7810377 | AD90: 7.486989661 | AE90: 196.7990057 | AF90: 73.60418533 | AG90: 24.91678583 | AH90: 24.91678583 | AI90: 12.90024835 | AJ90: 3.43220463 | AK90: 8.07254529 | AL90: 9.468043722 | AM90: 2.016535226 | AN90: 4.599716851 | AO90: 10.00000225 | AP90: 10.00000225 | AQ90: 22.34001321 | AR90: 2.482260846 | AS90: 23.4523443 | AT90: 0 | AU90: 0 | AV90: 8.808541609 | AW90: 3.661072988 | AX90: 9.544856609 | AY90: 4.236509813 | AZ90: 9.969250506 | BA90: 7.80337962 | BB90: 2.165870887 | BC90: VT | BK90: 24.91678949 | BL90: 10.00000591 | BM90: 4.486162728 | BN90: 5.483087779 | BP90: =IF(BC90="NT",BA90*Ekonomika!$B$22,BA90*Ekonomika!$B$23)-U90*Ekonomika!$B$14-U90*(Výhřevnost_HU/3.6)*Emisní_faktor_CO2_HU*Ekonomika!$B$24 -> -11031.25065 | BQ90: -11031.25065 | BR90: -11702.83244 | BS90: MIN
A91: Červen | B91: =SUM(OFFSET(OFFSET(I$2,SUM($E$86:$E89)*24,,,),$E90*24,,,):OFFSET(OFFSET(I$745,SUM($E$87:$E90)*24,,,),$E91*24,,,))/1000 -> 16.87086559 | C91: =SUM(OFFSET(OFFSET(J$2,SUM($E$86:$E89)*24,,,),$E90*24,,,):OFFSET(OFFSET(J$745,SUM($E$87:$E90)*24,,,),$E91*24,,,))/1000 -> 2.6661875 | D91: 19.53705309 | E91: 30 | F91: 2018-01-04T17:00:00 | G91: 90 | H91: 122.6710751 | I91: 97.79216943 | J91: 24.8789057 | K91: 102.9134551 | L91: 54.2812488 | M91: 34.8386781 | N91: 107.7008905 | O91: 231.3033603 | P91: 68.61565124 | Q91: 68.61565124 | R91: 183.2037888 | S91: 50.88994133 | T91: 55.31515362 | U91: 11.57759029 | V91: 0 | W91: 0 | X91: 0 | Y91: 0 | Z91: 0 | AA91: 0 | AB91: 0 | AC91: 28.61272657 | AD91: 7.711129809 | AE91: 202.6906337 | AF91: 75.74929835 | AG91: 25.64295814 | AH91: 25.64295814 | AI91: 13.5789223 | AJ91: 3.534955521 | AK91: 8.314215385 | AL91: 10.04396677 | AM91: 2.064033933 | AN91: 4.708061401 | AO91: 10.00000191 | AP91: 10.00000191 | AQ91: 22.34001124 | AR91: 2.524962025 | AS91: 24.8789057 | AT91: 0 | AU91: 0 | AV91: 9.072245436 | AW91: 3.770675576 | AX91: 9.830603708 | AY91: 4.363339418 | AZ91: 10.23609183 | BA91: 8.035317938 | BB91: 2.200773897 | BC91: VT | BK91: 25.64296126 | BL91: 10.00000503 | BM91: 4.606241326 | BN91: 5.629850509 | BP91: =IF(BC91="NT",BA91*Ekonomika!$B$22,BA91*Ekonomika!$B$23)-U91*Ekonomika!$B$14-U91*(Výhřevnost_HU/3.6)*Emisní_faktor_CO2_HU*Ekonomika!$B$24 -> -11363.29699 | BQ91: -11363.29699 | BR91: -11934.76212 | BS91: MIN
A92: Červenec | B92: =SUM(OFFSET(OFFSET(I$2,SUM($E$86:$E90)*24,,,),$E91*24,,,):OFFSET(OFFSET(I$745,SUM($E$87:$E91)*24,,,),$E92*24,,,))/1000 -> 14.90620862 | C92: =SUM(OFFSET(OFFSET(J$2,SUM($E$86:$E90)*24,,,),$E91*24,,,):OFFSET(OFFSET(J$745,SUM($E$87:$E91)*24,,,),$E92*24,,,))/1000 -> 2.408554687 | D92: 17.3147633 | E92: 31 | F92: 2018-01-04T18:00:00 | G92: 91 | H92: 122.8794772 | I92: 98.10369536 | J92: 24.7757818 | K92: 103.2412954 | L92: 54.0562512 | M92: 34.94965991 | N92: 107.2544667 | O92: 231.6057902 | P92: 68.70536643 | Q92: 68.70536643 | R92: 183.4433284 | S92: 50.9564801 | T92: 55.38747837 | U92: 11.59272803 | V92: 0 | W92: 0 | X92: 0 | Y92: 0 | Z92: 0 | AA92: 0 | AB92: 0 | AC92: 28.6501378 | AD92: 7.721212137 | AE92: 202.9556524 | AF92: 75.65506023 | AG92: 25.61105627 | AH92: 25.61105627 | AI92: 13.54191168 | AJ92: 3.539577487 | AK92: 8.325086249 | AL92: 10.00233419 | AM92: 2.069142696 | AN92: 4.719714489 | AO92: 10.0000019 | AP92: 10.0000019 | AQ92: 22.34001115 | AR92: 2.523506887 | AS92: 24.7757818 | AT92: 0 | AU92: 0 | AV92: 9.084107427 | AW92: 3.775605747 | AX92: 9.843457255 | AY92: 4.369044498 | AZ92: 10.24471902 | BA92: 8.042375112 | BB92: 2.202343912 | BC92: VT | BK92: 25.61105937 | BL92: 10.00000499 | BM92: 4.610123561 | BN92: 5.634595463 | BP92: =IF(BC92="NT",BA92*Ekonomika!$B$22,BA92*Ekonomika!$B$23)-U92*Ekonomika!$B$14-U92*(Výhřevnost_HU/3.6)*Emisní_faktor_CO2_HU*Ekonomika!$B$24 -> -11381.8652 | BQ92: -11381.8652 | BR92: -11948.82685 | BS92: MIN
A93: Srpen | B93: =SUM(OFFSET(OFFSET(I$2,SUM($E$86:$E91)*24,,,),$E92*24,,,):OFFSET(OFFSET(I$745,SUM($E$87:$E92)*24,,,),$E93*24,,,))/1000 -> 18.78176626 | C93: =SUM(OFFSET(OFFSET(J$2,SUM($E$86:$E91)*24,,,),$E92*24,,,):OFFSET(OFFSET(J$745,SUM($E$87:$E92)*24,,,),$E93*24,,,))/1000 -> 3.033029101 | D93: 21.81479536 | E93: 31 | F93: 2018-01-04T19:00:00 | G93: 92 | H93: 122.8371574 | I93: 98.38793918 | J93: 24.4492182 | K93: 103.5404248 | L93: 53.3437488 | M93: 35.0509224 | N93: 105.8407714 | O93: 231.500532 | P93: 68.67414178 | Q93: 68.67414178 | R93: 183.3599586 | S93: 50.93332182 | T93: 55.36230633 | U93: 11.58745946 | V93: 0 | W93: 0 | X93: 0 | Y93: 0 | Z93: 0 | AA93: 0 | AB93: 0 | AC93: 28.63711712 | AD93: 7.717703065 | AE93: 202.8634148 | AF93: 75.2746275 | AG93: 25.48227065 | AH93: 25.48227065 | AI93: 13.40846469 | AJ93: 3.537968849 | AK93: 8.321302733 | AL93: 9.870495842 | AM93: 2.073804056 | AN93: 4.730347052 | AO93: 10.0000019 | AP93: 10.0000019 | AQ93: 22.34001119 | AR93: 2.516699116 | AS93: 24.4492182 | AT93: 0 | AU93: 0 | AV93: 9.079978958 | AW93: =(P93-AY93)*(h_vVTO1-h_vNTO2)/(h_CZT-h_vNTO2) -> 3.773889841 | AX93: 9.838983683 | AY93: 4.367058891 | AZ93: 10.23440218 | BA93: 8.0326047 | BB93: 2.201797481 | BC93: VT | BK93: 25.48227375 | BL93: 10.00000501 | BM93: 4.605480982 | BN93: 5.6289212 | BP93: =IF(BC93="NT",BA93*Ekonomika!$B$22,BA93*Ekonomika!$B$23)-U93*Ekonomika!$B$14-U93*(Výhřevnost_HU/3.6)*Emisní_faktor_CO2_HU*Ekonomika!$B$24 -> -11383.27172 | BQ93: -11383.27172 | BR93: -11951.80077 | BS93: MIN
A94: Září | B94: =SUM(OFFSET(OFFSET(I$2,SUM($E$86:$E92)*24,,,),$E93*24,,,):OFFSET(OFFSET(I$745,SUM($E$87:$E93)*24,,,),$E94*24,,,))/1000 -> 22.43573108 | C94: =SUM(OFFSET(OFFSET(J$2,SUM($E$86:$E92)*24,,,),$E93*24,,,):OFFSET(OFFSET(J$745,SUM($E$87:$E93)*24,,,),$E94*24,,,))/1000 -> 4.257361664 | D94: 26.69309275 | E94: 30 | F94: 2018-01-04T20:00:00 | G94: 93 | H94: 121.5455798 | I94: 97.66354801 | J94: 23.8820318 | K94: 102.7780979 | L94: 52.1062512 | M94: 34.79285644 | N94: 103.385419 | O94: 229.4740158 | P94: 68.07298008 | Q94: 68.07298008 | R94: 181.7548568 | S94: 50.48746023 | T94: 54.87767416 | U94: 11.48602482 | V94: 0 | W94: 0 | X94: 0 | Y94: 0 | Z94: 0 | AA94: 0 | AB94: 0 | AC94: 28.38643269 | AD94: 7.650143611 | AE94: 201.0875832 | AF94: 74.47163795 | AG94: 25.21043939 | AH94: 25.21043939 | AI94: 13.14851273 | AJ94: 3.506998074 | AK94: 8.248459471 | AL94: 9.641514655 | AM94: 2.061924654 | AN94: 4.703250136 | AO94: 10.000002 | AP94: 10.000002 | AQ94: 22.34001178 | AR94: 2.501059687 | AS94: 23.8820318 | AT94: 0 | AU94: 0 | AV94: 9.000494373 | AW94: 3.740853854 | AX94: 9.7528549 | AY94: 4.328830404 | AZ94: 10.1512033 | BA94: 7.959926147 | BB94: 2.191277151 | BC94: NT | BK94: 25.21044266 | BL94: 10.00000527 | BM94: 4.568041484 | BN94: 5.583161814 | BP94: =IF(BC94="NT",BA94*Ekonomika!$B$22,BA94*Ekonomika!$B$23)-U94*Ekonomika!$B$14-U94*(Výhřevnost_HU/3.6)*Emisní_faktor_CO2_HU*Ekonomika!$B$24 -> -13521.91716 | BQ94: -13521.91716 | BR94: -14872.29698 | BS94: MIN
A95: Říjen | B95: =SUM(OFFSET(OFFSET(I$2,SUM($E$86:$E93)*24,,,),$E94*24,,,):OFFSET(OFFSET(I$745,SUM($E$87:$E94)*24,,,),$E95*24,,,))/1000 -> 39.51573044 | C95: =SUM(OFFSET(OFFSET(J$2,SUM($E$86:$E93)*24,,,),$E94*24,,,):OFFSET(OFFSET(J$745,SUM($E$87:$E94)*24,,,),$E95*24,,,))/1000 -> 7.917162964 | D95: 47.4328934 | E95: 31 | F95: 2018-01-04T21:00:00 | G95: 94 | H95: 116.9056357 | I95: 94.46735499 | J95: 22.4382807 | K95: 99.41452321 | L95: 48.9562488 | M95: 33.65420555 | N95: 97.13541429 | O95: 222.2687575 | P95: 65.93555548 | Q95: 65.93555548 | R95: 176.0479331 | S95: 48.90220365 | T95: 53.15456918 | U95: 11.12537495 | V95: 0 | W95: 0 | X95: 0 | Y95: 0 | Z95: 0 | AA95: 0 | AB95: 0 | AC95: 27.49512664 | AD95: 7.409936628 | AE95: 194.7736309 | AF95: 72.26974534 | AG95: 24.46504581 | AH95: 24.46504581 | AI95: 12.45553366 | AJ95: 3.396881785 | AK95: 7.989465959 | AL95: 9.058651877 | AM95: 2.00950979 | AN95: 4.583691831 | AO95: 10.00000236 | AP95: 10.00000236 | AQ95: 22.34001389 | AR95: 2.457014266 | AS95: 22.4382807 | AT95: 0 | AU95: 0 | AV95: 8.717887705 | AW95: 3.623394724 | AX95: 9.446624852 | AY95: 4.192909388 | AZ95: 9.866950894 | BA95: 7.713078673 | BB95: 2.153872221 | BC95: NT | BK95: 24.46504967 | BL95: 10.00000622 | BM95: 4.440127902 | BN95: 5.426822992 | BP95: =IF(BC95="NT",BA95*Ekonomika!$B$22,BA95*Ekonomika!$B$23)-U95*Ekonomika!$B$14-U95*(Výhřevnost_HU/3.6)*Emisní_faktor_CO2_HU*Ekonomika!$B$24 -> -13094.88866 | BQ95: -13094.88866 | BR95: -14687.26817 | BS95: MIN
A96: Listopad | B96: =SUM(OFFSET(OFFSET(I$2,SUM($E$86:$E94)*24,,,),$E95*24,,,):OFFSET(OFFSET(I$745,SUM($E$87:$E95)*24,,,),$E96*24,,,))/1000 -> 57.25328374 | C96: =SUM(OFFSET(OFFSET(J$2,SUM($E$86:$E94)*24,,,),$E95*24,,,):OFFSET(OFFSET(J$745,SUM($E$87:$E95)*24,,,),$E96*24,,,))/1000 -> 12.50924546 | D96: 69.7625292 | E96: 30 | F96: 2018-01-04T22:00:00 | G96: 95 | H96: 108.7082573 | I96: 89.24341298 | J96: 19.4648443 | K96: 93.91700817 | L96: 42.4687512 | M96: 31.79316458 | N96: 84.26339524 | O96: 209.4859046 | P96: 62.14354927 | Q96: 62.14354927 | R96: 165.9232766 | S96: 46.08979904 | T96: 50.09760765 | U96: 10.48554579 | V96: 0 | W96: 0 | X96: 0 | Y96: 0 | Z96: 0 | AA96: 0 | AB96: 0 | AC96: 25.91386005 | AD96: 6.983785282 | AE96: 183.5720445 | AF96: 67.8935616 | AG96: 22.98360244 | AH96: 22.98360244 | AI96: 11.05975788 | AJ96: 3.201524414 | AK96: 7.529985421 | AL96: 7.858233468 | AM96: 1.923841559 | AN96: 4.388282596 | AO96: 10.000003 | AP96: 10.000003 | AQ96: 22.34001764 | AR96: 2.370557689 | AS96: 19.4648443 | AT96: 0 | AU96: 0 | AV96: 8.216515053 | AW96: 3.415010413 | AX96: 8.903341947 | AY96: 3.951771836 | AZ96: 9.354342971 | BA96: 7.266830859 | BB96: 2.087512112 | BC96: NT | BK96: 22.98360733 | BL96: 10.00000789 | BM96: 4.209454337 | BN96: 5.144888634 | BP96: =IF(BC96="NT",BA96*Ekonomika!$B$22,BA96*Ekonomika!$B$23)-U96*Ekonomika!$B$14-U96*(Výhřevnost_HU/3.6)*Emisní_faktor_CO2_HU*Ekonomika!$B$24 -> -12343.90786 | BQ96: -12343.90786 | BR96: -14365.61915 | BS96: MIN
A97: Prosinec | B97: =SUM(OFFSET(OFFSET(I$2,SUM($E$86:$E95)*24,,,),$E96*24,,,):OFFSET(OFFSET(I$745,SUM($E$87:$E96)*24,,,),$E97*24,,,))/1000 -> 74.80097097 | C97: =SUM(OFFSET(OFFSET(J$2,SUM($E$86:$E95)*24,,,),$E96*24,,,):OFFSET(OFFSET(J$745,SUM($E$87:$E96)*24,,,),$E97*24,,,))/1000 -> 17.41039995 | D97: 92.21137092 | E97: 31 | F97: 2018-01-04T23:00:00 | G97: 96 | H97: 81.92833186 | I97: 70.79942616 | J97: 11.1289057 | K97: 74.50712678 | L97: 24.2812488 | M97: 25.22245321 | N97: 48.17708095 | O97: 167.8995976 | P97: 49.80705951 | Q97: 49.80705951 | R97: 132.9848489 | S97: 36.94023581 | T97: 40.15243022 | U97: 8.403997024 | V97: 0 | W97: 0 | X97: 0 | Y97: 0 | Z97: 0 | AA97: 0 | AB97: 0 | AC97: 20.76954382 | AD97: 5.597392059 | AE97: 147.1300538 | AF97: 55.18145351 | AG97: 18.68024831 | AH97: 18.68024831 | AI97: 7.058867477 | AJ97: 2.565970545 | AK97: 6.035162722 | AL97: 4.492896932 | AM97: 1.621375765 | AN97: 3.698358119 | AO97: 10.00000507 | AP97: 10.00000507 | AQ97: 22.34002982 | AR97: 2.116279961 | AS97: 11.1289057 | AT97: 0 | AU97: 0 | AV97: 6.585405228 | AW97: 2.737076155 | AX97: 7.135885984 | AY97: 3.167281839 | AZ97: 7.71367202 | BA97: 5.842048478 | BB97: 1.871623542 | BC97: NT | BK97: 18.68025659 | BL97: 10.00001335 | BM97: 3.471152409 | BN97: 4.242519611 | BP97: =IF(BC97="NT",BA97*Ekonomika!$B$22,BA97*Ekonomika!$B$23)-U97*Ekonomika!$B$14-U97*(Výhřevnost_HU/3.6)*Emisní_faktor_CO2_HU*Ekonomika!$B$24 -> -9879.2939 | BQ97: -9879.2939 | BR97: -13297.74527 | BS97: MIN
A98: Suma | B98: =SUM(B86:B97) -> 520.0174216 | C98: =SUM(C86:C97) -> 110.2811718 | D98: 630.2985934 | F98: 2018-01-05 | G98: 97 | H98: 65.86065833 | I98: 56.60518903 | J98: 9.2554693 | K98: 59.56955055 | L98: 20.1937512 | M98: 20.16572463 | N98: 40.06696667 | O98: 143.3429135 | P98: 42.52237127 | Q98: 42.52237127 | R98: 113.5347313 | S98: 31.53742536 | T98: 34.27981017 | U98: 7.174843989 | V98: 0 | W98: 0 | X98: 0 | Y98: 0 | Z98: 0 | AA98: 0 | AB98: 0 | AC98: 17.73182882 | AD98: 4.778727867 | AE98: 125.6110847 | AF98: 51.15101826 | AG98: 17.31584911 | AH98: 17.31584911 | AI98: 5.927240557 | AJ98: 2.190676447 | AK98: 5.152471004 | AL98: 3.73656411 | AM98: 1.388602256 | AN98: 3.167401747 | AO98: 10.00000629 | AP98: 10.00000629 | AQ98: 22.34003701 | AR98: 2.027655508 | AS98: 9.2554693 | AT98: 0 | AU98: 0 | AV98: 5.62223606 | AW98: 2.336756467 | AX98: 6.092204521 | AY98: 2.704041066 | AZ98: 6.806383374 | BA98: 5.062241877 | BB98: 1.744141497 | BC98: NT | BK98: 17.31585938 | BL98: 10.00001657 | BM98: 3.062872518 | BN98: 3.743510856 | BP98: =IF(BC98="NT",BA98*Ekonomika!$B$22,BA98*Ekonomika!$B$23)-U98*Ekonomika!$B$14-U98*(Výhřevnost_HU/3.6)*Emisní_faktor_CO2_HU*Ekonomika!$B$24 -> -8375.028984 | BQ98: -8375.028984 | BR98: -12618.25436 | BS98: MIN
F99: 2018-01-05T01:00:00 | G99: 98 | H99: 69.6881717 | I99: 59.5389535 | J99: 10.1492182 | K99: 62.65695356 | L99: 22.1437488 | M99: 21.21088475 | N99: 43.93600952 | O99: 149.2490689 | P99: 44.27441974 | Q99: 44.27441974 | R99: 118.2127007 | S99: 32.83686131 | T99: 35.69224055 | U99: 7.470468953 | V99: 0 | W99: 0 | X99: 0 | Y99: 0 | Z99: 0 | AA99: 0 | AB99: 0 | AC99: 18.46243303 | AD99: 4.975625702 | AE99: 130.7866359 | AF99: 52.62563279 | AG99: 17.81504157 | AH99: 17.81504157 | AI99: 6.378322054 | AJ99: 2.280938848 | AK99: 5.364768171 | AL99: 4.097383205 | AM99: 1.436713516 | AN99: 3.277143529 | AO99: 10.000006 | AP99: 10.000006 | AQ99: 22.34003528 | AR99: 2.057913626 | AS99: 10.1492182 | AT99: 0 | AU99: 0 | AV99: 5.853888948 | AW99: 2.433037801 | AX99: 6.343221511 | AY99: 2.815455619 | AZ99: 7.033539328 | BA99: 5.258736983 | BB99: 1.774802345 | BC99: NT | BK99: 17.81505136 | BL99: 10.00001579 | BM99: 3.165092698 | BN99: 3.86844663 | BP99: =IF(BC99="NT",BA99*Ekonomika!$B$22,BA99*Ekonomika!$B$23)-U99*Ekonomika!$B$14-U99*(Výhřevnost_HU/3.6)*Emisní_faktor_CO2_HU*Ekonomika!$B$24 -> -8729.711954 | BQ99: -8729.711954 | BR99: -12774.57002 | BS99: MIN
A100: Výpočet podpory KVET | B100: Účinnost NEKVET | C100: Qpal NEKVET [GWh] | D100: Qpal KVET [GWh] | F100: 2018-01-05T02:00:00 | G100: 99 | H100: 71.54317381 | I100: 59.37442381 | J100: 12.16875 | K100: 62.4838076 | L100: 26.55 | M100: 21.15227068 | N100: 52.67857143 | O100: 152.3116358 | P100: 45.18292371 | Q100: 45.18292371 | R100: 120.6384063 | S100: 33.51066842 | T100: 36.42463958 | U100: 7.623761773 | V100: 0 | W100: 0 | X100: 0 | Y100: 0 | Z100: 0 | AA100: 0 | AB100: 0 | AC100: 18.84127919 | AD100: 5.077724741 | AE100: 133.4703566 | AF100: 55.16435887 | AG100: 18.67446136 | AH100: 18.67446136 | AI100: 7.240440157 | AJ100: 2.327743346 | AK100: 5.47485235 | AL100: 4.912696811 | AM100: 1.43401536 | AN100: 3.270989036 | AO100: 10.00000585 | AP100: 10.00000585 | AQ100: 22.34003439 | AR100: 2.105004962 | AS100: 12.16875 | AT100: 0 | AU100: 0 | AV100: 5.974009807 | AW100: 2.482963345 | AX100: 6.473383395 | AY100: 2.873228316 | AZ100: 7.182729702 | BA100: 5.392028537 | BB100: 1.790701165 | BC100: NT | BK100: 18.67447091 | BL100: 10.00001539 | BM100: 3.232228366 | BN100: 3.950501336 | BP100: =IF(BC100="NT",BA100*Ekonomika!$B$22,BA100*Ekonomika!$B$23)-U100*Ekonomika!$B$14-U100*(Výhřevnost_HU/3.6)*Emisní_faktor_CO2_HU*Ekonomika!$B$24 -> -8888.665193 | BQ100: -8888.665193 | BR100: -12830.66224 | BS100: MIN
A101: Leden | B101: =UcinnostNEKVET(A101) -> 0.2089891118 | C101: =C71/B101 -> 20.08441084 | D101: =SUM(T$2:T$745)/1000-C101 -> 22.79308528 | F101: 2018-01-05T03:00:00 | G101: 100 | H101: 76.90327927 | I101: 61.40015427 | J101: 15.503125 | K101: 64.61562369 | L101: 33.825 | M101: 21.87394167 | N101: 67.11309524 | O101: 160.8454818 | P101: 47.71447101 | Q101: 47.71447101 | R101: 127.3976376 | S101: 35.38823267 | T101: 38.46547029 | U101: 8.050912387 | V101: 0 | W101: 0 | X101: 0 | Y101: 0 | Z101: 0 | AA101: 0 | AB101: 0 | AC101: 19.89693441 | AD101: 5.362223824 | AE101: 140.9485474 | AF101: 59.62423438 | AG101: 20.18423642 | AH101: 20.18423642 | AI101: 8.716995379 | AJ101: 2.458164132 | AK101: 5.781602038 | AL101: 6.258831247 | AM101: 1.467235618 | AN101: 3.346764445 | AO101: 10.00000542 | AP101: 10.00000542 | AQ101: 22.34003189 | AR101: 2.189951996 | AS101: 15.503125 | AT101: 0 | AU101: 0 | AV101: 6.308726713 | AW101: 2.622080928 | AX101: 6.83607963 | AY101: 3.034211997 | AZ101: 7.55217582 | BA101: 5.717172577 | BB101: 1.835003243 | BC101: NT | BK101: 20.18424527 | BL101: 10.00001427 | BM101: 3.398479119 | BN101: 4.153696701 | BP101: =IF(BC101="NT",BA101*Ekonomika!$B$22,BA101*Ekonomika!$B$23)-U101*Ekonomika!$B$14-U101*(Výhřevnost_HU/3.6)*Emisní_faktor_CO2_HU*Ekonomika!$B$24 -> -9368.374651 | BQ101: -9368.374651 | BR101: -13023.74935 | BS101: MIN
A102: Únor | B102: =UcinnostNEKVET(A102) -> 0.2001975403 | C102: =C72/B102 -> 18.43915583 | D102: =SUM(OFFSET(T$2,$E86*24,,,):OFFSET(T$745,$E87*24,,,))/1000-C102 -> 18.81941298 | F102: 2018-01-05T04:00:00 | G102: 101 | H102: 82.4067279 | I102: 67.2215711 | J102: 15.1851568 | K102: 70.74190276 | L102: 33.1312512 | M102: 23.94783438 | N102: 65.73660952 | O102: 169.1354808 | P102: 50.17368164 | Q102: 50.17368164 | R102: 133.96373 | S102: 37.21214722 | T102: 40.44798611 | U102: 8.465857557 | V102: 0 | W102: 0 | X102: 0 | Y102: 0 | Z102: 0 | AA102: 0 | AB102: 0 | AC102: 20.92242524 | AD102: 5.638593603 | AE102: 148.2130556 | AF102: 59.90129528 | AG102: 20.27802819 | AH102: 20.27802819 | AI102: 8.71532124 | AJ102: 2.584858261 | AK102: 6.07958663 | AL102: 6.130462979 | AM102: 1.562701945 | AN102: 3.564523136 | AO102: 10.00000501 | AP102: 10.00000501 | AQ102: 22.34002946 | AR102: 2.200691349 | AS102: 15.1851568 | AT102: 0 | AU102: 0 | AV102: 6.633879386 | AW102: 2.757223352 | AX102: 7.188412147 | AY102: 3.190595715 | AZ102: 7.839284952 | BA102: 5.961245523 | BB102: 1.878039429 | BC102: NT | BK102: 20.27803637 | BL102: 10.00001319 | BM102: 3.527678228 | BN102: 4.311606724 | BP102: =IF(BC102="NT",BA102*Ekonomika!$B$22,BA102*Ekonomika!$B$23)-U102*Ekonomika!$B$14-U102*(Výhřevnost_HU/3.6)*Emisní_faktor_CO2_HU*Ekonomika!$B$24 -> -9891.440748 | BQ102: -9891.440748 | BR102: -13268.38308 | BS102: MIN
A103: Březen | B103: =UcinnostNEKVET(A103) -> 0.2358173084 | C103: =C73/B103 -> 14.74510036 | D103: =SUM(OFFSET(OFFSET(T$2,SUM($E$86:$E86)*24,,,),$E87*24,,,):OFFSET(OFFSET(T$745,SUM($E$87:$E87)*24,,,),$E88*24,,,))/1000-C103 -> 18.55101382 | F103: 2018-01-05T05:00:00 | G103: 102 | H103: 110.4056183 | I103: 90.29624331 | J103: 20.109375 | K103: 95.02497425 | L103: 43.875 | M103: 32.16823773 | N103: 87.05357143 | O103: 212.1363802 | P103: 62.92980723 | Q103: 62.92980723 | R103: 168.0225853 | S103: 46.67294036 | T103: 50.73145691 | U103: 10.61821191 | V103: 0 | W103: 0 | X103: 0 | Y103: 0 | Z103: 0 | AA103: 0 | AB103: 0 | AC103: 26.24172961 | AD103: 7.072146131 | AE103: 185.8946506 | AF103: 68.83286913 | AG103: 23.30158061 | AH103: 23.30158061 | AI103: 11.36047066 | AJ103: 3.242031016 | AK103: 7.62525695 | AL103: 8.118439645 | AM103: 1.941107086 | AN103: 4.427665263 | AO103: 10.00000287 | AP103: 10.00000287 | AQ103: 22.34001686 | AR103: 2.389049161 | AS103: 20.109375 | AT103: 0 | AU103: 0 | AV103: 8.320472751 | AW103: 3.458218101 | AX103: 9.015989576 | AY103: 4.001770784 | AZ103: 9.461195292 | BA103: 7.359923665 | BB103: 2.101271626 | BC103: NT | BK103: 23.30158529 | BL103: 10.00000755 | BM103: 4.257537881 | BN103: 5.20365741 | BP103: =IF(BC103="NT",BA103*Ekonomika!$B$22,BA103*Ekonomika!$B$23)-U103*Ekonomika!$B$14-U103*(Výhřevnost_HU/3.6)*Emisní_faktor_CO2_HU*Ekonomika!$B$24 -> -12499.17166 | BQ103: -12499.17166 | BR103: -14431.86265 | BS103: MIN
A104: Duben | B104: =UcinnostNEKVET(A104) -> 0.2497985236 | C104: 11.9706832 | D104: =SUM(OFFSET(OFFSET(T$2,SUM($E$86:$E87)*24,,,),$E88*24,,,):OFFSET(OFFSET(T$745,SUM($E$87:$E88)*24,,,),$E89*24,,,))/1000-C104 -> 14.02898331 | F104: 2018-01-05T06:00:00 | G104: 103 | H104: 144.2859775 | I104: 115.7891025 | J104: 28.496875 | K104: 121.852871 | L104: 62.175 | M104: 41.25012559 | N104: 123.3630952 | O104: 264.4765344 | P104: 78.45640295 | Q104: 78.45640295 | R104: 209.4785959 | S104: 58.18849886 | T104: 63.24836832 | U104: 13.23803058 | V104: 0 | W104: 0 | X104: 0 | Y104: 0 | Z104: 0 | AA104: 0 | AB104: 0 | AC104: 32.71632003 | AD104: 8.817048249 | AE104: 231.7602143 | AF104: 82.43342121 | AG104: 27.90569438 | AH104: 27.90569438 | AI104: 15.54652568 | AJ104: 4.041933433 | AK104: 9.506627435 | AL104: 11.50459225 | AM104: 2.359168441 | AN104: 5.381263214 | AO104: 10.00000026 | AP104: 10.00000026 | AQ104: 22.34000152 | AR104: 2.666622066 | AS104: 28.496875 | AT104: 0 | AU104: 0 | AV104: 10.373373 | AW104: 4.311460098 | AX104: 11.24049385 | AY104: 4.989122881 | AZ104: 11.48367031 | BA104: 9.110683263 | BB104: 2.372987052 | BC104: NT | BK104: 27.90569481 | BL104: 10.00000068 | BM104: 5.167651642 | BN104: 6.316018673 | BP104: =IF(BC104="NT",BA104*Ekonomika!$B$22,BA104*Ekonomika!$B$23)-U104*Ekonomika!$B$14-U104*(Výhřevnost_HU/3.6)*Emisní_faktor_CO2_HU*Ekonomika!$B$24 -> -15634.86659 | BQ104: -15634.86659 | BR104: -15809.63299 | BS104: MIN
A105: Květen | B105: =UcinnostNEKVET(A105) -> 0.2608389156 | C105: 11.87078991 | D105: =SUM(OFFSET(OFFSET(T$2,SUM($E$86:$E88)*24,,,),$E89*24,,,):OFFSET(OFFSET(T$745,SUM($E$87:$E89)*24,,,),$E90*24,,,))/1000-C105 -> 13.10748063 | F105: 2018-01-05T07:00:00 | G105: 104 | H105: 135.1521214 | I105: 107.1279032 | J105: 28.0242182 | K105: 112.7380927 | L105: 61.1437488 | M105: 38.16455406 | N105: 121.3169619 | O105: 250.591734 | P105: 74.33750638 | Q105: 74.33750638 | R105: 198.481142 | S105: 55.13365056 | T105: 59.92788105 | U105: 12.54304487 | V105: 0 | W105: 0 | X105: 0 | Y105: 0 | Z105: 0 | AA105: 0 | AB105: 0 | AC105: 30.99874016 | AD105: 8.354160473 | AE105: 219.5929938 | AF105: 80.82333732 | AG105: 27.36064229 | AH105: 27.36064229 | AI105: 15.14350926 | AJ105: 3.829735255 | AK105: 9.00753732 | AL105: 11.313774 | AM105: 2.217132081 | AN105: 5.057278276 | AO105: 10.00000095 | AP105: 10.00000095 | AQ105: 22.34000559 | AR105: 2.628349936 | AS105: 28.0242182 | AT105: 0 | AU105: 0 | AV105: 9.828779452 | AW105: 4.085111992 | AX105: 10.65037718 | AY105: 4.727198036 | AZ105: 10.98251041 | BA105: 8.681604047 | BB105: 2.300906362 | BC105: NT | BK105: 27.36064384 | BL105: 10.0000025 | BM105: 4.942129684 | BN105: 6.040380725 | BP105: =IF(BC105="NT",BA105*Ekonomika!$B$22,BA105*Ekonomika!$B$23)-U105*Ekonomika!$B$14-U105*(Výhřevnost_HU/3.6)*Emisní_faktor_CO2_HU*Ekonomika!$B$24 -> -14774.9168 | BQ105: -14774.9168 | BR105: -15416.02557 | BS105: MIN
A106: Červen | B106: =UcinnostNEKVET(A106) -> 0.2753818395 | C106: 11.84935029 | D106: =SUM(OFFSET(OFFSET(T$2,SUM($E$86:$E89)*24,,,),$E90*24,,,):OFFSET(OFFSET(T$745,SUM($E$87:$E90)*24,,,),$E91*24,,,))/1000-C106 -> 11.36804101 | F106: 2018-01-05T08:00:00 | G106: 105 | H106: 132.7875287 | I106: 106.7570594 | J106: 26.0304693 | K106: 112.347828 | L106: 56.7937512 | M106: 38.0324401 | N106: 112.6860143 | O106: 246.7610947 | P106: 73.20115535 | Q106: 73.20115535 | R106: 195.4470848 | S106: 54.29085689 | T106: 59.01180096 | U106: 12.35130718 | V106: 0 | W106: 0 | X106: 0 | Y106: 0 | Z106: 0 | AA106: 0 | AB106: 0 | AC106: 30.52488178 | AD106: 8.22645564 | AE106: 216.2362129 | AF106: 78.25474929 | AG106: 26.4911135 | AH106: 26.4911135 | AI106: 14.2800618 | AJ106: 3.771192484 | AK106: 8.869844723 | AL106: 10.50886932 | AM106: 2.211050561 | AN106: 5.04340633 | AO106: 10.00000114 | AP106: 10.00000114 | AQ106: 22.34000671 | AR106: 2.580189393 | AS106: 26.0304693 | AT106: 0 | AU106: 0 | AV106: 9.67853304 | AW106: 4.022665437 | AX106: 10.48757151 | AY106: 4.654936313 | AZ106: 10.80664503 | BA106: 8.525624815 | BB106: 2.281020219 | BC106: VT | BK106: 26.49111537 | BL106: 10.00000301 | BM106: 4.862990265 | BN106: 5.943654768 | BP106: =IF(BC106="NT",BA106*Ekonomika!$B$22,BA106*Ekonomika!$B$23)-U106*Ekonomika!$B$14-U106*(Výhřevnost_HU/3.6)*Emisní_faktor_CO2_HU*Ekonomika!$B$24 -> -12172.91819 | BQ106: -12172.91819 | BR106: -12514.20276 | BS106: MIN
A107: Červenec | B107: =UcinnostNEKVET(A107) -> 0.2656576143 | C107: 1.243478691 | D107: =SUM(OFFSET(OFFSET(T$2,SUM($E$86:$E90)*24,,,),$E91*24,,,):OFFSET(OFFSET(T$745,SUM($E$87:$E91)*24,,,),$E92*24,,,))/1000-C107 -> 1.078260439 | F107: 2018-01-05T09:00:00 | G107: 106 | H107: 135.8795909 | I107: 109.2647477 | J107: 26.6148432 | K107: 114.9868417 | L107: 58.0687488 | M107: 38.92580965 | N107: 115.2157714 | O107: 251.5150246 | P107: 74.61139859 | Q107: 74.61139859 | R107: 199.2124342 | S107: 55.33678729 | T107: 60.14868183 | U107: 12.58925899 | V107: 0 | W107: 0 | X107: 0 | Y107: 0 | Z107: 0 | AA107: 0 | AB107: 0 | AC107: 31.11295321 | AD107: 8.38494089 | AE107: 220.4020714 | AF107: 79.28775413 | AG107: 26.84081047 | AH107: 26.84081047 | AI107: 14.58863503 | AJ107: 3.843845691 | AK107: 9.040725066 | AL107: 10.74478934 | AM107: 2.252174532 | AN107: 5.137210108 | AO107: 10.0000009 | AP107: 10.0000009 | AQ107: 22.34000532 | AR107: 2.601819941 | AS107: 26.6148432 | AT107: 0 | AU107: 0 | AV107: 9.864993018 | AW107: 4.100163349 | AX107: 10.68961787 | AY107: 4.744615122 | AZ107: 10.98676083 | BA107: 8.681061356 | BB107: 2.305699475 | BC107: VT | BK107: 26.84081195 | BL107: 10.00000238 | BM107: 4.944042374 | BN107: 6.042718457 | BP107: =IF(BC107="NT",BA107*Ekonomika!$B$22,BA107*Ekonomika!$B$23)-U107*Ekonomika!$B$14-U107*(Výhřevnost_HU/3.6)*Emisní_faktor_CO2_HU*Ekonomika!$B$24 -> -12416.91403 | BQ107: -12416.91403 | BR107: -12687.40801 | BS107: MIN
A108: Srpen | B108: =UcinnostNEKVET(A108) -> 0.2716129351 | C108: 12.24181637 | D108: =SUM(OFFSET(OFFSET(T$2,SUM($E$86:$E91)*24,,,),$E92*24,,,):OFFSET(OFFSET(T$745,SUM($E$87:$E92)*24,,,),$E93*24,,,))/1000-C108 -> 11.74948798 | F108: 2018-01-05T10:00:00 | G108: 107 | H108: 137.4540155 | I108: 108.8797962 | J108: 28.5742193 | K108: 114.5817307 | L108: 62.3437512 | M108: 38.78866983 | N108: 123.697919 | O108: 254.1453147 | P108: 75.39166855 | Q108: 75.39166855 | R108: 201.295755 | S108: 55.91548751 | T108: 60.77770381 | U108: 12.72091475 | V108: 0 | W108: 0 | X108: 0 | Y108: 0 | Z108: 0 | AA108: 0 | AB108: 0 | AC108: 31.43832579 | AD108: 8.472628799 | AE108: 222.7069889 | AF108: 81.7245471 | AG108: 27.66572346 | AH108: 27.66572346 | AI108: 15.41986104 | AJ108: 3.884043803 | AK108: 9.135271025 | AL108: 11.53581724 | AM108: 2.245861645 | AN108: 5.122810413 | AO108: 10.00000077 | AP108: 10.00000077 | AQ108: 22.34000455 | AR108: 2.646802774 | AS108: 28.5742193 | AT108: 0 | AU108: 0 | AV108: 9.968158993 | AW108: 4.143041976 | AX108: 10.8014076 | AY108: 4.794233287 | AZ108: 11.11943157 | BA108: 8.800077374 | BB108: 2.3193542 | BC108: VT | BK108: 27.66572472 | BL108: 10.00000204 | BM108: 5.003744208 | BN108: 6.115687365 | BP108: =IF(BC108="NT",BA108*Ekonomika!$B$22,BA108*Ekonomika!$B$23)-U108*Ekonomika!$B$14-U108*(Výhřevnost_HU/3.6)*Emisní_faktor_CO2_HU*Ekonomika!$B$24 -> -12516.39462 | BQ108: -12516.39462 | BR108: -12747.72104 | BS108: MIN
A109: Září | B109: =UcinnostNEKVET(A109) -> 0.2715006638 | C109: 11.36445147 | D109: =SUM(OFFSET(OFFSET(T$2,SUM($E$86:$E92)*24,,,),$E93*24,,,):OFFSET(OFFSET(T$745,SUM($E$87:$E93)*24,,,),$E94*24,,,))/1000-C109 -> 12.00587382 | F109: 2018-01-05T11:00:00 | G109: 108 | H109: 126.3162746 | I109: 100.3373689 | J109: 25.9789057 | K109: 105.5919443 | L109: 56.6812488 | M109: 35.74541107 | N109: 112.4627952 | O109: 236.9595847 | P109: 70.29355821 | Q109: 70.29355821 | R109: 187.6838004 | S109: 52.13438901 | T109: 56.66781414 | U109: 11.86070528 | V109: 0 | W109: 0 | X109: 0 | Y109: 0 | Z109: 0 | AA109: 0 | AB109: 0 | AC109: 29.31241377 | AD109: 7.899695512 | AE109: 207.647171 | AF109: 77.43977562 | AG109: 26.21522533 | AH109: 26.21522533 | AI109: 14.10945065 | AJ109: 3.621398285 | AK109: 8.517528765 | AL109: 10.48805236 | AM109: 2.105773053 | AN109: 4.803268334 | AO109: 10.00000163 | AP109: 10.00000163 | AQ109: 22.34000959 | AR109: 2.558864998 | AS109: 25.9789057 | AT109: 0 | AU109: 0 | AV109: 9.294095461 | AW109: 3.862882569 | AX109: 10.0709984 | AY109: 4.470039238 | AZ109: 10.45856051 | BA109: 8.228423241 | BB109: 2.230137269 | BC109: VT | BK109: 26.21522799 | BL109: 10.00000429 | BM109: 4.70635223 | BN109: 5.752208281 | BP109: =IF(BC109="NT",BA109*Ekonomika!$B$22,BA109*Ekonomika!$B$23)-U109*Ekonomika!$B$14-U109*(Výhřevnost_HU/3.6)*Emisní_faktor_CO2_HU*Ekonomika!$B$24 -> -11644.81672 | BQ109: -11644.81672 | BR109: -12132.05521 | BS109: MIN
A110: Říjen | B110: =UcinnostNEKVET(A110) -> 0.2500920918 | C110: 12.37367166 | D110: =SUM(OFFSET(OFFSET(T$2,SUM($E$86:$E93)*24,,,),$E94*24,,,):OFFSET(OFFSET(T$745,SUM($E$87:$E94)*24,,,),$E95*24,,,))/1000-C110 -> 14.66723555 | F110: 2018-01-05T12:00:00 | G110: 109 | H110: 118.4829469 | I110: 96.66341515 | J110: 21.8195318 | K110: 101.725589 | L110: 47.6062512 | M110: 34.43655687 | N110: 94.45684762 | O110: 224.5781365 | P110: 66.62062786 | Q110: 66.62062786 | R110: 177.8770764 | S110: 49.41029899 | T110: 53.70684673 | U110: 11.24096792 | V110: 0 | W110: 0 | X110: 0 | Y110: 0 | Z110: 0 | AA110: 0 | AB110: 0 | AC110: 27.78080182 | AD110: 7.48692609 | AE110: 196.7973347 | AF110: 71.74248418 | AG110: 24.28655524 | AH110: 24.28655524 | AI110: 12.24102967 | AJ110: 3.432175488 | AK110: 8.072476747 | AL110: 8.808854178 | AM110: 2.045523326 | AN110: 4.665838708 | AO110: 10.00000225 | AP110: 10.00000225 | AQ110: 22.34001321 | AR110: 2.449307296 | AS110: 21.8195318 | AT110: 0 | AU110: 0 | AV110: 8.808466817 | AW110: 3.661041902 | AX110: 9.544775564 | AY110: 4.236473841 | AZ110: 9.936233386 | BA110: 7.770372398 | BB110: 2.165860987 | BC110: VT | BK110: 24.28655891 | BL110: 10.00000591 | BM110: 4.471305024 | BN110: 5.464928362 | BP110: =IF(BC110="NT",BA110*Ekonomika!$B$22,BA110*Ekonomika!$B$23)-U110*Ekonomika!$B$14-U110*(Výhřevnost_HU/3.6)*Emisní_faktor_CO2_HU*Ekonomika!$B$24 -> -11066.59668 | BQ110: -11066.59668 | BR110: -11738.20686 | BS110: MIN
A111: Listopad | B111: =UcinnostNEKVET(A111) -> 0.2197260497 | C111: 15.66476907 | D111: =SUM(OFFSET(OFFSET(T$2,SUM($E$86:$E94)*24,,,),$E95*24,,,):OFFSET(OFFSET(T$745,SUM($E$87:$E95)*24,,,),$E96*24,,,))/1000-C111 -> 17.3737905 | F111: 2018-01-05T13:00:00 | G111: 110 | H111: 114.4604526 | I111: 92.40889008 | J111: 22.0515625 | K111: 97.24825839 | L111: 48.1125 | M111: 32.92087285 | N111: 95.46130952 | O111: 218.5188933 | P111: 64.82316621 | Q111: 64.82316621 | R111: 173.0778538 | S111: 48.07718161 | T111: 52.25780609 | U111: 10.93768034 | V111: 0 | W111: 0 | X111: 0 | Y111: 0 | Z111: 0 | AA111: 0 | AB111: 0 | AC111: 27.03126031 | AD111: 7.284924653 | AE111: 191.487633 | AF111: 71.53954956 | AG111: 24.21785699 | AH111: 24.21785699 | AI111: 12.24210174 | AJ111: 3.339573481 | AK111: 7.854676828 | AL111: 8.90252826 | AM111: 1.975752703 | AN111: 4.506691916 | AO111: 10.00000255 | AP111: 10.00000255 | AQ111: 22.34001499 | AR111: 2.441450219 | AS111: 22.0515625 | AT111: 0 | AU111: 0 | AV111: 8.570809476 | AW111: 3.562264953 | AX111: 9.287252203 | AY111: 4.122171417 | AZ111: 9.726374873 | BA111: 7.591969464 | BB111: 2.134405409 | BC111: VT | BK111: 24.21786115 | BL111: 10.00000671 | BM111: 4.376868693 | BN111: 5.34950618 | BP111: =IF(BC111="NT",BA111*Ekonomika!$B$22,BA111*Ekonomika!$B$23)-U111*Ekonomika!$B$14-U111*(Výhřevnost_HU/3.6)*Emisní_faktor_CO2_HU*Ekonomika!$B$24 -> -10734.39753 | BQ111: -10734.39753 | BR111: -11496.23568 | BS111: MIN
A112: Prosinec | B112: =UcinnostNEKVET(A112) -> 0.2209408658 | C112: 18.31551341 | D112: =SUM(OFFSET(OFFSET(T$2,SUM($E$86:$E95)*24,,,),$E96*24,,,):OFFSET(OFFSET(T$745,SUM($E$87:$E96)*24,,,),$E97*24,,,))/1000-C112 -> 22.3805415 | F112: 2018-01-05T14:00:00 | G112: 111 | H112: 112.5458774 | I112: 92.2474399 | J112: 20.2984375 | K112: 97.07835322 | L112: 44.2875 | M112: 32.86335586 | N112: 87.87202381 | O112: 215.3997679 | P112: 63.89788429 | Q112: 63.89788429 | R112: 170.6073511 | S112: 47.39093085 | T112: 51.51188136 | U112: 10.78155656 | V112: 0 | W112: 0 | X112: 0 | Y112: 0 | Z112: 0 | AA112: 0 | AB112: 0 | AC112: 26.64541775 | AD112: 7.180940084 | AE112: 188.7543502 | AF112: 69.30018786 | AG112: 23.45977924 | AH112: 23.45977924 | AI112: 11.48667147 | AJ112: 3.291904613 | AK112: 7.742559651 | AL112: 8.194766855 | AM112: 1.973105063 | AN112: 4.500652649 | AO112: 10.0000027 | AP112: 10.0000027 | AQ112: 22.3400159 | AR112: 2.399617837 | AS112: 20.2984375 | AT112: 0 | AU112: 0 | AV112: 8.448470265 | AW112: 3.5114174 | AX112: 9.154686532 | AY112: 4.063331794 | AZ112: 9.580557921 | BA112: 7.462344946 | BB112: 2.118212975 | BC112: VT | BK112: 23.45978365 | BL112: 10.00000712 | BM112: 4.311251064 | BN112: 5.269306856 | BP112: =IF(BC112="NT",BA112*Ekonomika!$B$22,BA112*Ekonomika!$B$23)-U112*Ekonomika!$B$14-U112*(Výhřevnost_HU/3.6)*Emisní_faktor_CO2_HU*Ekonomika!$B$24 -> -10604.04507 | BQ112: -10604.04507 | BR112: -11412.33 | BS112: MIN
F113: 2018-01-05T15:00:00 | G113: 112 | H113: 117.1805646 | I113: 93.7282214 | J113: 23.4523432 | K113: 98.63668187 | L113: 51.1687488 | M113: 33.39088757 | N113: 101.5252952 | O113: 222.8128384 | P113: 66.0969559 | Q113: 66.0969559 | R113: 176.4788723 | S113: 49.02190896 | T113: 53.28468365 | U113: 11.15260821 | V113: 0 | W113: 0 | X113: 0 | Y113: 0 | Z113: 0 | AA113: 0 | AB113: 0 | AC113: 27.56243061 | AD113: 7.42807505 | AE113: 195.2504077 | AF113: 73.4678442 | AG113: 24.87063108 | AH113: 24.87063108 | AI113: 12.87324012 | AJ113: 3.405196846 | AK113: 8.009022982 | AL113: 9.468043278 | AM113: 1.997388619 | AN113: 4.55604344 | AO113: 10.00000233 | AP113: 10.00000233 | AQ113: 22.34001373 | AR113: 2.478603659 | AS113: 23.4523432 | AT113: 0 | AU113: 0 | AV113: 8.739227797 | AW113: 3.632264255 | AX113: 9.469748783 | AY113: 4.203173006 | AZ113: 9.906678709 | BA113: 7.74998198 | BB113: 2.156696728 | BC113: VT | BK113: 24.87063489 | BL113: 10.00000615 | BM113: 4.458005419 | BN113: 5.44867329 | BP113: =IF(BC113="NT",BA113*Ekonomika!$B$22,BA113*Ekonomika!$B$23)-U113*Ekonomika!$B$14-U113*(Výhřevnost_HU/3.6)*Emisní_faktor_CO2_HU*Ekonomika!$B$24 -> -10935.83253 | BQ113: -10935.83253 | BR113: -11633.7297 | BS113: MIN
F114: 2018-01-05T16:00:00 | G114: 113 | H114: 124.3967173 | I114: 98.48656053 | J114: 25.9101568 | K114: 103.6442108 | L114: 56.5312512 | M114: 35.08605647 | N114: 112.165181 | O114: 234.045435 | P114: 69.42908188 | Q114: 69.42908188 | R114: 185.3756486 | S114: 51.49323573 | T114: 55.9709084 | U114: 11.71484129 | V114: 0 | W114: 0 | X114: 0 | Y114: 0 | Z114: 0 | AA114: 0 | AB114: 0 | AC114: 28.95192714 | AD114: 7.802544365 | AE114: 205.0935079 | AF114: 77.136569 | AG114: 26.1125826 | AH114: 26.1125826 | AI114: 14.03715947 | AJ114: 3.576862012 | AK114: 8.412779451 | AL114: 10.46029746 | AM114: 2.075421357 | AN114: 4.734036116 | AO114: 10.00000178 | AP114: 10.00000178 | AQ114: 22.34001044 | AR114: 2.551446944 | AS114: 25.9101568 | AT114: 0 | AU114: 0 | AV114: 9.179795861 | AW114: 3.815376501 | AX114: 9.947144383 | AY114: 4.415066304 | AZ114: 10.35399131 | BA114: 8.138982377 | BB114: 2.215008933 | BC114: VT | BK114: 26.1125855 | BL114: 10.00000467 | BM114: 4.659296089 | BN114: 5.69469522 | BP114: =IF(BC114="NT",BA114*Ekonomika!$B$22,BA114*Ekonomika!$B$23)-U114*Ekonomika!$B$14-U114*(Výhřevnost_HU/3.6)*Emisní_faktor_CO2_HU*Ekonomika!$B$24 -> -11488.96322 | BQ114: -11488.96322 | BR114: -12019.59621 | BS114: MIN
A115: Výpočet podpory KVET | B115: ηq | C115: ηt | D115: ÚPE | F115: 2018-01-05T17:00:00 | G115: 114 | H115: 123.5675164 | I115: 98.24173569 | J115: 25.3257807 | K115: 103.3865647 | L115: 55.2562488 | M115: 34.99883708 | N115: 109.6354143 | O115: 232.7166115 | P115: 69.03488921 | Q115: 69.03488921 | R115: 184.3231542 | S115: 51.20087616 | T115: 55.65312626 | U115: 11.64832875 | V115: 0 | W115: 0 | X115: 0 | Y115: 0 | Z115: 0 | AA115: 0 | AB115: 0 | AC115: 28.7875488 | AD115: 7.758244402 | AE115: 203.9290627 | AF115: 76.36780862 | AG115: 25.85233874 | AH115: 25.85233874 | AI115: 13.78093046 | AJ115: 3.556553911 | AK115: 8.365014798 | AL115: 10.22437654 | AM115: 2.071406439 | AN115: 4.724878087 | AO115: 10.00000184 | AP115: 10.00000184 | AQ115: 22.34001083 | AR115: 2.536904482 | AS115: 25.3257807 | AT115: 0 | AU115: 0 | AV115: 9.127676372 | AW115: 3.793714203 | AX115: 9.890668173 | AY115: 4.389999189 | AZ115: 10.29514888 | BA115: 8.087038322 | BB115: 2.208110561 | BC115: VT | BK115: 25.85234174 | BL115: 10.00000485 | BM115: 4.632816998 | BN115: 5.662331886 | BP115: =IF(BC115="NT",BA115*Ekonomika!$B$22,BA115*Ekonomika!$B$23)-U115*Ekonomika!$B$14-U115*(Výhřevnost_HU/3.6)*Emisní_faktor_CO2_HU*Ekonomika!$B$24 -> -11429.90199 | BQ115: -11429.90199 | BR115: -11980.32245 | BS115: MIN
A116: Leden | B116: =1-C116 -> 0.8493290711 | C116: =B71/D101 -> 0.1506709289 | D116: =1-1/(C116/ηrq+B116/ηrt) -> 0.2581870433 | F116: 2018-01-05T18:00:00 | G116: 115 | H116: 127.7110721 | I116: 101.1821653 | J116: 26.5289068 | K116: 106.480982 | L116: 57.8812512 | M116: 36.04637169 | N116: 114.8437524 | O116: 239.1401682 | P116: 70.94042366 | Q116: 70.94042366 | R116: 189.4109312 | S116: 52.61414755 | T116: 57.18929082 | U116: 11.96985157 | V116: 0 | W116: 0 | X116: 0 | Y116: 0 | Z116: 0 | AA116: 0 | AB116: 0 | AC116: 29.58215667 | AD116: 7.972391222 | AE116: 209.5580115 | AF116: 78.23505867 | AG116: 26.48444776 | AH116: 26.48444776 | AI116: 14.36481923 | AJ116: 3.654723635 | AK116: 8.595909989 | AL116: 10.7100956 | AM116: 2.119627 | AN116: 4.834869188 | AO116: 10.00000152 | AP116: 10.00000152 | AQ116: 22.34000895 | AR116: 2.57447647 | AS116: 26.5289068 | AT116: 0 | AU116: 0 | AV116: 9.379622918 | AW116: 3.89843014 | AX116: 10.16367519 | AY116: 4.511174073 | AZ116: 10.54686769 | BA116: 8.305410278 | BB116: 2.241457414 | BC116: VT | BK116: 26.48445024 | BL116: 10.00000401 | BM116: 4.746090461 | BN116: 5.800777231 | BP116: =IF(BC116="NT",BA116*Ekonomika!$B$22,BA116*Ekonomika!$B$23)-U116*Ekonomika!$B$14-U116*(Výhřevnost_HU/3.6)*Emisní_faktor_CO2_HU*Ekonomika!$B$24 -> -11750.614 | BQ116: -11750.614 | BR116: -12205.38151 | BS116: MIN
A117: Únor | B117: =1-C117 -> 0.8395116458 | C117: =B72/D102 -> 0.1604883542 | D117: 0.2647706276 | F117: 2018-01-05T19:00:00 | G117: 116 | H117: 130.1451318 | I117: 103.7193511 | J117: 26.4257807 | K117: 109.1510378 | L117: 57.6562488 | M117: 36.95024976 | N117: 114.397319 | O117: 242.8113924 | P117: 72.02948454 | Q117: 72.02948454 | R117: 192.3187237 | S117: 53.4218677 | T117: 58.0672475 | U117: 12.15360994 | V117: 0 | W117: 0 | X117: 0 | Y117: 0 | Z117: 0 | AA117: 0 | AB117: 0 | AC117: 30.03629505 | AD117: 8.094781517 | AE117: 212.7750973 | AF117: 78.40072053 | AG117: 26.54052828 | AH117: 26.54052828 | AI117: 14.37929223 | AJ117: 3.710830102 | AK117: 8.727872399 | AL117: 10.66846213 | AM117: 2.161234706 | AN117: 4.929776365 | AO117: 10.00000134 | AP117: 10.00000134 | AQ117: 22.34000787 | AR117: 2.579992882 | AS117: 26.4257807 | AT117: 0 | AU117: 0 | AV117: 9.523616706 | AW117: 3.958277933 | AX117: 10.31970556 | AY117: 4.580428568 | AZ117: 10.6747744 | BA117: 8.414258419 | BB117: 2.260515979 | BC117: VT | BK117: 26.54053046 | BL117: 10.00000352 | BM117: 4.803648479 | BN117: 5.871125919 | BP117: =IF(BC117="NT",BA117*Ekonomika!$B$22,BA117*Ekonomika!$B$23)-U117*Ekonomika!$B$14-U117*(Výhřevnost_HU/3.6)*Emisní_faktor_CO2_HU*Ekonomika!$B$24 -> -11951.07632 | BQ117: -11951.07632 | BR117: -12351.17576 | BS117: MIN
A118: Březen | B118: 0.8466423001 | C118: 0.1533576999 | D118: 0.2600004868 | F118: 2018-01-05T20:00:00 | G118: 117 | H118: 130.9256257 | I118: 104.0443757 | J118: 26.88125 | K118: 109.4930836 | L118: 58.65 | M118: 37.0660405 | N118: 116.3690476 | O118: 244.050228 | P118: 72.39698249 | Q118: 72.39698249 | R118: 193.2999432 | S118: 53.69442868 | T118: 58.36350943 | U118: 12.21561825 | V118: 0 | W118: 0 | X118: 0 | Y118: 0 | Z118: 0 | AA118: 0 | AB118: 0 | AC118: 30.1895417 | AD118: 8.136081487 | AE118: 213.8606863 | AF118: 79.01557293 | AG118: 26.74867059 | AH118: 26.74867059 | AI118: 14.58210448 | AJ118: 3.729762938 | AK118: 8.77240243 | AL118: 10.85234154 | AM118: 2.166564834 | AN118: 4.941934386 | AO118: 10.00000128 | AP118: 10.00000128 | AQ118: 22.34000751 | AR118: 2.591747822 | AS118: 26.88125 | AT118: 0 | AU118: 0 | AV118: 9.572206663 | AW118: 3.97847326 | AX118: 10.37235721 | AY118: 4.603798138 | AZ118: 10.72782931 | BA118: 8.460882116 | BB118: 2.266947194 | BC118: NT | BK118: 26.74867268 | BL118: 10.00000336 | BM118: 4.827523189 | BN118: 5.90030612 | BP118: =IF(BC118="NT",BA118*Ekonomika!$B$22,BA118*Ekonomika!$B$23)-U118*Ekonomika!$B$14-U118*(Výhřevnost_HU/3.6)*Emisní_faktor_CO2_HU*Ekonomika!$B$24 -> -14384.53474 | BQ118: -14384.53474 | BR118: -15245.35006 | BS118: MIN
A119: Duben | B119: 0.825605642 | C119: 0.174394358 | D119: 0.2738985105 | F119: 2018-01-05T21:00:00 | G119: 118 | H119: 128.507109 | I119: 103.8430465 | J119: 24.6640625 | K119: 109.2812111 | L119: 53.8125 | M119: 36.99431654 | N119: 106.7708333 | O119: 240.1097775 | P119: 71.22805621 | Q119: 71.22805621 | R119: 190.1789101 | S119: 52.82747502 | T119: 57.4211685 | U119: 12.0183841 | V119: 0 | W119: 0 | X119: 0 | Y119: 0 | Z119: 0 | AA119: 0 | AB119: 0 | AC119: 29.70209944 | AD119: 8.004715798 | AE119: 210.407678 | AF119: 76.18377274 | AG119: 25.79003817 | AH119: 25.79003817 | AI119: 13.62677348 | AJ119: 3.669541948 | AK119: 8.630762663 | AL119: 9.95723153 | AM119: 2.163263214 | AN119: 4.934403391 | AO119: 10.00000147 | AP119: 10.00000147 | AQ119: 22.34000866 | AR119: 2.538851114 | AS119: 24.6640625 | AT119: 0 | AU119: 0 | AV119: 9.417653206 | AW119: 3.914236578 | AX119: 10.20488447 | AY119: 4.529464921 | AZ119: 10.54356691 | BA119: 8.297075929 | BB119: 2.246490984 | BC119: NT | BK119: 25.79004057 | BL119: 10.00000388 | BM119: 4.744605111 | BN119: 5.798961802 | BP119: =IF(BC119="NT",BA119*Ekonomika!$B$22,BA119*Ekonomika!$B$23)-U119*Ekonomika!$B$14-U119*(Výhřevnost_HU/3.6)*Emisní_faktor_CO2_HU*Ekonomika!$B$24 -> -14173.90157 | BQ119: -14173.90157 | BR119: -15167.06298 | BS119: MIN
A120: Květen | B120: 0.8067219192 | C120: 0.1932780808 | D120: 0.2859369185 | F120: 2018-01-05T22:00:00 | G120: 119 | H120: 121.5207867 | I120: 102.5887549 | J120: 18.9320318 | K120: 107.9612334 | L120: 41.3062512 | M120: 36.54747237 | N120: 81.95684762 | O120: 228.8119504 | P120: 67.87657977 | Q120: 67.87657977 | R120: 181.230468 | S120: 50.34179666 | T120: 54.7193442 | U120: 11.452886 | V120: 0 | W120: 0 | X120: 0 | Y120: 0 | Z120: 0 | AA120: 0 | AB120: 0 | AC120: 28.30453376 | AD120: 7.62807185 | AE120: 200.5074166 | AF120: 68.77711158 | AG120: 23.28270534 | AH120: 23.28270534 | AI120: 11.14000939 | AJ120: 3.496879882 | AK120: 8.224661483 | AL120: 7.643129512 | AM120: 2.142693912 | AN120: 4.887484812 | AO120: 10.00000204 | AP120: 10.00000204 | AQ120: 22.34001197 | AR120: 2.399800244 | AS120: 18.9320318 | AT120: 0 | AU120: 0 | AV120: 8.974526656 | AW120: 3.730060954 | AX120: 9.724716516 | AY120: 4.316341108 | AZ120: 10.02787209 | BA120: 7.840031948 | BB120: 2.187840146 | BC120: NT | BK120: 23.28270866 | BL120: 10.00000536 | BM120: 4.512542442 | BN120: 5.515329651 | BP120: =IF(BC120="NT",BA120*Ekonomika!$B$22,BA120*Ekonomika!$B$23)-U120*Ekonomika!$B$14-U120*(Výhřevnost_HU/3.6)*Emisní_faktor_CO2_HU*Ekonomika!$B$24 -> -13559.96075 | BQ120: -13559.96075 | BR120: -14932.57705 | BS120: MIN
A121: Červen | B121: 0.7651481273 | C121: 0.2348518727 | D121: 0.3110830189 | F121: 2018-01-05T23:00:00 | G121: 120 | H121: 97.87865243 | I121: 84.46380923 | J121: 13.4148432 | K121: 88.88710098 | L121: 29.2687488 | M121: 30.0904201 | N121: 58.07291429 | O121: 192.3306992 | P121: 57.05449398 | Q121: 57.05449398 | R121: 152.3354989 | S121: 42.31541637 | T121: 45.99501779 | U121: 9.626864188 | V121: 0 | W121: 0 | X121: 0 | Y121: 0 | Z121: 0 | AA121: 0 | AB121: 0 | AC121: 23.79172399 | AD121: 6.411869615 | AE121: 168.5389752 | AF121: 59.67248866 | AG121: 20.20057165 | AH121: 20.20057165 | AI121: 8.355107688 | AJ121: 2.939345395 | AK121: 6.913340369 | AL121: 5.415762293 | AM121: 1.845460112 | AN121: 4.209494515 | AO121: 10.00000385 | AP121: 10.00000385 | AQ121: 22.34002266 | AR121: 2.212968658 | AS121: 13.4148432 | AT121: 0 | AU121: 0 | AV121: 7.543648763 | AW121: 3.135348613 | AX121: 8.174230077 | AY121: 3.628153607 | AZ121: 8.624838273 | BA121: 6.626384629 | BB121: 1.998453645 | BC121: NT | BK121: 20.20057794 | BL121: 10.00001014 | BM121: 3.881177223 | BN121: 4.74366105 | BP121: =IF(BC121="NT",BA121*Ekonomika!$B$22,BA121*Ekonomika!$B$23)-U121*Ekonomika!$B$14-U121*(Výhřevnost_HU/3.6)*Emisní_faktor_CO2_HU*Ekonomika!$B$24 -> -11369.09482 | BQ121: -11369.09482 | BR121: -13966.99007 | BS121: MIN
A122: Červenec | B122: 0.7493389998 | C122: 0.2506610002 | D122: 0.3201865955 | F122: 2018-01-06 | G122: 121 | H122: 78.976971 | I122: 67.8652517 | J122: 11.1117193 | K122: 71.41929231 | L122: 24.2437512 | M122: 24.17714703 | N122: 48.10268095 | O122: 163.4301974 | P122: 48.48122142 | Q122: 48.48122142 | R122: 129.4448612 | S122: 35.95690589 | T122: 39.08359336 | U122: 8.180286982 | V122: 0 | W122: 0 | X122: 0 | Y122: 0 | Z122: 0 | AA122: 0 | AB122: 0 | AC122: 20.21666933 | AD122: 5.448392385 | AE122: 143.2135281 | AF122: 54.81704523 | AG122: 18.55688735 | AH122: 18.55688735 | AI122: 6.983624279 | AJ122: 2.49766574 | AK122: 5.874509821 | AL122: 4.485958539 | AM122: 1.573257779 | AN122: 3.588600993 | AO122: 10.00000529 | AP122: 10.00000529 | AQ122: 22.34003113 | AR122: 2.106683888 | AS122: 11.1117193 | AT122: 0 | AU122: 0 | AV122: 6.410105156 | AW122: 2.664216607 | AX122: 6.9459324 | AY122: 3.08297044 | AZ122: 7.555076274 | BA122: 5.706654899 | BB122: 1.848421375 | BC122: NT | BK122: 18.55689599 | BL122: 10.00001393 | BM122: 3.399784323 | BN122: 4.15529195 | BP122: =IF(BC122="NT",BA122*Ekonomika!$B$22,BA122*Ekonomika!$B$23)-U122*Ekonomika!$B$14-U122*(Výhřevnost_HU/3.6)*Emisní_faktor_CO2_HU*Ekonomika!$B$24 -> -9600.318261 | BQ122: -9600.318261 | BR122: -13168.88131 | BS122: MIN
A123: Srpen | B123: 0.7684593798 | C123: 0.2315406202 | D123: 0.309145288 | F123: 2018-01-06T01:00:00 | G123: 122 | H123: 77.77450616 | I123: 65.93231866 | J123: 11.8421875 | K123: 69.38513335 | L123: 25.8375 | M123: 23.48853533 | N123: 51.26488095 | O123: 161.7022881 | P123: 47.9686408 | Q123: 47.9686408 | R123: 128.0762709 | S123: 35.57674192 | T123: 38.67037166 | U123: 8.093798719 | V123: 0 | W123: 0 | X123: 0 | Y123: 0 | Z123: 0 | AA123: 0 | AB123: 0 | AC123: 20.00292321 | AD123: 5.390787806 | AE123: 141.6993649 | AF123: 55.51653689 | AG123: 18.79368209 | AH123: 18.79368209 | AI123: 7.252117406 | AJ123: 2.471258504 | AK123: 5.812400001 | AL123: 4.780858902 | AM123: 1.541559305 | AN123: 3.516296774 | AO123: 10.00000538 | AP123: 10.00000538 | AQ123: 22.34003163 | AR123: 2.117848645 | AS123: 11.8421875 | AT123: 0 | AU123: 0 | AV123: 6.342332612 | AW123: 2.636048467 | AX123: 6.87249468 | AY123: 3.050374914 | AZ123: 7.508636451 | BA123: 5.669185237 | BB123: 1.839451214 | BC123: NT | BK123: 18.79369087 | BL123: 10.00001416 | BM123: 3.378886403 | BN123: 4.129750048 | BP123: =IF(BC123="NT",BA123*Ekonomika!$B$22,BA123*Ekonomika!$B$23)-U123*Ekonomika!$B$14-U123*(Výhřevnost_HU/3.6)*Emisní_faktor_CO2_HU*Ekonomika!$B$24 -> -9480.638774 | BQ123: -9480.638774 | BR123: -13107.23632 | BS123: MIN
A124: Září | B124: 0.7897309156 | C124: 0.2102690844 | D124: 0.2964325574 | F124: 2018-01-06T02:00:00 | G124: 123 | H124: 88.88863501 | I124: 72.62066681 | J124: 16.2679682 | K124: 76.42374413 | L124: 35.4937488 | M124: 25.87127425 | N124: 70.42410476 | O124: 179.0832273 | P124: 53.12465952 | Q124: 53.12465952 | R124: 141.8428409 | S124: 39.40078915 | T124: 42.82694473 | U124: 8.963779129 | V124: 0 | W124: 0 | X124: 0 | Y124: 0 | Z124: 0 | AA124: 0 | AB124: 0 | AC124: 22.15298302 | AD124: 5.970228924 | AE124: 156.9302442 | AF124: 61.90326693 | AG124: 20.95574371 | AH124: 20.95574371 | AI124: 9.304496644 | AJ124: 2.736887359 | AK124: 6.437159068 | AL124: 6.567609285 | AM124: 1.651242556 | AN124: 3.76648427 | AO124: 10.00000451 | AP124: 10.00000451 | AQ124: 22.34002654 | AR124: 2.243128606 | AS124: 16.2679682 | AT124: 0 | AU124: 0 | AV124: 7.024052694 | AW124: 2.919390147 | AX124: 7.611200441 | AY124: 3.378251416 | AZ124: 8.21335753 | BA124: 6.283675989 | BB124: 1.929681542 | BC124: NT | BK124: 20.95575108 | BL124: 10.00001188 | BM124: 3.696010889 | BN124: 4.517346642 | BP124: =IF(BC124="NT",BA124*Ekonomika!$B$22,BA124*Ekonomika!$B$23)-U124*Ekonomika!$B$14-U124*(Výhřevnost_HU/3.6)*Emisní_faktor_CO2_HU*Ekonomika!$B$24 -> -10495.61222 | BQ124: -10495.61222 | BR124: -13538.44419 | BS124: MIN
A125: Říjen | B125: 0.8273764258 | C125: 0.1726235742 | D125: 0.2727487831 | F125: 2018-01-06T03:00:00 | G125: 124 | H125: 88.42213389 | I125: 73.29713389 | J125: 15.125 | K125: 77.13563716 | L125: 33 | M125: 26.11226715 | N125: 65.47619048 | O125: 178.2329154 | P125: 52.87241632 | Q125: 52.87241632 | R125: 141.1693516 | S125: 39.21370877 | T125: 42.62359649 | U125: 8.921217869 | V125: 0 | W125: 0 | X125: 0 | Y125: 0 | Z125: 0 | AA125: 0 | AB125: 0 | AC125: 22.0477976 | AD125: 5.941881454 | AE125: 156.1851178 | AF125: 60.53457817 | AG125: 20.49240967 | AH125: 20.49240967 | AI125: 8.830069067 | AJ125: 2.72389224 | AK125: 6.406594549 | AL125: 6.106176827 | AM125: 1.66233605 | AN125: 3.791788529 | AO125: 10.00000456 | AP125: 10.00000456 | AQ125: 22.34002679 | AR125: 2.218304206 | AS125: 15.125 | AT125: 0 | AU125: 0 | AV125: 6.990701523 | AW125: 2.90552848 | AX125: 7.575061411 | AY125: 3.362211013 | AZ125: 8.16018566 | BA125: 6.234918375 | BB125: 1.925267286 | BC125: NT | BK125: 20.49241711 | BL125: 10.00001199 | BM125: 3.672083547 | BN125: 4.488102113 | BP125: =IF(BC125="NT",BA125*Ekonomika!$B$22,BA125*Ekonomika!$B$23)-U125*Ekonomika!$B$14-U125*(Výhřevnost_HU/3.6)*Emisní_faktor_CO2_HU*Ekonomika!$B$24 -> -10460.82009 | BQ125: -10460.82009 | BR125: -13532.21108 | BS125: MIN
A126: Listopad | B126: 0.8379082957 | C126: 0.1620917043 | D126: 0.2658347524 | F126: 2018-01-06T04:00:00 | G126: 125 | H126: 103.0992759 | I126: 85.61958844 | J126: 17.4796875 | K126: 90.10340729 | L126: 38.1375 | M126: 30.50216902 | N126: 75.66964286 | O126: 200.7455857 | P126: 59.5507522 | Q126: 59.5507522 | R126: 159.0005084 | S126: 44.16680788 | T126: 48.00739987 | U126: 10.04806044 | V126: 0 | W126: 0 | X126: 0 | Y126: 0 | Z126: 0 | AA126: 0 | AB126: 0 | AC126: 24.83266367 | AD126: 6.692402858 | AE126: 175.912922 | AF126: 64.95598757 | AG126: 21.98916302 | AH126: 21.98916302 | AI126: 10.12474569 | AJ126: 3.06794815 | AK126: 7.215814048 | AL126: 7.056797537 | AM126: 1.864413901 | AN126: 4.252728108 | AO126: 10.00000343 | AP126: 10.00000343 | AQ126: 22.3400202 | AR126: 2.312410133 | AS126: 17.4796875 | AT126: 0 | AU126: 0 | AV126: 7.873699806 | AW126: 3.272526935 | AX126: 8.531870424 | AY126: 3.786893219 | AZ126: 9.004812991 | BA126: 6.962674828 | BB126: 2.042138163 | BC126: NT | BK126: 21.98916863 | BL126: 10.00000904 | BM126: 4.052165846 | BN126: 4.952647145 | BP126: =IF(BC126="NT",BA126*Ekonomika!$B$22,BA126*Ekonomika!$B$23)-U126*Ekonomika!$B$14-U126*(Výhřevnost_HU/3.6)*Emisní_faktor_CO2_HU*Ekonomika!$B$24 -> -11829.65312 | BQ126: -11829.65312 | BR126: -14144.92146 | BS126: MIN
A127: Prosinec | B127: 0.8520638259 | C127: 0.1479361741 | D127: 0.2563320625 | F127: 2018-01-06T05:00:00 | G127: 126 | H127: 145.1261666 | I127: 115.2371041 | J127: 29.8890625 | K127: 121.271965 | L127: 65.2125 | M127: 41.05347493 | N127: 129.389881 | O127: 265.9239108 | P127: 78.88576409 | Q127: 78.88576409 | R127: 210.6249901 | S127: 58.5069417 | T127: 63.59450185 | U127: 13.31047713 | V127: 0 | W127: 0 | X127: 0 | Y127: 0 | Z127: 0 | AA127: 0 | AB127: 0 | AC127: 32.89536363 | AD127: 8.865300497 | AE127: 233.0285471 | AF127: 84.13230605 | AG127: 28.48080774 | AH127: 28.48080774 | AI127: 16.13069142 | AJ127: 4.064053351 | AK127: 9.55865348 | AL127: 12.06663807 | AM127: 2.350116128 | AN127: 5.360614888 | AO127: 10.00000019 | AP127: 10.00000019 | AQ127: 22.3400011 | AR127: 2.69771123 | AS127: 29.8890625 | AT127: 0 | AU127: 0 | AV127: 10.4301424 | AW127: 4.335055029 | AX127: 11.30200867 | AY127: 5.016426395 | AZ127: 11.56301173 | BA127: 9.182510856 | BB127: 2.380500872 | BC127: NT | BK127: 28.48080804 | BL127: 10.00000049 | BM127: 5.203355277 | BN127: 6.35965645 | BP127: =IF(BC127="NT",BA127*Ekonomika!$B$22,BA127*Ekonomika!$B$23)-U127*Ekonomika!$B$14-U127*(Výhřevnost_HU/3.6)*Emisní_faktor_CO2_HU*Ekonomika!$B$24 -> -15702.96568 | BQ127: -15702.96568 | BR127: -15829.11971 | BS127: MIN
F128: 2018-01-06T06:00:00 | G128: 127 | H128: 192.5843347 | I128: 153.2273029 | J128: 39.3570318 | K128: 161.2516754 | L128: 85.86988756 | M128: 54.58756784 | N128: 170.376761 | O128: 269.68 | P128: 80 | Q128: 80 | R128: =P128*(h_výstupK1-h_vNTO2) -> 237.84 | S128: 66.06666667 | T128: 71.8115942 | U128: 15.03033367 | V128: 22.25183004 | W128: 22.25183004 | X128: 7.532779297 | Y128: 7.532779297 | Z128: 5.873475413 | AA128: 6.909971074 | AB128: 2.592283235 | AC128: 33.36 | AD128: 8.99052 | AE128: 236.32 | AF128: 89.27982916 | AG128: 30.22336803 | AH128: =P128-M128-AU128 -> 22.69058873 | AI128: 17.59699679 | AJ128: 4.51665767 | AK128: 10.62317884 | AL128: 13.08033912 | AM128: 2.626371239 | AN128: 5.990752797 | AO128: 10 | AP128: 2.467220703 | AQ128: 22.34 | AR128: 2.809669457 | AS128: 32.4 | AT128: 6.9570318 | AU128: 2.721843427 | AV128: 0 | AW128: 0 | AX128: 0 | AY128: 0 | AZ128: 11.80018946 | BA128: 9.400189457 | BB128: 2.4 | BC128: NT | BK128: 30.22336803 | BL128: 10 | BM128: 5.310085256 | BN128: 6.490104201 | BP128: =IF(BC128="NT",BA128*Ekonomika!$B$22,BA128*Ekonomika!$B$23)-U128*Ekonomika!$B$14-U128*(Výhřevnost_HU/3.6)*Emisní_faktor_CO2_HU*Ekonomika!$B$24 -> -18502.13332 | BQ128: -18502.13332 | BR128: -18502.13332 | BS128: MIN
A129: ηrq | B129: 0.418 | F129: 2018-01-06T07:00:00 | G129: 128 | H129: 183.5874119 | I129: 145.5085062 | J129: 38.0789057 | K129: 153.1286524 | L129: 83.0812488 | M129: 51.83772931 | N129: 164.8437476 | O129: 263.0864603 | P129: 78.04404043 | Q129: 78.04404043 | R129: =P129*(h_výstupK1-h_vNTO2) -> 232.0249322 | S129: 64.45137005 | T129: 70.05583701 | U129: 14.66284961 | V129: 18 | W129: 18 | X129: 6.093432634 | Y129: 6.093432634 | Z129: 4.751184834 | AA129: 5.589629217 | AB129: 0.4791110757 | AC129: 32.54436486 | AD129: 8.770706329 | AE129: 230.5420954 | AF129: 88.85026328 | AG129: 30.07794966 | AH129: =P129-M129-AU129 -> 23.98451702 | AI129: 17.51190356 | AJ129: 4.431564438 | AK129: 10.42303956 | AL129: 13.08033912 | AM129: 2.566046099 | AN129: 5.853151151 | AO129: 10 | AP129: 3.906567366 | AQ129: 22.34 | AR129: 2.798146741 | AS129: 32.4 | AT129: 5.6789057 | AU129: 2.221794092 | AV129: 0 | AW129: 0 | AX129: 0 | AY129: 0 | AZ129: 11.56885307 | BA129: 9.203082363 | BB129: 2.365770707 | BC129: NT | BK129: 30.07794966 | BL129: 10 | BM129: 5.205983882 | BN129: 6.362869189 | BP129: =IF(BC129="NT",BA129*Ekonomika!$B$22,BA129*Ekonomika!$B$23)-U129*Ekonomika!$B$14-U129*(Výhřevnost_HU/3.6)*Emisní_faktor_CO2_HU*Ekonomika!$B$24 -> -18023.75158 | BQ129: -18023.75158 | BR129: -18282.85035 | BS129: MIN
A130: ηrt | B130: 0.86 | F130: 2018-01-06T08:00:00 | G130: 129 | H130: 175.3134929 | I130: 142.2705236 | J130: 33.0429693 | K130: =M130*h_CZT -> 149.7210997 | L130: =N130*h_HV -> 72.0937512 | M130: =I130/(h_CZT-h_VK) -> 50.68419082 | N130: =J130/(h_HV-h_VHV) -> 143.0431571 | O130: =P130*h_výstupK1 -> 252.1247041 | P130: 74.79225869 | Q130: 74.79225869 | R130: =P130*(h_výstupK1-h_vNTO2) -> 222.3573851 | S130: 61.7659403 | T130: =S130/Účinnost_K1 -> 67.13689163 | U130: =T130*3.6/Výhřevnost_HU -> 14.05190755 | V130: =IF(W130=0,0,MAX(W130,PminOK*3.6)) -> 18 | W130: =AG130*h_eTG1-AH130*h_eTG1 -> 18 | X130: =V130/h_CZT -> 6.093432634 | Y130: =W130/h_CZT -> 6.093432634 | Z130: =(V130-X130*h_VK)/3.6 -> 4.751184834 | AA130: =Z130/Účinnost_OK -> 5.589629217 | AB130: 0.4791110757 | AC130: =P130*(h_výstupK1-h_eTG1) -> 31.18837187 | AD130: =AC130*ÚčinnostPT*ÚčinnostG/3.6 -> 8.40526622 | AE130: =O130-AC130 -> 220.9363322 | AF130: =AG130*h_eTG1 -> 88.47214513 | AG130: =IF(AP130<MminTG2,MminTG2+AM130+AI130,AH130) -> 29.94994757 | AH130: =P130-M130-AU130 -> 23.85651494 | AI130: 17.43700167 | AJ130: =(M130+AH130)*(h_vNTO2-h_vNTO1)/(h_RO-h_vNTO2+h_vNTO2-h_vNTO1) -> 4.356662546 | AK130: =AJ130*(h_RO-h_vNTO2) -> 10.24687031 | AL130: =AS130/(h_RO-h_VHV) -> 13.08033912 | AM130: =(M130+AH130-AI130)*(h_vNTO1-h_VK)/(h_NRO-h_VK) -> 2.512945905 | AN130: =AM130*(h_NRO-h_vNTO1) -> 5.73202961 | AO130: =IF(AP130<MminTG2,MminTG2,AP130) -> 10 | AP130: 3.906567366 | AQ130: =BL130*(h_kondTG2-h_VK) -> 22.34 | AR130: =(BL130*(h_eTG1-h_kondTG2)+AM130*(h_eTG1-h_NRO)+AI130*(h_eTG1-h_RO))*ÚčinnostPT*ÚčinnostG/3.6 -> 2.788004064 | AS130: =IF(J130>(3.6*Pn_ZO),(3.6*Pn_ZO),J130) -> 32.4 | AT130: =J130-AS130 -> 0.6429693 | AU130: =AT130/(h_CZT-h_vNTO2) -> 0.2515529343 | AV130: =AW130*(h_CZT-h_vVTO1) -> 0 | AW130: 0 | AX130: =AY130*(h_eTG1-h_nvK1) -> 0 | AY130: 0 | AZ130: 11.19327028 | BA130: 8.884405757 | BB130: 2.308864527 | BC130: VT | BK130: 29.94994757 | BL130: 10 | BM130: =AZ130*cskut -> 5.036971628 | BN130: 6.156298656 | BP130: =IF(BC130="NT",BA130*Ekonomika!$B$22,BA130*Ekonomika!$B$23)-U130*Ekonomika!$B$14-U130*(Výhřevnost_HU/3.6)*Emisní_faktor_CO2_HU*Ekonomika!$B$24 -> -14725.86147 | BQ130: -14725.86147 | BR130: -15062.03072 | BS130: MIN
F131: 2018-01-06T09:00:00 | G131: 130 | H131: =+I131+J131 -> 179.6677882 | I131: 142.7490382 | J131: 36.91875 | K131: 150.2246736 | L131: 80.55 | M131: 50.8546627 | N131: 159.8214286 | O131: 257.8747346 | P131: 76.49799306 | Q131: =P131 -> 76.49799306 | R131: =P131*(h_výstupK1-h_vNTO2) -> 227.4285334 | S131: =R131/3.6 -> 63.1745926 | T131: 68.66803544 | U131: 14.37237951 | V131: 18 | W131: 18 | X131: 6.093432634 | Y131: 6.093432634 | Z131: 4.751184834 | AA131: 5.589629217 | AB131: =AA131*3.6/Výhřevnost_LTO+IF(AA131>0,IF(AA130=0,Spotřeba_LTO_na_zátop_OK,0),0) -> 0.4791110757 | AC131: 31.89966311 | AD131: 8.596959207 | AE131: 225.9750715 | AF131: 88.52802407 | AG131: 29.96886394 | AH131: =P131-M131-AU131 -> 23.8754313 | AI131: =AJ131+AL131 -> 17.44807079 | AJ131: 4.367731675 | AK131: 10.2729049 | AL131: 13.08033912 | AM131: 2.520793142 | AN131: 5.749929157 | AO131: 10 | AP131: =AH131-AI131-AM131 -> 3.906567366 | AQ131: 22.34 | AR131: 2.789502966 | AS131: 32.4 | AT131: 4.51875 | AU131: 1.767899061 | AV131: 0 | AW131: 0 | AX131: 0 | AY131: 0 | AZ131: =AR131+AD131 -> 11.38646217 | BA131: =MAX(AZ131-BB131,0) -> 9.047747294 | BB131: =1+1.4*P131/80 -> 2.338714879 | BC131: VT | BK131: 29.96886394 | BL131: =AO131+(BK131-AG131) -> 10 | BM131: 5.123907978 | BN131: =AZ131-BM131 -> 6.262554195 | BP131: =IF(BC131="NT",BA131*Ekonomika!$B$22,BA131*Ekonomika!$B$23)-U131*Ekonomika!$B$14-U131*(Výhřevnost_HU/3.6)*Emisní_faktor_CO2_HU*Ekonomika!$B$24 -> -15103.96215 | BQ131: -15103.96215 | BR131: -15330.02312 | BS131: =IF(BQ131>=BR131,"MIN","MAX") -> MIN
F132: 2018-01-06T10:00:00 | G132: 131 | H132: 160.1817879 | I132: 128.4192879 | J132: 31.7625 | K132: 135.1444875 | L132: 69.3 | M132: 45.74965725 | N132: 137.5 | O132: 254.695426 | P132: 75.55485792 | Q132: 75.55485792 | R132: =P132*(h_výstupK1-h_vNTO2) -> 224.6245926 | S132: 62.39572016 | T132: 67.82143496 | U132: 14.19518406 | V132: 0 | W132: 0 | X132: 0 | Y132: 0 | Z132: 0 | AA132: 0 | AB132: 0 | AC132: 31.50637575 | AD132: 8.490968265 | AE132: 223.1890503 | AF132: 88.04456277 | AG132: 29.80520067 | AH132: =P132-M132-AU132 -> 29.80520067 | AI132: 17.23890779 | AJ132: 4.415936451 | AK132: 10.38628253 | AL132: 12.82297134 | AM132: 2.56629286 | AN132: 5.853714013 | AO132: 10.00000002 | AP132: 10.00000002 | AQ132: 22.34000015 | AR132: 2.783165987 | AS132: 31.7625 | AT132: 0 | AU132: 0 | AV132: 0 | AW132: 0 | AX132: 0 | AY132: 0 | AZ132: 11.27413425 | BA132: 8.951924239 | BB132: 2.322210014 | BC132: VT | BK132: 29.80520071 | BL132: 10.00000007 | BM132: 5.073360413 | BN132: 6.200773839 | BP132: =IF(BC132="NT",BA132*Ekonomika!$B$22,BA132*Ekonomika!$B$23)-U132*Ekonomika!$B$14-U132*(Výhřevnost_HU/3.6)*Emisní_faktor_CO2_HU*Ekonomika!$B$24 -> -14900.82864 | BQ132: -14900.82864 | BR132: -15187.77072 | BS132: MIN
A133: Výpočet podpory KVET | B133: ηcelk | C133: Zelený bonus [Kč/MWh] | D133: Celkem [Kč] | F133: 2018-01-06T11:00:00 | G133: 132 | H133: 149.6251669 | I133: 122.7525112 | J133: 26.8726557 | K133: 129.180947 | L133: 58.6312488 | M133: 43.73085545 | N133: 116.3318429 | O133: 255.0338879 | P133: 75.65526191 | Q133: 75.65526191 | R133: =P133*(h_výstupK1-h_vVTO1) -> 213.5748044 | S133: 59.32633455 | T133: 64.48514625 | U133: 13.49689108 | V133: 0 | W133: 0 | X133: 0 | Y133: 0 | Z133: 0 | AA133: 0 | AB133: 0 | AC133: 31.54824422 | AD133: 8.502251816 | AE133: 223.4856437 | AF133: 81.18934202 | AG133: 27.48454368 | AH133: =P133/(1+S1_)-M133-AU133 -> 27.48454368 | AI133: 15.01118106 | AJ133: 4.162309156 | AK133: 9.789751135 | AL133: 10.8488719 | AM133: 2.473362488 | AN133: 5.641739836 | AO133: 10.00000013 | AP133: 10.00000013 | AQ133: 22.34000086 | AR133: 2.650146243 | AS133: 26.8726557 | AT133: 0 | AU133: 0 | AV133: 10.68230987 | AW133: =(P133-AY133)*(h_vVTO1-h_vNTO2)/(h_CZT-h_vNTO2) -> 4.439862788 | AX133: 0 | AY133: 0 | AZ133: 11.15239806 | BA133: 8.828430976 | BB133: 2.323967083 | BC133: VT | BK133: 27.48454393 | BL133: 10.00000038 | BM133: 5.018579127 | BN133: 6.133818932 | BP133: =IF(BC133="NT",BA133*Ekonomika!$B$22,BA133*Ekonomika!$B$23)-U133*Ekonomika!$B$14-U133*(Výhřevnost_HU/3.6)*Emisní_faktor_CO2_HU*Ekonomika!$B$24 -> -13826.91516 | BQ133: -13826.91516 | BR133: -14076.50161 | BS133: MIN
A134: Leden | B134: =(D71+D86/3.6-SUM(Z$2:Z$745)/1000)/(C101+D101) -> 0.8058452194 | C134: =IF(B134<$C$149,$A$149,IF(B134<$C$150,$A$150,$A$151)) -> 200 | D134: =C134*B71*1000 -> 686851.0662 | F134: 2018-01-06T12:00:00 | G134: 133 | H134: 135.4659449 | I134: 110.9393824 | J134: 24.5265625 | K134: 116.7491755 | L134: 53.5125 | M134: 39.52240198 | N134: 106.1755952 | O134: 250.6254458 | P134: 74.3475069 | Q134: 74.3475069 | R134: =P134*(h_výstupK1-h_nvK1) -> 198.5078434 | S134: 55.14106762 | T134: 59.93594306 | U134: 12.54473227 | V134: 0 | W134: 0 | X134: 0 | Y134: 0 | Z134: 0 | AA134: 0 | AB134: 0 | AC134: 31.00291038 | AD134: 8.355284346 | AE134: 219.6225354 | AF134: 76.83829411 | AG134: 26.01160938 | AH134: =P134/S3_-M134-AU134 -> 26.01160938 | AI134: 13.7319713 | AJ134: 3.830250464 | AK134: 9.008749091 | AL134: 9.901720832 | AM134: 2.279637136 | AN134: 5.199852308 | AO134: 10.00000095 | AP134: 10.00000095 | AQ134: 22.34000558 | AR134: 2.557838193 | AS134: 24.5265625 | AT134: 0 | AU134: 0 | AV134: 9.830101704 | AW134: 4.085661556 | AX134: 10.65180996 | AY134: =P134*(h_nvK1-h_vVTO1)/(h_eTG1-h_vVTO1) -> 4.72783398 | AZ134: 10.91312254 | BA134: 8.612041169 | BB134: 2.301081371 | BC134: VT | BK134: 26.01161093 | BL134: 10.0000025 | BM134: 4.910905143 | BN134: 6.002217397 | BP134: =IF(BC134="NT",BA134*Ekonomika!$B$22,BA134*Ekonomika!$B$23)-U134*Ekonomika!$B$14-U134*(Výhřevnost_HU/3.6)*Emisní_faktor_CO2_HU*Ekonomika!$B$24 -> -12414.21965 | BQ134: -12414.21965 | BR134: -12697.96031 | BS134: MIN
A135: Únor | B135: =(D72+D87/3.6-SUM(OFFSET(Z$2,$E86*24,,,):OFFSET(Z$745,$E87*24,,,))/1000)/(C102+D102) -> 0.8015860745 | C135: 200 | D135: =C135*B72*1000 -> 604059.323 | F135: 2018-01-06T13:00:00 | G135: 134 | H135: 129.0885099 | I135: 105.3267906 | J135: 23.7617193 | K135: 110.8426575 | L135: 51.8437512 | M135: 37.52290368 | N135: 102.8645857 | O135: 240.8759481 | P135: 71.4553391 | Q135: 71.4553391 | R135: 190.7857554 | S135: 52.99604316 | T135: 57.60439474 | U135: 12.05673378 | V135: 0 | W135: 0 | X135: 0 | Y135: 0 | Z135: 0 | AA135: 0 | AB135: 0 | AC135: 29.7968764 | AD135: 8.030258191 | AE135: 211.0790717 | AF135: 75.21412989 | AG135: 25.46179075 | AH135: 25.46179075 | AI135: 13.27419395 | AJ135: 3.681251156 | AK135: 8.658302719 | AL135: 9.592942794 | AM135: 2.187595369 | AN135: 4.989905037 | AO135: 10.00000143 | AP135: 10.00000143 | AQ135: 22.34000844 | AR135: 2.522227695 | AS135: 23.7617193 | AT135: 0 | AU135: 0 | AV135: 9.447704166 | AW135: 3.926726586 | AX135: 10.23744742 | AY135: 4.543918072 | AZ135: 10.55248589 | BA135: 8.302017452 | BB135: 2.250468434 | BC135: VT | BK135: 25.4617931 | BL135: 10.00000378 | BM135: 4.748618649 | BN135: 5.803867237 | BP135: =IF(BC135="NT",BA135*Ekonomika!$B$22,BA135*Ekonomika!$B$23)-U135*Ekonomika!$B$14-U135*(Výhřevnost_HU/3.6)*Emisní_faktor_CO2_HU*Ekonomika!$B$24 -> -11904.41209 | BQ135: -11904.41209 | BR135: -12333.33217 | BS135: MIN
A136: Březen | B136: =(D73+D88/3.6-SUM(OFFSET(OFFSET(Z$2,SUM($E$86:$E86)*24,,,),$E87*24,,,):OFFSET(OFFSET(Z$745,SUM($E$87:$E87)*24,,,),$E88*24,,,))/1000)/(C103+D103) -> 0.7705399271 | C136: 200 | D136: 568988.1621 | F136: 2018-01-06T14:00:00 | G136: 135 | H136: 119.9926507 | I136: 99.44499504 | J136: 20.5476557 | K136: 104.6528377 | L136: 44.8312488 | M136: 35.4275009 | N136: 88.95089048 | O136: 226.702779 | P136: 67.25089855 | Q136: 67.25089855 | R136: 179.5598991 | S136: 49.87774976 | T136: 54.21494539 | U136: 11.34731415 | V136: 0 | W136: 0 | X136: 0 | Y136: 0 | Z136: 0 | AA136: 0 | AB136: 0 | AC136: 28.0436247 | AD136: 7.557756856 | AE136: 198.6591543 | AF136: 70.45634648 | AG136: 23.85116672 | AH136: 23.85116672 | AI136: 11.76002568 | AJ136: 3.464645906 | AK136: 8.14884717 | AL136: 8.295379774 | AM136: 2.091138895 | AN136: 4.76988782 | AO136: 10.00000214 | AP136: 10.00000214 | AQ136: 22.34001259 | AR136: 2.428038136 | AS136: 20.5476557 | AT136: 0 | AU136: 0 | AV136: 8.891800143 | AW136: 3.695677532 | AX136: 9.635074808 | AY136: 4.276553399 | AZ136: 9.985794991 | BA136: 7.808904267 | BB136: 2.176890725 | BC136: VT | BK136: 23.85117021 | BL136: 10.00000564 | BM136: 4.493607746 | BN136: 5.492187245 | BP136: =IF(BC136="NT",BA136*Ekonomika!$B$22,BA136*Ekonomika!$B$23)-U136*Ekonomika!$B$14-U136*(Výhřevnost_HU/3.6)*Emisní_faktor_CO2_HU*Ekonomika!$B$24 -> -11208.92715 | BQ136: -11208.92715 | BR136: -11848.89937 | BS136: MIN
A137: Duben | B137: =(D74+D89/3.6-SUM(OFFSET(OFFSET(Z$2,SUM($E$86:$E87)*24,,,),$E88*24,,,):OFFSET(OFFSET(Z$745,SUM($E$87:$E88)*24,,,),$E89*24,,,))/1000)/(C104+D104) -> 0.6914245716 | C137: 140 | D137: 342520.5753 | F137: 2018-01-06T15:00:00 | G137: 136 | H137: 95.85745052 | I137: 84.58245052 | J137: 11.275 | K137: 89.01195541 | L137: 24.6 | M137: 30.13268633 | N137: 48.80952381 | O137: 189.0013898 | P137: 56.0668614 | Q137: 56.0668614 | R137: 149.6985199 | S137: 41.5829222 | T137: 45.19882848 | U137: 9.460219914 | V137: 0 | W137: 0 | X137: 0 | Y137: 0 | Z137: 0 | AA137: 0 | AB137: 0 | AC137: 23.3798812 | AD137: 6.300877984 | AE137: 165.6215086 | AF137: 56.97601752 | AG137: 19.28775136 | AH137: 19.28775136 | AI137: 7.440341603 | AJ137: 2.888464332 | AK137: 6.79366811 | AL137: 4.551877271 | AM137: 1.847405737 | AN137: 4.213932486 | AO137: 10.00000402 | AP137: 10.00000402 | AQ137: 22.34002364 | AR137: 2.162897466 | AS137: 11.275 | AT137: 0 | AU137: 0 | AV137: 7.413065653 | AW137: 3.081074669 | AX137: 8.03273139 | AY137: 3.565349041 | AZ137: 8.46377545 | BA137: 6.482605375 | BB137: 1.981170074 | BC137: VT | BK137: 19.28775792 | BL137: 10.00001058 | BM137: 3.808698952 | BN137: 4.655076497 | BP137: =IF(BC137="NT",BA137*Ekonomika!$B$22,BA137*Ekonomika!$B$23)-U137*Ekonomika!$B$14-U137*(Výhřevnost_HU/3.6)*Emisní_faktor_CO2_HU*Ekonomika!$B$24 -> -9374.598167 | BQ137: -9374.598167 | BR137: -10575.98037 | BS137: MIN
A138: Květen | B138: =(D75+D90/3.6-SUM(OFFSET(OFFSET(Z$2,SUM($E$86:$E88)*24,,,),$E89*24,,,):OFFSET(OFFSET(Z$745,SUM($E$87:$E89)*24,,,),$E90*24,,,))/1000)/(C105+D105) -> 0.6211542523 | C138: 140 | D138: 354674.4181 | F138: 2018-01-06T16:00:00 | G138: 137 | H138: 124.2880523 | I138: 107.813833 | J138: 16.4742193 | K138: 113.4599439 | L138: 35.9437512 | M138: 38.40891805 | N138: 71.31696667 | O138: 232.6904317 | P138: 69.02712303 | Q138: 69.02712303 | R138: 184.3024185 | S138: 51.19511625 | T138: 55.64686549 | U138: 11.64701836 | V138: 0 | W138: 0 | X138: 0 | Y138: 0 | Z138: 0 | AA138: 0 | AB138: 0 | AC138: 28.7843103 | AD138: 7.757371627 | AE138: 203.9061214 | AF138: 66.27420771 | AG138: 22.43541222 | AH138: 22.43541222 | AI138: 10.20702959 | AJ138: 3.556153811 | AK138: 8.364073764 | AL138: 6.650875777 | AM138: 2.228380793 | AN138: 5.082936589 | AO138: 10.00000184 | AP138: 10.00000184 | AQ138: 22.34001084 | AR138: 2.358228792 | AS138: 16.4742193 | AT138: 0 | AU138: 0 | AV138: 9.126649542 | AW138: 3.793287424 | AX138: 9.889555508 | AY138: 4.38950533 | AZ138: 10.11560042 | BA138: 7.907625766 | BB138: 2.207974653 | BC138: VT | BK138: 22.43541523 | BL138: 10.00000485 | BM138: 4.552020189 | BN138: 5.563580231 | BP138: =IF(BC138="NT",BA138*Ekonomika!$B$22,BA138*Ekonomika!$B$23)-U138*Ekonomika!$B$14-U138*(Výhřevnost_HU/3.6)*Emisní_faktor_CO2_HU*Ekonomika!$B$24 -> -11620.65925 | BQ138: -11620.65925 | BR138: -12171.46955 | BS138: MIN
A139: Červen | B139: =(D76+D91/3.6-SUM(OFFSET(OFFSET(Z$2,SUM($E$86:$E89)*24,,,),$E90*24,,,):OFFSET(OFFSET(Z$745,SUM($E$87:$E90)*24,,,),$E91*24,,,))/1000)/(C106+D106) -> 0.4892823937 | C139: 140 | D139: 373772.8009 | F139: 2018-01-06T17:00:00 | G139: 138 | H139: 137.3663201 | I139: 102.0546019 | J139: 35.3117182 | K139: 107.3991072 | L139: 77.0437488 | M139: 36.35717916 | N139: 152.864581 | O139: 254.4446368 | P139: 75.48046182 | Q139: 75.48046182 | R139: 201.532833 | S139: 55.98134251 | T139: 60.84928534 | U139: 12.73589693 | V139: 0 | W139: 0 | X139: 0 | Y139: 0 | Z139: 0 | AA139: 0 | AB139: 0 | AC139: 31.47535258 | AD139: 8.48260752 | AE139: 222.9692842 | AF139: 85.77326434 | AG139: 29.03631156 | AH139: 29.03631156 | AI139: 16.90237661 | AJ139: 3.822037488 | AK139: 8.989432171 | AL139: 13.08033912 | AM139: 2.133934192 | AN139: 4.867503891 | AO139: 10.00000076 | AP139: 10.00000076 | AQ139: 22.34000446 | AR139: 2.715609276 | AS139: 32.4 | AT139: 2.9117182 | AU139: 1.139169875 | AV139: 9.979899089 | AW139: 4.147921483 | AX139: 10.81412906 | AY139: 4.799879741 | AZ139: 11.1982168 | BA139: 8.877308714 | BB139: 2.320908082 | BC139: VT | BK139: 29.0363128 | BL139: 10.000002 | BM139: 5.039197558 | BN139: 6.159019238 | BP139: =IF(BC139="NT",BA139*Ekonomika!$B$22,BA139*Ekonomika!$B$23)-U139*Ekonomika!$B$14-U139*(Výhřevnost_HU/3.6)*Emisní_faktor_CO2_HU*Ekonomika!$B$24 -> -12459.19678 | BQ139: -12459.19678 | BR139: -12686.06601 | BS139: MIN
A140: Červenec | B140: =(D77+D92/3.6-SUM(OFFSET(OFFSET(Z$2,SUM($E$86:$E90)*24,,,),$E91*24,,,):OFFSET(OFFSET(Z$745,SUM($E$87:$E91)*24,,,),$E92*24,,,))/1000)/(C107+D107) -> 0.5383805169 | C140: 140 | D140: 37838.89763 | F140: 2018-01-06T18:00:00 | G140: 139 | H140: 134.0259485 | I140: 106.371261 | J140: 27.6546875 | K140: 111.9418258 | L140: 60.3375 | M140: 37.89499859 | N140: 119.7172619 | O140: 248.8405154 | P140: 73.81801109 | Q140: 73.81801109 | R140: 197.0940896 | S140: 54.74835823 | T140: 59.50908503 | U140: 12.45538989 | V140: 0 | W140: 0 | X140: 0 | Y140: 0 | Z140: 0 | AA140: 0 | AB140: 0 | AC140: 30.78211063 | AD140: 8.295778814 | AE140: 218.0584048 | AF140: 80.26693236 | AG140: 27.17228584 | AH140: 27.17228584 | AI140: 14.96756101 | AJ140: 3.802971788 | AK140: 8.944589645 | AL140: 11.16458922 | AM140: 2.204723788 | AN140: 5.028974961 | AO140: 10.00000104 | AP140: 10.00000104 | AQ140: 22.34000611 | AR140: 2.61726885 | AS140: 27.6546875 | AT140: 0 | AU140: 0 | AV140: 9.760092664 | AW140: 4.056563867 | AX140: 10.57594879 | AY140: 4.6941628 | AZ140: 10.91304766 | BA140: 8.62123247 | BB140: 2.291815194 | BC140: VT | BK140: 27.17228753 | BL140: 10.00000273 | BM140: 4.910871449 | BN140: 6.002176215 | BP140: =IF(BC140="NT",BA140*Ekonomika!$B$22,BA140*Ekonomika!$B$23)-U140*Ekonomika!$B$14-U140*(Výhřevnost_HU/3.6)*Emisní_faktor_CO2_HU*Ekonomika!$B$24 -> -12249.93165 | BQ140: -12249.93165 | BR140: -12560.25164 | BS140: MIN
A141: Srpen | B141: =(D78+D93/3.6-SUM(OFFSET(OFFSET(Z$2,SUM($E$86:$E91)*24,,,),$E92*24,,,):OFFSET(OFFSET(Z$745,SUM($E$87:$E92)*24,,,),$E93*24,,,))/1000)/(C108+D108) -> 0.5045655131 | C141: 140 | D141: 380867.7228 | F141: 2018-01-06T19:00:00 | G141: 140 | H141: 137.5708283 | I141: 109.5637965 | J141: 28.0070318 | K141: 115.3015514 | L141: 61.1062512 | M141: 39.03234644 | N141: 121.2425619 | O141: 254.2505629 | P141: 75.4228902 | Q141: 75.4228902 | R141: 201.3791168 | S141: 55.93864357 | T141: 60.80287344 | U141: 12.72618281 | V141: 0 | W141: 0 | X141: 0 | Y141: 0 | Z141: 0 | AA141: 0 | AB141: 0 | AC141: 31.45134521 | AD141: 8.476137535 | AE141: 222.7992177 | AF141: 81.08602192 | AG141: 27.44956734 | AH141: 27.44956734 | AI141: 15.19248789 | AJ141: 3.885652287 | AK141: 9.139054178 | AL141: 11.30683561 | AM141: 2.257078675 | AN141: 5.148396457 | AO141: 10.00000077 | AP141: 10.00000077 | AQ141: 22.34000452 | AR141: 2.63557493 | AS141: 28.0070318 | AT141: 0 | AU141: 0 | AV141: 9.972287067 | AW141: 4.144757717 | AX141: 10.80588074 | AY141: 4.796218704 | AZ141: 11.11171247 | BA141: 8.791811887 | BB141: 2.319900579 | BC141: VT | BK141: 27.44956859 | BL141: 10.00000202 | BM141: 5.000270609 | BN141: 6.111441856 | BP141: =IF(BC141="NT",BA141*Ekonomika!$B$22,BA141*Ekonomika!$B$23)-U141*Ekonomika!$B$14-U141*(Výhřevnost_HU/3.6)*Emisní_faktor_CO2_HU*Ekonomika!$B$24 -> -12534.39123 | BQ141: -12534.39123 | BR141: -12764.15041 | BS141: MIN
A142: Září | B142: =(D79+D94/3.6-SUM(OFFSET(OFFSET(Z$2,SUM($E$86:$E92)*24,,,),$E93*24,,,):OFFSET(OFFSET(Z$745,SUM($E$87:$E93)*24,,,),$E94*24,,,))/1000)/(C109+D109) -> 0.557316513 | C142: 140 | D142: 353424.9734 | F142: 2018-01-06T20:00:00 | G142: 141 | H142: 133.5484334 | I142: 109.6835902 | J142: 23.8648432 | K142: 115.4276186 | L142: 52.0687488 | M142: 39.07502322 | N142: 103.3110095 | O142: 247.6395779 | P142: 73.46175553 | Q142: 73.46175553 | R142: 196.1428873 | S142: 54.48413535 | T142: 59.22188625 | U142: 12.39527852 | V142: 0 | W142: 0 | X142: 0 | Y142: 0 | Z142: 0 | AA142: 0 | AB142: 0 | AC142: 30.63355205 | AD142: 8.255742279 | AE142: 217.0060258 | AF142: 75.85351451 | AG142: 25.67823782 | AH142: 25.67823782 | AI142: 13.41919351 | AJ142: 3.784618139 | AK142: 8.901421862 | AL142: 9.634575373 | AM142: 2.259043206 | AN142: 5.152877553 | AO142: 10.0000011 | AP142: 10.0000011 | AQ142: 22.34000646 | AR142: 2.53830578 | AS142: 23.8648432 | AT142: 0 | AU142: 0 | AV142: 9.712989155 | AW142: 4.036986349 | AX142: 10.52490785 | AY142: 4.671508144 | AZ142: 10.79404806 | BA142: 8.508467337 | BB142: 2.285580722 | BC142: NT | BK142: 25.67823961 | BL142: 10.00000289 | BM142: 4.857321626 | BN142: 5.936726432 | BP142: =IF(BC142="NT",BA142*Ekonomika!$B$22,BA142*Ekonomika!$B$23)-U142*Ekonomika!$B$14-U142*(Výhřevnost_HU/3.6)*Emisní_faktor_CO2_HU*Ekonomika!$B$24 -> -14657.19033 | BQ142: -14657.19033 | BR142: -15397.45181 | BS142: MIN
A143: Říjen | B143: =(D80+D95/3.6-SUM(OFFSET(OFFSET(Z$2,SUM($E$86:$E93)*24,,,),$E94*24,,,):OFFSET(OFFSET(Z$745,SUM($E$87:$E94)*24,,,),$E95*24,,,))/1000)/(C110+D110) -> 0.6953269588 | C143: 140 | D143: 354467.4874 | F143: 2018-01-06T21:00:00 | G143: 142 | H143: 131.7053805 | I143: 107.2905362 | J143: 24.4148443 | K143: 112.9092426 | L143: 53.2687512 | M143: 38.22249241 | N143: 105.6919667 | O143: 244.9192938 | P143: 72.65478903 | Q143: 72.65478903 | R143: 193.9882867 | S143: 53.8856352 | T143: 58.57134261 | U143: 12.25911822 | V143: 0 | W143: 0 | X143: 0 | Y143: 0 | Z143: 0 | AA143: 0 | AB143: 0 | AC143: 30.29704703 | AD143: 8.165054174 | AE143: 214.6222468 | AF143: 76.27069563 | AG143: 25.81946365 | AH143: 25.81946365 | AI143: 13.59966328 | AJ143: 3.74304467 | AK143: 8.803641063 | AL143: 9.856618611 | AM143: 2.219799137 | AN143: 5.063361832 | AO143: 10.00000123 | AP143: 10.00000123 | AQ143: 22.34000725 | AR143: 2.54377509 | AS143: 24.4148443 | AT143: 0 | AU143: 0 | AV143: 9.606293409 | AW143: 3.992640652 | AX143: 10.4092933 | AY143: 4.62019232 | AZ143: 10.70882926 | BA143: 8.437370455 | BB143: 2.271458808 | BC143: NT | BK143: 25.81946567 | BL143: 10.00000325 | BM143: 4.818973168 | BN143: 5.889856095 | BP143: =IF(BC143="NT",BA143*Ekonomika!$B$22,BA143*Ekonomika!$B$23)-U143*Ekonomika!$B$14-U143*(Výhřevnost_HU/3.6)*Emisní_faktor_CO2_HU*Ekonomika!$B$24 -> -14478.40168 | BQ143: -14478.40168 | BR143: -15310.02809 | BS143: MIN
A144: Listopad | B144: =(D81+D96/3.6-SUM(OFFSET(OFFSET(Z$2,SUM($E$86:$E94)*24,,,),$E95*24,,,):OFFSET(OFFSET(Z$745,SUM($E$87:$E95)*24,,,),$E96*24,,,))/1000)/(C111+D111) -> 0.7743776597 | C144: 200 | D144: 563229.4625 | F144: 2018-01-06T22:00:00 | G144: 143 | H144: 125.9069113 | I144: 105.9178488 | J144: 19.9890625 | K144: 111.4646688 | L144: 43.6125 | M144: 37.73346947 | N144: 86.5327381 | O144: 235.5842307 | P144: 69.88556237 | Q144: 69.88556237 | R144: 186.5944515 | S144: 51.83179209 | T144: 56.33890444 | U144: 11.79186372 | V144: 0 | W144: 0 | X144: 0 | Y144: 0 | Z144: 0 | AA144: 0 | AB144: 0 | AC144: 29.14227951 | AD144: 7.853844327 | AE144: 206.4419512 | AF144: 70.50470368 | AG144: 23.86753679 | AH144: 23.86753679 | AI144: 11.67024685 | AJ144: 3.600379069 | AK144: 8.46809157 | AL144: 8.069867784 | AM144: 2.197288239 | AN144: 5.012014473 | AO144: 10.0000017 | AP144: 10.0000017 | AQ144: 22.34000999 | AR144: 2.435145747 | AS144: 19.9890625 | AT144: 0 | AU144: 0 | AV144: 9.240150939 | AW144: 3.840461737 | AX144: 10.0125446 | AY144: 4.444094365 | AZ144: 10.28899007 | BA144: 8.065992732 | BB144: 2.222997341 | BC144: NT | BK144: 23.86753956 | BL144: 10.00000447 | BM144: 4.630045533 | BN144: 5.658944541 | BP144: =IF(BC144="NT",BA144*Ekonomika!$B$22,BA144*Ekonomika!$B$23)-U144*Ekonomika!$B$14-U144*(Výhřevnost_HU/3.6)*Emisní_faktor_CO2_HU*Ekonomika!$B$24 -> -13966.14039 | BQ144: -13966.14039 | BR144: -15111.29925 | BS144: MIN
A145: Prosinec | B145: =(D82+D97/3.6-SUM(OFFSET(OFFSET(Z$2,SUM($E$86:$E95)*24,,,),$E96*24,,,):OFFSET(OFFSET(Z$745,SUM($E$87:$E96)*24,,,),$E97*24,,,))/1000)/(C112+D112) -> 0.7998182488 | C145: 200 | D145: 662178.3366 | F145: 2018-01-06T23:00:00 | G145: 144 | H145: 98.89651244 | I145: 86.92541924 | J145: 11.9710932 | K145: 91.47762324 | L145: 26.1187488 | M145: 30.96737415 | N145: 51.82291429 | O145: 193.6891931 | P145: 57.4574883 | Q145: 57.4574883 | R145: 153.4114938 | S145: 42.61430383 | T145: 46.31989546 | U145: 9.694861841 | V145: 0 | W145: 0 | X145: 0 | Y145: 0 | Z145: 0 | AA145: 0 | AB145: 0 | AC145: 23.95977262 | AD145: 6.457158722 | AE145: 169.7294204 | AF145: 58.13129079 | AG145: 19.67883913 | AH145: 19.67883913 | AI145: 7.793006901 | AJ145: 2.960106941 | AK145: 6.962171526 | AL145: 4.83289996 | AM145: 1.885828445 | AN145: 4.301574683 | AO145: 10.00000379 | AP145: 10.00000379 | AQ145: 22.34002226 | AR145: 2.186645625 | AS145: 11.9710932 | AT145: 0 | AU145: 0 | AV145: 7.596931992 | AW145: 3.157494594 | AX145: 8.231967305 | AY145: 3.653780428 | AZ145: 8.643804347 | BA145: 6.638298301 | BB145: 2.005506045 | BC145: NT | BK145: 19.67884531 | BL145: 10.00000997 | BM145: 3.889711956 | BN145: 4.754092391 | BP145: =IF(BC145="NT",BA145*Ekonomika!$B$22,BA145*Ekonomika!$B$23)-U145*Ekonomika!$B$14-U145*(Výhřevnost_HU/3.6)*Emisní_faktor_CO2_HU*Ekonomika!$B$24 -> -11477.13572 | BQ145: -11477.13572 | BR145: -14029.40386 | BS145: MIN
A146: Suma | D146: =SUM(D134:D145) -> 5282873.226 | F146: 2018-01-07 | G146: 145 | H146: 74.11049364 | I146: 63.18783684 | J146: 10.9226568 | K146: 66.49692555 | L146: 23.8312512 | M146: 22.51080757 | N146: 47.28422857 | O146: 156.0403576 | P146: 46.28904112 | Q146: 46.28904112 | R146: 123.5917398 | S146: 34.33103883 | T146: 37.31634656 | U146: 7.810398116 | V146: 0 | W146: 0 | X146: 0 | Y146: 0 | Z146: 0 | AA146: 0 | AB146: 0 | AC146: 19.30253015 | AD146: 5.202031875 | AE146: 136.7378275 | AF146: 54.03137073 | AG146: 18.29091765 | AH146: 18.29091765 | AI146: 6.794359864 | AJ146: 2.384728535 | AK146: 5.608881515 | AL146: 4.409631328 | AM146: 1.496552121 | AN146: 3.413635389 | AO146: 10.00000566 | AP146: 10.00000566 | AQ146: 22.34003329 | AR146: 2.087575673 | AS146: 10.9226568 | AT146: 0 | AU146: 0 | AV146: 6.120258782 | AW146: 2.543748455 | AX146: 6.631857471 | AY146: 2.943567453 | AZ146: 7.289607548 | BA146: 5.479549328 | BB146: 1.81005822 | BC146: NT | BK146: 18.29092689 | BL146: 10.0000149 | BM146: 3.280323397 | BN146: 4.009284151 | BP146: =IF(BC146="NT",BA146*Ekonomika!$B$22,BA146*Ekonomika!$B$23)-U146*Ekonomika!$B$14-U146*(Výhřevnost_HU/3.6)*Emisní_faktor_CO2_HU*Ekonomika!$B$24 -> -9141.628755 | BQ146: -9141.628755 | BR146: -12958.39094 | BS146: MIN
F147: 2018-01-07T01:00:00 | G147: 146 | H147: 77.62797818 | I147: 65.74282248 | J147: 11.8851557 | K147: 69.18571343 | L147: 25.9312488 | M147: 23.42102689 | N147: 51.45089048 | O147: 161.4859221 | P147: 47.90445626 | Q147: 47.90445626 | R147: 127.9048982 | S147: 35.52913839 | T147: 38.61862869 | U147: 8.082968796 | V147: 0 | W147: 0 | X147: 0 | Y147: 0 | Z147: 0 | AA147: 0 | AB147: 0 | AC147: 19.97615826 | AD147: 5.383574651 | AE147: 141.5097638 | AF147: 55.54883189 | AG147: 18.80461472 | AH147: 18.80461472 | AI147: 7.266157605 | AJ147: 2.467951832 | AK147: 5.804622708 | AL147: 4.798205773 | AM147: 1.538451727 | AN147: 3.509208389 | AO147: 10.00000539 | AP147: 10.00000539 | AQ147: 22.3400317 | AR147: 2.118267968 | AS147: 11.8851557 | AT147: 0 | AU147: 0 | AV147: 6.333846242 | AW147: 2.632521298 | AX147: 6.863298925 | AY147: 3.046293353 | AZ147: 7.501842619 | BA147: 5.663514635 | BB147: 1.838327985 | BC147: NT | BK147: 18.80462352 | BL147: 10.00001419 | BM147: 3.375829179 | BN147: 4.126013441 | BP147: =IF(BC147="NT",BA147*Ekonomika!$B$22,BA147*Ekonomika!$B$23)-U147*Ekonomika!$B$14-U147*(Výhřevnost_HU/3.6)*Emisní_faktor_CO2_HU*Ekonomika!$B$24 -> -9466.430753 | BQ147: -9466.430753 | BR147: -13100.29528 | BS147: MIN
A148: Zelený bonus [Kč/MWh] | B148: ηcelk | F148: 2018-01-07T02:00:00 | G148: 147 | H148: 77.61865465 | I148: 64.08349785 | J148: 13.5351568 | K148: 67.43949151 | L148: 29.5312512 | M148: 22.8298888 | N148: 58.59375238 | O148: 161.6799893 | P148: 47.96202591 | Q148: 47.96202591 | R148: 128.0586092 | S148: 35.57183588 | T148: 38.665039 | U148: 8.092682582 | V148: 0 | W148: 0 | X148: 0 | Y148: 0 | Z148: 0 | AA148: 0 | AB148: 0 | AC148: 20.0001648 | AD148: 5.390044415 | AE148: 141.6798245 | AF148: 57.44495477 | AG148: 19.44649789 | AH148: 19.44649789 | AI148: 7.935252315 | AJ148: 2.470917717 | AK148: 5.81159847 | AL148: 5.464334598 | AM148: 1.511240197 | AN148: 3.447138889 | AO148: 10.00000538 | AP148: 10.00000538 | AQ148: 22.34003164 | AR148: 2.151966046 | AS148: 13.5351568 | AT148: 0 | AU148: 0 | AV148: 6.341458003 | AW148: 2.635684956 | AX148: 6.871546962 | AY148: 3.049954266 | AZ148: 7.542010461 | BA148: 5.702675008 | BB148: 1.839335453 | BC148: NT | BK148: 19.44650668 | BL148: 10.00001416 | BM148: 3.393904707 | BN148: 4.148105754 | BP148: =IF(BC148="NT",BA148*Ekonomika!$B$22,BA148*Ekonomika!$B$23)-U148*Ekonomika!$B$14-U148*(Výhřevnost_HU/3.6)*Emisní_faktor_CO2_HU*Ekonomika!$B$24 -> -9452.08623 | BQ148: -9452.08623 | BR148: -13079.43271 | BS148: MIN
A149: 60 | B149: 0 | C149: 0.45 | F149: 2018-01-07T03:00:00 | G149: 148 | H149: 84.39769889 | I149: 68.76566819 | J149: 15.6320307 | K149: 72.36686278 | L149: 34.1062488 | M149: 24.4979224 | N149: 67.67112857 | O149: 172.2054314 | P149: 51.08437596 | Q149: 51.08437596 | R149: 136.3952838 | S149: 37.88757884 | T149: 41.18215091 | U149: 8.619519958 | V149: 0 | W149: 0 | X149: 0 | Y149: 0 | Z149: 0 | AA149: 0 | AB149: 0 | AC149: 21.30218478 | AD149: 5.740938797 | AE149: 150.9032466 | AF149: 60.64761866 | AG149: 20.5306766 | AH149: 20.5306766 | AI149: 8.942647907 | AJ149: 2.631775602 | AK149: 6.189936216 | AL149: 6.310872305 | AM149: 1.588023833 | AN149: 3.622282362 | AO149: 10.00000486 | AP149: 10.00000486 | AQ149: 22.34002856 | AR149: 2.216062261 | AS149: 15.6320307 | AT149: 0 | AU149: 0 | AV149: 6.75428985 | AW149: 2.807269264 | AX149: 7.318887844 | AY149: 3.248507698 | AZ149: 7.957001058 | BA149: 6.063024479 | BB149: 1.893976579 | BC149: NT | BK149: 20.53068452 | BL149: 10.00001278 | BM149: 3.580650476 | BN149: 4.376350582 | BP149: =IF(BC149="NT",BA149*Ekonomika!$B$22,BA149*Ekonomika!$B$23)-U149*Ekonomika!$B$14-U149*(Výhřevnost_HU/3.6)*Emisní_faktor_CO2_HU*Ekonomika!$B$24 -> -10076.08454 | BQ149: -10076.08454 | BR149: -13349.91786 | BS149: MIN
A150: 140 | B150: 0.45 | C150: 0.75 | F150: 2018-01-07T04:00:00 | G150: 149 | H150: 95.80811471 | I150: 78.43155221 | J150: 17.3765625 | K150: 82.53894023 | L150: 37.9125 | M150: 27.94141511 | N150: 75.22321429 | O150: 189.6965443 | P150: 56.27307751 | Q150: 56.27307751 | R150: 150.249117 | S150: 41.73586582 | T150: 45.36507154 | U150: 9.495014974 | V150: 0 | W150: 0 | X150: 0 | Y150: 0 | Z150: 0 | AA150: 0 | AB150: 0 | AC150: 23.46587332 | AD150: 6.32405286 | AE150: 166.230671 | AF150: 63.98598218 | AG150: 21.66079289 | AH150: 21.66079289 | AI150: 9.914252731 | AJ150: 2.899088217 | AK150: 6.818655487 | AL150: 7.015164514 | AM150: 1.74653617 | AN150: 3.983849005 | AO150: 10.00000398 | AP150: 10.00000398 | AQ150: 22.34002343 | AR150: 2.287463527 | AS150: 17.3765625 | AT150: 0 | AU150: 0 | AV150: 7.440331199 | AW150: 3.092406982 | AX150: 8.062276091 | AY150: 3.578462535 | AZ150: 8.611516387 | BA150: 6.626737531 | BB150: 1.984778856 | BC150: NT | BK150: 21.66079939 | BL150: 10.00001049 | BM150: 3.875182374 | BN150: 4.736334013 | BP150: =IF(BC150="NT",BA150*Ekonomika!$B$22,BA150*Ekonomika!$B$23)-U150*Ekonomika!$B$14-U150*(Výhřevnost_HU/3.6)*Emisní_faktor_CO2_HU*Ekonomika!$B$24 -> -11140.95541 | BQ150: -11140.95541 | BR150: -13827.3228 | BS150: MIN
A151: 200 | B151: 0.75 | C151: 1 | F151: 2018-01-07T05:00:00 | G151: 150 | H151: 140.4176785 | I151: 114.2239285 | J151: 26.19375 | K151: 120.2057303 | L151: 57.15 | M151: 40.69252886 | N151: 113.3928571 | O151: 258.330825 | P151: 76.63329132 | Q151: 76.63329132 | R151: 204.6108878 | S151: 56.83635773 | T151: 61.7786497 | U151: 12.93041505 | V151: 0 | W151: 0 | X151: 0 | Y151: 0 | Z151: 0 | AA151: 0 | AB151: 0 | AC151: 31.95608248 | AD151: 8.612164228 | AE151: 226.3747426 | AF151: 79.33350877 | AG151: 26.85629952 | AH151: 26.85629952 | AI151: 14.52279804 | AJ151: 3.948009985 | AK151: 9.285719486 | AL151: 10.57478805 | AM151: 2.333500916 | AN151: 5.32271559 | AO151: 10.00000057 | AP151: 10.00000057 | AQ151: 22.34000333 | AR151: 2.607427467 | AS151: 26.19375 | AT151: 0 | AU151: 0 | AV151: 10.13232426 | AW151: 4.21127359 | AX151: 10.9792956 | AY151: 4.873189348 | AZ151: 11.2195917 | BA151: 8.878509098 | BB151: 2.341082598 | BC151: NT | BK151: 26.85630044 | BL151: 10.00000149 | BM151: 5.048816263 | BN151: 6.170775433 | BP151: =IF(BC151="NT",BA151*Ekonomika!$B$22,BA151*Ekonomika!$B$23)-U151*Ekonomika!$B$14-U151*(Výhřevnost_HU/3.6)*Emisní_faktor_CO2_HU*Ekonomika!$B$24 -> -15287.8259 | BQ151: -15287.8259 | BR151: -15669.0054 | BS151: MIN
F152: 2018-01-07T06:00:00 | G152: 151 | H152: 190.8240598 | I152: 152.9428098 | J152: 37.88125 | K152: 160.9522836 | L152: 82.65 | M152: 54.48621651 | N152: 163.9880952 | O152: 269.68 | P152: 80 | Q152: 80 | R152: =P152*(h_výstupK1-h_vNTO2) -> 237.84 | S152: 66.06666667 | T152: 71.8115942 | U152: 15.03033367 | V152: 20.41721504 | W152: 20.41721504 | X152: 6.911718023 | Y152: 6.911718023 | Z152: 5.389220136 | AA152: 6.340258984 | AB152: 2.54345077 | AC152: 33.36 | AD152: 8.99052 | AE152: 236.32 | AF152: 89.45018478 | AG152: 30.2810375 | AH152: =P152-M152-AU152 -> 23.36931948 | AI152: 17.63074274 | AJ152: 4.550403625 | AK152: 10.70254933 | AL152: 13.08033912 | AM152: 2.650294757 | AN152: 6.045322342 | AO152: 10 | AP152: 3.088281977 | AQ152: 22.34 | AR152: 2.814239093 | AS152: 32.4 | AT152: 5.48125 | AU152: 2.144464006 | AV152: 0 | AW152: 0 | AX152: 0 | AY152: 0 | AZ152: 11.80475909 | BA152: 9.404759093 | BB152: 2.4 | BC152: NT | BK152: 30.2810375 | BL152: 10 | BM152: 5.312141592 | BN152: 6.492617501 | BP152: =IF(BC152="NT",BA152*Ekonomika!$B$22,BA152*Ekonomika!$B$23)-U152*Ekonomika!$B$14-U152*(Výhřevnost_HU/3.6)*Emisní_faktor_CO2_HU*Ekonomika!$B$24 -> -18498.50056 | BQ152: -18498.50056 | BR152: -18498.50056 | BS152: MIN
F153: 2018-01-07T07:00:00 | G153: 152 | H153: 178.7322896 | I153: 140.9307271 | J153: 37.8015625 | K153: 148.3111392 | L153: 82.47613636 | M153: 50.20688531 | N153: 163.6431277 | O153: 256.613072 | P153: 76.12372353 | Q153: 76.12372353 | R153: =P153*(h_výstupK1-h_vNTO2) -> 226.3158301 | S153: 62.86550835 | T153: 68.33207429 | U153: 14.30206206 | V153: 18 | W153: 18 | X153: 6.093432634 | Y153: 6.093432634 | Z153: 4.751184834 | AA153: 5.589629217 | AB153: 0.4791110757 | AC153: 31.74359271 | AD153: 8.554898236 | AE153: 224.8694793 | AF153: 88.31568924 | AG153: 29.89698349 | AH153: =P153-M153-AU153 -> 23.80355086 | AI153: 17.40600913 | AJ153: 4.325670008 | AK153: 10.17397586 | AL153: 13.08033912 | AM153: 2.490974367 | AN153: 5.681912531 | AO153: 10 | AP153: 3.906567366 | AQ153: 22.34 | AR153: 2.783807276 | AS153: 32.4 | AT153: 5.4015625 | AU153: 2.113287363 | AV153: 0 | AW153: 0 | AX153: 0 | AY153: 0 | AZ153: 11.33870551 | BA153: 9.00654035 | BB153: 2.332165162 | BC153: NT | BK153: 29.89698349 | BL153: 10 | BM153: 5.10241748 | BN153: 6.236288031 | BP153: =IF(BC153="NT",BA153*Ekonomika!$B$22,BA153*Ekonomika!$B$23)-U153*Ekonomika!$B$14-U153*(Výhřevnost_HU/3.6)*Emisní_faktor_CO2_HU*Ekonomika!$B$24 -> -17556.49339 | BQ153: -17556.49339 | BR153: -18069.96947 | BS153: MIN
F154: 2018-01-07T08:00:00 | G154: 153 | H154: 175.4158373 | I154: 141.307243 | J154: 34.1085943 | K154: 148.707373 | L154: 74.4187512 | M154: 50.34101996 | N154: 147.6562524 | O154: 252.2449155 | P154: 74.82791916 | Q154: 74.82791916 | R154: =P154*(h_výstupK1-h_vNTO2) -> 222.4634037 | S154: 61.79538991 | T154: 67.16890207 | U154: 14.05860741 | V154: 18 | W154: 18 | X154: 6.093432634 | Y154: 6.093432634 | Z154: 4.751184834 | AA154: 5.589629217 | AB154: 0.4791110757 | AC154: 31.20324229 | AD154: 8.409273797 | AE154: 221.0416732 | AF154: 88.35965722 | AG154: 29.91186771 | AH154: =P154-M154-AU154 -> 23.81843508 | AI154: 17.4147188 | AJ154: 4.334379678 | AK154: 10.194461 | AL154: 13.08033912 | AM154: 2.497148912 | AN154: 5.695996669 | AO154: 10 | AP154: 3.906567366 | AQ154: 22.34 | AR154: 2.784986677 | AS154: 32.4 | AT154: 1.7085943 | AU154: 0.6684641236 | AV154: 0 | AW154: 0 | AX154: 0 | AY154: 0 | AZ154: 11.19426047 | BA154: 8.884771889 | BB154: 2.309488585 | BC154: VT | BK154: 29.91186771 | BL154: 10 | BM154: 5.037417213 | BN154: 6.156843261 | BP154: =IF(BC154="NT",BA154*Ekonomika!$B$22,BA154*Ekonomika!$B$23)-U154*Ekonomika!$B$14-U154*(Výhřevnost_HU/3.6)*Emisní_faktor_CO2_HU*Ekonomika!$B$24 -> -14737.04611 | BQ154: -14737.04611 | BR154: -15070.91341 | BS154: MIN
F155: 2018-01-07T09:00:00 | G155: 154 | H155: 172.459167 | I155: 137.8177613 | J155: 34.6414057 | K155: 145.0351503 | L155: 75.5812488 | M155: 49.09788434 | N155: 149.9627952 | O155: 248.2919978 | P155: 73.6552945 | Q155: 73.6552945 | R155: =P155*(h_výstupK1-h_vNTO2) -> 218.9771905 | S155: 60.82699737 | T155: 66.11630149 | U155: 13.83829566 | V155: 18 | W155: 18 | X155: 6.093432634 | Y155: 6.093432634 | Z155: 4.751184834 | AA155: 5.589629217 | AB155: 0.4791110757 | AC155: 30.71425781 | AD155: 8.277492479 | AE155: 217.5777399 | AF155: 87.95217003 | AG155: 29.7739235 | AH155: =P155-M155-AU155 -> 23.68049087 | AI155: 17.33399916 | AJ155: 4.25366004 | AK155: 10.00460841 | AL155: 13.08033912 | AM155: 2.439924344 | AN155: 5.565467429 | AO155: 10 | AP155: 3.906567366 | AQ155: 22.34 | AR155: 2.774056202 | AS155: 32.4 | AT155: 2.2414057 | AU155: 0.8769192879 | AV155: 0 | AW155: 0 | AX155: 0 | AY155: 0 | AZ155: 11.05154868 | BA155: 8.762581027 | BB155: 2.288967654 | BC155: VT | BK155: 29.7739235 | BL155: 10 | BM155: 4.973196906 | BN155: 6.078351774 | BP155: =IF(BC155="NT",BA155*Ekonomika!$B$22,BA155*Ekonomika!$B$23)-U155*Ekonomika!$B$14-U155*(Výhřevnost_HU/3.6)*Emisní_faktor_CO2_HU*Ekonomika!$B$24 -> -14487.7679 | BQ155: -14487.7679 | BR155: -14897.33028 | BS155: MIN
F156: 2018-01-07T10:00:00 | G156: 155 | H156: 168.4005516 | I156: 134.9497698 | J156: 33.4507818 | K156: 142.0169647 | L156: 72.98352393 | M156: 48.07615595 | N156: 144.8085792 | O156: 265.7155818 | P156: 78.82396374 | Q156: 78.82396374 | R156: =P156*(h_výstupK1-h_vNTO2) -> 234.3436442 | S156: 65.09545672 | T156: 70.75593122 | U156: 14.80938095 | V156: 0 | W156: 0 | X156: 0 | Y156: 0 | Z156: 0 | AA156: 0 | AB156: 0 | AC156: 32.86959288 | AD156: 8.858355281 | AE156: 232.8459889 | AF156: 89.614623 | AG156: 30.33670379 | AH156: =P156-M156-AU156 -> 30.33670379 | AI156: 17.66331651 | AJ156: 4.582977391 | AK156: 10.77916282 | AL156: 13.08033912 | AM156: 2.673387276 | AN156: 6.097996376 | AO156: 10.00000001 | AP156: 10.00000001 | AQ156: 22.34000004 | AR156: 2.818650001 | AS156: 32.4 | AT156: 1.0507818 | AU156: 0.4111039906 | AV156: 0 | AW156: 0 | AX156: 0 | AY156: 0 | AZ156: 11.67700528 | BA156: 9.297585917 | BB156: 2.379419365 | BC156: VT | BK156: 30.3367038 | BL156: 10.00000002 | BM156: 5.254652377 | BN156: 6.422352905 | BP156: =IF(BC156="NT",BA156*Ekonomika!$B$22,BA156*Ekonomika!$B$23)-U156*Ekonomika!$B$14-U156*(Výhřevnost_HU/3.6)*Emisní_faktor_CO2_HU*Ekonomika!$B$24 -> -15590.38818 | BQ156: -15590.38818 | BR156: -15666.30348 | BS156: MIN
F157: 2018-01-07T11:00:00 | G157: 156 | H157: 154.3461982 | I157: 125.07823 | J157: 29.2679682 | K157: 131.6284615 | L157: 63.85738516 | M157: 44.55939793 | N157: 126.701161 | O157: 262.008311 | P157: 77.72420974 | Q157: 77.72420974 | R157: =P157*(h_výstupK1-h_vVTO1) -> 219.4154441 | S157: 60.94873447 | T157: 66.24862442 | U157: 13.86599116 | V157: 0 | W157: 0 | X157: 0 | Y157: 0 | Z157: 0 | AA157: 0 | AB157: 0 | AC157: 32.41099546 | AD157: 8.734763277 | AE157: 229.5973156 | AF157: 84.49483323 | AG157: 28.6035319 | AH157: =P157/(1+S1_)-M157-AU157 -> 28.6035319 | AI157: 16.09202951 | AJ157: 4.276136011 | AK157: 10.0574719 | AL157: 11.8158935 | AM157: 2.511502319 | AN157: 5.72873679 | AO157: 10.00000007 | AP157: 10.00000007 | AQ157: 22.34000045 | AR157: 2.713896427 | AS157: 29.2679682 | AT157: 0 | AU157: 0 | AV157: 10.97443947 | AW157: =(P157-AY157)*(h_vVTO1-h_vNTO2)/(h_CZT-h_vNTO2) -> 4.561279914 | AX157: 0 | AY157: 0 | AZ157: 11.4486597 | BA157: 9.088486033 | BB157: 2.36017367 | BC157: VT | BK157: 28.60353203 | BL157: 10.0000002 | BM157: 5.151896867 | BN157: 6.296762837 | BP157: =IF(BC157="NT",BA157*Ekonomika!$B$22,BA157*Ekonomika!$B$23)-U157*Ekonomika!$B$14-U157*(Výhřevnost_HU/3.6)*Emisní_faktor_CO2_HU*Ekonomika!$B$24 -> -14185.00418 | BQ157: -14185.00418 | BR157: -14315.73851 | BS157: MIN
F158: 2018-01-07T12:00:00 | G158: 157 | H158: 140.0532071 | I158: 113.1203946 | J158: 26.9328125 | K158: 119.0444053 | L158: 58.7625 | M158: 40.29939244 | N158: 116.5922619 | O158: 257.8724017 | P158: 76.497301 | Q158: 76.497301 | R158: =P158*(h_výstupK1-h_nvK1) -> 204.2477937 | S158: 56.73549824 | T158: 61.66901983 | U158: 12.90746927 | V158: 0 | W158: 0 | X158: 0 | Y158: 0 | Z158: 0 | AA158: 0 | AB158: 0 | AC158: 31.89937452 | AD158: 8.596881433 | AE158: 225.9730272 | AF158: 80.14073955 | AG158: 27.12956654 | AH158: =P158/S3_-M158-AU158 -> 27.12956654 | AI158: 14.81416206 | AJ158: 3.941004008 | AK158: 9.269241426 | AL158: 10.87315805 | AM158: 2.315403888 | AN158: 5.281436268 | AO158: 10.00000059 | AP158: 10.00000059 | AQ158: 22.34000346 | AR158: 2.621392808 | AS158: 26.9328125 | AT158: 0 | AU158: 0 | AV158: 10.11434385 | AW158: 4.203800435 | AX158: 10.95981219 | AY158: =P158*(h_nvK1-h_vVTO1)/(h_eTG1-h_vVTO1) -> 4.864541585 | AZ158: 11.21827424 | BA158: 8.879571474 | BB158: 2.338702768 | BC158: VT | BK158: 27.1295675 | BL158: 10.00000155 | BM158: 5.048223408 | BN158: 6.170050833 | BP158: =IF(BC158="NT",BA158*Ekonomika!$B$22,BA158*Ekonomika!$B$23)-U158*Ekonomika!$B$14-U158*(Výhřevnost_HU/3.6)*Emisní_faktor_CO2_HU*Ekonomika!$B$24 -> -12753.26985 | BQ158: -12753.26985 | BR158: -12929.09636 | BS158: MIN
F159: 2018-01-07T13:00:00 | G159: 158 | H159: 137.8775191 | I159: 113.7462691 | J159: 24.13125 | K159: 119.7030563 | L159: 52.65 | M159: 40.52236165 | N159: 104.4642857 | O159: 254.2257708 | P159: 75.41553568 | Q159: 75.41553568 | R159: 201.3594803 | S159: 55.93318896 | T159: 60.79694453 | U159: 12.72494188 | V159: 0 | W159: 0 | X159: 0 | Y159: 0 | Z159: 0 | AA159: 0 | AB159: 0 | AC159: 31.44827838 | AD159: 8.475311023 | AE159: 222.7774924 | AF159: 76.66536716 | AG159: 25.95306945 | AH159: 25.95306945 | AI159: 13.62740097 | AJ159: 3.885273395 | AK159: 9.138163025 | AL159: 9.742127574 | AM159: 2.325667713 | AN159: 5.304848054 | AO159: 10.00000077 | AP159: 10.00000077 | AQ159: 22.34000453 | AR159: 2.557311659 | AS159: 24.13125 | AT159: 0 | AU159: 0 | AV159: 9.971314665 | AW159: 4.14435356 | AX159: 10.80482705 | AY159: 4.795751022 | AZ159: 11.03262268 | BA159: 8.712850808 | BB159: 2.319771874 | BC159: VT | BK159: 25.95307071 | BL159: 10.00000203 | BM159: 4.964680207 | BN159: 6.067942475 | BP159: =IF(BC159="NT",BA159*Ekonomika!$B$22,BA159*Ekonomika!$B$23)-U159*Ekonomika!$B$14-U159*(Výhřevnost_HU/3.6)*Emisní_faktor_CO2_HU*Ekonomika!$B$24 -> -12617.19732 | BQ159: -12617.19732 | BR159: -12847.32568 | BS159: MIN
F160: 2018-01-07T14:00:00 | G160: 159 | H160: 138.1332067 | I160: 112.8589874 | J160: 25.2742193 | K160: 118.7693085 | L160: 55.1437512 | M160: 40.20626556 | N160: 109.4122048 | O160: 254.7569917 | P160: 75.57312124 | Q160: 75.57312124 | R160: 201.7802337 | S160: 56.05006492 | T160: 60.9239836 | U160: 12.75153145 | V160: 0 | W160: 0 | X160: 0 | Y160: 0 | Z160: 0 | AA160: 0 | AB160: 0 | AC160: 31.51399156 | AD160: 8.493020724 | AE160: 223.2430001 | AF160: 78.0094393 | AG160: 26.40807018 | AH160: 26.40807018 | AI160: 14.0969524 | AJ160: 3.893391921 | AK160: 9.157257797 | AL160: 10.20356048 | AM160: 2.311117037 | AN160: 5.271657962 | AO160: 10.00000074 | AP160: 10.00000074 | AQ160: 22.34000437 | AR160: 2.581475735 | AS160: 25.2742193 | AT160: 0 | AU160: 0 | AV160: 9.992150361 | AW160: 4.15301345 | AX160: 10.82740443 | AY160: 4.805772049 | AZ160: 11.07449646 | BA160: 8.751966837 | BB160: 2.322529622 | BC160: VT | BK160: 26.40807139 | BL160: 10.00000196 | BM160: 4.983523406 | BN160: 6.090973052 | BP160: =IF(BC160="NT",BA160*Ekonomika!$B$22,BA160*Ekonomika!$B$23)-U160*Ekonomika!$B$14-U160*(Výhřevnost_HU/3.6)*Emisní_faktor_CO2_HU*Ekonomika!$B$24 -> -12621.06567 | BQ160: -12621.06567 | BR160: -12843.28363 | BS160: MIN
F161: 2018-01-07T15:00:00 | G161: 160 | H161: 119.0077054 | I161: 97.0764554 | J161: 21.93125 | K161: 102.1602598 | L161: 47.85 | M161: 34.58370338 | N161: 94.94047619 | O161: 225.3865156 | P161: 66.86043179 | Q161: 66.86043179 | R161: 178.5173529 | S161: 49.58815358 | T161: 53.90016693 | U161: 11.28143029 | V161: 0 | W161: 0 | X161: 0 | Y161: 0 | Z161: 0 | AA161: 0 | AB161: 0 | AC161: 27.88080006 | AD161: 7.513875615 | AE161: 197.5057155 | AF161: 71.93221948 | AG161: 24.3507852 | AH161: 24.3507852 | AI161: 12.29848616 | AJ161: 3.444529757 | AK161: 8.101533989 | AL161: 8.853956399 | AM161: 2.052296838 | AN161: 4.681289087 | AO161: 10.00000221 | AP161: 10.00000221 | AQ161: 22.34001298 | AR161: 2.453234642 | AS161: 21.93125 | AT161: 0 | AU161: 0 | AV161: 8.840173287 | AW161: 3.674219986 | AX161: 9.579132411 | AY161: 4.251723218 | AZ161: 9.967110257 | BA161: 7.797052701 | BB161: 2.170057556 | BC161: VT | BK161: 24.3507888 | BL161: 10.00000581 | BM161: 4.485199616 | BN161: 5.481910641 | BP161: =IF(BC161="NT",BA161*Ekonomika!$B$22,BA161*Ekonomika!$B$23)-U161*Ekonomika!$B$14-U161*(Výhřevnost_HU/3.6)*Emisní_faktor_CO2_HU*Ekonomika!$B$24 -> -11107.8187 | BQ161: -11107.8187 | BR161: -11767.39134 | BS161: MIN
F162: 2018-01-07T16:00:00 | G162: 161 | H162: 119.6183943 | I162: 100.2308943 | J162: 19.3875 | K162: 105.4798937 | L162: 42.3 | M162: 35.70747926 | N162: 83.92857143 | O162: 225.9899218 | P162: 67.03943097 | Q162: 67.03943097 | R162: 178.9952807 | S162: 49.7209113 | T162: 54.04446881 | U162: 11.31163301 | V162: 0 | W162: 0 | X162: 0 | Y162: 0 | Z162: 0 | AA162: 0 | AB162: 0 | AC162: 27.95544271 | AD162: 7.533991811 | AE162: 198.0344791 | AF162: 69.07866704 | AG162: 23.38478911 | AH162: 23.38478911 | AI162: 11.28075995 | AJ162: 3.453751474 | AK162: 8.123223468 | AL162: 7.827008478 | AM162: 2.104026984 | AN162: 4.799285551 | AO162: 10.00000218 | AP162: 10.00000218 | AQ162: 22.3400128 | AR162: 2.403151355 | AS162: 19.3875 | AT162: 0 | AU162: 0 | AV162: 8.863840257 | AW162: 3.684056632 | AX162: 9.604777726 | AY162: 4.263105959 | AZ162: 9.937143166 | BA162: 7.763953125 | BB162: 2.173190042 | BC162: VT | BK162: 23.38479267 | BL162: 10.00000573 | BM162: 4.471714425 | BN162: 5.465428742 | BP162: =IF(BC162="NT",BA162*Ekonomika!$B$22,BA162*Ekonomika!$B$23)-U162*Ekonomika!$B$14-U162*(Výhřevnost_HU/3.6)*Emisní_faktor_CO2_HU*Ekonomika!$B$24 -> -11195.6247 | BQ162: -11195.6247 | BR162: -11846.21204 | BS162: MIN
F163: 2018-01-07T17:00:00 | G163: 162 | H163: 134.6012768 | I163: 110.2723711 | J163: 24.3289057 | K163: 116.0472335 | L163: 53.0812488 | M163: 39.28477775 | N163: 105.3199381 | O163: 249.2917308 | P163: 73.95186318 | Q163: 73.95186318 | R163: 197.4514747 | S163: 54.84763186 | T163: 59.61699115 | U163: 12.47797489 | V163: 0 | W163: 0 | X163: 0 | Y163: 0 | Z163: 0 | AA163: 0 | AB163: 0 | AC163: 30.83792695 | AD163: 8.310821312 | AE163: 218.4538038 | AF163: 76.51005136 | AG163: 25.90049132 | AH163: 25.90049132 | AI163: 13.63179159 | AJ163: 3.809867608 | AK163: 8.960808614 | AL163: 9.821923981 | AM163: 2.268698716 | AN163: 5.174901771 | AO163: 10.00000102 | AP163: 10.00000102 | AQ163: 22.34000597 | AR163: 2.551089473 | AS163: 24.3289057 | AT163: 0 | AU163: 0 | AV163: 9.777790361 | AW163: 4.063919518 | AX163: 10.59512585 | AY163: 4.702674591 | AZ163: 10.86191078 | BA163: 8.567753179 | BB163: 2.294157606 | BC163: VT | BK163: 25.90049298 | BL163: 10.00000267 | BM163: 4.887859853 | BN163: 5.974050932 | BP163: =IF(BC163="NT",BA163*Ekonomika!$B$22,BA163*Ekonomika!$B$23)-U163*Ekonomika!$B$14-U163*(Výhřevnost_HU/3.6)*Emisní_faktor_CO2_HU*Ekonomika!$B$24 -> -12346.49849 | BQ163: -12346.49849 | BR163: -12650.09945 | BS163: MIN
F164: 2018-01-07T18:00:00 | G164: 163 | H164: 138.7181358 | I164: 110.264229 | J164: 28.4539068 | K164: 116.0386649 | L164: 62.0812512 | M164: 39.28187708 | N164: 123.1770857 | O164: 256.0435296 | P164: 75.95476999 | Q164: 75.95476999 | R164: 202.7992359 | S164: 56.33312108 | T164: 61.23165334 | U164: 12.81592744 | V164: 0 | W164: 0 | X164: 0 | Y164: 0 | Z164: 0 | AA164: 0 | AB164: 0 | AC164: 31.67313909 | AD164: 8.535910984 | AE164: 224.3703905 | AF164: 81.73382725 | AG164: 27.66886501 | AH164: 27.66886501 | AI164: 15.40029916 | AJ164: 3.913053781 | AK164: 9.203502493 | AL164: 11.48724538 | AM164: 2.268565175 | AN164: 5.174597165 | AO164: 10.00000068 | AP164: 10.00000068 | AQ164: 22.340004 | AR164: 2.648303194 | AS164: 28.4539068 | AT164: 0 | AU164: 0 | AV164: 10.04261131 | AW164: 4.173986415 | AX164: 10.88208346 | AY164: 4.830041483 | AZ164: 11.18421418 | BA164: 8.855005703 | BB164: 2.329208475 | BC164: VT | BK164: 27.66886612 | BL164: 10.00000179 | BM164: 5.03289638 | BN164: 6.151317798 | BP164: =IF(BC164="NT",BA164*Ekonomika!$B$22,BA164*Ekonomika!$B$23)-U164*Ekonomika!$B$14-U164*(Výhřevnost_HU/3.6)*Emisní_faktor_CO2_HU*Ekonomika!$B$24 -> -12621.49852 | BQ164: -12621.49852 | BR164: -12824.5587 | BS164: MIN
F165: 2018-01-07T19:00:00 | G165: 164 | H165: 140.3043184 | I165: 114.7551002 | J165: 25.5492182 | K165: 120.7647189 | L165: 55.7437488 | M165: 40.88175995 | N165: 110.6026762 | O165: 258.077921 | P165: 76.55826787 | Q165: 76.55826787 | R165: 204.4105752 | S165: 56.78071534 | T165: 61.71816885 | U165: 12.91775627 | V165: 0 | W165: 0 | X165: 0 | Y165: 0 | Z165: 0 | AA165: 0 | AB165: 0 | AC165: 31.9247977 | AD165: 8.603732981 | AE165: 226.1531233 | AF165: 78.57917264 | AG165: 26.6009386 | AH165: 26.6009386 | AI165: 14.25872634 | AJ165: 3.944144912 | AK165: 9.276628833 | AL165: 10.31458143 | AM165: 2.342211686 | AN165: 5.342584856 | AO165: 10.00000058 | AP165: 10.00000058 | AQ165: 22.3400034 | AR165: 2.593897659 | AS165: 25.5492182 | AT165: 0 | AU165: 0 | AV165: 10.12240478 | AW165: 4.207150783 | AX165: 10.96854695 | AY165: 4.868418531 | AZ165: 11.19763064 | BA165: 8.857860952 | BB165: 2.339769688 | BC165: VT | BK165: 26.60093955 | BL165: 10.00000152 | BM165: 5.038933788 | BN165: 6.158696852 | BP165: =IF(BC165="NT",BA165*Ekonomika!$B$22,BA165*Ekonomika!$B$23)-U165*Ekonomika!$B$14-U165*(Výhřevnost_HU/3.6)*Emisní_faktor_CO2_HU*Ekonomika!$B$24 -> -12794.40498 | BQ165: -12794.40498 | BR165: -12967.17111 | BS165: MIN
F166: 2018-01-07T20:00:00 | G166: 165 | H166: 151.3559961 | I166: 118.3692768 | J166: 32.9867193 | K166: 124.5681666 | L166: 71.97102393 | M166: 42.16931841 | N166: 142.7996506 | O166: 258.1305849 | P166: 76.5738905 | Q166: 76.5738905 | R166: =P166*(h_výstupK1-h_vVTO1) -> 216.1680929 | S166: 60.04669247 | T166: 65.26814399 | U166: 13.66077432 | V166: 0 | W166: 0 | X166: 0 | Y166: 0 | Z166: 0 | AA166: 0 | AB166: 0 | AC166: 31.93131234 | AD166: 8.605488675 | AE166: 226.1992725 | AF166: 87.67842219 | AG166: 29.68125328 | AH166: =P166/(1+S1_)-M166-AU166 -> 29.68125328 | AI166: 17.27977205 | AJ166: 4.199432933 | AK166: 9.877066259 | AL166: 13.08033912 | AM166: 2.401481124 | AN166: 5.477778444 | AO166: 10.0000001 | AP166: 10.0000001 | AQ166: 22.34000067 | AR166: 2.766713202 | AS166: 32.4 | AT166: 0.5867193 | AU166: 0.229545892 | AV166: 10.81201764 | AW166: 4.493772917 | AX166: 0 | AY166: 0 | AZ166: 11.37220188 | BA166: 9.032158794 | BB166: 2.340043084 | BC166: NT | BK166: 29.68125348 | BL166: 10.0000003 | BM166: 5.117490845 | BN166: 6.254711033 | BP166: =IF(BC166="NT",BA166*Ekonomika!$B$22,BA166*Ekonomika!$B$23)-U166*Ekonomika!$B$14-U166*(Výhřevnost_HU/3.6)*Emisní_faktor_CO2_HU*Ekonomika!$B$24 -> -16427.86816 | BQ166: -16427.86816 | BR166: -16849.06906 | BS166: MIN
F167: 2018-01-07T21:00:00 | G167: 166 | H167: 137.8192931 | I167: 110.2075749 | J167: 27.6117182 | K167: 115.9790439 | L167: 60.2437488 | M167: 39.26169394 | N167: 119.5312476 | O167: 254.5767671 | P167: 75.51965801 | Q167: 75.51965801 | R167: =P167*(h_výstupK1-h_nvK1) -> 201.6374869 | S167: 56.01041302 | T167: 60.88088372 | U167: 12.74251055 | V167: 0 | W167: 0 | X167: 0 | Y167: 0 | Z167: 0 | AA167: 0 | AB167: 0 | AC167: 31.49169739 | AD167: 8.487012446 | AE167: 223.0850698 | AF167: 80.66049529 | AG167: 27.30551635 | AH167: =P167/S3_-M167-AU167 -> 27.30551635 | AI167: 15.0378795 | AJ167: 3.890637591 | AK167: 9.150779613 | AL167: 11.14724191 | AM167: 2.267636099 | AN167: 5.172477942 | AO167: 10.00000075 | AP167: 10.00000075 | AQ167: 22.34000442 | AR167: 2.628272703 | AS167: 27.6117182 | AT167: 0 | AU167: 0 | AV167: 9.985081543 | AW167: 4.150075454 | AX167: 10.81974472 | AY167: =P167*(h_nvK1-h_vVTO1)/(h_eTG1-h_vVTO1) -> 4.802372267 | AZ167: 11.11528515 | BA167: 8.793691134 | BB167: 2.321594015 | BC167: NT | BK167: 27.30551758 | BL167: 10.00000198 | BM167: 5.001878317 | BN167: 6.113406832 | BP167: =IF(BC167="NT",BA167*Ekonomika!$B$22,BA167*Ekonomika!$B$23)-U167*Ekonomika!$B$14-U167*(Výhřevnost_HU/3.6)*Emisní_faktor_CO2_HU*Ekonomika!$B$24 -> -15030.52204 | BQ167: -15030.52204 | BR167: -15537.78734 | BS167: MIN
F168: 2018-01-07T22:00:00 | G168: 167 | H168: 125.4578174 | I168: 107.5312549 | J168: 17.9265625 | K168: 113.1625675 | L168: 39.1125 | M168: 38.30824897 | N168: 77.60416667 | O168: 234.64425 | P168: 69.60671907 | Q168: 69.60671907 | R168: 185.8499399 | S168: 51.62498331 | T168: 56.11411229 | U168: 11.7448142 | V168: 0 | W168: 0 | X168: 0 | Y168: 0 | Z168: 0 | AA168: 0 | AB168: 0 | AC168: 29.02600185 | AD168: 7.822507499 | AE168: 205.6182481 | AF168: 68.08074749 | AG168: 23.04696936 | AH168: 23.04696936 | AI168: 10.82322087 | AJ168: 3.586013561 | AK168: 8.434303897 | AL168: 7.237207307 | AM168: 2.223746745 | AN168: 5.072366326 | AO168: 10.00000175 | AP168: 10.00000175 | AQ168: 22.34001026 | AR168: 2.39157994 | AS168: 17.9265625 | AT168: 0 | AU168: 0 | AV168: 9.20328275 | AW168: 3.8251383 | AX168: 9.972594565 | AY168: 4.426362434 | AZ168: 10.21408744 | BA168: 7.995969855 | BB168: 2.218117584 | BC168: NT | BK168: 23.04697221 | BL168: 10.00000459 | BM168: 4.596339348 | BN168: 5.617748092 | BP168: =IF(BC168="NT",BA168*Ekonomika!$B$22,BA168*Ekonomika!$B$23)-U168*Ekonomika!$B$14-U168*(Výhřevnost_HU/3.6)*Emisní_faktor_CO2_HU*Ekonomika!$B$24 -> -13940.49718 | BQ168: -13940.49718 | BR168: -15117.22673 | BS168: MIN
F169: 2018-01-07T23:00:00 | G169: 168 | H169: 104.2130485 | I169: 91.88101667 | J169: 12.3320318 | K169: 96.69274074 | L169: 26.9062512 | M169: 32.73281677 | N169: 53.38541905 | O169: 201.7819351 | P169: 59.85818306 | Q169: 59.85818306 | R169: 159.8213488 | S169: 44.3948191 | T169: 48.25523816 | U169: 10.09993357 | V169: 0 | W169: 0 | X169: 0 | Y169: 0 | Z169: 0 | AA169: 0 | AB169: 0 | AC169: 24.96086234 | AD169: 6.7269524 | AE169: 176.8210728 | AF169: 59.16714852 | AG169: 20.02950187 | AH169: 20.02950187 | AI169: 8.062402425 | AJ169: 3.083786438 | AK169: 7.253065701 | AL169: 4.978615987 | AM169: 1.967096061 | AN169: 4.486946116 | AO169: 10.00000338 | AP169: 10.00000338 | AQ169: 22.34001989 | AR169: 2.210676871 | AS169: 12.3320318 | AT169: 0 | AU169: 0 | AV169: 7.914347796 | AW169: 3.289421361 | AX169: 8.57591622 | AY169: 3.806443063 | AZ169: 8.937629271 | BA169: 6.890111067 | BB169: 2.047518204 | BC169: NT | BK169: 20.02950739 | BL169: 10.0000089 | BM169: 4.021933172 | BN169: 4.915696099 | BP169: =IF(BC169="NT",BA169*Ekonomika!$B$22,BA169*Ekonomika!$B$23)-U169*Ekonomika!$B$14-U169*(Výhřevnost_HU/3.6)*Emisní_faktor_CO2_HU*Ekonomika!$B$24 -> -11976.98576 | BQ169: -11976.98576 | BR169: -14257.44671 | BS169: MIN
F170: 2018-01-08 | G170: 169 | H170: 81.95625184 | I170: 72.57187684 | J170: 9.384375 | K170: 76.37239906 | L170: 20.475 | M170: 25.85389271 | N170: 40.625 | O170: 167.7217515 | P170: 49.75430185 | Q170: 49.75430185 | R170: 132.8439859 | S170: 36.9011072 | T170: 40.10989913 | U170: 8.395095167 | V170: 0 | W170: 0 | X170: 0 | Y170: 0 | Z170: 0 | AA170: 0 | AB170: 0 | AC170: 20.74754387 | AD170: 5.591463073 | AE170: 146.9742077 | AF170: 53.17880979 | AG170: 18.00230528 | AH170: 18.00230528 | AI170: 6.351857732 | AJ170: 2.563252565 | AK170: 6.028770032 | AL170: 3.788605168 | AM170: 1.650442467 | AN170: 3.764659268 | AO170: 10.00000508 | AP170: 10.00000508 | AQ170: 22.34002987 | AR170: 2.080707876 | AS170: 9.384375 | AT170: 0 | AU170: 0 | AV170: 6.578429698 | AW170: 2.734176932 | AX170: 7.128327363 | AY170: 3.163926925 | AZ170: 7.672170949 | BA170: 5.801470667 | BB170: 1.870700282 | BC170: NT | BK170: 18.00231357 | BL170: 10.00001337 | BM170: 3.452476927 | BN170: 4.219694022 | BP170: =IF(BC170="NT",BA170*Ekonomika!$B$22,BA170*Ekonomika!$B$23)-U170*Ekonomika!$B$14-U170*(Výhřevnost_HU/3.6)*Emisní_faktor_CO2_HU*Ekonomika!$B$24 -> -9896.168417 | BQ170: -9896.168417 | BR170: -13320.59302 | BS170: MIN
F171: 2018-01-08T01:00:00 | G171: 170 | H171: 77.87851534 | I171: 66.64648464 | J171: 11.2320307 | K171: 70.13669955 | L171: 24.5062488 | M171: 23.74295855 | N171: 48.62350952 | O171: 161.7827352 | P171: 47.99250524 | Q171: 47.99250524 | R171: 128.139989 | S171: 35.59444139 | T171: 38.68961021 | U171: 8.097825392 | V171: 0 | W171: 0 | X171: 0 | Y171: 0 | Z171: 0 | AA171: 0 | AB171: 0 | AC171: 20.01287469 | AD171: 5.393469728 | AE171: 141.7698605 | AF171: 54.82710941 | AG171: 18.56029431 | AH171: 18.56029431 | AI171: 7.007017913 | AJ171: 2.472487957 | AK171: 5.815291676 | AL171: 4.534529956 | AM171: 1.553271027 | AN171: 3.543011212 | AO171: 10.00000538 | AP171: 10.00000538 | AQ171: 22.34003161 | AR171: 2.10570237 | AS171: 11.2320307 | AT171: 0 | AU171: 0 | AV171: 6.345487929 | AW171: 2.637359904 | AX171: 6.875913753 | AY171: 3.051892478 | AZ171: 7.499172098 | BA171: 5.659303256 | BB171: 1.839868842 | BC171: NT | BK171: 18.56030309 | BL171: 10.00001415 | BM171: 3.374627444 | BN171: 4.124544654 | BP171: =IF(BC171="NT",BA171*Ekonomika!$B$22,BA171*Ekonomika!$B$23)-U171*Ekonomika!$B$14-U171*(Výhřevnost_HU/3.6)*Emisní_faktor_CO2_HU*Ekonomika!$B$24 -> -9495.453547 | BQ171: -9495.453547 | BR171: -13119.34915 | BS171: MIN
F172: 2018-01-08T02:00:00 | G172: 171 | H172: 79.73696742 | I172: 66.82056062 | J172: 12.9164068 | K172: 70.31989172 | L172: 28.1812512 | M172: 23.8049735 | N172: 55.91518095 | O172: 164.8082376 | P172: 48.89001412 | Q172: 48.89001412 | R172: 130.5363377 | S172: 36.26009381 | T172: 39.41314544 | U172: 8.249263 | V172: 0 | W172: 0 | X172: 0 | Y172: 0 | Z172: 0 | AA172: 0 | AB172: 0 | AC172: 20.38713589 | AD172: 5.494333122 | AE172: 144.4211017 | AF172: 56.98086813 | AG172: 19.28939341 | AH172: 19.28939341 | AI172: 7.733262464 | AJ172: 2.518726008 | AK172: 5.924043571 | AL172: 5.214536455 | AM172: 1.556125719 | AN172: 3.549522766 | AO172: 10.00000522 | AP172: 10.00000522 | AQ172: 22.34003072 | AR172: 2.145953674 | AS172: 12.9164068 | AT172: 0 | AU172: 0 | AV172: 6.464155036 | AW172: 2.686681229 | AX172: 7.004500365 | AY172: 3.108965985 | AZ172: 7.640286796 | BA172: 5.784711549 | BB172: 1.855575247 | BC172: NT | BK172: 19.28940194 | BL172: 10.00001375 | BM172: 3.438129058 | BN172: 4.202157738 | BP172: =IF(BC172="NT",BA172*Ekonomika!$B$22,BA172*Ekonomika!$B$23)-U172*Ekonomika!$B$14-U172*(Výhřevnost_HU/3.6)*Emisní_faktor_CO2_HU*Ekonomika!$B$24 -> -9657.467678 | BQ172: -9657.467678 | BR172: -13179.74713 | BS172: MIN
F173: 2018-01-08T03:00:00 | G173: 172 | H173: 80.89905804 | I173: 65.72249554 | J173: 15.1765625 | K173: 69.16432199 | L173: 33.1125 | M173: 23.41378537 | N173: 65.69940476 | O173: 166.8523608 | P173: 49.49639893 | Q173: 49.49639893 | R173: 132.1553851 | S173: 36.70982921 | T173: 39.90198827 | U173: 8.35157894 | V173: 0 | W173: 0 | X173: 0 | Y173: 0 | Z173: 0 | AA173: 0 | AB173: 0 | AC173: 20.63999835 | AD173: 5.562479556 | AE173: 146.2123624 | AF173: 59.71535429 | AG173: 20.2150827 | AH173: 20.2150827 | AI173: 8.676959207 | AJ173: 2.549965868 | AK173: 5.997519722 | AL173: 6.126993339 | AM173: 1.53811837 | AN173: 3.508448002 | AO173: 10.00000512 | AP173: 10.00000512 | AQ173: 22.34003013 | AR173: 2.195793087 | AS173: 15.1765625 | AT173: 0 | AU173: 0 | AV173: 6.544330211 | AW173: 2.720004244 | AX173: 7.091377464 | AY173: 3.147526615 | AZ173: 7.758272643 | BA173: 5.892085662 | BB173: 1.866186981 | BC173: NT | BK173: 20.21509106 | BL173: 10.00001349 | BM173: 3.491222689 | BN173: 4.267049954 | BP173: =IF(BC173="NT",BA173*Ekonomika!$B$22,BA173*Ekonomika!$B$23)-U173*Ekonomika!$B$14-U173*(Výhřevnost_HU/3.6)*Emisní_faktor_CO2_HU*Ekonomika!$B$24 -> -9748.927634 | BQ173: -9748.927634 | BR173: -13202.55207 | BS173: MIN
F174: 2018-01-08T04:00:00 | G174: 173 | H174: 98.01933634 | I174: 81.51074314 | J174: 16.5085932 | K174: 85.77938554 | L174: 36.0187488 | M174: 29.03838373 | N174: 71.46577143 | O174: 192.9339772 | P174: 57.23345512 | Q174: 57.23345512 | R174: 152.8133252 | S174: 42.44814588 | T174: 46.139289 | U174: 9.657060489 | V174: 0 | W174: 0 | X174: 0 | Y174: 0 | Z174: 0 | AA174: 0 | AB174: 0 | AC174: 23.86635079 | AD174: 6.431981537 | AE174: 169.0676264 | AF174: 63.24618658 | AG174: 21.41035429 | AH174: 21.41035429 | AI174: 9.61331816 | AJ174: 2.948565153 | AK174: 6.935025239 | AL174: 6.664753008 | AM174: 1.797032307 | AN174: 4.099030693 | AO174: 10.00000382 | AP174: 10.00000382 | AQ174: 22.34002248 | AR174: 2.276647947 | AS174: 16.5085932 | AT174: 0 | AU174: 0 | AV174: 7.567310703 | AW174: 3.145183169 | AX174: 8.199869942 | AY174: 3.639533929 | AZ174: 8.708629484 | BA174: 6.707044019 | BB174: 2.001585465 | BC174: NT | BK174: 21.41036053 | BL174: 10.00001006 | BM174: 3.918883268 | BN174: 4.789746216 | BP174: =IF(BC174="NT",BA174*Ekonomika!$B$22,BA174*Ekonomika!$B$23)-U174*Ekonomika!$B$14-U174*(Výhřevnost_HU/3.6)*Emisní_faktor_CO2_HU*Ekonomika!$B$24 -> -11357.15687 | BQ174: -11357.15687 | BR174: -13934.7901 | BS174: MIN
F175: 2018-01-08T05:00:00 | G175: 174 | H175: 136.8083191 | I175: 113.1325373 | J175: 23.6757818 | K175: 119.0571839 | L175: 51.6562512 | M175: 40.30371832 | N175: 102.4925619 | O175: 252.5499446 | P175: 74.91840541 | Q175: 74.91840541 | R175: 200.0321425 | S175: 55.56448401 | T175: 60.39617828 | U175: 12.64106057 | V175: 0 | W175: 0 | X175: 0 | Y175: 0 | Z175: 0 | AA175: 0 | AB175: 0 | AC175: 31.24097506 | AD175: 8.419442778 | AE175: 221.3089696 | AF175: 76.0168022 | AG175: 25.73351462 | AH175: 25.73351462 | AI175: 13.41791074 | AJ175: 3.859662133 | AK175: 9.077925338 | AL175: 9.558248607 | AM175: 2.315603031 | AN175: 5.281890513 | AO175: 10.00000085 | AP175: 10.00000085 | AQ175: 22.34000502 | AR175: 2.544652406 | AS175: 23.6757818 | AT175: 0 | AU175: 0 | AV175: 9.905584941 | AW175: 4.117034473 | AX175: 10.73360291 | AY175: 4.764138 | AZ175: 10.96409518 | BA175: 8.653023089 | BB175: 2.311072095 | BC175: NT | BK175: 25.73351602 | BL175: 10.00000225 | BM175: 4.933842833 | BN175: 6.030252351 | BP175: =IF(BC175="NT",BA175*Ekonomika!$B$22,BA175*Ekonomika!$B$23)-U175*Ekonomika!$B$14-U175*(Výhřevnost_HU/3.6)*Emisní_faktor_CO2_HU*Ekonomika!$B$24 -> -14967.02659 | BQ175: -14967.02659 | BR175: -15542.36585 | BS175: MIN
F176: 2018-01-08T06:00:00 | G176: 175 | H176: 190.8020317 | I176: 152.3192192 | J176: 38.4828125 | K176: 160.2960362 | L176: 83.9625 | M176: 54.264061 | N176: 166.5922619 | O176: 269.68 | P176: 80 | Q176: 80 | R176: =P176*(h_výstupK1-h_vNTO2) -> 237.84 | S176: 66.06666667 | T176: 71.8115942 | U176: 15.03033367 | V176: 20.38675982 | W176: 20.38675982 | X176: 6.9014082 | Y176: 6.9014082 | Z176: 5.381181339 | AA176: 6.330801575 | AB176: 2.542640135 | AC176: 33.36 | AD176: 8.99052 | AE176: 236.32 | AF176: 89.38074392 | AG176: 30.2575301 | AH176: =P176-M176-AU176 -> 23.3561219 | AI176: 17.61698712 | AJ176: 4.536648 | AK176: 10.6701961 | AL176: 13.08033912 | AM176: 2.640542983 | AN176: 6.023078544 | AO176: 10 | AP176: 3.0985918 | AQ176: 22.34 | AR176: 2.812376404 | AS176: 32.4 | AT176: 6.0828125 | AU176: 2.379817097 | AV176: 0 | AW176: 0 | AX176: 0 | AY176: 0 | AZ176: 11.8028964 | BA176: 9.402896404 | BB176: 2.4 | BC176: NT | BK176: 30.2575301 | BL176: 10 | BM176: 5.311303382 | BN176: 6.491593022 | BP176: =IF(BC176="NT",BA176*Ekonomika!$B$22,BA176*Ekonomika!$B$23)-U176*Ekonomika!$B$14-U176*(Výhřevnost_HU/3.6)*Emisní_faktor_CO2_HU*Ekonomika!$B$24 -> -18499.98135 | BQ176: -18499.98135 | BR176: -18499.98135 | BS176: MIN
F177: 2018-01-08T07:00:00 | G177: 176 | H177: 188.9505965 | I177: 149.5482533 | J177: 39.4023432 | K177: 157.3799574 | L177: 85.9687488 | M177: 53.27689823 | N177: 170.5729143 | O177: 269.68 | P177: 80 | Q177: 80 | R177: =P177*(h_výstupK1-h_vNTO2) -> 237.84 | S177: 66.06666667 | T177: 71.8115942 | U177: 15.03033367 | V177: 18.42724846 | W177: 18.42724846 | X177: 6.238066506 | Y177: 6.238066506 | Z177: 4.863959078 | AA177: 5.722304798 | AB177: 0.4904832684 | AC177: 33.36 | AD177: 8.99052 | AE177: 236.32 | AF177: 89.27459868 | AG177: 30.22159739 | AH177: =P177-M177-AU177 -> 23.98353088 | AI177: 17.59596068 | AJ177: 4.515621557 | AK177: 10.6207419 | AL177: 13.08033912 | AM177: 2.625636708 | AN177: 5.989077331 | AO177: 10 | AP177: 3.761933494 | AQ177: 22.34 | AR177: 2.809529154 | AS177: 32.4 | AT177: 7.0023432 | AU177: 2.739570892 | AV177: 0 | AW177: 0 | AX177: 0 | AY177: 0 | AZ177: 11.80004915 | BA177: 9.400049154 | BB177: 2.4 | BC177: NT | BK177: 30.22159739 | BL177: 10 | BM177: 5.310022119 | BN177: 6.490027035 | BP177: =IF(BC177="NT",BA177*Ekonomika!$B$22,BA177*Ekonomika!$B$23)-U177*Ekonomika!$B$14-U177*(Výhřevnost_HU/3.6)*Emisní_faktor_CO2_HU*Ekonomika!$B$24 -> -18502.24486 | BQ177: -18502.24486 | BR177: -18502.24486 | BS177: MIN
F178: 2018-01-08T08:00:00 | G178: 177 | H178: 175.404647 | I178: 141.854647 | J178: 33.55 | K178: 149.283444 | L178: 73.2 | M178: 50.53603384 | N178: 145.2380952 | O178: 252.2385483 | P178: 74.82603033 | Q178: 74.82603033 | R178: =P178*(h_výstupK1-h_vNTO2) -> 222.4577882 | S178: 61.79383005 | T178: 67.16720658 | U178: 14.05825254 | V178: 18 | W178: 18 | X178: 6.093432634 | Y178: 6.093432634 | Z178: 4.751184834 | AA178: 5.589629217 | AB178: 0.4791110757 | AC178: 31.20245465 | AD178: 8.409061528 | AE178: 221.0360936 | AF178: 88.42358078 | AG178: 29.93350737 | AH178: =P178-M178-AU178 -> 23.84007474 | AI178: 17.42738149 | AJ178: 4.347042375 | AK178: 10.22424367 | AL178: 13.08033912 | AM178: 2.506125878 | AN178: 5.716473127 | AO178: 10 | AP178: 3.906567366 | AQ178: 22.34 | AR178: 2.786701369 | AS178: 32.4 | AT178: 1.15 | AU178: 0.4499217527 | AV178: 0 | AW178: 0 | AX178: 0 | AY178: 0 | AZ178: 11.1957629 | BA178: 8.886307366 | BB178: 2.309455531 | BC178: VT | BK178: 29.93350737 | BL178: 10 | BM178: 5.038093303 | BN178: 6.157669593 | BP178: =IF(BC178="NT",BA178*Ekonomika!$B$22,BA178*Ekonomika!$B$23)-U178*Ekonomika!$B$14-U178*(Výhřevnost_HU/3.6)*Emisní_faktor_CO2_HU*Ekonomika!$B$24 -> -14734.78088 | BQ178: -14734.78088 | BR178: -15068.77011 | BS178: MIN
F179: 2018-01-08T09:00:00 | G179: 178 | H179: 172.3625327 | I179: 139.1734702 | J179: 33.1890625 | K179: 146.4618564 | L179: 72.4125 | M179: 49.58085864 | N179: 143.6755952 | O179: 248.1853327 | P179: 73.62365253 | Q179: 73.62365253 | R179: =P179*(h_výstupK1-h_vNTO2) -> 218.883119 | S179: 60.80086638 | T179: 66.08789824 | U179: 13.83235079 | V179: 18 | W179: 18 | X179: 6.093432634 | Y179: 6.093432634 | Z179: 4.751184834 | AA179: 5.589629217 | AB179: 0.4791110757 | AC179: 30.7010631 | AD179: 8.273936506 | AE179: 217.4842696 | AF179: 88.11048409 | AG179: 29.82751662 | AH179: =P179-M179-AU179 -> 23.73408398 | AI179: 17.36535979 | AJ179: 4.285020666 | AK179: 10.07836861 | AL179: 13.08033912 | AM179: 2.462156831 | AN179: 5.616179731 | AO179: 10 | AP179: 3.906567366 | AQ179: 22.34 | AR179: 2.778302833 | AS179: 32.4 | AT179: 0.7890625 | AU179: 0.3087098983 | AV179: 0 | AW179: 0 | AX179: 0 | AY179: 0 | AZ179: 11.05223934 | BA179: 8.76382542 | BB179: 2.288413919 | BC179: VT | BK179: 29.82751662 | BL179: 10 | BM179: 4.973507703 | BN179: 6.078731637 | BP179: =IF(BC179="NT",BA179*Ekonomika!$B$22,BA179*Ekonomika!$B$23)-U179*Ekonomika!$B$14-U179*(Výhřevnost_HU/3.6)*Emisní_faktor_CO2_HU*Ekonomika!$B$24 -> -14476.15533 | BQ179: -14476.15533 | BR179: -14887.76025 | BS179: MIN
F180: 2018-01-08T10:00:00 | G180: 179 | H180: 154.3870982 | I180: 125.5120982 | J180: 28.875 | K180: 132.085051 | L180: 63 | M180: 44.71396446 | N180: 125 | O180: 262.0198537 | P180: 77.72763385 | Q180: 77.72763385 | R180: =P180*(h_výstupK1-h_vVTO1) -> 219.4251103 | S180: 60.95141954 | T180: 66.25154298 | U180: 13.86660202 | V180: 0 | W180: 0 | X180: 0 | Y180: 0 | Z180: 0 | AA180: 0 | AB180: 0 | AC180: 32.41242331 | AD180: 8.735148083 | AE180: 229.6074304 | AF180: 84.0477649 | AG180: 28.45218853 | AH180: =P180/(1+S1_)-M180-AU180 -> 28.45218853 | AI180: 15.93357106 | AJ180: 4.276324394 | AK180: 10.05791497 | AL180: 11.65724667 | AM180: 2.518617394 | AN180: 5.744966276 | AO180: 10.00000007 | AP180: 10.00000007 | AQ180: 22.34000045 | AR180: 2.705991971 | AS180: 28.875 | AT180: 0 | AU180: 0 | AV180: 10.97492295 | AW180: =(P180-AY180)*(h_vVTO1-h_vNTO2)/(h_CZT-h_vNTO2) -> 4.56148086 | AX180: 0 | AY180: 0 | AZ180: 11.44114005 | BA180: 9.080906462 | BB180: 2.360233592 | BC180: VT | BK180: 28.45218866 | BL180: 10.0000002 | BM180: 5.148513024 | BN180: 6.29262703 | BP180: =IF(BC180="NT",BA180*Ekonomika!$B$22,BA180*Ekonomika!$B$23)-U180*Ekonomika!$B$14-U180*(Výhřevnost_HU/3.6)*Emisní_faktor_CO2_HU*Ekonomika!$B$24 -> -14194.21437 | BQ180: -14194.21437 | BR180: -14324.752 | BS180: MIN
F181: 2018-01-08T11:00:00 | G181: 180 | H181: 139.5350785 | I181: 114.1663285 | J181: 25.36875 | K181: 120.1451138 | L181: 55.35 | M181: 40.67200872 | N181: 109.8214286 | O181: 256.8908164 | P181: 76.2061158 | Q181: 76.2061158 | R181: =P181*(h_výstupK1-h_nvK1) -> 203.4703292 | S181: 56.51953589 | T181: 61.43427814 | U181: 12.85833728 | V181: 0 | W181: 0 | X181: 0 | Y181: 0 | Z181: 0 | AA181: 0 | AB181: 0 | AC181: 31.77795029 | AD181: 8.564157603 | AE181: 225.1128661 | AF181: 78.28183743 | AG181: 26.50028349 | AH181: =P181/S3_-M181-AU181 -> 26.50028349 | AI181: 14.16772653 | AJ181: 3.926002668 | AK181: 9.233958274 | AL181: 10.24172386 | AM181: 2.332556327 | AN181: 5.320560983 | AO181: 10.00000064 | AP181: 10.00000064 | AQ181: 22.34000375 | AR181: 2.587799203 | AS181: 25.36875 | AT181: 0 | AU181: 0 | AV181: 10.07584383 | AW181: 4.187798767 | AX181: 10.91809392 | AY181: =P181*(h_nvK1-h_vVTO1)/(h_eTG1-h_vVTO1) -> 4.84602482 | AZ181: 11.15195681 | BA181: 8.818349779 | BB181: 2.333607027 | BC181: VT | BK181: 26.50028453 | BL181: 10.00000168 | BM181: 5.018380563 | BN181: 6.133576243 | BP181: =IF(BC181="NT",BA181*Ekonomika!$B$22,BA181*Ekonomika!$B$23)-U181*Ekonomika!$B$14-U181*(Výhřevnost_HU/3.6)*Emisní_faktor_CO2_HU*Ekonomika!$B$24 -> -12734.22671 | BQ181: -12734.22671 | BR181: -12924.66997 | BS181: MIN
F182: 2018-01-08T12:00:00 | G182: 181 | H182: 127.2265578 | I182: 105.8624953 | J182: 21.3640625 | K182: 111.4064165 | L182: 46.6125 | M182: 37.71374965 | N182: 92.48511905 | O182: 237.7551537 | P182: 70.52956206 | Q182: 70.52956206 | R182: 188.3139307 | S182: 52.30942519 | T182: 56.85807086 | U182: 11.90052646 | V182: 0 | W182: 0 | X182: 0 | Y182: 0 | Z182: 0 | AA182: 0 | AB182: 0 | AC182: 29.41082738 | AD182: 7.926217979 | AE182: 208.3443263 | AF182: 72.23981484 | AG182: 24.45491362 | AH182: 24.45491362 | AI182: 12.25853155 | AJ182: 3.63355678 | AK182: 8.546125548 | AL182: 8.624974768 | AM182: 2.196380482 | AN182: 5.00994388 | AO182: 10.00000159 | AP182: 10.00000159 | AQ182: 22.34000935 | AR182: 2.467385425 | AS182: 21.3640625 | AT182: 0 | AU182: 0 | AV182: 9.325299491 | AW182: 3.875851825 | AX182: 10.10481081 | AY182: 4.485046964 | AZ182: 10.3936034 | BA182: 8.159336068 | BB182: 2.234267336 | BC182: VT | BK182: 24.45491622 | BL182: 10.00000419 | BM182: 4.677121532 | BN182: 5.716481872 | BP182: =IF(BC182="NT",BA182*Ekonomika!$B$22,BA182*Ekonomika!$B$23)-U182*Ekonomika!$B$14-U182*(Výhřevnost_HU/3.6)*Emisní_faktor_CO2_HU*Ekonomika!$B$24 -> -11787.96255 | BQ182: -11787.96255 | BR182: -12263.35425 | BS182: MIN
F183: 2018-01-08T13:00:00 | G183: 182 | H183: 118.324497 | I183: 99.44402765 | J183: 18.8804693 | K183: 104.6518196 | L183: 41.1937512 | M183: 35.42715627 | N183: 81.73363333 | O183: 223.9674842 | P183: 66.43947916 | Q183: 66.43947916 | R183: 177.3934094 | S183: 49.27594704 | T183: 53.560812 | U183: 11.21040251 | V183: 0 | W183: 0 | X183: 0 | Y183: 0 | Z183: 0 | AA183: 0 | AB183: 0 | AC183: 27.70526281 | AD183: 7.466568327 | AE183: 196.2622214 | AF183: 68.34457509 | AG183: 23.13628135 | AH183: 23.13628135 | AI183: 11.04515603 | AJ183: 3.422843031 | AK183: 8.050526809 | AL183: 7.622313 | AM183: 2.091123037 | AN183: 4.769851648 | AO183: 10.00000228 | AP183: 10.00000228 | AQ183: 22.34001339 | AR183: 2.388734288 | AS183: 18.8804693 | AT183: 0 | AU183: 0 | AV183: 8.784515642 | AW183: 3.651087133 | AX183: 9.518822287 | AY183: 4.22495441 | AZ183: 9.855302615 | BA183: 7.69261173 | BB183: 2.162690885 | BC183: VT | BK183: 23.13628506 | BL183: 10.00000599 | BM183: 4.434886177 | BN183: 5.420416438 | BP183: =IF(BC183="NT",BA183*Ekonomika!$B$22,BA183*Ekonomika!$B$23)-U183*Ekonomika!$B$14-U183*(Výhřevnost_HU/3.6)*Emisní_faktor_CO2_HU*Ekonomika!$B$24 -> -11097.43341 | BQ183: -11097.43341 | BR183: -11778.13679 | BS183: MIN
F184: 2018-01-08T14:00:00 | G184: 183 | H184: 110.8240706 | I184: 92.59672741 | J184: 18.2273432 | K184: 97.44593258 | L184: 39.7687488 | M184: 32.98779031 | N184: 78.90624762 | O184: 212.5323022 | P184: 63.04725667 | Q184: 63.04725667 | R184: 168.3361753 | S184: 46.7600487 | T184: 50.82613989 | U184: 10.63802928 | V184: 0 | W184: 0 | X184: 0 | Y184: 0 | Z184: 0 | AA184: 0 | AB184: 0 | AC184: 26.29070603 | AD184: 7.085345276 | AE184: 186.2415962 | AF184: 66.71772793 | AG184: 22.58555448 | AH184: 22.58555448 | AI184: 10.60671854 | AJ184: 3.248081801 | AK184: 7.639488396 | AL184: 7.358636738 | AM184: 1.978833092 | AN184: 4.513718282 | AO184: 10.00000285 | AP184: 10.00000285 | AQ184: 22.34001674 | AR184: 2.351889742 | AS184: 18.2273432 | AT184: 0 | AU184: 0 | AV184: 8.336001719 | AW184: 3.464672368 | AX184: 9.032816625 | AY184: 4.009239514 | AZ184: 9.437235018 | BA184: 7.333908026 | BB184: 2.103326992 | BC184: VT | BK184: 22.58555913 | BL184: 10.00000749 | BM184: 4.246755758 | BN184: 5.19047926 | BP184: =IF(BC184="NT",BA184*Ekonomika!$B$22,BA184*Ekonomika!$B$23)-U184*Ekonomika!$B$14-U184*(Výhřevnost_HU/3.6)*Emisní_faktor_CO2_HU*Ekonomika!$B$24 -> -10494.1839 | BQ184: -10494.1839 | BR184: -11345.16816 | BS184: MIN
F185: 2018-01-08T15:00:00 | G185: 184 | H185: 108.3437024 | I185: 89.54057742 | J185: 18.803125 | K185: 94.22973484 | L185: 41.025 | M185: 31.89903007 | N185: 81.39880952 | O185: 208.8506192 | P185: 61.95509322 | Q185: 61.95509322 | R185: 165.4200989 | S185: 45.95002747 | T185: 49.94568203 | U185: 10.4537474 | V185: 0 | W185: 0 | X185: 0 | Y185: 0 | Z185: 0 | AA185: 0 | AB185: 0 | AC185: 25.83527387 | AD185: 6.962606309 | AE185: 183.0153454 | AF185: 67.09012945 | AG185: 22.71162134 | AH185: 22.71162134 | AI185: 10.7829035 | AJ185: 3.191815495 | AK185: 7.507150045 | AL185: 7.59108801 | AM185: 1.928714808 | AN185: 4.399398476 | AO185: 10.00000303 | AP185: 10.00000303 | AQ185: 22.34001782 | AR185: 2.355889718 | AS185: 18.803125 | AT185: 0 | AU185: 0 | AV185: 8.191597713 | AW185: 3.404654078 | AX185: 8.876341741 | AY185: 3.939787723 | AZ185: 9.318496027 | BA185: 7.234281896 | BB185: 2.084214131 | BC185: VT | BK185: 22.71162629 | BL185: 10.00000798 | BM185: 4.193323212 | BN185: 5.125172815 | BP185: =IF(BC185="NT",BA185*Ekonomika!$B$22,BA185*Ekonomika!$B$23)-U185*Ekonomika!$B$14-U185*(Výhřevnost_HU/3.6)*Emisní_faktor_CO2_HU*Ekonomika!$B$24 -> -10282.89534 | BQ185: -10282.89534 | BR185: -11188.7034 | BS185: MIN
F186: 2018-01-08T16:00:00 | G186: 185 | H186: 107.7917658 | I186: 90.28629654 | J186: 17.5054693 | K186: 95.01450659 | L186: 38.1937512 | M186: 32.16469417 | N186: 75.78125238 | O186: 207.851474 | P186: 61.65869889 | Q186: 61.65869889 | R186: 164.628726 | S186: 45.73020168 | T186: 49.70674095 | U186: 10.40373648 | V186: 0 | W186: 0 | X186: 0 | Y186: 0 | Z186: 0 | AA186: 0 | AB186: 0 | AC186: 25.71167744 | AD186: 6.929297069 | AE186: 182.1397965 | AF186: 65.53360044 | AG186: 22.18469886 | AH186: 22.18469886 | AI186: 10.24375181 | AJ186: 3.17654579 | AK186: 7.471235698 | AL186: 7.067206015 | AM186: 1.940943977 | AN186: 4.427293212 | AO186: 10.00000308 | AP186: 10.00000308 | AQ186: 22.34001811 | AR186: 2.327635772 | AS186: 17.5054693 | AT186: 0 | AU186: 0 | AV186: 8.152408955 | AW186: 3.388366149 | AX186: 8.833877155 | AY186: 3.920939705 | AZ186: 9.256932841 | BA186: 7.177905611 | BB186: 2.079027231 | BC186: VT | BK186: 22.18470389 | BL186: 10.00000811 | BM186: 4.165619779 | BN186: 5.091313063 | BP186: =IF(BC186="NT",BA186*Ekonomika!$B$22,BA186*Ekonomika!$B$23)-U186*Ekonomika!$B$14-U186*(Výhřevnost_HU/3.6)*Emisní_faktor_CO2_HU*Ekonomika!$B$24 -> -10257.12028 | BQ186: -10257.12028 | BR186: -11177.80657 | BS186: MIN
F187: 2018-01-08T17:00:00 | G187: 186 | H187: 118.8092007 | I187: 97.95217003 | J187: 20.8570307 | K187: 103.0818348 | L187: 45.5062488 | M187: 34.89567867 | N187: 90.29017619 | O187: 224.9505219 | P187: 66.73109518 | Q187: 66.73109518 | R187: 178.1720241 | S187: 49.49222893 | T187: 53.79590101 | U187: 11.25960719 | V187: 0 | W187: 0 | X187: 0 | Y187: 0 | Z187: 0 | AA187: 0 | AB187: 0 | AC187: 27.82686669 | AD187: 7.499340573 | AE187: 197.1236552 | AF187: 70.67387534 | AG187: 23.92480546 | AH187: 23.92480546 | AI187: 11.85814541 | AJ187: 3.437866567 | AK187: 8.085862165 | AL187: 8.420278845 | AM187: 2.066657823 | AN187: 4.714046495 | AO187: 10.00000223 | AP187: 10.00000223 | AQ187: 22.3400131 | AR187: 2.430654988 | AS187: 20.8570307 | AT187: 0 | AU187: 0 | AV187: 8.82307262 | AW187: 3.667112477 | AX187: 9.560602282 | AY187: 4.243498572 | AZ187: 9.929995561 | BA187: 7.762201395 | BB187: 2.167794166 | BC187: VT | BK187: 23.9248091 | BL187: 10.00000587 | BM187: 4.468498002 | BN187: 5.461497559 | BP187: =IF(BC187="NT",BA187*Ekonomika!$B$22,BA187*Ekonomika!$B$23)-U187*Ekonomika!$B$14-U187*(Výhřevnost_HU/3.6)*Emisní_faktor_CO2_HU*Ekonomika!$B$24 -> -11107.59945 | BQ187: -11107.59945 | BR187: -11773.66446 | BS187: MIN
F188: 2018-01-08T18:00:00 | G188: 187 | H188: 129.2164565 | I188: 105.0937997 | J188: 24.1226568 | K188: 110.5974651 | L188: 52.6312512 | M188: 37.43990015 | N188: 104.4270857 | O188: 241.1151495 | P188: 71.5262977 | Q188: 71.5262977 | R188: 190.9752149 | S188: 53.04867079 | T188: 57.66159869 | U188: 12.0687067 | V188: 0 | W188: 0 | X188: 0 | Y188: 0 | Z188: 0 | AA188: 0 | AB188: 0 | AC188: 29.82646614 | AD188: 8.038232625 | AE188: 211.2886834 | AF188: 75.6440857 | AG188: 25.60734113 | AH188: 25.60734113 | AI188: 13.42356519 | AJ188: 3.684906816 | AK188: 8.666900832 | AL188: 9.738658377 | AM188: 2.183774514 | AN188: 4.981189665 | AO188: 10.00000142 | AP188: 10.00000142 | AQ188: 22.34000837 | AR188: 2.53000631 | AS188: 24.1226568 | AT188: 0 | AU188: 0 | AV188: 9.457086192 | AW188: 3.930626015 | AX188: 10.2476137 | AY188: 4.548430402 | AZ188: 10.56823894 | BA188: 8.316528725 | BB188: 2.25171021 | BC188: VT | BK188: 25.60734345 | BL188: 10.00000375 | BM188: 4.755707521 | BN188: 5.812531414 | BP188: =IF(BC188="NT",BA188*Ekonomika!$B$22,BA188*Ekonomika!$B$23)-U188*Ekonomika!$B$14-U188*(Výhřevnost_HU/3.6)*Emisní_faktor_CO2_HU*Ekonomika!$B$24 -> -11909.4914 | BQ188: -11909.4914 | BR188: -12334.84954 | BS188: MIN
F189: 2018-01-08T19:00:00 | G189: 188 | H189: 129.9934601 | I189: 106.9192419 | J189: 23.0742182 | K189: 112.5185039 | L189: 50.3437488 | M189: 38.09021799 | N189: 99.88839048 | O189: 242.1589551 | P189: 71.83594039 | Q189: 71.83594039 | R189: 191.8019608 | S189: 53.27832246 | T189: 57.91122006 | U189: 12.12095304 | V189: 0 | W189: 0 | X189: 0 | Y189: 0 | Z189: 0 | AA189: 0 | AB189: 0 | AC189: 29.95558714 | AD189: 8.073030735 | AE189: 212.2033679 | AF189: 74.5293004 | AG189: 25.22995951 | AH189: 25.22995951 | AI189: 13.01624791 | AJ189: 3.700859053 | AK189: 8.704420494 | AL189: 9.315388857 | AM189: 2.213710229 | AN189: 5.049473033 | AO189: 10.00000137 | AP189: 10.00000137 | AQ189: 22.34000806 | AR189: 2.511009291 | AS189: 23.0742182 | AT189: 0 | AU189: 0 | AV189: 9.498026625 | AW189: 3.947641989 | AX189: 10.29197638 | AY189: 4.568120898 | AZ189: 10.58404003 | BA189: 8.326911069 | BB189: 2.257128957 | BC189: VT | BK189: 25.22996175 | BL189: 10.00000361 | BM189: 4.762818012 | BN189: 5.821222014 | BP189: =IF(BC189="NT",BA189*Ekonomika!$B$22,BA189*Ekonomika!$B$23)-U189*Ekonomika!$B$14-U189*(Výhřevnost_HU/3.6)*Emisní_faktor_CO2_HU*Ekonomika!$B$24 -> -11988.61245 | BQ189: -11988.61245 | BR189: -12398.42732 | BS189: MIN
F190: 2018-01-08T20:00:00 | G190: 189 | H190: 133.7353808 | I190: 107.1978808 | J190: 26.5375 | K190: 112.8117349 | L190: 57.9 | M190: 38.18948372 | N190: 114.8809524 | O190: 248.2597521 | P190: 73.6457289 | Q190: 73.6457289 | R190: 196.6340962 | S190: 54.62058227 | T190: 59.37019812 | U190: 12.42632054 | V190: 0 | W190: 0 | X190: 0 | Y190: 0 | Z190: 0 | AA190: 0 | AB190: 0 | AC190: 30.71026895 | AD190: 8.276417483 | AE190: 217.5494832 | AF190: 78.94843161 | AG190: 26.72594164 | AH190: 26.72594164 | AI190: 14.50766091 | AJ190: 3.794096118 | AK190: 8.923714069 | AL190: 10.7135648 | AM190: 2.218279659 | AN190: 5.059895903 | AO190: 10.00000107 | AP190: 10.00000107 | AQ190: 22.34000628 | AR190: 2.593522517 | AS190: 26.5375 | AT190: 0 | AU190: 0 | AV190: 9.737313804 | AW190: 4.047096344 | AX190: 10.55126582 | AY190: 4.6832072 | AZ190: 10.86994 | BA190: 8.581139743 | BB190: 2.288800256 | BC190: NT | BK190: 26.72594338 | BL190: 10.00000281 | BM190: 4.891473 | BN190: 5.978467 | BP190: =IF(BC190="NT",BA190*Ekonomika!$B$22,BA190*Ekonomika!$B$23)-U190*Ekonomika!$B$14-U190*(Výhřevnost_HU/3.6)*Emisní_faktor_CO2_HU*Ekonomika!$B$24 -> -14653.06342 | BQ190: -14653.06342 | BR190: -15372.4954 | BS190: MIN
F191: 2018-01-08T21:00:00 | G191: 190 | H191: 131.4655703 | I191: 105.7186953 | J191: 25.746875 | K191: 111.2550859 | L191: 56.175 | M191: 37.66252061 | N191: 111.4583333 | O191: 244.7243744 | P191: 72.59696659 | Q191: 72.59696659 | R191: 193.8339008 | S191: 53.84275022 | T191: 58.5247285 | U191: 12.24936178 | V191: 0 | W191: 0 | X191: 0 | Y191: 0 | Z191: 0 | AA191: 0 | AB191: 0 | AC191: 30.27293507 | AD191: 8.158556001 | AE191: 214.4514393 | AF191: 77.77429315 | AG191: 26.32846755 | AH191: 26.32846755 | AI191: 14.13444404 | AJ191: 3.740065761 | AK191: 8.79663467 | AL191: 10.39437828 | AM191: 2.194022268 | AN191: 5.004564794 | AO191: 10.00000124 | AP191: 10.00000124 | AQ191: 22.34000731 | AR191: 2.570251639 | AS191: 25.746875 | AT191: 0 | AU191: 0 | AV191: 9.598648224 | AW191: 3.989463102 | AX191: 10.40100904 | AY191: 4.616515332 | AZ191: 10.72880764 | BA191: 8.458360725 | BB191: 2.270446915 | BC191: NT | BK191: 26.32846958 | BL191: 10.00000327 | BM191: 4.827963438 | BN191: 5.900844202 | BP191: =IF(BC191="NT",BA191*Ekonomika!$B$22,BA191*Ekonomika!$B$23)-U191*Ekonomika!$B$14-U191*(Výhřevnost_HU/3.6)*Emisní_faktor_CO2_HU*Ekonomika!$B$24 -> -14444.854 | BQ191: -14444.854 | BR191: -15283.02707 | BS191: MIN
F192: 2018-01-08T22:00:00 | G192: 191 | H192: 117.1758675 | I192: 98.72508566 | J192: 18.4507818 | K192: 103.8952273 | L192: 40.2562512 | M192: 35.17103159 | N192: 79.87351429 | O192: 222.174685 | P192: 65.90764907 | Q192: 65.90764907 | R192: 175.973423 | S192: 48.88150639 | T192: 53.13207217 | U192: 11.12066627 | V192: 0 | W192: 0 | X192: 0 | Y192: 0 | Z192: 0 | AA192: 0 | AB192: 0 | AC192: 27.48348966 | AD192: 7.406800464 | AE192: 194.6911954 | AF192: 67.71637799 | AG192: 22.92362153 | AH192: 22.92362153 | AI192: 10.84428616 | AJ192: 3.395444097 | AK192: 7.986084516 | AL192: 7.448842067 | AM192: 2.079332996 | AN192: 4.742958565 | AO192: 10.00000237 | AP192: 10.00000237 | AQ192: 22.34001392 | AR192: 2.376353209 | AS192: 18.4507818 | AT192: 0 | AU192: 0 | AV192: 8.714197967 | AW192: 3.621861167 | AX192: 9.442626685 | AY192: 4.191134791 | AZ192: 9.783153673 | BA192: 7.629769814 | BB192: 2.153383859 | BC192: NT | BK192: 22.92362539 | BL192: 10.00000623 | BM192: 4.402419153 | BN192: 5.38073452 | BP192: =IF(BC192="NT",BA192*Ekonomika!$B$22,BA192*Ekonomika!$B$23)-U192*Ekonomika!$B$14-U192*(Výhřevnost_HU/3.6)*Emisní_faktor_CO2_HU*Ekonomika!$B$24 -> -13152.98002 | BQ192: -13152.98002 | BR192: -14748.5191 | BS192: MIN
F193: 2018-01-08T23:00:00 | G193: 192 | H193: 91.23904473 | I193: 77.96170153 | J193: 13.2773432 | K193: 82.0444839 | L193: 28.9687488 | M193: 27.77402976 | N193: 57.47767619 | O193: 182.2635237 | P193: 54.06808771 | Q193: 54.06808771 | R193: 144.3617942 | S193: 40.10049838 | T193: 43.58749824 | U193: 9.122964748 | V193: 0 | W193: 0 | X193: 0 | Y193: 0 | Z193: 0 | AA193: 0 | AB193: 0 | AC193: 22.54639257 | AD193: 6.076252799 | AE193: 159.7171311 | AF193: 58.73904362 | AG193: 19.88457807 | AH193: 19.88457807 | AI193: 8.145742685 | AJ193: 2.78549109 | AK193: 6.551475044 | AL193: 5.360251595 | AM193: 1.738831031 | AN193: 3.966273582 | AO193: 10.00000435 | AP193: 10.00000435 | AQ193: 22.34002561 | AR193: 2.189360311 | AS193: 13.2773432 | AT193: 0 | AU193: 0 | AV193: 7.148791174 | AW193: 2.971234902 | AX193: 7.746365937 | AY193: 3.438244979 | AZ193: 8.26561311 | BA193: 6.319421575 | BB193: 1.946191535 | BC193: NT | BK193: 19.88458518 | BL193: 10.00001146 | BM193: 3.719525899 | BN193: 4.54608721 | BP193: =IF(BC193="NT",BA193*Ekonomika!$B$22,BA193*Ekonomika!$B$23)-U193*Ekonomika!$B$14-U193*(Výhřevnost_HU/3.6)*Emisní_faktor_CO2_HU*Ekonomika!$B$24 -> -10742.29626 | BQ193: -10742.29626 | BR193: -13678.31308 | BS193: MIN
F194: 2018-01-09 | G194: 193 | H194: 89.21217156 | I194: 77.70513976 | J194: 11.5070318 | K194: =M194*h_CZT -> 81.77448624 | L194: =N194*h_HV -> 25.1062512 | M194: =I194/(h_CZT-h_VK) -> 27.68262906 | N194: =J194/(h_HV-h_VHV) -> 49.81399048 | O194: =P194*h_výstupK1 -> 178.9722537 | P194: 53.09173946 | Q194: 53.09173946 | R194: 141.7549444 | S194: 39.37637343 | T194: =S194/Účinnost_K1 -> 42.8004059 | U194: =T194*3.6/Výhřevnost_HU -> 8.958224491 | V194: =IF(W194=0,0,MAX(W194,PminOK*3.6)) -> 0 | W194: =AG194*h_eTG1-AH194*h_eTG1 -> 0 | X194: =V194/h_CZT -> 0 | Y194: =W194/h_CZT -> 0 | Z194: =(V194-X194*h_VK)/3.6 -> 0 | AA194: =Z194/Účinnost_OK -> 0 | AB194: 0 | AC194: =P194*(h_výstupK1-h_eTG1) -> 22.13925535 | AD194: =AC194*ÚčinnostPT*ÚčinnostG/3.6 -> 5.966529318 | AE194: =O194-AC194 -> 156.8329984 | AF194: =AG194*h_eTG1 -> 56.46680692 | AG194: =IF(AP194<MminTG2,MminTG2+AM194+AI194,AH194) -> 19.11537133 | AH194: 19.11537133 | AI194: 7.380743172 | AJ194: =(M194+AH194)*(h_vNTO2-h_vNTO1)/(h_RO-h_vNTO2+h_vNTO2-h_vNTO1) -> 2.735191376 | AK194: =AJ194*(h_RO-h_vNTO2) -> 6.433170116 | AL194: =AS194/(h_RO-h_VHV) -> 4.645551797 | AM194: =(M194+AH194-AI194)*(h_vNTO1-h_VK)/(h_NRO-h_VK) -> 1.734623641 | AN194: =AM194*(h_NRO-h_vNTO1) -> 3.956676526 | AO194: =IF(AP194<MminTG2,MminTG2,AP194) -> 10.00000452 | AP194: 10.00000452 | AQ194: =BL194*(h_kondTG2-h_VK) -> 22.34002658 | AR194: =(BL194*(h_eTG1-h_kondTG2)+AM194*(h_eTG1-h_NRO)+AI194*(h_eTG1-h_RO))*ÚčinnostPT*ÚčinnostG/3.6 -> 2.146824866 | AS194: =IF(J194>(3.6*Pn_ZO),(3.6*Pn_ZO),J194) -> 11.5070318 | AT194: =J194-AS194 -> 0 | AU194: =AT194/(h_CZT-h_vNTO2) -> 0 | AV194: =AW194*(h_CZT-h_vVTO1) -> 7.019700058 | AW194: 2.917581072 | AX194: =AY194*(h_eTG1-h_nvK1) -> 7.606483964 | AY194: 3.376157995 | AZ194: 8.113354184 | BA194: 6.184248743 | BB194: 1.92910544 | BC194: NT | BK194: 19.11537871 | BL194: 10.0000119 | BM194: =AZ194*cskut -> 3.651009383 | BN194: 4.462344801 | BP194: =IF(BC194="NT",BA194*Ekonomika!$B$22,BA194*Ekonomika!$B$23)-U194*Ekonomika!$B$14-U194*(Výhřevnost_HU/3.6)*Emisní_faktor_CO2_HU*Ekonomika!$B$24 -> -10565.05539 | BQ194: -10565.05539 | BR194: -13611.61458 | BS194: MIN
F195: 2018-01-09T01:00:00 | G195: 194 | H195: =+I195+J195 -> 82.74208777 | I195: 72.14599457 | J195: 10.5960932 | K195: 75.92421374 | L195: 23.1187488 | M195: 25.7021712 | N195: 45.87053333 | O195: 169.0640883 | P195: 50.15250321 | Q195: =P195 -> 50.15250321 | R195: 133.9071836 | S195: =R195/3.6 -> 37.19643988 | T195: 40.43091291 | U195: 8.462284098 | V195: 0 | W195: 0 | X195: 0 | Y195: 0 | Z195: 0 | AA195: 0 | AB195: =AA195*3.6/Výhřevnost_LTO+IF(AA195>0,IF(AA194=0,Spotřeba_LTO_na_zátop_OK,0),0) -> 0 | AC195: 20.91359384 | AD195: 5.63621354 | AE195: 148.1504945 | AF195: 54.6638395 | AG195: 18.50502353 | AH195: 18.50502353 | AI195: =AJ195+AL195 -> 6.861560161 | AJ195: 2.583767186 | AK195: 6.077020422 | AL195: 4.277792975 | AM195: 1.643458353 | AN195: 3.748728503 | AO195: 10.00000501 | AP195: =AH195-AI195-AM195 -> 10.00000501 | AQ195: 22.34002948 | AR195: 2.107937855 | AS195: 10.5960932 | AT195: 0 | AU195: 0 | AV195: 6.63107921 | AW195: 2.756059522 | AX195: 7.185377901 | AY195: 3.189248957 | AZ195: =AR195+AD195 -> 7.744151395 | BA195: =MAX(AZ195-BB195,0) -> 5.866482589 | BB195: =1+1.4*P195/80 -> 1.877668806 | BC195: NT | BK195: 18.50503171 | BL195: =AO195+(BK195-AG195) -> 10.0000132 | BM195: 3.484868128 | BN195: =AZ195-BM195 -> 4.259283267 | BP195: =IF(BC195="NT",BA195*Ekonomika!$B$22,BA195*Ekonomika!$B$23)-U195*Ekonomika!$B$14-U195*(Výhřevnost_HU/3.6)*Emisní_faktor_CO2_HU*Ekonomika!$B$24 -> -9960.599714 | BQ195: -9960.599714 | BR195: -13339.93987 | BS195: =IF(BQ195>=BR195,"MIN","MAX") -> MIN
F196: 2018-01-09T02:00:00 | G196: 195 | H196: 83.27264623 | I196: 68.49139623 | J196: 14.78125 | K196: 72.07822745 | L196: 32.25 | M196: 24.40021241 | N196: 63.98809524 | O196: 170.3951894 | P196: 50.54737152 | Q196: 50.54737152 | R196: 134.961482 | S196: 37.48930054 | T196: 40.74923972 | U196: 8.52891064 | V196: 0 | W196: 0 | X196: 0 | Y196: 0 | Z196: 0 | AA196: 0 | AB196: 0 | AC196: 21.07825392 | AD196: 5.680589433 | AE196: 149.3169355 | AF196: 59.53799149 | AG196: 20.15504113 | AH196: 20.15504113 | AI196: 8.571510175 | AJ196: 2.604110095 | AK196: 6.124866942 | AL196: 5.967400081 | AM196: 1.583526007 | AN196: 3.612022822 | AO196: 10.00000495 | AP196: 10.00000495 | AQ196: 22.34002909 | AR196: 2.195147566 | AS196: 14.78125 | AT196: 0 | AU196: 0 | AV196: 6.68328803 | AW196: 2.777758949 | AX196: 7.24195091 | AY196: 3.214359037 | AZ196: 7.875736999 | BA196: 5.991157997 | BB196: 1.884579002 | BC196: NT | BK196: 20.1550492 | BL196: 10.00001302 | BM196: 3.544081649 | BN196: 4.331655349 | BP196: =IF(BC196="NT",BA196*Ekonomika!$B$22,BA196*Ekonomika!$B$23)-U196*Ekonomika!$B$14-U196*(Výhřevnost_HU/3.6)*Emisní_faktor_CO2_HU*Ekonomika!$B$24 -> -9976.627886 | BQ196: -9976.627886 | BR196: -13311.26097 | BS196: MIN
F197: 2018-01-09T03:00:00 | G197: 196 | H197: 84.07016422 | I197: 70.03656992 | J197: 14.0335943 | K197: 73.70432047 | L197: 30.6187512 | M197: 24.95068398 | N197: 60.75149048 | O197: 171.5079955 | P197: 50.87748308 | Q197: 50.87748308 | R197: 135.8428798 | S197: 37.73413329 | T197: 41.01536227 | U197: 8.584610707 | V197: 0 | W197: 0 | X197: 0 | Y197: 0 | Z197: 0 | AA197: 0 | AB197: 0 | AC197: 21.21591045 | AD197: 5.717687865 | AE197: 150.292085 | AF197: 58.77144931 | AG197: 19.89554818 | AH197: 19.89554818 | AI197: 8.286677731 | AJ197: 2.621116851 | AK197: 6.164866834 | AL197: 5.66556088 | AM197: 1.608865555 | AN197: 3.669822331 | AO197: 10.00000489 | AP197: 10.00000489 | AQ197: 22.34002876 | AR197: 2.182363038 | AS197: 14.0335943 | AT197: 0 | AU197: 0 | AV197: 6.726934823 | AW197: 2.79589976 | AX197: 7.289246183 | AY197: 3.235351169 | AZ197: 7.900050903 | BA197: 6.009694949 | BB197: 1.890355954 | BC197: NT | BK197: 19.89555616 | BL197: 10.00001287 | BM197: 3.555022906 | BN197: 4.345027997 | BP197: =IF(BC197="NT",BA197*Ekonomika!$B$22,BA197*Ekonomika!$B$23)-U197*Ekonomika!$B$14-U197*(Výhřevnost_HU/3.6)*Emisní_faktor_CO2_HU*Ekonomika!$B$24 -> -10058.15101 | BQ197: -10058.15101 | BR197: -13355.40879 | BS197: MIN
F198: 2018-01-09T04:00:00 | G198: 197 | H198: 99.11401581 | I198: 81.90932831 | J198: 17.2046875 | K198: 86.19884425 | L198: 37.5375 | M198: 29.18038059 | N198: 74.47916667 | O198: 194.6787291 | P198: 57.75103207 | Q198: 57.75103207 | R198: 154.1952556 | S198: 42.83201545 | T198: 46.55653853 | U198: 9.744391786 | V198: 0 | W198: 0 | X198: 0 | Y198: 0 | Z198: 0 | AA198: 0 | AB198: 0 | AC198: 24.08218037 | AD198: 6.490147611 | AE198: 170.5965487 | AF198: 64.17440469 | AG198: 21.72457843 | AH198: 21.72457843 | AI198: 9.921005931 | AJ198: 2.975229791 | AK198: 6.997740467 | AL198: 6.94577614 | AM198: 1.803568765 | AN198: 4.113940354 | AO198: 10.00000374 | AP198: 10.00000374 | AQ198: 22.34002197 | AR198: 2.294305593 | AS198: 17.2046875 | AT198: 0 | AU198: 0 | AV198: 7.635743853 | AW198: 3.173625874 | AX198: 8.274023489 | AY198: 3.672447177 | AZ198: 8.784453204 | BA198: 6.773810143 | BB198: 2.010643061 | BC198: NT | BK198: 21.72458453 | BL198: 10.00000984 | BM198: 3.953003942 | BN198: 4.831449262 | BP198: =IF(BC198="NT",BA198*Ekonomika!$B$22,BA198*Ekonomika!$B$23)-U198*Ekonomika!$B$14-U198*(Výhřevnost_HU/3.6)*Emisní_faktor_CO2_HU*Ekonomika!$B$24 -> -11455.0032 | BQ198: -11455.0032 | BR198: -13974.03625 | BS198: MIN
F199: 2018-01-09T05:00:00 | G199: 198 | H199: 139.0137 | I199: 111.9090125 | J199: 27.1046875 | K199: 117.7695843 | L199: 59.1375 | M199: 39.86783489 | N199: 117.3363095 | O199: 256.3206708 | P199: 76.03698333 | Q199: 76.03698333 | R199: 203.0187455 | S199: 56.39409597 | T199: 61.2979304 | U199: 12.82979939 | V199: 0 | W199: 0 | X199: 0 | Y199: 0 | Z199: 0 | AA199: 0 | AB199: 0 | AC199: 31.70742205 | AD199: 8.545150242 | AE199: 224.6132488 | AF199: 80.21697657 | AG199: 27.1553746 | AH199: 27.1553746 | AI199: 14.85983569 | AJ199: 3.917289265 | AK199: 9.213464352 | AL199: 10.94254643 | AM199: 2.295538243 | AN199: 5.236122733 | AO199: 10.00000067 | AP199: 10.00000067 | AQ199: 22.34000391 | AR199: 2.621649939 | AS199: 27.1046875 | AT199: 0 | AU199: 0 | AV199: 10.05348142 | AW199: 4.178504332 | AX199: 10.89386221 | AY199: 4.835269514 | AZ199: 11.16680018 | BA199: 8.836152973 | BB199: 2.330647208 | BC199: NT | BK199: 27.15537569 | BL199: 10.00000175 | BM199: 5.025060081 | BN199: 6.1417401 | BP199: =IF(BC199="NT",BA199*Ekonomika!$B$22,BA199*Ekonomika!$B$23)-U199*Ekonomika!$B$14-U199*(Výhřevnost_HU/3.6)*Emisní_faktor_CO2_HU*Ekonomika!$B$24 -> -15147.61639 | BQ199: -15147.61639 | BR199: -15596.31001 | BS199: MIN
F200: 2018-01-09T06:00:00 | G200: 199 | H200: 179.701364 | I200: 146.3318333 | J200: 33.3695307 | K200: 153.9950964 | L200: 72.8062488 | M200: 52.13104143 | N200: 144.4568429 | O200: 257.9739374 | P200: 76.52742136 | Q200: 76.52742136 | R200: =P200*(h_výstupK1-h_vNTO2) -> 227.5160237 | S200: 63.19889547 | T200: 68.6944516 | U200: 14.37790847 | V200: 18 | W200: 18 | X200: 6.093432634 | Y200: 6.093432634 | Z200: 4.751184834 | AA200: 5.589629217 | AB200: 2.479111076 | AC200: 31.91193471 | AD200: 8.600266403 | AE200: 226.0620027 | AF200: 88.94640801 | AG200: 30.11049695 | AH200: =P200-M200-AU200 -> 24.01706432 | AI200: 17.53094898 | AJ200: 4.450609864 | AK200: 10.4678344 | AL200: 13.08033912 | AM200: 2.579547972 | AN200: 5.883948923 | AO200: 10 | AP200: 3.906567366 | AQ200: 22.34 | AR200: 2.800725736 | AS200: 32.4 | AT200: 0.9695307 | AU200: 0.3793156103 | AV200: 0 | AW200: 0 | AX200: 0 | AY200: 0 | AZ200: 11.40099214 | BA200: 9.061762266 | BB200: 2.339229874 | BC200: NT | BK200: 30.11049695 | BL200: 10 | BM200: 5.130446463 | BN200: 6.270545677 | BP200: =IF(BC200="NT",BA200*Ekonomika!$B$22,BA200*Ekonomika!$B$23)-U200*Ekonomika!$B$14-U200*(Výhřevnost_HU/3.6)*Emisní_faktor_CO2_HU*Ekonomika!$B$24 -> -17643.6692 | BQ200: -17643.6692 | BR200: -18103.66892 | BS200: MIN
... 925 more rows

Sheet Model_S_AKU
A1: Parametr | B1: Hodnota | C1: Jednotka | D1: Specifikace | E1: Popis | F1: Datum | G1: Pořadí hodiny | H1: Dodávky tepla [GJ] | I1: Dodávky páry [GJ] | J1: Dodávky HV [GJ] | K1: Dodávky páry včetně energie VK [GJ] | L1: Dodávky HV včetně vratné energie [GJ] | M1: Průtok páry do CZT [t] | N1: Průtok vody do HV [t] | O1: Výroba v páře K1 [GJ] | P1: Parní výkon K1 [t] | Q1: Parní výkon K1 pomocny [t] | R1: Výroba/Tepelný výkon K1 [GJ] | S1: Výroba/Tepelný výkon K1 [MWt] | T1: Tepelný příkon K1 [MWt] | U1: Spotřeba uhlí K1 [t] | V1: Výroba v páře OK [GJ] | W1: Výroba v páře OK pomocný sloupec [GJ] | X1: Parní výkon OK [t] | Y1: Parní výkon OK požadavek [t] | Z1: Výroba/Tepelný výkon OK [MWt] | AA1: Tepelný příkon OK [MWt] | AB1: Spotřeba paliva pro OK [t] | AC1: Energie na výrobu EE TG1 [GJ] | AD1: Výroba EE TG1 [MWh] | AE1: Energie v páře na výstupu z TG1 [GJ] | AF1: Energie na vstupu do TG2 [GJ] | AG1: Průtok páry do TG2 minimalni pro zajisteni pozadavku HVS a min kondenzace [t] | AH1: Průtok páry do TG2 [t] - doplněk do zbývajícícho průtoku páry po odečtení všech ostatních ostatních požadavků | AI1: Odběr páry z RO [t] | AJ1: Průtok páry z RO přes NTO 2 [t] | AK1: Předaná energie NTO 2 [GJ] | AL1: Průtok páry na ZO z RO [t] | AM1: Odběr páry z NRO [t] | AN1: Předaná energie NTO 1 [GJ] | AO1: Průtok páry do kondenzace pomocný [t] | AP1: Průtok páry do kondenzace [t] doplněk | AQ1: Mařená energie v kondenzaci [GJ] | AR1: Výroba EE TG2 [MWh] | AS1: Předaná energie ZO [GJ] | AT1: Předaná energie ŠO [GJ] | AU1: Průtok páry přes ŠO [t] | AV1: Předaná energie VTO 1 [GJ] | AW1: Průtok páry přes VTO 1 [t] | AX1: Předaná energie VTO 2 [GJ] | AY1: Průtok páry přes VTO 2 [t] | AZ1: Výroba EE [MWh] | BA1: Prodej EE [MWh] | BB1: Vlastní spotřeba EE [MWh] | BC1: Tarif | BD1: Výkon AKU [GJ] | BE1: Energie v AKU [GJ] | BF1: Předaná energie AO [GJ] | BG1: Průtok páry přes AO [t] | BH1: Vhodný čas nabíjení (0), vybíjení (1) | BI1: Den se střední dodávkou tepla (0) 100 GJ - 145 GJ, vysoká (1) nad 145 GJ, nízkou (2) pod 100 GJ | BJ1: Dodávka do AKU [GJ] | BK1: Průtok páry do TG2 skutečný [t] | BL1: Průtok páry do kondenzace skutečný [t] | BM1: Kogenerační EE [MWh] | BN1: Kondenzační EE [MWh]
A2: h_CZT | B2: 2.954 | C2: GJ/t | D2: 250°C; 0,7 Mpa | E2: Entalpie dodávkové páry | F2: 2018-01-01 | G2: 1 | H2: =+I2+J2 -> 68.40301599 | I2: 58.40848419 | J2: 9.9945318 | K2: =M2*h_CZT -> 61.46728261 | L2: =N2*h_HV -> 21.8062512 | M2: =I2/(h_CZT-h_VK) -> 20.80815254 | N2: =J2/(h_HV-h_VHV) -> 43.26637143 | O2: =P2*h_výstupK1 -> 184.9892367 | P2: 54.8766647 | Q2: =P2 -> 54.8766647 | R2: =P2*(h_výstupK1-h_nvK1) -> 146.5206948 | S2: =R2/3.6 -> 40.70019299 | T2: =S2/Účinnost_K1 -> 44.2393402 | U2: =T2*3.6/Výhřevnost_HU -> 9.259396787 | V2: =IF(W2=0,0,MAX(W2,PminOK*3.6)) -> 0 | W2: =AG2*h_eTG1-AH2*h_eTG1 -> 0 | X2: =V2/h_CZT -> 0 | Y2: =W2/h_CZT -> 0 | Z2: =(V2-X2*h_VK)/3.6 -> 0 | AA2: =Z2/Účinnost_OK -> 0 | AB2: =AA2*3.6/Výhřevnost_LTO -> 0 | AC2: =P2*(h_výstupK1-h_eTG1) -> 22.88356918 | AD2: =AC2*ÚčinnostPT*ÚčinnostG/3.6 -> 6.167121894 | AE2: =O2-AC2 -> 162.1056675 | AF2: =BK2*h_eTG1 -> 52.29770994 | AG2: =IF(AP2<MminTG2,MminTG2+AM2+AI2,AH2) -> 17.70402491 | AH2: =P2/S3_-M2-AU2-BG2 -> 17.70402491 | AI2: =AJ2+AL2 -> 6.285846007 | AJ2: =(M2+AH2)*(h_vNTO2-h_vNTO1)/(h_RO-h_vNTO2+h_vNTO2-h_vNTO1) -> 2.250911893 | AK2: =AJ2*(h_RO-h_vNTO2) -> 5.294144772 | AL2: =AS2/(h_RO-h_VHV) -> 4.034934114 | AM2: =(M2+AH2-AI2)*(h_vNTO1-h_VK)/(h_NRO-h_VK) -> 1.418174687 | AN2: =AM2*(h_NRO-h_vNTO1) -> 3.23485646 | AO2: =IF(AP2<MminTG2,MminTG2,AP2) -> 10.00000422 | AP2: =AH2-AI2-AM2 -> 10.00000422 | AQ2: =BL2*(h_kondTG2-h_VK) -> 22.34002481 | AR2: =(BL2*(h_eTG1-h_kondTG2)+AM2*(h_eTG1-h_NRO)+AI2*(h_eTG1-h_RO))*ÚčinnostPT*ÚčinnostG/3.6 -> 2.050725348 | AS2: =IF((J2-BD2)>(3.6*Pn_ZO),(3.6*Pn_ZO),(J2-BD2)) -> 9.9945318 | AT2: =J2-BD2-AS2 -> 0 | AU2: =AT2/(h_CZT-h_vNTO2) -> 0 | AV2: =AW2*(h_CZT-h_vVTO1) -> 7.255699858 | AW2: =(P2-AY2)*(h_vVTO1-h_vNTO2)/(h_CZT-h_vNTO2) -> 3.015669101 | AX2: =AY2*(h_eTG1-h_nvK1) -> 7.862211227 | AY2: =P2*(h_nvK1-h_vVTO1)/(h_eTG1-h_vVTO1) -> 3.489663217 | AZ2: =AR2+AD2 -> 8.217847242 | BA2: =MAX(AZ2-BB2,0) -> 6.25750561 | BB2: =1+1.4*P2/80 -> 1.960341632 | BC2: NT | BD2: 0 | BE2: 28.39477685 | BF2: 25.2 | BG2: 9.85915493 | BH2: =IF(H2>MEDIAN(OFFSET($H$2,24*(FLOOR(F2,1)-43101),,,):OFFSET($H$25,24*(FLOOR(F2,1)-43101),,,)),1,IF(H2>150,1,0)) -> 0 | BI2: =IF(MAX(OFFSET($H$2,24*(FLOOR(F2,1)-43101),,,):OFFSET($H$25,24*(FLOOR(F2,1)-43101),,,))>145,1,IF(MAX(OFFSET($H$2,24*(FLOOR(F2,1)-43101),,,):OFFSET($H$25,24*(FLOOR(F2,1)-43101),,,))<100,2,0)) -> 0 | BJ2: =BF2-BD2 -> 25.2 | BK2: 17.7040318 | BL2: =AO2+(BK2-AG2) -> 10.00001111 | BM2: =AZ2*cskut -> 3.698031259 | BN2: =AZ2-BM2 -> 4.519815983
A3: h_HV | B3: 0.504 | C3: GJ/t | D3: 120°C; 0,8 Mpa | E3: Entalpie HV | F3: 2018-01-01T01:00:00 | G3: 2 | H3: =+I3+J3 -> 70.36300815 | I3: 60.36847745 | J3: 9.9945307 | K3: 63.52991891 | L3: 21.8062488 | M3: 21.50640451 | N3: 43.26636667 | O3: 187.9559153 | P3: 55.7567236 | Q3: =P3 -> 55.7567236 | R3: =P3*(h_výstupK1-h_nvK1) -> 148.870452 | S3: =R3/3.6 -> 41.35290334 | T3: 44.94880797 | U3: 9.407890041 | V3: 0 | W3: 0 | X3: 0 | Y3: 0 | Z3: 0 | AA3: 0 | AB3: =AA3*3.6/Výhřevnost_LTO+IF(AA3>0,IF(AA2=0,Spotřeba_LTO_na_zátop_OK,0),0) -> 0 | AC3: 23.25055374 | AD3: 6.266024233 | AE3: 164.7053615 | AF3: 52.52658722 | AG3: 17.78150562 | AH3: =P3/S3_-M3-AU3-BG3 -> 17.78150562 | AI3: =AJ3+AL3 -> 6.331184622 | AJ3: 2.296250952 | AK3: 5.400782239 | AL3: 4.03493367 | AM3: 1.450316923 | AN3: 3.308172901 | AO3: =IF(AP3<MminTG2,MminTG2,AP3) -> 10.00000407 | AP3: =AH3-AI3-AM3 -> 10.00000407 | AQ3: 22.34002394 | AR3: 2.056864756 | AS3: 9.9945307 | AT3: =J3-BD3-AS3 -> 0 | AU3: 0 | AV3: 7.372059758 | AW3: =(P3-AY3)*(h_vVTO1-h_vNTO2)/(h_CZT-h_vNTO2) -> 3.064031487 | AX3: 7.98829777 | AY3: =P3*(h_nvK1-h_vVTO1)/(h_eTG1-h_vVTO1) -> 3.545627062 | AZ3: =AR3+AD3 -> 8.322888989 | BA3: =MAX(AZ3-BB3,0) -> 6.347146326 | BB3: =1+1.4*P3/80 -> 1.975742663 | BC3: NT | BD3: 0 | BE3: =BE2+BF2-BD2-(0.001*BE2) -> 53.56638207 | BF3: 25.2 | BG3: 9.85915493 | BH3: =IF(H3>MEDIAN(OFFSET($H$2,24*(FLOOR(F3,1)-43101),,,):OFFSET($H$25,24*(FLOOR(F3,1)-43101),,,)),1,IF(H3>150,1,0)) -> 0 | BI3: =IF(MAX(OFFSET($H$2,24*(FLOOR(F3,1)-43101),,,):OFFSET($H$25,24*(FLOOR(F3,1)-43101),,,))>145,1,IF(MAX(OFFSET($H$2,24*(FLOOR(F3,1)-43101),,,):OFFSET($H$25,24*(FLOOR(F3,1)-43101),,,))<100,2,0)) -> 0 | BJ3: =BF3-BD3 -> 25.2 | BK3: 17.78151226 | BL3: =AO3+(BK3-AG3) -> 10.00001072 | BM3: 3.745300045 | BN3: =AZ3-BM3 -> 4.577588944
A4: h_VK | B4: 0.147 | C4: GJ/t | D4: 35°C; 0,7 Mpa | E4: Entalpie vratného kondenzátu | F4: 2018-01-01T02:00:00 | G4: 3 | H4: 72.6184696 | I4: 57.2356571 | J4: 15.3828125 | K4: 60.23303565 | L4: 33.5625 | M4: 20.39033028 | N4: 66.5922619 | O4: 192.0496574 | P4: 56.97112352 | Q4: 56.97112352 | R4: =P4*(h_výstupK1-h_nvK1) -> 152.1128998 | S4: 42.25358328 | T4: 45.92780791 | U4: 9.612797004 | V4: 0 | W4: 0 | X4: 0 | Y4: 0 | Z4: 0 | AA4: 0 | AB4: 0 | AC4: 23.75695851 | AD4: 6.402500318 | AE4: 168.2926989 | AF4: 58.98554739 | AG4: 19.96801921 | AH4: =P4/S3_-M4-AU4-BG4 -> 19.96801921 | AI4: 8.569074048 | AJ4: 2.358814662 | AK4: 5.547932085 | AL4: 6.210259386 | AM4: 1.398941291 | AN4: 3.190985086 | AO4: 10.00000387 | AP4: =AH4-AI4-AM4 -> 10.00000387 | AQ4: 22.34002274 | AR4: 2.174070305 | AS4: 15.3828125 | AT4: 0 | AU4: 0 | AV4: 7.532625663 | AW4: =(P4-AY4)*(h_vVTO1-h_vNTO2)/(h_CZT-h_vNTO2) -> 3.130767108 | AX4: 8.162285543 | AY4: =P4*(h_nvK1-h_vVTO1)/(h_eTG1-h_vVTO1) -> 3.622851994 | AZ4: 8.576570622 | BA4: 6.579575961 | BB4: 1.996994662 | BC4: NT | BD4: 0 | BE4: =BE3+BF3-BD3-(0.001*BE3) -> 78.71281569 | BF4: 25.2 | BG4: 9.85915493 | BH4: =IF(H4>MEDIAN(OFFSET($H$2,24*(FLOOR(F4,1)-43101),,,):OFFSET($H$25,24*(FLOOR(F4,1)-43101),,,)),1,IF(H4>150,1,0)) -> 0 | BI4: =IF(MAX(OFFSET($H$2,24*(FLOOR(F4,1)-43101),,,):OFFSET($H$25,24*(FLOOR(F4,1)-43101),,,))>145,1,IF(MAX(OFFSET($H$2,24*(FLOOR(F4,1)-43101),,,):OFFSET($H$25,24*(FLOOR(F4,1)-43101),,,))<100,2,0)) -> 0 | BJ4: 25.2 | BK4: 19.96802552 | BL4: 10.00001018 | BM4: 3.85945678 | BN4: 4.717113842
A5: h_VHV | B5: 0.273 | C5: GJ/t | D5: 65°C; 0,8 Mpa | E5: Entalpie vratné vody | F5: 2018-01-01T03:00:00 | G5: 4 | H5: 73.84832801 | I5: 60.90614051 | J5: 12.9421875 | K5: 64.09573889 | L5: 28.2375 | M5: 21.69794817 | N5: 56.02678571 | O5: 193.6032607 | P5: 57.43199665 | Q5: 57.43199665 | R5: =P5*(h_výstupK1-h_nvK1) -> 153.3434311 | S5: 42.59539752 | T5: 46.29934513 | U5: 9.690560608 | V5: 0 | W5: 0 | X5: 0 | Y5: 0 | Z5: 0 | AA5: 0 | AB5: 0 | AC5: 23.9491426 | AD5: 6.454293932 | AE5: 169.6541181 | AF5: 56.32287411 | AG5: 19.06664043 | AH5: =P5/S3_-M5-AU5-BG5 -> 19.06664043 | AI5: 7.60750251 | AJ5: 2.382558021 | AK5: 5.603776465 | AL5: 5.224944489 | AM5: 1.459134132 | AN5: 3.328284956 | AO5: 10.00000379 | AP5: 10.00000379 | AQ5: 22.34002229 | AR5: 2.128034443 | AS5: 12.9421875 | AT5: 0 | AU5: 0 | AV5: 7.593561529 | AW5: =(P5-AY5)*(h_vVTO1-h_vNTO2)/(h_CZT-h_vNTO2) -> 3.156093736 | AX5: 8.228315102 | AY5: =P5*(h_nvK1-h_vVTO1)/(h_eTG1-h_vVTO1) -> 3.652159388 | AZ5: 8.582328375 | BA5: 6.577268433 | BB5: 2.005059941 | BC5: NT | BD5: 0 | BE5: =BE4+BF4-BD4-(0.001*BE4) -> 103.8341029 | BF5: 25.2 | BG5: 9.85915493 | BH5: =IF(H5>MEDIAN(OFFSET($H$2,24*(FLOOR(F5,1)-43101),,,):OFFSET($H$25,24*(FLOOR(F5,1)-43101),,,)),1,IF(H5>150,1,0)) -> 0 | BI5: =IF(MAX(OFFSET($H$2,24*(FLOOR(F5,1)-43101),,,):OFFSET($H$25,24*(FLOOR(F5,1)-43101),,,))>145,1,IF(MAX(OFFSET($H$2,24*(FLOOR(F5,1)-43101),,,):OFFSET($H$25,24*(FLOOR(F5,1)-43101),,,))<100,2,0)) -> 0 | BJ5: 25.2 | BK5: 19.06664662 | BL5: 10.00000998 | BM5: 3.862047769 | BN5: 4.720280606
A6: h_kondŠO | B6: 0.504 | C6: GJ/t | D6: 120°C; 0,7 Mpa | E6: Entalpie kondenzátu ŠO | F6: 2018-01-01T04:00:00 | G6: 5 | H6: 88.16512003 | I6: 71.76824503 | J6: 16.396875 | K6: 75.5266818 | L6: 35.775 | M6: 25.56759709 | N6: 70.98214286 | O6: 215.7092851 | P6: 63.9897019 | Q6: 63.9897019 | R6: =P6*(h_výstupK1-h_nvK1) -> 170.8525041 | S6: 47.45902891 | T6: 51.58590098 | U6: 10.79704904 | V6: 0 | W6: 0 | X6: 0 | Y6: 0 | Z6: 0 | AA6: 0 | AB6: 0 | AC6: 26.68370569 | AD6: 7.191258684 | AE6: 189.0255794 | AF6: 61.96700503 | AG6: 20.9773162 | AH6: =P6/S3_-M6-AU6-BG6 -> 20.9773162 | AI6: 9.340050043 | AJ6: 2.720399256 | AK6: 6.398379049 | AL6: 6.619650787 | AM6: 1.637263471 | AN6: 3.734597977 | AO6: 10.00000269 | AP6: 10.00000269 | AQ6: 22.34001581 | AR6: 2.243496459 | AS6: 16.396875 | AT6: 0 | AU6: 0 | AV6: 8.460610233 | AW6: =(P6-AY6)*(h_vVTO1-h_vNTO2)/(h_CZT-h_vNTO2) -> 3.516463106 | AX6: 9.167841293 | AY6: =P6*(h_nvK1-h_vVTO1)/(h_eTG1-h_vVTO1) -> 4.069170569 | AZ6: 9.434755143 | BA6: 7.314935359 | BB6: 2.119819783 | BC6: NT | BD6: 0 | BE6: =BE5+BF5-BD5-(0.001*BE5) -> 128.9302688 | BF6: 25.2 | BG6: 9.85915493 | BH6: =IF(H6>MEDIAN(OFFSET($H$2,24*(FLOOR(F6,1)-43101),,,):OFFSET($H$25,24*(FLOOR(F6,1)-43101),,,)),1,IF(H6>150,1,0)) -> 0 | BI6: =IF(MAX(OFFSET($H$2,24*(FLOOR(F6,1)-43101),,,):OFFSET($H$25,24*(FLOOR(F6,1)-43101),,,))>145,1,IF(MAX(OFFSET($H$2,24*(FLOOR(F6,1)-43101),,,):OFFSET($H$25,24*(FLOOR(F6,1)-43101),,,))<100,2,0)) -> 0 | BJ6: 25.2 | BK6: 20.97732059 | BL6: 10.00000708 | BM6: 4.245639814 | BN6: 5.189115328
A7: h_výstupK1 | B7: 3.371 | C7: GJ/t | D7: 480°C; 6,3 Mpa | E7: Entalpie výstupní páry K1 | F7: 2018-01-01T05:00:00 | G7: 6 | H7: 119.0094894 | I7: 95.04152011 | J7: 23.9679693 | K7: 100.0187568 | L7: 52.2937512 | M7: 33.85875316 | N7: 103.7574429 | O7: 263.3511062 | P7: 78.12254707 | Q7: 78.12254707 | R7: =P7*(h_výstupK1-h_nvK1) -> 208.5872007 | S7: 57.94088908 | T7: 62.97922726 | U7: 13.18169873 | V7: 0 | W7: 0 | X7: 0 | Y7: 0 | Z7: 0 | AA7: 0 | AB7: 0 | AC7: 32.57710213 | AD7: 8.779529024 | AE7: 230.774004 | AF7: 74.27429286 | AG7: 25.14363282 | AH7: =P7/S3_-M7-AU7-BG7 -> 25.14363282 | AI7: 13.12470698 | AJ7: 3.448498139 | AK7: 8.110867624 | AL7: 9.676208841 | AM7: 2.018925522 | AN7: 4.605169115 | AO7: 10.00000032 | AP7: 10.00000032 | AQ7: 22.34000185 | AR7: 2.494871549 | AS7: 23.9679693 | AT7: 0 | AU7: 0 | AV7: 10.32923114 | AW7: =(P7-AY7)*(h_vVTO1-h_vNTO2)/(h_CZT-h_vNTO2) -> 4.293113523 | AX7: 11.19266213 | AY7: =P7*(h_nvK1-h_vVTO1)/(h_eTG1-h_vVTO1) -> 4.967892644 | AZ7: 11.27440057 | BA7: 8.907255999 | BB7: 2.367144574 | BC7: NT | BD7: 0 | BE7: =BE6+BF6-BD6-(0.001*BE6) -> 154.0013385 | BF7: 25.2 | BG7: 9.85915493 | BH7: =IF(H7>MEDIAN(OFFSET($H$2,24*(FLOOR(F7,1)-43101),,,):OFFSET($H$25,24*(FLOOR(F7,1)-43101),,,)),1,IF(H7>150,1,0)) -> 0 | BI7: =IF(MAX(OFFSET($H$2,24*(FLOOR(F7,1)-43101),,,):OFFSET($H$25,24*(FLOOR(F7,1)-43101),,,))>145,1,IF(MAX(OFFSET($H$2,24*(FLOOR(F7,1)-43101),,,):OFFSET($H$25,24*(FLOOR(F7,1)-43101),,,))<100,2,0)) -> 0 | BJ7: 25.2 | BK7: 25.14363333 | BL7: 10.00000083 | BM7: 5.073480258 | BN7: 6.200920315
A8: h_nvK7 | B8: 0.701 | C8: GJ/t | D8: 165°C; 6,5 Mpa | E8: Entalpie napájecí vody K1 | F8: 2018-01-01T06:00:00 | G8: 7 | H8: 143.7197451 | I8: 115.8306826 | J8: 27.8890625 | K8: 121.8966285 | L8: 60.84886364 | M8: 41.26493857 | N8: 120.7318723 | O8: 269.68 | P8: 80 | Q8: 80 | R8: =P8*(h_výstupK1-h_nvK1) -> 213.6 | S8: 59.33333333 | T8: 64.49275362 | U8: 13.49848332 | V8: 0 | W8: 0 | X8: 0 | Y8: 0 | Z8: 0 | AA8: 0 | AB8: 0 | AC8: 33.36 | AD8: 8.99052 | AE8: 236.32 | AF8: 81.66842038 | AG8: 27.64672322 | AH8: =P8/S3_-M8-AU8-BG8 -> 27.64672322 | AI8: 15.28687291 | AJ8: 4.027663179 | AK8: 9.473063797 | AL8: 11.25920973 | AM8: 2.359850307 | AN8: 5.38281855 | AO8: 10 | AP8: 10 | AQ8: 22.34 | AR8: 2.652424135 | AS8: 27.8890625 | AT8: 0 | AU8: 0 | AV8: 10.57746479 | AW8: =(P8-AY8)*(h_vVTO1-h_vNTO2)/(h_CZT-h_vNTO2) -> 4.39628628 | AX8: 11.46164589 | AY8: =P8*(h_nvK1-h_vVTO1)/(h_eTG1-h_vVTO1) -> 5.087281795 | AZ8: 11.64294413 | BA8: 9.242944134 | BB8: 2.4 | BC8: NT | BD8: 0 | BE8: =BE7+BF7-BD7-(0.001*BE7) -> 179.0473372 | BF8: 4.101792466 | BG8: 1.604770136 | BH8: =IF(H8>MEDIAN(OFFSET($H$2,24*(FLOOR(F8,1)-43101),,,):OFFSET($H$25,24*(FLOOR(F8,1)-43101),,,)),1,IF(H8>150,1,0)) -> 1 | BI8: =IF(MAX(OFFSET($H$2,24*(FLOOR(F8,1)-43101),,,):OFFSET($H$25,24*(FLOOR(F8,1)-43101),,,))>145,1,IF(MAX(OFFSET($H$2,24*(FLOOR(F8,1)-43101),,,):OFFSET($H$25,24*(FLOOR(F8,1)-43101),,,))<100,2,0)) -> 0 | BJ8: 4.101792466 | BK8: 27.64672322 | BL8: 10 | BM8: 5.239324861 | BN8: 6.403619274
A9: h_eTG1 | B9: 2.954 | C9: GJ/t | D9: 250°C; 0,7 Mpa | E9: Entalpie emisní páry TG1 | F9: 2018-01-01T07:00:00 | G9: 8 | H9: 144.5980458 | I9: 112.9042958 | J9: 31.69375 | K9: 118.8169895 | L9: 69.15 | M9: 40.22240675 | N9: 137.202381 | O9: 269.68 | P9: 80 | Q9: 80 | R9: =P9*(h_výstupK1-h_nvK1) -> 213.6 | S9: 59.33333333 | T9: 64.49275362 | U9: 13.49848332 | V9: 0 | W9: 0 | X9: 0 | Y9: 0 | Z9: 0 | AA9: 0 | AB9: 0 | AC9: 33.36 | AD9: 8.99052 | AE9: 236.32 | AF9: 86.14570756 | AG9: 29.16239254 | AH9: =P9/S3_-M9-AU9-BG9 -> 29.16239254 | AI9: 16.85053252 | AJ9: 4.055316532 | AK9: 9.538104483 | AL9: 12.79521599 | AM9: 2.311860021 | AN9: 5.273352709 | AO9: 10 | AP9: 10 | AQ9: 22.34 | AR9: 2.732946059 | AS9: 31.69375 | AT9: 0 | AU9: 0 | AV9: 10.57746479 | AW9: =(P9-AY9)*(h_vVTO1-h_vNTO2)/(h_CZT-h_vNTO2) -> 4.39628628 | AX9: 11.46164589 | AY9: =P9*(h_nvK1-h_vVTO1)/(h_eTG1-h_vVTO1) -> 5.087281795 | AZ9: 11.72346606 | BA9: 9.323466059 | BB9: 2.4 | BC9: NT | BD9: 0 | BE9: =BE8+BF8-BD8-(0.001*BE8) -> 182.9700823 | BF9: 2.892453005 | BG9: 1.131632631 | BH9: =IF(H9>MEDIAN(OFFSET($H$2,24*(FLOOR(F9,1)-43101),,,):OFFSET($H$25,24*(FLOOR(F9,1)-43101),,,)),1,IF(H9>150,1,0)) -> 1 | BI9: =IF(MAX(OFFSET($H$2,24*(FLOOR(F9,1)-43101),,,):OFFSET($H$25,24*(FLOOR(F9,1)-43101),,,))>145,1,IF(MAX(OFFSET($H$2,24*(FLOOR(F9,1)-43101),,,):OFFSET($H$25,24*(FLOOR(F9,1)-43101),,,))<100,2,0)) -> 0 | BJ9: 2.892453005 | BK9: 29.16239254 | BL9: 10 | BM9: 5.275559726 | BN9: 6.447906332
A10: h_vNTO2 | B10: 0.398 | C10: GJ/t | D10: 95°C; 0,7 Mpa | E10: Entalpie výstupní vody NTO2 | F10: 2018-01-01T08:00:00 | G10: 9 | H10: 129.9631036 | I10: 105.5654479 | J10: 24.3976557 | K10: 111.093813 | L10: 53.2312488 | M10: 37.60792588 | N10: 105.6175571 | O10: 202.2730265 | P10: 60.0038643 | Q10: 60.0038643 | R10: =P10*(h_výstupK1-h_nvK1) -> 160.2103177 | S10: 44.50286602 | T10: 48.37268046 | U10: 10.12451451 | V10: 0 | W10: 0 | X10: 0 | Y10: 0 | Z10: 0 | AA10: 0 | AB10: 0 | AC10: 25.02161141 | AD10: 6.743324276 | AE10: 177.2514151 | AF10: 45.14542001 | AG10: 15.28280427 | AH10: =P10/S3_-M10-AU10-BG10 -> 15.28280427 | AI10: 3.091291674 | AJ10: 3.091291674 | AK10: 7.270718017 | AL10: 0 | AM10: 2.191509237 | AN10: 4.99883257 | AO10: 10.00000336 | AP10: 10.00000336 | AQ10: 22.34001975 | AR10: 1.962836941 | AS10: 0 | AT10: 0 | AU10: 0 | AV10: 7.933609522 | AW10: =(P10-AY10)*(h_vVTO1-h_vNTO2)/(h_CZT-h_vNTO2) -> 3.297427067 | AX10: 8.596788054 | AY10: =P10*(h_nvK1-h_vVTO1)/(h_eTG1-h_vVTO1) -> 3.815707081 | AZ10: 8.706161217 | BA10: 6.656093591 | BB10: 2.050067625 | BC10: VT | BD10: 24.3976557 | BE10: =BE9+BF9-BD9-(0.001*BE9) -> 185.6795652 | BF10: 0 | BG10: 0 | BH10: =IF(H10>MEDIAN(OFFSET($H$2,24*(FLOOR(F10,1)-43101),,,):OFFSET($H$25,24*(FLOOR(F10,1)-43101),,,)),1,IF(H10>150,1,0)) -> 1 | BI10: =IF(MAX(OFFSET($H$2,24*(FLOOR(F10,1)-43101),,,):OFFSET($H$25,24*(FLOOR(F10,1)-43101),,,))>145,1,IF(MAX(OFFSET($H$2,24*(FLOOR(F10,1)-43101),,,):OFFSET($H$25,24*(FLOOR(F10,1)-43101),,,))<100,2,0)) -> 0 | BJ10: -24.3976557 | BK10: 15.28280975 | BL10: 10.00000884 | BM10: 3.917772547 | BN10: 4.788388669
A11: h_vVTO1 | B11: 0.548 | C11: GJ/t | D11: 130°C; 3 Mpa | E11: Entalpie výstupní vody VTO1 | F11: 2018-01-01T09:00:00 | G11: 10 | H11: 139.6672176 | I11: 109.7781551 | J11: 29.8890625 | K11: 115.5271358 | L11: 65.2125 | M11: 39.10871218 | N11: 129.389881 | O11: 208.6494543 | P11: 61.89541808 | Q11: 61.89541808 | R11: =P11*(h_výstupK1-h_nvK1) -> 165.2607663 | S11: 45.90576841 | T11: 49.89757436 | U11: 10.44367835 | V11: 0 | W11: 0 | X11: 0 | Y11: 0 | Z11: 0 | AA11: 0 | AB11: 0 | AC11: 25.81038934 | AD11: 6.955899927 | AE11: 182.839065 | AF11: 45.63735988 | AG11: 15.44933826 | AH11: =P11/S3_-M11-AU11-BG11 -> 15.44933826 | AI11: 3.188741139 | AJ11: 3.188741139 | AK11: 7.499919159 | AL11: 0 | AM11: 2.260594081 | AN11: 5.156415099 | AO11: 10.00000304 | AP11: 10.00000304 | AQ11: 22.34001788 | AR11: 1.97603272 | AS11: 0 | AT11: 0 | AU11: 0 | AV11: 8.183707567 | AW11: =(P11-AY11)*(h_vVTO1-h_vNTO2)/(h_CZT-h_vNTO2) -> 3.401374716 | AX11: 8.867792049 | AY11: =P11*(h_nvK1-h_vVTO1)/(h_eTG1-h_vVTO1) -> 3.93599292 | AZ11: 8.931932647 | BA11: 6.848762831 | BB11: 2.083169816 | BC11: VT | BD11: 29.8890625 | BE11: =BE10+BF10-BD10-(0.001*BE10) -> 161.0962299 | BF11: 0 | BG11: 0 | BH11: =IF(H11>MEDIAN(OFFSET($H$2,24*(FLOOR(F11,1)-43101),,,):OFFSET($H$25,24*(FLOOR(F11,1)-43101),,,)),1,IF(H11>150,1,0)) -> 1 | BI11: =IF(MAX(OFFSET($H$2,24*(FLOOR(F11,1)-43101),,,):OFFSET($H$25,24*(FLOOR(F11,1)-43101),,,))>145,1,IF(MAX(OFFSET($H$2,24*(FLOOR(F11,1)-43101),,,):OFFSET($H$25,24*(FLOOR(F11,1)-43101),,,))<100,2,0)) -> 0 | BJ11: -29.8890625 | BK11: 15.44934322 | BL11: 10.000008 | BM11: 4.019369691 | BN11: 4.912562956
A12: h_vNTO1 | B12: 0.252 | C12: GJ/t | D12: 60°C; 0,7 Mpa | E12: Entalpie výstupní vody NTO1 | F12: 2018-01-01T10:00:00 | G12: 11 | H12: 137.9180961 | I12: 109.6016893 | J12: 28.3164068 | K12: 115.3414286 | L12: 61.7812512 | M12: 39.04584584 | N12: 122.5818476 | O12: 208.3823526 | P12: 61.8161829 | Q12: 61.8161829 | R12: =P12*(h_výstupK1-h_nvK1) -> 165.0492084 | S12: 45.84700232 | T12: 49.83369817 | U12: 10.43030892 | V12: 0 | W12: 0 | X12: 0 | Y12: 0 | Z12: 0 | AA12: 0 | AB12: 0 | AC12: 25.77734827 | AD12: 6.946995359 | AE12: 182.6050043 | AF12: 45.61675304 | AG12: 15.44236233 | AH12: =P12/S3_-M12-AU12-BG12 -> 15.44236233 | AI12: 3.184659084 | AJ12: 3.184659084 | AK12: 7.490318167 | AL12: 0 | AM12: 2.25770019 | AN12: 5.149814134 | AO12: 10.00000305 | AP12: 10.00000305 | AQ12: 22.34001796 | AR12: 1.975479963 | AS12: 0 | AT12: 0 | AU12: 0 | AV12: 8.173231226 | AW12: =(P12-AY12)*(h_vVTO1-h_vNTO2)/(h_CZT-h_vNTO2) -> 3.397020459 | AX12: 8.85643998 | AY12: =P12*(h_nvK1-h_vVTO1)/(h_eTG1-h_vVTO1) -> 3.930954274 | AZ12: 8.922475322 | BA12: 6.840692121 | BB12: 2.081783201 | BC12: VT | BD12: 28.3164068 | BE12: =BE11+BF11-BD11-(0.001*BE11) -> 131.0460712 | BF12: 0 | BG12: 0 | BH12: =IF(H12>MEDIAN(OFFSET($H$2,24*(FLOOR(F12,1)-43101),,,):OFFSET($H$25,24*(FLOOR(F12,1)-43101),,,)),1,IF(H12>150,1,0)) -> 1 | BI12: =IF(MAX(OFFSET($H$2,24*(FLOOR(F12,1)-43101),,,):OFFSET($H$25,24*(FLOOR(F12,1)-43101),,,))>145,1,IF(MAX(OFFSET($H$2,24*(FLOOR(F12,1)-43101),,,):OFFSET($H$25,24*(FLOOR(F12,1)-43101),,,))<100,2,0)) -> 0 | BJ12: -28.3164068 | BK12: 15.44236731 | BL12: 10.00000804 | BM12: 4.015113895 | BN12: 4.907361427
A13: h_RO | B13: 2.75 | C13: GJ/t | D13: 140°C; 0,18 Mpa | E13: Entalpie regulovaného odběru | F13: 2018-01-01T11:00:00 | G13: 12 | H13: 134.4149847 | I13: 106.9321722 | J13: 27.4828125 | K13: 112.5321114 | L13: 59.9625 | M13: 38.09482444 | N13: 118.9732143 | O13: 204.3417245 | P13: 60.61753915 | Q13: 60.61753915 | R13: =P13*(h_výstupK1-h_nvK1) -> 161.8488295 | S13: 44.9580082 | T13: 48.86740022 | U13: 10.22806051 | V13: 0 | W13: 0 | X13: 0 | Y13: 0 | Z13: 0 | AA13: 0 | AB13: 0 | AC13: 25.27751383 | AD13: 6.812289976 | AE13: 179.0642107 | AF13: 45.30501956 | AG13: 15.33683272 | AH13: =P13/S3_-M13-AU13-BG13 -> 15.33683272 | AI13: 3.122907104 | AJ13: 3.122907104 | AK13: 7.345077509 | AL13: 0 | AM13: 2.213922362 | AN13: 5.049956908 | AO13: 10.00000325 | AP13: 10.00000325 | AQ13: 22.34001914 | AR13: 1.967118034 | AS13: 0 | AT13: 0 | AU13: 0 | AV13: 8.014748574 | AW13: =(P13-AY13)*(h_vVTO1-h_vNTO2)/(h_CZT-h_vNTO2) -> 3.331150696 | AX13: 8.684709602 | AY13: =P13*(h_nvK1-h_vVTO1)/(h_eTG1-h_vVTO1) -> 3.854731293 | AZ13: 8.77940801 | BA13: 6.718601075 | BB13: 2.060806935 | BC13: VT | BD13: 27.4828125 | BE13: =BE12+BF12-BD12-(0.001*BE12) -> 102.5986183 | BF13: 0 | BG13: 0 | BH13: =IF(H13>MEDIAN(OFFSET($H$2,24*(FLOOR(F13,1)-43101),,,):OFFSET($H$25,24*(FLOOR(F13,1)-43101),,,)),1,IF(H13>150,1,0)) -> 1 | BI13: =IF(MAX(OFFSET($H$2,24*(FLOOR(F13,1)-43101),,,):OFFSET($H$25,24*(FLOOR(F13,1)-43101),,,))>145,1,IF(MAX(OFFSET($H$2,24*(FLOOR(F13,1)-43101),,,):OFFSET($H$25,24*(FLOOR(F13,1)-43101),,,))<100,2,0)) -> 0 | BJ13: -27.4828125 | BK13: 15.33683803 | BL13: 10.00000857 | BM13: 3.950733605 | BN13: 4.828674406
A14: h_NRO | B14: 2.533 | C14: GJ/t | D14: 70°C; 0,03 Mpa; 0,96 suchost | E14: Entalpie neregulovaného odběru | F14: 2018-01-01T12:00:00 | G14: 13 | H14: 134.9546172 | I14: 107.239774 | J14: 27.7148432 | K14: 112.8558221 | L14: 60.4687488 | M14: 38.20440828 | N14: 119.9776762 | O14: 204.807316 | P14: 60.7556559 | Q14: 60.7556559 | R14: =P14*(h_výstupK1-h_nvK1) -> 162.2176012 | S14: 45.06044479 | T14: 48.97874434 | U14: 10.25136509 | V14: 0 | W14: 0 | X14: 0 | Y14: 0 | Z14: 0 | AA14: 0 | AB14: 0 | AC14: 25.33510851 | AD14: 6.827811743 | AE14: 179.4722075 | AF14: 45.34093983 | AG14: 15.34899264 | AH14: =P14/S3_-M14-AU14-BG14 -> 15.34899264 | AI14: 3.130022631 | AJ14: 3.130022631 | AK14: 7.361813229 | AL14: 0 | AM14: 2.218966773 | AN14: 5.061463208 | AO14: 10.00000323 | AP14: 10.00000323 | AQ14: 22.34001901 | AR14: 1.968081559 | AS14: 0 | AT14: 0 | AU14: 0 | AV14: 8.033010137 | AW14: =(P14-AY14)*(h_vVTO1-h_vNTO2)/(h_CZT-h_vNTO2) -> 3.338740705 | AX14: 8.704497668 | AY14: =P14*(h_nvK1-h_vVTO1)/(h_eTG1-h_vVTO1) -> 3.863514278 | AZ14: 8.795893302 | BA14: 6.732669323 | BB14: 2.063223978 | BC14: VT | BD14: 27.7148432 | BE14: =BE13+BF13-BD13-(0.001*BE13) -> 75.01320723 | BF14: 0 | BG14: 0 | BH14: =IF(H14>MEDIAN(OFFSET($H$2,24*(FLOOR(F14,1)-43101),,,):OFFSET($H$25,24*(FLOOR(F14,1)-43101),,,)),1,IF(H14>150,1,0)) -> 1 | BI14: =IF(MAX(OFFSET($H$2,24*(FLOOR(F14,1)-43101),,,):OFFSET($H$25,24*(FLOOR(F14,1)-43101),,,))>145,1,IF(MAX(OFFSET($H$2,24*(FLOOR(F14,1)-43101),,,):OFFSET($H$25,24*(FLOOR(F14,1)-43101),,,))<100,2,0)) -> 0 | BJ14: -27.7148432 | BK14: 15.34899791 | BL14: 10.00000851 | BM14: 3.958151986 | BN14: 4.837741316
A15: h_kondTG2 | B15: 2.381 | C15: GJ/t | D15: 40°C; 0,008 Mpa; 0,92 suchost | E15: Entalpie emisní páry TG2 | F15: 2018-01-01T13:00:00 | G15: 14 | H15: 121.4343217 | I15: 98.96166494 | J15: 22.4726568 | K15: 104.144196 | L15: 49.0312512 | M15: 35.25531348 | N15: 97.28422857 | O15: 192.2774242 | P15: 57.03869006 | Q15: 57.03869006 | R15: =P15*(h_výstupK1-h_nvK1) -> 152.2933025 | S15: 42.30369513 | T15: 45.98227731 | U15: 9.624197577 | V15: 0 | W15: 0 | X15: 0 | Y15: 0 | Z15: 0 | AA15: 0 | AB15: 0 | AC15: 23.78513376 | AD15: 6.410093547 | AE15: 168.4922904 | AF15: 44.37426168 | AG15: 15.02174783 | AH15: =P15/S3_-M15-AU15-BG15 -> 15.02174783 | AI15: 2.938531205 | AJ15: 2.938531205 | AK15: 6.911425395 | AL15: 0 | AM15: 2.083212766 | AN15: 4.75180832 | AO15: 10.00000386 | AP15: 10.00000386 | AQ15: 22.34002268 | AR15: 1.942151415 | AS15: 0 | AT15: 0 | AU15: 0 | AV15: 7.541559196 | AW15: =(P15-AY15)*(h_vVTO1-h_vNTO2)/(h_CZT-h_vNTO2) -> 3.134480131 | AX15: 8.17196584 | AY15: =P15*(h_nvK1-h_vVTO1)/(h_eTG1-h_vVTO1) -> 3.62714862 | AZ15: 8.352244962 | BA15: 6.354067886 | BB15: 1.998177076 | BC15: VT | BD15: 22.4726568 | BE15: =BE14+BF14-BD14-(0.001*BE14) -> 47.22335082 | BF15: 0 | BG15: 0 | BH15: =IF(H15>MEDIAN(OFFSET($H$2,24*(FLOOR(F15,1)-43101),,,):OFFSET($H$25,24*(FLOOR(F15,1)-43101),,,)),1,IF(H15>150,1,0)) -> 0 | BI15: =IF(MAX(OFFSET($H$2,24*(FLOOR(F15,1)-43101),,,):OFFSET($H$25,24*(FLOOR(F15,1)-43101),,,))>145,1,IF(MAX(OFFSET($H$2,24*(FLOOR(F15,1)-43101),,,):OFFSET($H$25,24*(FLOOR(F15,1)-43101),,,))<100,2,0)) -> 0 | BJ15: -22.4726568 | BK15: 15.02175412 | BL15: 10.00001015 | BM15: 3.758510233 | BN15: 4.593734729
A16: S1 | B16: =(h_vVTO1-h_vNTO2)/(h_CZT-h_vVTO1) -> 0.06234413965 | C16: - | D16: - | E16: Substituce 1 | F16: 2018-01-01T14:00:00 | G16: 15 | H16: 121.3046977 | I16: 97.21641698 | J16: 24.0882807 | K16: 102.307551 | L16: 52.5562488 | M16: 34.63356501 | N16: 104.2782714 | O16: 189.6357861 | P16: 56.25505373 | Q16: 56.25505373 | R16: =P16*(h_výstupK1-h_nvK1) -> 150.2009935 | S16: 41.72249818 | T16: 45.3505415 | U16: 9.491973803 | V16: 0 | W16: 0 | X16: 0 | Y16: 0 | Z16: 0 | AA16: 0 | AB16: 0 | AC16: 23.4583574 | AD16: 6.32202732 | AE16: 166.1774287 | AF16: 44.17045993 | AG16: 14.95275582 | AH16: =P16/S3_-M16-AU16-BG16 -> 14.95275582 | AI16: 2.898159664 | AJ16: 2.898159664 | AK16: 6.81647153 | AL16: 0 | AM16: 2.054592172 | AN16: 4.686524745 | AO16: 10.00000399 | AP16: 10.00000399 | AQ16: 22.34002345 | AR16: 1.936684644 | AS16: 0 | AT16: 0 | AU16: 0 | AV16: 7.437948125 | AW16: =(P16-AY16)*(h_vVTO1-h_vNTO2)/(h_CZT-h_vNTO2) -> 3.091416511 | AX16: 8.059693813 | AY16: =P16*(h_nvK1-h_vVTO1)/(h_eTG1-h_vVTO1) -> 3.577316384 | AZ16: 8.258711964 | BA16: 6.274248524 | BB16: 1.98446344 | BC16: VT | BD16: 24.0882807 | BE16: =BE15+BF15-BD15-(0.001*BE15) -> 24.70347067 | BF16: 0 | BG16: 0 | BH16: =IF(H16>MEDIAN(OFFSET($H$2,24*(FLOOR(F16,1)-43101),,,):OFFSET($H$25,24*(FLOOR(F16,1)-43101),,,)),1,IF(H16>150,1,0)) -> 0 | BI16: =IF(MAX(OFFSET($H$2,24*(FLOOR(F16,1)-43101),,,):OFFSET($H$25,24*(FLOOR(F16,1)-43101),,,))>145,1,IF(MAX(OFFSET($H$2,24*(FLOOR(F16,1)-43101),,,):OFFSET($H$25,24*(FLOOR(F16,1)-43101),,,))<100,2,0)) -> 0 | BJ16: -24.0882807 | BK16: 14.95276233 | BL16: 10.0000105 | BM16: 3.716420384 | BN16: 4.54229158
